{"text_format":"1","workbook":"xlsx","n_sheets":3,"sheets":["Activos de información - ICYR","DATA","Lista_Datos"],"not_rendered":{"charts":0,"images":3,"macros":1,"external_links":0,"defined_names":488,"comments":1,"pivot_tables":0},"unopened":[],"bounds":{"document_bytes":16777216,"sheet_cells":100000,"rows_first":2000,"rows_last":500,"rows_between":2000,"halvings":0,"cell_chars":16384,"cell_head_chars":4096},"cells_cut":0,"cells_raw":0,"read":"whole","date_system":"1900"}

{"sheet":"Activos de información - ICYR","index":0,"n_rows":235,"n_cols":22,"rows_kept":235,"cut":false,"hidden":false,"merged":[[3,16,5,21],[3,0,5,11],[3,12,5,15],[0,10,2,21],[0,3,2,7]]}
[null,null,null,"ÍNDICE DE INFORMACIÓN CLASIFICADA Y RESERVADA 2021",null,null,null,null,null,null,"ÍNDICE DE INFORMACIÓN CLASIFICADA Y RESERVADA 2021"]
[]
[]
["Identificación del Activo de Información ( Ley 594 de 2000 - Ley 1712 de 2014 - Decreto 103 de 2015 - Decreto 1080 de 2015 - Iso 27001:2013 - MIG )",null,null,null,null,null,null,null,null,null,null,null,"Valoración del Activo (Iso 27001:2013)",null,null,null,"Índice de Información Clasificada y Reservada (Decreto 103 de 2015)"]
[]
[]
["Identificador ",{"$f":"COUNTIF(B8:B235,\"LEB\")","v":0},"Tipo ","Oficina","Nombre","Descripción","Nombre del Responsable de la Producción de la Información\n(Propietario del Activo)","Fecha de Generación de la Información ","Nombre del Responsable de la Información\n(Custodio del Activo)","Medio de Conservación","Formato","Idioma","Clasificación de la Información","Cálculo C","Confidencialidad ","Cálculo I","Objetivo legítimo de la Excepción","Fundamento Constitucional o Legal","Fundamento Jurídico de la Excepción","Excepción Total o Parcial","Fecha de Calificación\nDD/MM/AAAA","Tiempo que Cobija la Clasificación"]
[">>>>>>>>>>>>>",{"$f":"IF(AND(#REF!=\"\",D8<>\"\"),\"LEB\",IF(D8<>\"\",1+#REF!,\"\"))","v":{"$error":"#REF!"}},"Información Digital","DESPACHO DEL MINISTRO","Seguimiento al Plan de Implementación de Seguridad de la información","Documento que contiene los  seguimiento de las gestiones del Sistema de Gestión de seguridad de la información del Ministerio: activos, riesgos, continuidad del servicio, Gobierno en línea, cultura incidentes de seguridad de la información y Privacidad de la información.","DESPACHO DEL MINISTRO","2020-01-31","OFICINA ASESORA DE PLANEACIÓN Y ESTUDIOS SECTORIALES","Archivos Institucionales - electrónico","Hoja de cálculo","Español","Pública Clasificada",{"$f":"+IF(O8=\"Alta\",0.5,IF(O8=\"Media\",0.3,IF(O8=\"Baja\",0.2,\"\")))","v":0.3},"Media",{"$f":"+IF(#REF!=\"Grave \",0.5,IF(#REF!=\"Importante\",0.3,IF(#REF!=\"Leve\",0.2,\"\")))","v":{"$error":"#REF!"}},"SI","Ley 1712 de 2014 artículo 18","Ley 1712 de 2014 artículo 18","Sin reserva","No Aplica","Permanente"]
[{"$f":"IF(D9<>\"\",VLOOKUP('Activos de información - ICYR'!D9,DATA!$B$2:$C$95,2,)&\"-\"&IF(ISERR(B9),\"LEB\",B9),\"\")","v":"1-LEB"},{"$f":"IF(AND(A8=\"\",D9<>\"\"),\"LEB\",IF(D9<>\"\",1+B8,\"\"))","v":{"$error":"#REF!"}},"Información Digital","DESPACHO DEL MINISTRO","Plan de continuidad de la operación ","Documentación refrente al Análisis de Impacto al Negocio - BIA, Análisis de Riesgos de Interrupción - RIA, Estrategias para la Continuidad de las Operaciones, Informe Plan de Continuidad de las Operaciones y Plan de Recuperación de Desastres Tecnológicos - DRP","DESPACHO DEL MINISTRO","2021-01-26","DESPACHO DEL MINISTRO","Sistemas de Información corporativos","PDF","Español","Pública Clasificada",{"$f":"+IF(O9=\"Alta\",0.5,IF(O9=\"Media\",0.3,IF(O9=\"Baja\",0.2,\"\")))","v":0.3},"Media",{"$f":"+IF(#REF!=\"Grave \",0.5,IF(#REF!=\"Importante\",0.3,IF(#REF!=\"Leve\",0.2,\"\")))","v":{"$error":"#REF!"}},"SI","Ley 1712 de 2014 artículo 18","Ley 1712 de 2014 artículo 18","Sin reserva","No Aplica","Permanente"]
[{"$f":"IF(D10<>\"\",VLOOKUP('Activos de información - ICYR'!D10,DATA!$B$2:$C$95,2,)&\"-\"&IF(ISERR(B10),\"LEB\",B10),\"\")","v":"12-LEB"},{"$f":"IF(AND(#REF!=\"\",D10<>\"\"),\"LEB\",IF(D10<>\"\",1+#REF!,\"\"))","v":{"$error":"#REF!"}},"Información Digital","OFICINA ASESORA DE PRENSA","Agenda de comunicaciones","Definición de la agenda de comunicaciones de acuerdo con los temas que se van a divulgar.","OFICINA ASESORA DE PRENSA","2020-10-13","OFICINA ASESORA DE PRENSA","Uso de tecnologías en la nube","XLS -PDF","Español","Pública Clasificada",{"$f":"+IF(O10=\"Alta\",0.5,IF(O10=\"Media\",0.3,IF(O10=\"Baja\",0.2,\"\")))","v":0.5},"Alta",{"$f":"+IF(#REF!=\"Grave \",0.5,IF(#REF!=\"Importante\",0.3,IF(#REF!=\"Leve\",0.2,\"\")))","v":{"$error":"#REF!"}},"SI","\nResolución 318 de 2019","Ley 1712 de 2014","Sin reserva","2020-09-23","Permanente"]
[{"$f":"IF(D11<>\"\",VLOOKUP('Activos de información - ICYR'!D11,DATA!$B$2:$C$95,2,)&\"-\"&IF(ISERR(B11),\"LEB\",B11),\"\")","v":"12-LEB"},{"$f":"IF(AND(#REF!=\"\",D11<>\"\"),\"LEB\",IF(D11<>\"\",1+#REF!,\"\"))","v":{"$error":"#REF!"}},"Información Digital","OFICINA ASESORA DE PRENSA","Autorización expresa de recolección de material audiovisual de ciudadanos","Documento que da autorización expresa al MinTIC y Fondo Único TIC para la recolección de material audiovisual para la producción de los proyectos audiovisuales.","OFICINA ASESORA DE PRENSA","2020-10-13","OFICINA ASESORA DE PRENSA","Documentos de Archivo - electrónicos","Imagen","Español","Pública Clasificada",{"$f":"+IF(O11=\"Alta\",0.5,IF(O11=\"Media\",0.3,IF(O11=\"Baja\",0.2,\"\")))","v":0.5},"Alta",{"$f":"+IF(#REF!=\"Grave \",0.5,IF(#REF!=\"Importante\",0.3,IF(#REF!=\"Leve\",0.2,\"\")))","v":{"$error":"#REF!"}},"SI","Ley 1581 de 2012\nLey 1712 de 2014, Artículo 18, Literal a","Ley 1581 de 2012\nLey 1712 de 2014, Artículo 18, Literal a","Sin reserva","2020-09-23","Permanente"]
[{"$f":"IF(D12<>\"\",VLOOKUP('Activos de información - ICYR'!D12,DATA!$B$2:$C$95,2,)&\"-\"&IF(ISERR(B12),\"LEB\",B12),\"\")","v":"12-LEB"},{"$f":"IF(AND(#REF!=\"\",D12<>\"\"),\"LEB\",IF(D12<>\"\",1+#REF!,\"\"))","v":{"$error":"#REF!"}},"Información Digital","OFICINA ASESORA DE PRENSA","Base de datos medios de comunicación externos","Listado de periodistas  de medios de comunicación locales, reginales y nacionales que realizan el cubrimiento de noticias del sector TIC.","OFICINA ASESORA DE PRENSA","2020-10-13","OFICINA ASESORA DE PRENSA","Uso de tecnologías en la nube","XLS -PDF","Español","Pública Clasificada",{"$f":"+IF(O12=\"Alta\",0.5,IF(O12=\"Media\",0.3,IF(O12=\"Baja\",0.2,\"\")))","v":0.5},"Alta",{"$f":"+IF(#REF!=\"Grave \",0.5,IF(#REF!=\"Importante\",0.3,IF(#REF!=\"Leve\",0.2,\"\")))","v":{"$error":"#REF!"}},"SI","Ley 1581 de 2012\nLey 1712 de 2014, Artículo 18, Literal a","Ley 1581 de 2012\nLey 1712 de 2014, Artículo 18, Literal a","Sin reserva","2020-10-13","Permanente"]
[{"$f":"IF(D13<>\"\",VLOOKUP('Activos de información - ICYR'!D13,DATA!$B$2:$C$95,2,)&\"-\"&IF(ISERR(B13),\"LEB\",B13),\"\")","v":"14-LEB"},{"$f":"IF(AND(#REF!=\"\",D13<>\"\"),\"LEB\",IF(D13<>\"\",1+#REF!,\"\"))","v":{"$error":"#REF!"}},"Información Física – Digital","OFICINA DE TECNOLOGÍAS DE LA INFORMACIÓN","Solicitud de cambios","Documento que evidencia la solicitud del cambio y la revisión que se realiza después de la implementación de este","OFICINA DE TECNOLOGÍAS DE LA INFORMACIÓN","2018-11-28","OFICINA DE TECNOLOGÍAS DE LA INFORMACIÓN","Documentos de Archivo - electrónicos","XLS","Español","Pública Reservada",{"$f":"+IF(O13=\"Alta\",0.5,IF(O13=\"Media\",0.3,IF(O13=\"Baja\",0.2,\"\")))","v":0.5},"Alta",{"$f":"+IF(#REF!=\"Grave \",0.5,IF(#REF!=\"Importante\",0.3,IF(#REF!=\"Leve\",0.2,\"\")))","v":{"$error":"#REF!"}},"SI","Ley 1273 de 2009 \nArt 269","Resolución 318 de 2019","Reserva total","2018-11-28","5 AÑOS"]
[{"$f":"IF(D14<>\"\",VLOOKUP('Activos de información - ICYR'!D14,DATA!$B$2:$C$95,2,)&\"-\"&IF(ISERR(B14),\"LEB\",B14),\"\")","v":"14-LEB"},{"$f":"IF(AND(A13=\"\",D14<>\"\"),\"LEB\",IF(D14<>\"\",1+B13,\"\"))","v":{"$error":"#REF!"}},"Información Física – Digital","OFICINA DE TECNOLOGÍAS DE LA INFORMACIÓN","Acta de comité de control de cambios ","Documento  que evidencia lo sucedido en los comités de control de cambios","OFICINA DE TECNOLOGÍAS DE LA INFORMACIÓN","2018-11-28","GRUPO INTERNO DE TRABAJO DE SERVICIOS TECNOLÓGICOS","Documentos de Archivo - físicos","PDF","Español","Pública Reservada",{"$f":"+IF(O14=\"Alta\",0.5,IF(O14=\"Media\",0.3,IF(O14=\"Baja\",0.2,\"\")))","v":0.5},"Alta",{"$f":"+IF(#REF!=\"Grave \",0.5,IF(#REF!=\"Importante\",0.3,IF(#REF!=\"Leve\",0.2,\"\")))","v":{"$error":"#REF!"}},"SI","Ley 1273 de 2009 \nArt 269","Resolución 318 de 2019","Reserva total","2018-11-28","5 AÑOS"]
[{"$f":"IF(D15<>\"\",VLOOKUP('Activos de información - ICYR'!D15,DATA!$B$2:$C$95,2,)&\"-\"&IF(ISERR(B15),\"LEB\",B15),\"\")","v":"14-LEB"},{"$f":"IF(AND(#REF!=\"\",D15<>\"\"),\"LEB\",IF(D15<>\"\",1+#REF!,\"\"))","v":{"$error":"#REF!"}},"Información Física – Digital","OFICINA DE TECNOLOGÍAS DE LA INFORMACIÓN","Acuerdo","Acuerdos de servicios estratégicos con entidades del sector  (actas y anexos)","OFICINA DE TECNOLOGÍAS DE LA INFORMACIÓN","2018-11-28","OFICINA DE TECNOLOGÍAS DE LA INFORMACIÓN","Documento de Archivo","PDF","Español","Pública Reservada",{"$f":"+IF(O15=\"Alta\",0.5,IF(O15=\"Media\",0.3,IF(O15=\"Baja\",0.2,\"\")))","v":0.5},"Alta",{"$f":"+IF(#REF!=\"Grave \",0.5,IF(#REF!=\"Importante\",0.3,IF(#REF!=\"Leve\",0.2,\"\")))","v":{"$error":"#REF!"}},"SI","Las actas contienen información jurídica, administrativa y técnica, y en concordancia con el art 31  parrafo 2do del Decreto 103 de 2015 se anonimiza la información","Decreto 103 del 2015 \nArt 31","Reserva Parcial","2016-12-26","5 AÑOS"]
[{"$f":"IF(D16<>\"\",VLOOKUP('Activos de información - ICYR'!D16,DATA!$B$2:$C$95,2,)&\"-\"&IF(ISERR(B16),\"LEB\",B16),\"\")","v":"14-LEB"},{"$f":"IF(AND(A15=\"\",D16<>\"\"),\"LEB\",IF(D16<>\"\",1+B15,\"\"))","v":{"$error":"#REF!"}},"Información Física – Digital","OFICINA DE TECNOLOGÍAS DE LA INFORMACIÓN","Informe de estadísticas sectoriales","Informe de estadísticas del sector","OFICINA DE TECNOLOGÍAS DE LA INFORMACIÓN","2018-11-28","OFICINA DE TECNOLOGÍAS DE LA INFORMACIÓN","Documento de Archivo","PDF","Español","Pública Reservada",{"$f":"+IF(O16=\"Alta\",0.5,IF(O16=\"Media\",0.3,IF(O16=\"Baja\",0.2,\"\")))","v":0.5},"Alta",{"$f":"+IF(#REF!=\"Grave \",0.5,IF(#REF!=\"Importante\",0.3,IF(#REF!=\"Leve\",0.2,\"\")))","v":{"$error":"#REF!"}},"SI","Las actas contienen información jurídica, administrativa y técnica, y en concordancia con el art 31  parrafo 2do del Decreto 103 de 2015 se anonimiza la información","Decreto 103 del 2015 \nArt 32","Reserva Parcial","2016-12-26","5 AÑOS"]
[{"$f":"IF(D17<>\"\",VLOOKUP('Activos de información - ICYR'!D17,DATA!$B$2:$C$95,2,)&\"-\"&IF(ISERR(B17),\"LEB\",B17),\"\")","v":"14-LEB"},{"$f":"IF(AND(#REF!=\"\",D17<>\"\"),\"LEB\",IF(D17<>\"\",1+#REF!,\"\"))","v":{"$error":"#REF!"}},"Información Digital","OFICINA DE TECNOLOGÍAS DE LA INFORMACIÓN","Plan Estratégico de tecnologías de la Información PETI ","Contiene el plan estratégico de tecnologías de la Información PETI, del ministerio de Tecnologías de Información de acuerdo con las guías de marco de referencia de la arquitectura empresarial.","OFICINA DE TECNOLOGÍAS DE LA INFORMACIÓN","2018-11-28","OFICINA DE TECNOLOGÍAS DE LA INFORMACIÓN","Documento de Archivo","PDF","Español","Pública Reservada",{"$f":"+IF(O17=\"Alta\",0.5,IF(O17=\"Media\",0.3,IF(O17=\"Baja\",0.2,\"\")))","v":0.5},"Alta",{"$f":"+IF(#REF!=\"Grave \",0.5,IF(#REF!=\"Importante\",0.3,IF(#REF!=\"Leve\",0.2,\"\")))","v":{"$error":"#REF!"}},"SI","Artículo 21 y  literal c  del articulo 18 de la Ley 1712 de 2014 se anonimiza la información y secreto comercial industrial de terceros","Ley 1712 2014","Reserva Parcial","2015-06-10","5 Años"]
[{"$f":"IF(D18<>\"\",VLOOKUP('Activos de información - ICYR'!D18,DATA!$B$2:$C$95,2,)&\"-\"&IF(ISERR(B18),\"LEB\",B18),\"\")","v":"14-LEB"},{"$f":"IF(AND(#REF!=\"\",D18<>\"\"),\"LEB\",IF(D18<>\"\",1+#REF!,\"\"))","v":{"$error":"#REF!"}},"Información Digital","OFICINA DE TECNOLOGÍAS DE LA INFORMACIÓN","Repositorio Arquitectura Empresarial MinTIC","Repositorio Documental de la Arquitectura TI y Arquitectura Empresarial acorde a Decreto 1008 de 2018, por el cual se  establecen los lineamientos de cumplimiento de la estrategia de gobierno en línea, y alineado con el Guía General G.GEN.03 del proceso de arquitectura empresarial, donde se establece el repositorio de Arquitectura Empresarial","OFICINA DE TECNOLOGÍAS DE LA INFORMACIÓN","2018-02-06","OFICINA DE TECNOLOGÍAS DE LA INFORMACIÓN","Sistemas de Bases de Datos","SQL","Español","Pública Clasificada",{"$f":"+IF(O18=\"Alta\",0.5,IF(O18=\"Media\",0.3,IF(O18=\"Baja\",0.2,\"\")))","v":0.5},"Alta",{"$f":"+IF(#REF!=\"Grave \",0.5,IF(#REF!=\"Importante\",0.3,IF(#REF!=\"Leve\",0.2,\"\")))","v":{"$error":"#REF!"}},"SI","Ley 1712 de 2014, Artículo 18, Literal c","Ley 1712 de 2014, Artículo 18, Literal c","Sin reserva","2018-02-06","Permanente"]
[{"$f":"IF(D19<>\"\",VLOOKUP('Activos de información - ICYR'!D19,DATA!$B$2:$C$95,2,)&\"-\"&IF(ISERR(B19),\"LEB\",B19),\"\")","v":"14-LEB"},{"$f":"IF(AND(#REF!=\"\",D19<>\"\"),\"LEB\",IF(D19<>\"\",1+#REF!,\"\"))","v":{"$error":"#REF!"}},"Información Digital","OFICINA DE TECNOLOGÍAS DE LA INFORMACIÓN","Plan de remediación de vulnerabilidades.","Documento de seguimiento a la planeación y ejecución de las acciones para remediar las vulnerabilidades de seguridad identificadas en  los análisis de seguridad realizados en la Entidad ","OFICINA DE TECNOLOGÍAS DE LA INFORMACIÓN","2021-08-11","OFICINA DE TECNOLOGÍAS DE LA INFORMACIÓN","Documentos de Archivo - electrónicos","XLS","Español","Pública Reservada",{"$f":"+IF(O19=\"Alta\",0.5,IF(O19=\"Media\",0.3,IF(O19=\"Baja\",0.2,\"\")))","v":0.5},"Alta",{"$f":"+IF(#REF!=\"Grave \",0.5,IF(#REF!=\"Importante\",0.3,IF(#REF!=\"Leve\",0.2,\"\")))","v":{"$error":"#REF!"}},"SI","Artículo 18 de la ley 1712 del 2014","Artículo 18 de la ley 1712 del 2014","Reserva total","2017-07-14","15 Años"]
[{"$f":"IF(D20<>\"\",VLOOKUP('Activos de información - ICYR'!D20,DATA!$B$2:$C$95,2,)&\"-\"&IF(ISERR(B20),\"LEB\",B20),\"\")","v":"1401-LEB"},{"$f":"IF(AND(A19=\"\",D20<>\"\"),\"LEB\",IF(D20<>\"\",1+B19,\"\"))","v":{"$error":"#REF!"}},"Información Digital","GRUPO INTERNO DE TRABAJO DE SERVICIOS TECNOLÓGICOS","Solicitud de cambios","Documento que evidencia la solicitud del cambio y la revisión que se realiza después de la implementación de este","GRUPO INTERNO DE TRABAJO DE SERVICIOS TECNOLÓGICOS","2021-06-03","GRUPO INTERNO DE TRABAJO DE SERVICIOS TECNOLÓGICOS","Documentos de Archivo - electrónicos","XLS","Español","Pública Reservada",{"$f":"+IF(O20=\"Alta\",0.5,IF(O20=\"Media\",0.3,IF(O20=\"Baja\",0.2,\"\")))","v":0.5},"Alta",{"$f":"+IF(#REF!=\"Grave \",0.5,IF(#REF!=\"Importante\",0.3,IF(#REF!=\"Leve\",0.2,\"\")))","v":{"$error":"#REF!"}},"SI","Ley 1273 de 2009 \nArt 269","Resolución 318 de 2019","Reserva total","2021-06-03","5 AÑOS"]
[{"$f":"IF(D21<>\"\",VLOOKUP('Activos de información - ICYR'!D21,DATA!$B$2:$C$95,2,)&\"-\"&IF(ISERR(B21),\"LEB\",B21),\"\")","v":"1401-LEB"},{"$f":"IF(AND(A20=\"\",D21<>\"\"),\"LEB\",IF(D21<>\"\",1+B20,\"\"))","v":{"$error":"#REF!"}},"Información Física – Digital","GRUPO INTERNO DE TRABAJO DE SERVICIOS TECNOLÓGICOS","Acta de comité de control de cambios ","Documento  que evidencia lo sucedido en los comités de control de cambios","GRUPO INTERNO DE TRABAJO DE SERVICIOS TECNOLÓGICOS","2018-11-28","GRUPO INTERNO DE TRABAJO DE SERVICIOS TECNOLÓGICOS","Documentos de Archivo - físicos","PDF","Español","Pública Reservada",{"$f":"+IF(O21=\"Alta\",0.5,IF(O21=\"Media\",0.3,IF(O21=\"Baja\",0.2,\"\")))","v":0.5},"Alta",{"$f":"+IF(#REF!=\"Grave \",0.5,IF(#REF!=\"Importante\",0.3,IF(#REF!=\"Leve\",0.2,\"\")))","v":{"$error":"#REF!"}},"SI","Ley 1273 de 2009 \nArt 269","Resolución 318 de 2019","Reserva total","2018-11-28","5 AÑOS"]
[{"$f":"IF(D22<>\"\",VLOOKUP('Activos de información - ICYR'!D22,DATA!$B$2:$C$95,2,)&\"-\"&IF(ISERR(B22),\"LEB\",B22),\"\")","v":"1401-LEB"},{"$f":"IF(AND(A21=\"\",D22<>\"\"),\"LEB\",IF(D22<>\"\",1+B21,\"\"))","v":{"$error":"#REF!"}},"Información Digital","GRUPO INTERNO DE TRABAJO DE SERVICIOS TECNOLÓGICOS","Informe de Gestión","Informes de Gestión  técnicos o de actividades relacionadas con la Coordinación deservicios tecnológicos","GRUPO INTERNO DE TRABAJO DE SERVICIOS TECNOLÓGICOS","2021-06-03","GRUPO INTERNO DE TRABAJO DE SERVICIOS TECNOLÓGICOS","Documentos de Archivo - electrónicos","PDF","Español","Pública Reservada",{"$f":"+IF(O22=\"Alta\",0.5,IF(O22=\"Media\",0.3,IF(O22=\"Baja\",0.2,\"\")))","v":0.5},"Alta",{"$f":"+IF(#REF!=\"Grave \",0.5,IF(#REF!=\"Importante\",0.3,IF(#REF!=\"Leve\",0.2,\"\")))","v":{"$error":"#REF!"}},"SI","Las actas contienen información jurídica, administrativa y técnica, y en concordancia con el art 31  parrafo 2do del Decreto 103 de 2015 se anonimiza la información","Decreto 103 del 2015 \nArt 31","Reserva parcial","2021-06-03","5 Años"]
[{"$f":"IF(D23<>\"\",VLOOKUP('Activos de información - ICYR'!D23,DATA!$B$2:$C$95,2,)&\"-\"&IF(ISERR(B23),\"LEB\",B23),\"\")","v":"1401-LEB"},{"$f":"IF(AND(#REF!=\"\",D23<>\"\"),\"LEB\",IF(D23<>\"\",1+#REF!,\"\"))","v":{"$error":"#REF!"}},"Información Digital","GRUPO INTERNO DE TRABAJO DE SERVICIOS TECNOLÓGICOS","Plan de para el desarrollo, administración y control de la infraestructura \ntecnológica en la Entidad para el soporte de los servicios tecnológicos y de \ninformación","Plan que contiene los diferentes planes administración y control de la infraestructura \ntecnológica","GRUPO INTERNO DE TRABAJO DE SERVICIOS TECNOLÓGICOS","2021-06-03","GRUPO INTERNO DE TRABAJO DE SERVICIOS TECNOLÓGICOS","Documentos de Archivo - electrónicos","PDF","Español","Pública Reservada",{"$f":"+IF(O23=\"Alta\",0.5,IF(O23=\"Media\",0.3,IF(O23=\"Baja\",0.2,\"\")))","v":0.5},"Alta",{"$f":"+IF(#REF!=\"Grave \",0.5,IF(#REF!=\"Importante\",0.3,IF(#REF!=\"Leve\",0.2,\"\")))","v":{"$error":"#REF!"}},"SI","Artículo 18 de la ley 1712 del 2014","Artículo 18 de la ley 1712 del 2014","Reserva total","2017-07-14","15 Años"]
[{"$f":"IF(D24<>\"\",VLOOKUP('Activos de información - ICYR'!D24,DATA!$B$2:$C$95,2,)&\"-\"&IF(ISERR(B24),\"LEB\",B24),\"\")","v":"1401-LEB"},{"$f":"IF(AND(A23=\"\",D24<>\"\"),\"LEB\",IF(D24<>\"\",1+B23,\"\"))","v":{"$error":"#REF!"}},"Información Digital","GRUPO INTERNO DE TRABAJO DE SERVICIOS TECNOLÓGICOS","Plan de mantenimiento","Documento con el plan de mantenimiento de los equipos de computo o UPS o aires acondicionados de MINTIC. ","GRUPO INTERNO DE TRABAJO DE SERVICIOS TECNOLÓGICOS","2019-07-31","GRUPO INTERNO DE TRABAJO DE SERVICIOS TECNOLÓGICOS","Documentos de Archivo - electrónicos","XLS -PDF","Español","Pública Reservada",{"$f":"+IF(O24=\"Alta\",0.5,IF(O24=\"Media\",0.3,IF(O24=\"Baja\",0.2,\"\")))","v":0.5},"Alta",{"$f":"+IF(#REF!=\"Grave \",0.5,IF(#REF!=\"Importante\",0.3,IF(#REF!=\"Leve\",0.2,\"\")))","v":{"$error":"#REF!"}},"SI","Artículo 18 de la ley 1712 del 2014","Artículo 18 de la ley 1712 del 2014","Reserva total","2017-07-14","15 Años"]
[{"$f":"IF(D25<>\"\",VLOOKUP('Activos de información - ICYR'!D25,DATA!$B$2:$C$95,2,)&\"-\"&IF(ISERR(B25),\"LEB\",B25),\"\")","v":"1401-LEB"},{"$f":"IF(AND(A24=\"\",D25<>\"\"),\"LEB\",IF(D25<>\"\",1+B24,\"\"))","v":{"$error":"#REF!"}},"Información Digital","GRUPO INTERNO DE TRABAJO DE SERVICIOS TECNOLÓGICOS","Plan de recuperación de desastres de TI","Documento con el Plan de recuperación de desastres de TI. El documento contiene las fases para implementar el plan de recuperación de desastres de TI.","GRUPO INTERNO DE TRABAJO DE SERVICIOS TECNOLÓGICOS","2021-12-31","GRUPO INTERNO DE TRABAJO DE SERVICIOS TECNOLÓGICOS","Documentos de Archivo - electrónicos","PDF","Español","Pública Reservada",{"$f":"+IF(O25=\"Alta\",0.5,IF(O25=\"Media\",0.3,IF(O25=\"Baja\",0.2,\"\")))","v":0.5},"Alta",{"$f":"+IF(#REF!=\"Grave \",0.5,IF(#REF!=\"Importante\",0.3,IF(#REF!=\"Leve\",0.2,\"\")))","v":{"$error":"#REF!"}},"SI","Artículo 18 de la ley 1712 del 2014","Artículo 18 de la ley 1712 del 2014","Reserva total","2017-07-14","15 Años"]
[{"$f":"IF(D26<>\"\",VLOOKUP('Activos de información - ICYR'!D26,DATA!$B$2:$C$95,2,)&\"-\"&IF(ISERR(B26),\"LEB\",B26),\"\")","v":"1401-LEB"},{"$f":"IF(AND(A25=\"\",D26<>\"\"),\"LEB\",IF(D26<>\"\",1+B25,\"\"))","v":{"$error":"#REF!"}},"Información Digital","GRUPO INTERNO DE TRABAJO DE SERVICIOS TECNOLÓGICOS","Plan de gestión de la capacidad","Documento con el plan de gestión de la capacidad  de los equipos de computo de MINTIC. El documento contiene el detalle de las capacidades de infraestructura de MinTIC y la proyección de crecimiento.","GRUPO INTERNO DE TRABAJO DE SERVICIOS TECNOLÓGICOS","2017-11-07","GRUPO INTERNO DE TRABAJO DE SERVICIOS TECNOLÓGICOS","Documentos de Archivo - electrónicos","PDF","Español","Pública Reservada",{"$f":"+IF(O26=\"Alta\",0.5,IF(O26=\"Media\",0.3,IF(O26=\"Baja\",0.2,\"\")))","v":0.5},"Alta",{"$f":"+IF(#REF!=\"Grave \",0.5,IF(#REF!=\"Importante\",0.3,IF(#REF!=\"Leve\",0.2,\"\")))","v":{"$error":"#REF!"}},"SI","Artículo 18 de la ley 1712 del 2014","Artículo 18 de la ley 1712 del 2014","Reserva total","2017-07-14","15 Años"]
[{"$f":"IF(D27<>\"\",VLOOKUP('Activos de información - ICYR'!D27,DATA!$B$2:$C$95,2,)&\"-\"&IF(ISERR(B27),\"LEB\",B27),\"\")","v":"1401-LEB"},{"$f":"IF(AND(A26=\"\",D27<>\"\"),\"LEB\",IF(D27<>\"\",1+B26,\"\"))","v":{"$error":"#REF!"}},"Información Digital","GRUPO INTERNO DE TRABAJO DE SERVICIOS TECNOLÓGICOS","Plan de gestión de contingencia de TI","Documento con el plan de gestión de contingencia de TI  de los equipos de cómputo y soluciones de MINTIC. ","GRUPO INTERNO DE TRABAJO DE SERVICIOS TECNOLÓGICOS","2017-01-31","GRUPO INTERNO DE TRABAJO DE SERVICIOS TECNOLÓGICOS","Documentos de Archivo - electrónicos","PDF","Español","Pública Reservada",{"$f":"+IF(O27=\"Alta\",0.5,IF(O27=\"Media\",0.3,IF(O27=\"Baja\",0.2,\"\")))","v":0.5},"Alta",{"$f":"+IF(#REF!=\"Grave \",0.5,IF(#REF!=\"Importante\",0.3,IF(#REF!=\"Leve\",0.2,\"\")))","v":{"$error":"#REF!"}},"SI","Artículo 18 de la ley 1712 del 2014","Artículo 18 de la ley 1712 del 2014","Reserva total","2017-07-14","15 Años"]
[{"$f":"IF(D28<>\"\",VLOOKUP('Activos de información - ICYR'!D28,DATA!$B$2:$C$95,2,)&\"-\"&IF(ISERR(B28),\"LEB\",B28),\"\")","v":"1401-LEB"},{"$f":"IF(AND(A27=\"\",D28<>\"\"),\"LEB\",IF(D28<>\"\",1+B27,\"\"))","v":{"$error":"#REF!"}},"Información Digital","GRUPO INTERNO DE TRABAJO DE SERVICIOS TECNOLÓGICOS","Plan de respaldo y restauración","Documento con el plan de respaldo y restauración de los sistemas de información y servidores.","GRUPO INTERNO DE TRABAJO DE SERVICIOS TECNOLÓGICOS","2017-07-14","GRUPO INTERNO DE TRABAJO DE SERVICIOS TECNOLÓGICOS","Documentos de Archivo - físicos","PDF","Español","Pública Clasificada",{"$f":"+IF(O28=\"Alta\",0.5,IF(O28=\"Media\",0.3,IF(O28=\"Baja\",0.2,\"\")))","v":0.5},"Alta",{"$f":"+IF(#REF!=\"Grave \",0.5,IF(#REF!=\"Importante\",0.3,IF(#REF!=\"Leve\",0.2,\"\")))","v":{"$error":"#REF!"}},"SI","Ley 1712 de 2014, Artículo 18, Literal c","Ley 1712 de 2014, Artículo 18, Literal c","Sin reserva","No Aplica","Permanente"]
[{"$f":"IF(D29<>\"\",VLOOKUP('Activos de información - ICYR'!D29,DATA!$B$2:$C$95,2,)&\"-\"&IF(ISERR(B29),\"LEB\",B29),\"\")","v":"1401-LEB"},{"$f":"IF(AND(#REF!=\"\",D29<>\"\"),\"LEB\",IF(D29<>\"\",1+#REF!,\"\"))","v":{"$error":"#REF!"}},"Información Digital","GRUPO INTERNO DE TRABAJO DE SERVICIOS TECNOLÓGICOS","CMDB ","Base de datos con la información de las configuraciónes de los difertes elementos tecnológicos y su interrelación. ","GRUPO INTERNO DE TRABAJO DE SERVICIOS TECNOLÓGICOS","2017-07-14","GRUPO INTERNO DE TRABAJO DE SERVICIOS TECNOLÓGICOS","Documentos de Archivo - electrónicos","XLS","Español","Pública Reservada",{"$f":"+IF(O29=\"Alta\",0.5,IF(O29=\"Media\",0.3,IF(O29=\"Baja\",0.2,\"\")))","v":0.5},"Alta",{"$f":"+IF(#REF!=\"Grave \",0.5,IF(#REF!=\"Importante\",0.3,IF(#REF!=\"Leve\",0.2,\"\")))","v":{"$error":"#REF!"}},"SI","Artículo 18 de la ley 1712 del 2014","Artículo 18 de la ley 1712 del 2014","Reserva total","2017-07-14","15 Años"]
[{"$f":"IF(D30<>\"\",VLOOKUP('Activos de información - ICYR'!D30,DATA!$B$2:$C$95,2,)&\"-\"&IF(ISERR(B30),\"LEB\",B30),\"\")","v":"1401-LEB"},{"$f":"IF(AND(A29=\"\",D30<>\"\"),\"LEB\",IF(D30<>\"\",1+B29,\"\"))","v":{"$error":"#REF!"}},"Información Digital","GRUPO INTERNO DE TRABAJO DE SERVICIOS TECNOLÓGICOS","Hoja de vida de los servidores","Documento de hoja de vida de los servidores que contiene el detalle de los mismos.","GRUPO INTERNO DE TRABAJO DE SERVICIOS TECNOLÓGICOS","2017-07-14","GRUPO INTERNO DE TRABAJO DE SERVICIOS TECNOLÓGICOS","Archivos Institucionales - electrónico","XLS -PDF","Español","Pública Reservada",{"$f":"+IF(O30=\"Alta\",0.5,IF(O30=\"Media\",0.3,IF(O30=\"Baja\",0.2,\"\")))","v":0.5},"Alta",{"$f":"+IF(#REF!=\"Grave \",0.5,IF(#REF!=\"Importante\",0.3,IF(#REF!=\"Leve\",0.2,\"\")))","v":{"$error":"#REF!"}},"SI","Artículo 18 de la ley 1712 del 2014","Artículo 18 de la ley 1712 del 2014","Reserva total","2017-07-14","15 años"]
[{"$f":"IF(D31<>\"\",VLOOKUP('Activos de información - ICYR'!D31,DATA!$B$2:$C$95,2,)&\"-\"&IF(ISERR(B31),\"LEB\",B31),\"\")","v":"1401-LEB"},{"$f":"IF(AND(A30=\"\",D31<>\"\"),\"LEB\",IF(D31<>\"\",1+B30,\"\"))","v":{"$error":"#REF!"}},"Información Digital","GRUPO INTERNO DE TRABAJO DE SERVICIOS TECNOLÓGICOS","Bitácora de plataforma tecnológica","Bitácora de los eventos evidenciados en la plataforma tecnológica.","GRUPO INTERNO DE TRABAJO DE SERVICIOS TECNOLÓGICOS","2017-07-14","GRUPO INTERNO DE TRABAJO DE SERVICIOS TECNOLÓGICOS","Sistemas de Bases de Datos","Base de datos","Español","Pública Reservada",{"$f":"+IF(O31=\"Alta\",0.5,IF(O31=\"Media\",0.3,IF(O31=\"Baja\",0.2,\"\")))","v":0.5},"Alta",{"$f":"+IF(#REF!=\"Grave \",0.5,IF(#REF!=\"Importante\",0.3,IF(#REF!=\"Leve\",0.2,\"\")))","v":{"$error":"#REF!"}},"SI","Artículo 18 de la ley 1712 del 2014","Artículo 18 de la ley 1712 del 2014","Reserva total","2017-07-14","15 años"]
[{"$f":"IF(D32<>\"\",VLOOKUP('Activos de información - ICYR'!D32,DATA!$B$2:$C$95,2,)&\"-\"&IF(ISERR(B32),\"LEB\",B32),\"\")","v":"1401-LEB"},{"$f":"IF(AND(A31=\"\",D32<>\"\"),\"LEB\",IF(D32<>\"\",1+B31,\"\"))","v":{"$error":"#REF!"}},"Información Digital","GRUPO INTERNO DE TRABAJO DE SERVICIOS TECNOLÓGICOS","Registro de inventario de medios","Documento de registro de inventario de medios (cintas).","GRUPO INTERNO DE TRABAJO DE SERVICIOS TECNOLÓGICOS","2017-07-14","GRUPO INTERNO DE TRABAJO DE SERVICIOS TECNOLÓGICOS","Sistemas de Bases de Datos","Base de datos","Español","Pública Reservada",{"$f":"+IF(O32=\"Alta\",0.5,IF(O32=\"Media\",0.3,IF(O32=\"Baja\",0.2,\"\")))","v":0.5},"Alta",{"$f":"+IF(#REF!=\"Grave \",0.5,IF(#REF!=\"Importante\",0.3,IF(#REF!=\"Leve\",0.2,\"\")))","v":{"$error":"#REF!"}},"SI","Artículo 18 de la ley 1712 del 2014","Artículo 18 de la ley 1712 del 2014","Reserva total","2017-07-14","15 años"]
[{"$f":"IF(D33<>\"\",VLOOKUP('Activos de información - ICYR'!D33,DATA!$B$2:$C$95,2,)&\"-\"&IF(ISERR(B33),\"LEB\",B33),\"\")","v":"1401-LEB"},{"$f":"IF(AND(A32=\"\",D33<>\"\"),\"LEB\",IF(D33<>\"\",1+B32,\"\"))","v":{"$error":"#REF!"}},"Información Física – Digital","GRUPO INTERNO DE TRABAJO DE SERVICIOS TECNOLÓGICOS","Actas de entrega de equipos.","Actas de recibido de equipo por parte de los usuarios.","GRUPO INTERNO DE TRABAJO DE SERVICIOS TECNOLÓGICOS","2017-07-14","GRUPO INTERNO DE TRABAJO DE SERVICIOS TECNOLÓGICOS","Archivos Institucionales - electrónico","XLS","Español","Pública Reservada",{"$f":"+IF(O33=\"Alta\",0.5,IF(O33=\"Media\",0.3,IF(O33=\"Baja\",0.2,\"\")))","v":0.5},"Alta",{"$f":"+IF(#REF!=\"Grave \",0.5,IF(#REF!=\"Importante\",0.3,IF(#REF!=\"Leve\",0.2,\"\")))","v":{"$error":"#REF!"}},"SI","Artículo 18 de la ley 1712 del 2014","Artículo 18 de la ley 1712 del 2014","Reserva total","2017-07-14","15 años"]
[{"$f":"IF(D34<>\"\",VLOOKUP('Activos de información - ICYR'!D34,DATA!$B$2:$C$95,2,)&\"-\"&IF(ISERR(B34),\"LEB\",B34),\"\")","v":"1401-LEB"},{"$f":"IF(AND(#REF!=\"\",D34<>\"\"),\"LEB\",IF(D34<>\"\",1+#REF!,\"\"))","v":{"$error":"#REF!"}},"Información Física","GRUPO INTERNO DE TRABAJO DE SERVICIOS TECNOLÓGICOS","Credenciales de acceso usuarios administradores de la plataforma tecnológica","Sobre sellado con las credenciales de acceso usuarios administradores de la plataforma tecnológica guardado en caja fuerte","GRUPO INTERNO DE TRABAJO DE SERVICIOS TECNOLÓGICOS","2020-08-20","GRUPO INTERNO DE TRABAJO DE SERVICIOS TECNOLÓGICOS","Documentos de Archivo - físicos","Papel","Español","Pública Clasificada",{"$f":"+IF(O34=\"Alta\",0.5,IF(O34=\"Media\",0.3,IF(O34=\"Baja\",0.2,\"\")))","v":0.5},"Alta",{"$f":"+IF(#REF!=\"Grave \",0.5,IF(#REF!=\"Importante\",0.3,IF(#REF!=\"Leve\",0.2,\"\")))","v":{"$error":"#REF!"}},"NO","No Aplica","Ley 1712 de 2004, Artículo 18, Literal c","Sin reserva","2020-08-20","Permanente"]
[{"$f":"IF(D35<>\"\",VLOOKUP('Activos de información - ICYR'!D35,DATA!$B$2:$C$95,2,)&\"-\"&IF(ISERR(B35),\"LEB\",B35),\"\")","v":"1401-LEB"},{"$f":"IF(AND(#REF!=\"\",D35<>\"\"),\"LEB\",IF(D35<>\"\",1+#REF!,\"\"))","v":{"$error":"#REF!"}},"Información Digital","GRUPO INTERNO DE TRABAJO DE SERVICIOS TECNOLÓGICOS","Base de Datos  - Usuarios Plataformas Telefónica y comunicaciones unificadas UC","Registro y actualización de usuarios en las respectivas bases de datos de las plataformas telefónicas y Comunicaciones Unificadas.","GRUPO INTERNO DE TRABAJO DE SERVICIOS TECNOLÓGICOS","2011-02-01","GRUPO INTERNO DE TRABAJO DE SERVICIOS TECNOLÓGICOS","Sistemas de Bases de Datos","Base de datos","Español","Pública Clasificada",{"$f":"+IF(O35=\"Alta\",0.5,IF(O35=\"Media\",0.3,IF(O35=\"Baja\",0.2,\"\")))","v":0.5},"Alta",{"$f":"+IF(#REF!=\"Grave \",0.5,IF(#REF!=\"Importante\",0.3,IF(#REF!=\"Leve\",0.2,\"\")))","v":{"$error":"#REF!"}},"SI","Ley 1712 2014 \nArticulo 18 literal c","Ley 1712 2014","Sin reserva","2016-12-26","Permanente"]
[{"$f":"IF(D36<>\"\",VLOOKUP('Activos de información - ICYR'!D36,DATA!$B$2:$C$95,2,)&\"-\"&IF(ISERR(B36),\"LEB\",B36),\"\")","v":"1401-LEB"},{"$f":"IF(AND(#REF!=\"\",D36<>\"\"),\"LEB\",IF(D36<>\"\",1+#REF!,\"\"))","v":{"$error":"#REF!"}},"Software","GRUPO INTERNO DE TRABAJO DE SERVICIOS TECNOLÓGICOS","Base de Datos- UBPI","Base de datos con la información de los ISPs para acceder a la plataforma de bloque para el contenido de abuso infantil.","GRUPO INTERNO DE TRABAJO DE SERVICIOS TECNOLÓGICOS",44419,"GRUPO INTERNO DE TRABAJO DE SERVICIOS TECNOLÓGICOS","Sistemas de Bases de Datos","Base de datos","Español","Pública Reservada",{"$f":"+IF(O36=\"Alta\",0.5,IF(O36=\"Media\",0.3,IF(O36=\"Baja\",0.2,\"\")))","v":0.5},"Alta",{"$f":"+IF(#REF!=\"Grave \",0.5,IF(#REF!=\"Importante\",0.3,IF(#REF!=\"Leve\",0.2,\"\")))","v":{"$error":"#REF!"}},"SI","Ley 1336 de 2009","Ley 1336 de 2010","Reserva parcial",44419,"15 Años"]
[{"$f":"IF(D37<>\"\",VLOOKUP('Activos de información - ICYR'!D37,DATA!$B$2:$C$95,2,)&\"-\"&IF(ISERR(B37),\"LEB\",B37),\"\")","v":"1401-LEB"},{"$f":"IF(AND(A36=\"\",D37<>\"\"),\"LEB\",IF(D37<>\"\",1+B36,\"\"))","v":{"$error":"#REF!"}},"Software","GRUPO INTERNO DE TRABAJO DE SERVICIOS TECNOLÓGICOS","Base de Datos- ContinuumDB","Base de datos con la información de los colaboradores para el acceso físico a las instalaciones de la entidad","GRUPO INTERNO DE TRABAJO DE SERVICIOS TECNOLÓGICOS","2021-08-11","GRUPO INTERNO DE TRABAJO DE SERVICIOS TECNOLÓGICOS","Sistemas de Bases de Datos","Base de datos","Español","Pública Reservada",{"$f":"+IF(O37=\"Alta\",0.5,IF(O37=\"Media\",0.3,IF(O37=\"Baja\",0.2,\"\")))","v":0.5},"Alta",{"$f":"+IF(#REF!=\"Grave \",0.5,IF(#REF!=\"Importante\",0.3,IF(#REF!=\"Leve\",0.2,\"\")))","v":{"$error":"#REF!"}},"SI","Ley 1581 de 2012","Ley 1712 de 2014 Art. 19\nLey 1581 de 2013","Reserva parcial","2021-08-11","15 Años"]
[{"$f":"IF(D38<>\"\",VLOOKUP('Activos de información - ICYR'!D38,DATA!$B$2:$C$95,2,)&\"-\"&IF(ISERR(B38),\"LEB\",B38),\"\")","v":"1402-LEB"},{"$f":"IF(AND(#REF!=\"\",D38<>\"\"),\"LEB\",IF(D38<>\"\",1+#REF!,\"\"))","v":{"$error":"#REF!"}},"Información Digital","GRUPO INTERNO DE TRABAJO DE GESTIÓN Y SISTEMAS DE INFORMACIÓN","Informe de Gestión","Informes de Gestión  técnicos o de actividades relacionadas con la Coordinación de gestión y sistemas de información.","GRUPO INTERNO DE TRABAJO DE GESTIÓN Y SISTEMAS DE INFORMACIÓN","2018-11-28","GRUPO INTERNO DE TRABAJO DE GESTIÓN Y SISTEMAS DE INFORMACIÓN","Documentos de Archivo - electrónicos","PDF","Español","Pública Reservada",{"$f":"+IF(O38=\"Alta\",0.5,IF(O38=\"Media\",0.3,IF(O38=\"Baja\",0.2,\"\")))","v":0.5},"Alta",{"$f":"+IF(#REF!=\"Grave \",0.5,IF(#REF!=\"Importante\",0.3,IF(#REF!=\"Leve\",0.2,\"\")))","v":{"$error":"#REF!"}},"SI","Las actas contienen información jurídica, administrativa y técnica, y en concordancia con el art 31  parrafo 2do del Decreto 103 de 2015 se anonimiza la información","Decreto 103 del 2015 \nArt 31","Reserva parcial","2016-12-26","5 AÑOS"]
[{"$f":"IF(D39<>\"\",VLOOKUP('Activos de información - ICYR'!D39,DATA!$B$2:$C$95,2,)&\"-\"&IF(ISERR(B39),\"LEB\",B39),\"\")","v":"1402-LEB"},{"$f":"IF(AND(#REF!=\"\",D39<>\"\"),\"LEB\",IF(D39<>\"\",1+#REF!,\"\"))","v":{"$error":"#REF!"}},"Software","GRUPO INTERNO DE TRABAJO DE GESTIÓN Y SISTEMAS DE INFORMACIÓN","Base de Datos- Alfanet","Base de datos del Sistema de información de gestión documental","GRUPO INTERNO DE TRABAJO DE GESTIÓN Y SISTEMAS DE INFORMACIÓN","No Aplica","GRUPO INTERNO DE TRABAJO DE GESTIÓN Y SISTEMAS DE INFORMACIÓN","Sistemas de Bases de Datos","Base de datos","Español","Pública Clasificada",{"$f":"+IF(O39=\"Alta\",0.5,IF(O39=\"Media\",0.3,IF(O39=\"Baja\",0.2,\"\")))","v":0.5},"Alta",{"$f":"+IF(#REF!=\"Grave \",0.5,IF(#REF!=\"Importante\",0.3,IF(#REF!=\"Leve\",0.2,\"\")))","v":{"$error":"#REF!"}},"SI","Ley 1712 Articulo 18 literal c. Los secretos comerciales, industriales y profesionales asi como los estipulados en el paragrafo del articulo 77 de la ley 1474 de 2012","Ley 1712 de 2014","Sin reserva","2019-07-21","Permanente"]
[{"$f":"IF(D40<>\"\",VLOOKUP('Activos de información - ICYR'!D40,DATA!$B$2:$C$95,2,)&\"-\"&IF(ISERR(B40),\"LEB\",B40),\"\")","v":"1402-LEB"},{"$f":"IF(AND(#REF!=\"\",D40<>\"\"),\"LEB\",IF(D40<>\"\",1+#REF!,\"\"))","v":{"$error":"#REF!"}},"Software","GRUPO INTERNO DE TRABAJO DE GESTIÓN Y SISTEMAS DE INFORMACIÓN","Base de Datos - Zafiro","Base de Datos del sistema de información de gestión documental","GRUPO INTERNO DE TRABAJO DE GESTIÓN Y SISTEMAS DE INFORMACIÓN","No Aplica","GRUPO INTERNO DE TRABAJO DE GESTIÓN Y SISTEMAS DE INFORMACIÓN","Sistemas de Bases de Datos","Base de datos","Español","Pública Clasificada",{"$f":"+IF(O40=\"Alta\",0.5,IF(O40=\"Media\",0.3,IF(O40=\"Baja\",0.2,\"\")))","v":0.5},"Alta",{"$f":"+IF(#REF!=\"Grave \",0.5,IF(#REF!=\"Importante\",0.3,IF(#REF!=\"Leve\",0.2,\"\")))","v":{"$error":"#REF!"}},"SI","Ley 1712 Articulo 18 literal c. Los secretos comerciales, industriales y profesionales asi como los estipulados en el paragrafo del articulo 77 de la ley 1474 de 2011","Ley 1712 de 2014","Sin reserva","2017-06-30","Permanente"]
[{"$f":"IF(D41<>\"\",VLOOKUP('Activos de información - ICYR'!D41,DATA!$B$2:$C$95,2,)&\"-\"&IF(ISERR(B41),\"LEB\",B41),\"\")","v":"1402-LEB"},{"$f":"IF(AND(#REF!=\"\",D41<>\"\"),\"LEB\",IF(D41<>\"\",1+#REF!,\"\"))","v":{"$error":"#REF!"}},"Software","GRUPO INTERNO DE TRABAJO DE GESTIÓN Y SISTEMAS DE INFORMACIÓN","Base de Datos - Seven","Base de Datos del Sistema de información financiera y Administrativa","GRUPO INTERNO DE TRABAJO DE GESTIÓN Y SISTEMAS DE INFORMACIÓN","No Aplica","OFICINA DE TECNOLOGÍAS DE LA INFORMACIÓN","Sistemas de Bases de Datos","Base de datos","Español","Pública Clasificada",{"$f":"+IF(O41=\"Alta\",0.5,IF(O41=\"Media\",0.3,IF(O41=\"Baja\",0.2,\"\")))","v":0.5},"Alta",{"$f":"+IF(#REF!=\"Grave \",0.5,IF(#REF!=\"Importante\",0.3,IF(#REF!=\"Leve\",0.2,\"\")))","v":{"$error":"#REF!"}},"SI","Ley 1712 Articulo 18 literal c. Los secretos comerciales, industriales y profesionales asi como los estipulados en el paragrafo del articulo 77 de la ley 1474 de 2011","Ley 1712 de 2014","Sin reserva","2017-06-30","Permanente"]
[{"$f":"IF(D42<>\"\",VLOOKUP('Activos de información - ICYR'!D42,DATA!$B$2:$C$95,2,)&\"-\"&IF(ISERR(B42),\"LEB\",B42),\"\")","v":"1402-LEB"},{"$f":"IF(AND(#REF!=\"\",D42<>\"\"),\"LEB\",IF(D42<>\"\",1+#REF!,\"\"))","v":{"$error":"#REF!"}},"Software","GRUPO INTERNO DE TRABAJO DE GESTIÓN Y SISTEMAS DE INFORMACIÓN","Base de Datos - Cobro coactivo","Base de Datos del Sistema de información financiera y Administrativa","GRUPO INTERNO DE TRABAJO DE GESTIÓN Y SISTEMAS DE INFORMACIÓN","No Aplica","OFICINA DE TECNOLOGÍAS DE LA INFORMACIÓN","Sistemas de Bases de Datos","Base de datos","Español","Pública Clasificada",{"$f":"+IF(O42=\"Alta\",0.5,IF(O42=\"Media\",0.3,IF(O42=\"Baja\",0.2,\"\")))","v":0.5},"Alta",{"$f":"+IF(#REF!=\"Grave \",0.5,IF(#REF!=\"Importante\",0.3,IF(#REF!=\"Leve\",0.2,\"\")))","v":{"$error":"#REF!"}},"SI","Ley 1712 Articulo 18 literal c. Los secretos comerciales, industriales y profesionales asi como los estipulados en el paragrafo del articulo 77 de la ley 1474 de 2011","Ley 1712 de 2014","Sin reserva","2017-07-02","Permanente"]
[{"$f":"IF(D43<>\"\",VLOOKUP('Activos de información - ICYR'!D43,DATA!$B$2:$C$95,2,)&\"-\"&IF(ISERR(B43),\"LEB\",B43),\"\")","v":"1402-LEB"},{"$f":"IF(AND(#REF!=\"\",D43<>\"\"),\"LEB\",IF(D43<>\"\",1+#REF!,\"\"))","v":{"$error":"#REF!"}},"Software","GRUPO INTERNO DE TRABAJO DE GESTIÓN Y SISTEMAS DE INFORMACIÓN","Base de Datos - Kactus","Base de Datos Sistema de información de gestión de recurso humano","GRUPO INTERNO DE TRABAJO DE GESTIÓN Y SISTEMAS DE INFORMACIÓN","No Aplica","OFICINA DE TECNOLOGÍAS DE LA INFORMACIÓN","Sistemas de Bases de Datos","Base de datos","Español","Pública Clasificada",{"$f":"+IF(O43=\"Alta\",0.5,IF(O43=\"Media\",0.3,IF(O43=\"Baja\",0.2,\"\")))","v":0.5},"Alta",{"$f":"+IF(#REF!=\"Grave \",0.5,IF(#REF!=\"Importante\",0.3,IF(#REF!=\"Leve\",0.2,\"\")))","v":{"$error":"#REF!"}},"SI","Ley 1712 Articulo 18 literal c. Los secretos comerciales, industriales y profesionales asi como los estipulados en el paragrafo del articulo 77 de la ley 1474 de 2011","Ley 1712 de 2014","Sin reserva","2017-07-04","Permanente"]
[{"$f":"IF(D44<>\"\",VLOOKUP('Activos de información - ICYR'!D44,DATA!$B$2:$C$95,2,)&\"-\"&IF(ISERR(B44),\"LEB\",B44),\"\")","v":"1402-LEB"},{"$f":"IF(AND(#REF!=\"\",D44<>\"\"),\"LEB\",IF(D44<>\"\",1+#REF!,\"\"))","v":{"$error":"#REF!"}},"Software","GRUPO INTERNO DE TRABAJO DE GESTIÓN Y SISTEMAS DE INFORMACIÓN","Base de Datos - BDU","Base de datos única de Operadores y prestadores de servicio","GRUPO INTERNO DE TRABAJO DE GESTIÓN Y SISTEMAS DE INFORMACIÓN","No Aplica","OFICINA DE TECNOLOGÍAS DE LA INFORMACIÓN","Sistemas de Bases de Datos","Base de datos","Español","Pública Clasificada",{"$f":"+IF(O44=\"Alta\",0.5,IF(O44=\"Media\",0.3,IF(O44=\"Baja\",0.2,\"\")))","v":0.5},"Alta",{"$f":"+IF(#REF!=\"Grave \",0.5,IF(#REF!=\"Importante\",0.3,IF(#REF!=\"Leve\",0.2,\"\")))","v":{"$error":"#REF!"}},"SI","Ley 1712 Articulo 18 literal c. Los secretos comerciales, industriales y profesionales asi como los estipulados en el paragrafo del articulo 77 de la ley 1474 de 2011","Ley 1712 de 2014","Sin reserva","2017-06-18","Permanente"]
[{"$f":"IF(D45<>\"\",VLOOKUP('Activos de información - ICYR'!D45,DATA!$B$2:$C$95,2,)&\"-\"&IF(ISERR(B45),\"LEB\",B45),\"\")","v":"1402-LEB"},{"$f":"IF(AND(A44=\"\",D45<>\"\"),\"LEB\",IF(D45<>\"\",1+B44,\"\"))","v":{"$error":"#REF!"}},"Software","GRUPO INTERNO DE TRABAJO DE GESTIÓN Y SISTEMAS DE INFORMACIÓN","Base de Datos- Alertas","Base de datos única de Operadores y prestadores de servicio ","GRUPO INTERNO DE TRABAJO DE GESTIÓN Y SISTEMAS DE INFORMACIÓN","No Aplica","OFICINA DE TECNOLOGÍAS DE LA INFORMACIÓN","Sistemas de Bases de Datos","Base de datos","Español","Pública Clasificada",{"$f":"+IF(O45=\"Alta\",0.5,IF(O45=\"Media\",0.3,IF(O45=\"Baja\",0.2,\"\")))","v":0.5},"Alta",{"$f":"+IF(#REF!=\"Grave \",0.5,IF(#REF!=\"Importante\",0.3,IF(#REF!=\"Leve\",0.2,\"\")))","v":{"$error":"#REF!"}},"SI","Ley 1712 Articulo 18 literal c. Los secretos comerciales, industriales y profesionales asi como los estipulados en el paragrafo del articulo 77 de la ley 1474 de 2011","Ley 1712 de 2014","Sin reserva","2017-06-30","Permanente"]
[{"$f":"IF(D46<>\"\",VLOOKUP('Activos de información - ICYR'!D46,DATA!$B$2:$C$95,2,)&\"-\"&IF(ISERR(B46),\"LEB\",B46),\"\")","v":"1402-LEB"},{"$f":"IF(AND(#REF!=\"\",D46<>\"\"),\"LEB\",IF(D46<>\"\",1+#REF!,\"\"))","v":{"$error":"#REF!"}},"Software","GRUPO INTERNO DE TRABAJO DE GESTIÓN Y SISTEMAS DE INFORMACIÓN","Base de Datos - Notificaciones INTEGRATIC","Base de datos única de Operadores y prestadores de servicio","GRUPO INTERNO DE TRABAJO DE GESTIÓN Y SISTEMAS DE INFORMACIÓN","No Aplica","OFICINA DE TECNOLOGÍAS DE LA INFORMACIÓN","Sistemas de Bases de Datos","Base de datos","Español","Pública Clasificada",{"$f":"+IF(O46=\"Alta\",0.5,IF(O46=\"Media\",0.3,IF(O46=\"Baja\",0.2,\"\")))","v":0.5},"Alta",{"$f":"+IF(#REF!=\"Grave \",0.5,IF(#REF!=\"Importante\",0.3,IF(#REF!=\"Leve\",0.2,\"\")))","v":{"$error":"#REF!"}},"SI","Ley 1712 Articulo 18 literal c. Los secretos comerciales, industriales y profesionales asi como los estipulados en el paragrafo del articulo 77 de la ley 1474 de 2011","Ley 1712 de 2014","Sin reserva","2017-06-30","Permanente"]
[{"$f":"IF(D47<>\"\",VLOOKUP('Activos de información - ICYR'!D47,DATA!$B$2:$C$95,2,)&\"-\"&IF(ISERR(B47),\"LEB\",B47),\"\")","v":"1402-LEB"},{"$f":"IF(AND(#REF!=\"\",D47<>\"\"),\"LEB\",IF(D47<>\"\",1+#REF!,\"\"))","v":{"$error":"#REF!"}},"Software","GRUPO INTERNO DE TRABAJO DE GESTIÓN Y SISTEMAS DE INFORMACIÓN","Base de Datos - INTEGRATIC","Base de datos de la aplicación INTEGRATIC DE gestión documental y atención a grupos de interés de Ministerio TIC","GRUPO INTERNO DE TRABAJO DE GESTIÓN Y SISTEMAS DE INFORMACIÓN","2020-11-24","GRUPO INTERNO DE TRABAJO DE GESTIÓN Y SISTEMAS DE INFORMACIÓN","Sistemas de Bases de Datos","Base de datos","Español","Pública Clasificada",{"$f":"+IF(O47=\"Alta\",0.5,IF(O47=\"Media\",0.3,IF(O47=\"Baja\",0.2,\"\")))","v":0.5},"Alta",{"$f":"+IF(#REF!=\"Grave \",0.5,IF(#REF!=\"Importante\",0.3,IF(#REF!=\"Leve\",0.2,\"\")))","v":{"$error":"#REF!"}},"SI","Ley 1712 Articulo 18 literal c. Los secretos comerciales, industriales y profesionales asi como los estipulados en el paragrafo del articulo 77 de la ley 1474 de 2011","Ley 1712 de 2014","Sin reserva","2021-07-21","Permanente"]
[{"$f":"IF(D48<>\"\",VLOOKUP('Activos de información - ICYR'!D48,DATA!$B$2:$C$95,2,)&\"-\"&IF(ISERR(B48),\"LEB\",B48),\"\")","v":"1402-LEB"},{"$f":"IF(AND(#REF!=\"\",D48<>\"\"),\"LEB\",IF(D48<>\"\",1+#REF!,\"\"))","v":{"$error":"#REF!"}},"Software","GRUPO INTERNO DE TRABAJO DE GESTIÓN Y SISTEMAS DE INFORMACIÓN","Base de Datos - Auraportal","Sistemas de almacenamiento de datos para las aplicaciones de Auraportal","GRUPO INTERNO DE TRABAJO DE GESTIÓN Y SISTEMAS DE INFORMACIÓN","No Aplica","GRUPO INTERNO DE TRABAJO DE GESTIÓN Y SISTEMAS DE INFORMACIÓN","Sistemas de Bases de Datos","Base de datos","Español","Pública Clasificada",{"$f":"+IF(O48=\"Alta\",0.5,IF(O48=\"Media\",0.3,IF(O48=\"Baja\",0.2,\"\")))","v":0.5},"Alta",{"$f":"+IF(#REF!=\"Grave \",0.5,IF(#REF!=\"Importante\",0.3,IF(#REF!=\"Leve\",0.2,\"\")))","v":{"$error":"#REF!"}},"SI","Ley 1712 Articulo 18 literal c. Los secretos comerciales, industriales y profesionales asi como los estipulados en el paragrafo del articulo 77 de la ley 1474 de 2011","Ley 1712 de 2014","Sin reserva","2017-06-30","Permanente"]
[{"$f":"IF(D49<>\"\",VLOOKUP('Activos de información - ICYR'!D49,DATA!$B$2:$C$95,2,)&\"-\"&IF(ISERR(B49),\"LEB\",B49),\"\")","v":"1402-LEB"},{"$f":"IF(AND(#REF!=\"\",D49<>\"\"),\"LEB\",IF(D49<>\"\",1+#REF!,\"\"))","v":{"$error":"#REF!"}},"Software","GRUPO INTERNO DE TRABAJO DE GESTIÓN Y SISTEMAS DE INFORMACIÓN","Base de Datos - SGE","Base de Datos del Sistema de Gestión del Espectro","GRUPO INTERNO DE TRABAJO DE GESTIÓN Y SISTEMAS DE INFORMACIÓN","No Aplica","GRUPO INTERNO DE TRABAJO DE GESTIÓN Y SISTEMAS DE INFORMACIÓN","Sistemas de Bases de Datos","Base de datos","Español","Pública Clasificada",{"$f":"+IF(O49=\"Alta\",0.5,IF(O49=\"Media\",0.3,IF(O49=\"Baja\",0.2,\"\")))","v":0.5},"Alta",{"$f":"+IF(#REF!=\"Grave \",0.5,IF(#REF!=\"Importante\",0.3,IF(#REF!=\"Leve\",0.2,\"\")))","v":{"$error":"#REF!"}},"SI","Ley 1712 Articulo 18 literal c. Los secretos comerciales, industriales y profesionales asi como los estipulados en el paragrafo del articulo 77 de la ley 1474 de 2011","Ley 1712 de 2014","Sin reserva","2017-06-30","Permanente"]
[{"$f":"IF(D50<>\"\",VLOOKUP('Activos de información - ICYR'!D50,DATA!$B$2:$C$95,2,)&\"-\"&IF(ISERR(B50),\"LEB\",B50),\"\")","v":"1402-LEB"},{"$f":"IF(AND(#REF!=\"\",D50<>\"\"),\"LEB\",IF(D50<>\"\",1+#REF!,\"\"))","v":{"$error":"#REF!"}},"Software","GRUPO INTERNO DE TRABAJO DE GESTIÓN Y SISTEMAS DE INFORMACIÓN","Base de Datos - SER","Base de datos del Sistema electrónico de recaudo","GRUPO INTERNO DE TRABAJO DE GESTIÓN Y SISTEMAS DE INFORMACIÓN","No Aplica","GRUPO INTERNO DE TRABAJO DE GESTIÓN Y SISTEMAS DE INFORMACIÓN","Sistemas de Bases de Datos","Base de datos","Español","Pública Clasificada",{"$f":"+IF(O50=\"Alta\",0.5,IF(O50=\"Media\",0.3,IF(O50=\"Baja\",0.2,\"\")))","v":0.5},"Alta",{"$f":"+IF(#REF!=\"Grave \",0.5,IF(#REF!=\"Importante\",0.3,IF(#REF!=\"Leve\",0.2,\"\")))","v":{"$error":"#REF!"}},"SI","Ley 1712 Articulo 18 literal c. Los secretos comerciales, industriales y profesionales asi como los estipulados en el paragrafo del articulo 77 de la ley 1474 de 2011","Ley 1712 de 2014","Sin reserva","2017-06-30","Permanente"]
[{"$f":"IF(D51<>\"\",VLOOKUP('Activos de información - ICYR'!D51,DATA!$B$2:$C$95,2,)&\"-\"&IF(ISERR(B51),\"LEB\",B51),\"\")","v":"1402-LEB"},{"$f":"IF(AND(A50=\"\",D51<>\"\"),\"LEB\",IF(D51<>\"\",1+B50,\"\"))","v":{"$error":"#REF!"}},"Software","GRUPO INTERNO DE TRABAJO DE GESTIÓN Y SISTEMAS DE INFORMACIÓN","Base de Datos - SIUST","Base de Datos del Sistema de información único del sector de las Telecomunicaciones ","GRUPO INTERNO DE TRABAJO DE GESTIÓN Y SISTEMAS DE INFORMACIÓN","No Aplica","GRUPO INTERNO DE TRABAJO DE GESTIÓN Y SISTEMAS DE INFORMACIÓN","Sistemas de Bases de Datos","Base de datos","Español","Pública Clasificada",{"$f":"+IF(O51=\"Alta\",0.5,IF(O51=\"Media\",0.3,IF(O51=\"Baja\",0.2,\"\")))","v":0.5},"Alta",{"$f":"+IF(#REF!=\"Grave \",0.5,IF(#REF!=\"Importante\",0.3,IF(#REF!=\"Leve\",0.2,\"\")))","v":{"$error":"#REF!"}},"SI","Ley 1712 Articulo 18 literal c. Los secretos comerciales, industriales y profesionales asi como los estipulados en el paragrafo del articulo 77 de la ley 1474 de 2011","Ley 1712 de 2014","Sin reserva","2017-06-30","Permanente"]
[{"$f":"IF(D52<>\"\",VLOOKUP('Activos de información - ICYR'!D52,DATA!$B$2:$C$95,2,)&\"-\"&IF(ISERR(B52),\"LEB\",B52),\"\")","v":"1402-LEB"},{"$f":"IF(AND(#REF!=\"\",D52<>\"\"),\"LEB\",IF(D52<>\"\",1+#REF!,\"\"))","v":{"$error":"#REF!"}},"Software","GRUPO INTERNO DE TRABAJO DE GESTIÓN Y SISTEMAS DE INFORMACIÓN","Base de Datos - SIMONTIC","Base de Datos de SimonTIC - Sistema de Monitoreo de las tecnologías de la información y las comunicaciones.","GRUPO INTERNO DE TRABAJO DE GESTIÓN Y SISTEMAS DE INFORMACIÓN","No Aplica","GRUPO INTERNO DE TRABAJO DE GESTIÓN Y SISTEMAS DE INFORMACIÓN","Sistemas de Bases de Datos","Base de datos","Español","Pública Clasificada",{"$f":"+IF(O52=\"Alta\",0.5,IF(O52=\"Media\",0.3,IF(O52=\"Baja\",0.2,\"\")))","v":0.5},"Alta",{"$f":"+IF(#REF!=\"Grave \",0.5,IF(#REF!=\"Importante\",0.3,IF(#REF!=\"Leve\",0.2,\"\")))","v":{"$error":"#REF!"}},"SI","Ley 1712 Articulo 18 literal c. Los secretos comerciales, industriales y profesionales asi como los estipulados en el paragrafo del articulo 77 de la ley 1474 de 2011","Ley 1712 de 2014","Sin reserva","2017-06-30","Permanente"]
[{"$f":"IF(D53<>\"\",VLOOKUP('Activos de información - ICYR'!D53,DATA!$B$2:$C$95,2,)&\"-\"&IF(ISERR(B53),\"LEB\",B53),\"\")","v":"1402-LEB"},{"$f":"IF(AND(#REF!=\"\",D53<>\"\"),\"LEB\",IF(D53<>\"\",1+#REF!,\"\"))","v":{"$error":"#REF!"}},"Software","GRUPO INTERNO DE TRABAJO DE GESTIÓN Y SISTEMAS DE INFORMACIÓN","Base de Datos - ASPA","Base de datos de la aplicación ASPA para el seguimiento al plan estratégico del Ministerio TIC","GRUPO INTERNO DE TRABAJO DE GESTIÓN Y SISTEMAS DE INFORMACIÓN","No Aplica","GRUPO INTERNO DE TRABAJO DE GESTIÓN Y SISTEMAS DE INFORMACIÓN","Sistemas de Bases de Datos","Base de datos","Español","Pública Clasificada",{"$f":"+IF(O53=\"Alta\",0.5,IF(O53=\"Media\",0.3,IF(O53=\"Baja\",0.2,\"\")))","v":0.5},"Alta",{"$f":"+IF(#REF!=\"Grave \",0.5,IF(#REF!=\"Importante\",0.3,IF(#REF!=\"Leve\",0.2,\"\")))","v":{"$error":"#REF!"}},"SI","Ley 1712 Articulo 18 literal c. Los secretos comerciales, industriales y profesionales asi como los estipulados en el paragrafo del articulo 77 de la ley 1474 de 2011","Ley 1712 de 2014","Sin reserva","2017-06-30","Permanente"]
[{"$f":"IF(D54<>\"\",VLOOKUP('Activos de información - ICYR'!D54,DATA!$B$2:$C$95,2,)&\"-\"&IF(ISERR(B54),\"LEB\",B54),\"\")","v":"1402-LEB"},{"$f":"IF(AND(#REF!=\"\",D54<>\"\"),\"LEB\",IF(D54<>\"\",1+#REF!,\"\"))","v":{"$error":"#REF!"}},"Software","GRUPO INTERNO DE TRABAJO DE GESTIÓN Y SISTEMAS DE INFORMACIÓN","Base de Datos - Kronos","Base de datos del Aplicativo Kronos de administración y liquidación de las Cuotas Partes Pensionales por cobrar, por pagar y generación de cuentas de cobro.","GRUPO INTERNO DE TRABAJO DE GESTIÓN Y SISTEMAS DE INFORMACIÓN","No Aplica","GRUPO INTERNO DE TRABAJO DE GESTIÓN Y SISTEMAS DE INFORMACIÓN","Sistemas de Bases de Datos","Base de datos","Español","Pública Clasificada",{"$f":"+IF(O54=\"Alta\",0.5,IF(O54=\"Media\",0.3,IF(O54=\"Baja\",0.2,\"\")))","v":0.5},"Alta",{"$f":"+IF(#REF!=\"Grave \",0.5,IF(#REF!=\"Importante\",0.3,IF(#REF!=\"Leve\",0.2,\"\")))","v":{"$error":"#REF!"}},"SI","Ley 1712 Articulo 18 literal c. Los secretos comerciales, industriales y profesionales asi como los estipulados en el paragrafo del articulo 77 de la ley 1474 de 2011","Ley 1712 de 2014","Sin reserva","2017-06-30","Permanente"]
[{"$f":"IF(D55<>\"\",VLOOKUP('Activos de información - ICYR'!D55,DATA!$B$2:$C$95,2,)&\"-\"&IF(ISERR(B55),\"LEB\",B55),\"\")","v":"1402-LEB"},{"$f":"IF(AND(#REF!=\"\",D55<>\"\"),\"LEB\",IF(D55<>\"\",1+#REF!,\"\"))","v":{"$error":"#REF!"}},"Software","GRUPO INTERNO DE TRABAJO DE GESTIÓN Y SISTEMAS DE INFORMACIÓN","Base de Datos - SIAT RDS","Base de datos para el Aplicativo que  permite la administración alertas tempranas para coordinación de radio de la subdirección de vigilancia y control.","GRUPO INTERNO DE TRABAJO DE GESTIÓN Y SISTEMAS DE INFORMACIÓN","No Aplica","GRUPO INTERNO DE TRABAJO DE GESTIÓN Y SISTEMAS DE INFORMACIÓN","Sistemas de Bases de Datos","Base de datos","Español","Pública Clasificada",{"$f":"+IF(O55=\"Alta\",0.5,IF(O55=\"Media\",0.3,IF(O55=\"Baja\",0.2,\"\")))","v":0.5},"Alta",{"$f":"+IF(#REF!=\"Grave \",0.5,IF(#REF!=\"Importante\",0.3,IF(#REF!=\"Leve\",0.2,\"\")))","v":{"$error":"#REF!"}},"SI","Ley 1712 Articulo 18 literal c. Los secretos comerciales, industriales y profesionales asi como los estipulados en el paragrafo del articulo 77 de la ley 1474 de 2011","Ley 1712 de 2014","Sin reserva","2019-06-30","Permanente"]
[{"$f":"IF(D56<>\"\",VLOOKUP('Activos de información - ICYR'!D56,DATA!$B$2:$C$95,2,)&\"-\"&IF(ISERR(B56),\"LEB\",B56),\"\")","v":"1402-LEB"},{"$f":"IF(AND(#REF!=\"\",D56<>\"\"),\"LEB\",IF(D56<>\"\",1+#REF!,\"\"))","v":{"$error":"#REF!"}},"Software","GRUPO INTERNO DE TRABAJO DE GESTIÓN Y SISTEMAS DE INFORMACIÓN","Base de Datos - SIAT PLUS","Base de datos para el Aplicativo que  permite la administración alertas tempranas para coordinación de radio de la subdirección de vigilancia y control.","GRUPO INTERNO DE TRABAJO DE GESTIÓN Y SISTEMAS DE INFORMACIÓN","No Aplica","GRUPO INTERNO DE TRABAJO DE GESTIÓN Y SISTEMAS DE INFORMACIÓN","Sistemas de Bases de Datos","Base de datos","Español","Pública Clasificada",{"$f":"+IF(O56=\"Alta\",0.5,IF(O56=\"Media\",0.3,IF(O56=\"Baja\",0.2,\"\")))","v":0.5},"Alta",{"$f":"+IF(#REF!=\"Grave \",0.5,IF(#REF!=\"Importante\",0.3,IF(#REF!=\"Leve\",0.2,\"\")))","v":{"$error":"#REF!"}},"SI","Ley 1712 Articulo 18 literal c. Los secretos comerciales, industriales y profesionales asi como los estipulados en el paragrafo del articulo 77 de la ley 1474 de 2011","Ley 1712 de 2014","Sin reserva","2019-06-30","Permanente"]
[{"$f":"IF(D57<>\"\",VLOOKUP('Activos de información - ICYR'!D57,DATA!$B$2:$C$95,2,)&\"-\"&IF(ISERR(B57),\"LEB\",B57),\"\")","v":"1402-LEB"},{"$f":"IF(AND(#REF!=\"\",D57<>\"\"),\"LEB\",IF(D57<>\"\",1+#REF!,\"\"))","v":{"$error":"#REF!"}},"Software","GRUPO INTERNO DE TRABAJO DE GESTIÓN Y SISTEMAS DE INFORMACIÓN","Base de Datos - SIAT POSTAL","Base de datos para el Aplicativo que  permite la administración alertas tempranas para coordinación de radio de la subdirección de vigilancia y control.","GRUPO INTERNO DE TRABAJO DE GESTIÓN Y SISTEMAS DE INFORMACIÓN","No Aplica","GRUPO INTERNO DE TRABAJO DE GESTIÓN Y SISTEMAS DE INFORMACIÓN","Sistemas de Bases de Datos","Base de datos","Español","Pública Clasificada",{"$f":"+IF(O57=\"Alta\",0.5,IF(O57=\"Media\",0.3,IF(O57=\"Baja\",0.2,\"\")))","v":0.5},"Alta",{"$f":"+IF(#REF!=\"Grave \",0.5,IF(#REF!=\"Importante\",0.3,IF(#REF!=\"Leve\",0.2,\"\")))","v":{"$error":"#REF!"}},"SI","Ley 1712 Articulo 18 literal c. Los secretos comerciales, industriales y profesionales asi como los estipulados en el paragrafo del articulo 77 de la ley 1474 de 2011","Ley 1712 de 2014","Sin reserva","2019-06-30","Permanente"]
[{"$f":"IF(D58<>\"\",VLOOKUP('Activos de información - ICYR'!D58,DATA!$B$2:$C$95,2,)&\"-\"&IF(ISERR(B58),\"LEB\",B58),\"\")","v":"1402-LEB"},{"$f":"IF(AND(#REF!=\"\",D58<>\"\"),\"LEB\",IF(D58<>\"\",1+#REF!,\"\"))","v":{"$error":"#REF!"}},"Software","GRUPO INTERNO DE TRABAJO DE GESTIÓN Y SISTEMAS DE INFORMACIÓN","Base de Datos - ISOLUCION","Base de datos de la herramienta de gestión sistemática y transparente que sirve para dirigir, evaluar y mejorar el desempeño institucional.","GRUPO INTERNO DE TRABAJO DE GESTIÓN Y SISTEMAS DE INFORMACIÓN","No Aplica","GRUPO INTERNO DE TRABAJO DE GESTIÓN Y SISTEMAS DE INFORMACIÓN","Sistemas de Bases de Datos","Base de datos","Español","Pública Clasificada",{"$f":"+IF(O58=\"Alta\",0.5,IF(O58=\"Media\",0.3,IF(O58=\"Baja\",0.2,\"\")))","v":0.5},"Alta",{"$f":"+IF(#REF!=\"Grave \",0.5,IF(#REF!=\"Importante\",0.3,IF(#REF!=\"Leve\",0.2,\"\")))","v":{"$error":"#REF!"}},"SI","Ley 1712 Articulo 18 literal c. Los secretos comerciales, industriales y profesionales asi como los estipulados en el paragrafo del articulo 77 de la ley 1474 de 2011","Ley 1712 de 2014","Sin reserva","2018-12-31","Permanente"]
[{"$f":"IF(D59<>\"\",VLOOKUP('Activos de información - ICYR'!D59,DATA!$B$2:$C$95,2,)&\"-\"&IF(ISERR(B59),\"LEB\",B59),\"\")","v":"1402-LEB"},{"$f":"IF(AND(#REF!=\"\",D59<>\"\"),\"LEB\",IF(D59<>\"\",1+#REF!,\"\"))","v":{"$error":"#REF!"}},"Software","GRUPO INTERNO DE TRABAJO DE GESTIÓN Y SISTEMAS DE INFORMACIÓN","Base de Datos - SALTV","Base de datos del sistema de gestión de autoliquidaciones, concesiones y desagregados para PRSTs no habilitados","GRUPO INTERNO DE TRABAJO DE GESTIÓN Y SISTEMAS DE INFORMACIÓN","No Aplica","GRUPO INTERNO DE TRABAJO DE GESTIÓN Y SISTEMAS DE INFORMACIÓN","Sistemas de Bases de Datos","Base de datos","Español","Pública Clasificada",{"$f":"+IF(O59=\"Alta\",0.5,IF(O59=\"Media\",0.3,IF(O59=\"Baja\",0.2,\"\")))","v":0.5},"Alta",{"$f":"+IF(#REF!=\"Grave \",0.5,IF(#REF!=\"Importante\",0.3,IF(#REF!=\"Leve\",0.2,\"\")))","v":{"$error":"#REF!"}},"SI","Ley 1712 Articulo 18 literal c. Los secretos comerciales, industriales y profesionales asi como los estipulados en el paragrafo del articulo 77 de la ley 1474 de 2013","Ley 1712 de 2014","Sin reserva","2019-12-31","Permanente"]
[{"$f":"IF(D60<>\"\",VLOOKUP('Activos de información - ICYR'!D60,DATA!$B$2:$C$95,2,)&\"-\"&IF(ISERR(B60),\"LEB\",B60),\"\")","v":"1402-LEB"},{"$f":"IF(AND(#REF!=\"\",D60<>\"\"),\"LEB\",IF(D60<>\"\",1+#REF!,\"\"))","v":{"$error":"#REF!"}},"Software","GRUPO INTERNO DE TRABAJO DE GESTIÓN Y SISTEMAS DE INFORMACIÓN","Base de Datos - BIMINTIC_DWH_SECTOR","Se gestiona información de BI para DVC, Boletines Sector, cartera, cobro coactivo","GRUPO INTERNO DE TRABAJO DE GESTIÓN Y SISTEMAS DE INFORMACIÓN","No Aplica","GRUPO INTERNO DE TRABAJO DE GESTIÓN Y SISTEMAS DE INFORMACIÓN","Sistemas de Bases de Datos","SQL","Español","Pública Clasificada",{"$f":"+IF(O60=\"Alta\",0.5,IF(O60=\"Media\",0.3,IF(O60=\"Baja\",0.2,\"\")))","v":0.5},"Alta",{"$f":"+IF(#REF!=\"Grave \",0.5,IF(#REF!=\"Importante\",0.3,IF(#REF!=\"Leve\",0.2,\"\")))","v":{"$error":"#REF!"}},"SI","Ley 1273 de 2009","Resolución 1124 de 2020","Sin reserva","2020-08-20","Permanente"]
[{"$f":"IF(D61<>\"\",VLOOKUP('Activos de información - ICYR'!D61,DATA!$B$2:$C$95,2,)&\"-\"&IF(ISERR(B61),\"LEB\",B61),\"\")","v":"1402-LEB"},{"$f":"IF(AND(#REF!=\"\",D61<>\"\"),\"LEB\",IF(D61<>\"\",1+#REF!,\"\"))","v":{"$error":"#REF!"}},"Información Digital","GRUPO INTERNO DE TRABAJO DE GESTIÓN Y SISTEMAS DE INFORMACIÓN","Catalogo de sistemas de información","Documento de registro de sistemas de información. El documento contiene la descripción de los sistemas de información además del detalle de los servidores de lo soportan ","GRUPO INTERNO DE TRABAJO DE GESTIÓN Y SISTEMAS DE INFORMACIÓN","2017-12-31","GRUPO INTERNO DE TRABAJO DE GESTIÓN Y SISTEMAS DE INFORMACIÓN","Archivos Institucionales - electrónico","XLS","Español","Pública Reservada",{"$f":"+IF(O61=\"Alta\",0.5,IF(O61=\"Media\",0.3,IF(O61=\"Baja\",0.2,\"\")))","v":0.5},"Alta",{"$f":"+IF(#REF!=\"Grave \",0.5,IF(#REF!=\"Importante\",0.3,IF(#REF!=\"Leve\",0.2,\"\")))","v":{"$error":"#REF!"}},"SI","Artículo 18 de la ley 1712 del 2014","Artículo 18 de la ley 1712 del 2014","Reserva total","2017-12-31","15 Años"]
[{"$f":"IF(D62<>\"\",VLOOKUP('Activos de información - ICYR'!D62,DATA!$B$2:$C$95,2,)&\"-\"&IF(ISERR(B62),\"LEB\",B62),\"\")","v":"1402-LEB"},{"$f":"IF(AND(#REF!=\"\",D62<>\"\"),\"LEB\",IF(D62<>\"\",1+#REF!,\"\"))","v":{"$error":"#REF!"}},"Hardware","GRUPO INTERNO DE TRABAJO DE GESTIÓN Y SISTEMAS DE INFORMACIÓN","Base de Datos - ERWIN","Base de datos para el modelamiento e inteligencia de datos","GRUPO INTERNO DE TRABAJO DE GESTIÓN Y SISTEMAS DE INFORMACIÓN","2020-12-31","GRUPO INTERNO DE TRABAJO DE GESTIÓN Y SISTEMAS DE INFORMACIÓN","Sistemas de Información corporativos","Base de datos","Ingles","Pública Clasificada",{"$f":"+IF(O62=\"Alta\",0.5,IF(O62=\"Media\",0.3,IF(O62=\"Baja\",0.2,\"\")))","v":0.5},"Alta",{"$f":"+IF(#REF!=\"Grave \",0.5,IF(#REF!=\"Importante\",0.3,IF(#REF!=\"Leve\",0.2,\"\")))","v":{"$error":"#REF!"}},"SI","Ley 1712 Articulo 18 literal c. Los secretos comerciales, industriales y profesionales asi como los estipulados en el paragrafo del articulo 77 de la ley 1474 de 2012","Ley 1712 de 2014","Sin reserva","2021-07-19","Permanente"]
[{"$f":"IF(D63<>\"\",VLOOKUP('Activos de información - ICYR'!D63,DATA!$B$2:$C$95,2,)&\"-\"&IF(ISERR(B63),\"LEB\",B63),\"\")","v":"1402-LEB"},{"$f":"IF(AND(A62=\"\",D63<>\"\"),\"LEB\",IF(D63<>\"\",1+B62,\"\"))","v":{"$error":"#REF!"}},"Información Digital","GRUPO INTERNO DE TRABAJO DE GESTIÓN Y SISTEMAS DE INFORMACIÓN","Documentos de estrategia y programa de Gobierno de Datos","Documentos que componen la estrategia y programa de Gobierno de Datos generado para el Ministerio","GRUPO INTERNO DE TRABAJO DE GESTIÓN Y SISTEMAS DE INFORMACIÓN","2021-05-23","GRUPO INTERNO DE TRABAJO DE GESTIÓN Y SISTEMAS DE INFORMACIÓN","Uso de tecnologías en la nube","Documento de Texto","Español","Pública Clasificada",{"$f":"+IF(O63=\"Alta\",0.5,IF(O63=\"Media\",0.3,IF(O63=\"Baja\",0.2,\"\")))","v":0.5},"Alta",{"$f":"+IF(#REF!=\"Grave \",0.5,IF(#REF!=\"Importante\",0.3,IF(#REF!=\"Leve\",0.2,\"\")))","v":{"$error":"#REF!"}},"SI","Ley 1712 Articulo 18 literal c. Los secretos comerciales, industriales y profesionales asi como los estipulados en el paragrafo del articulo 77 de la ley 1474 de 2013","Ley 1712 de 2014","Sin reserva","2021-07-19","Permanente"]
[{"$f":"IF(D64<>\"\",VLOOKUP('Activos de información - ICYR'!D64,DATA!$B$2:$C$95,2,)&\"-\"&IF(ISERR(B64),\"LEB\",B64),\"\")","v":"1402-LEB"},{"$f":"IF(AND(A63=\"\",D64<>\"\"),\"LEB\",IF(D64<>\"\",1+B63,\"\"))","v":{"$error":"#REF!"}},"Información Digital","GRUPO INTERNO DE TRABAJO DE GESTIÓN Y SISTEMAS DE INFORMACIÓN","Documentos del Plan de Información Estadístico Institucional","Formulación e implementación del Plan de Información Estadístico Institucional","GRUPO INTERNO DE TRABAJO DE GESTIÓN Y SISTEMAS DE INFORMACIÓN","2020-11-30","GRUPO INTERNO DE TRABAJO DE GESTIÓN Y SISTEMAS DE INFORMACIÓN","Uso de tecnologías en la nube","Documento de Texto","Español","Pública Clasificada",{"$f":"+IF(O64=\"Alta\",0.5,IF(O64=\"Media\",0.3,IF(O64=\"Baja\",0.2,\"\")))","v":0.5},"Alta",{"$f":"+IF(#REF!=\"Grave \",0.5,IF(#REF!=\"Importante\",0.3,IF(#REF!=\"Leve\",0.2,\"\")))","v":{"$error":"#REF!"}},"SI","Ley 1712 Articulo 18 literal c. Los secretos comerciales, industriales y profesionales asi como los estipulados en el paragrafo del articulo 77 de la ley 1474 de 2014","Ley 1712 de 2014","Sin reserva","2021-07-19","Permanente"]
[{"$f":"IF(D65<>\"\",VLOOKUP('Activos de información - ICYR'!D65,DATA!$B$2:$C$95,2,)&\"-\"&IF(ISERR(B65),\"LEB\",B65),\"\")","v":"1402-LEB"},{"$f":"IF(AND(A64=\"\",D65<>\"\"),\"LEB\",IF(D65<>\"\",1+B64,\"\"))","v":{"$error":"#REF!"}},"Información Digital","GRUPO INTERNO DE TRABAJO DE GESTIÓN Y SISTEMAS DE INFORMACIÓN","Modelos de Machine Learning para explotación de información del sector","Modelos de Machine Learning para explotación de información del sector","GRUPO INTERNO DE TRABAJO DE GESTIÓN Y SISTEMAS DE INFORMACIÓN","2021-04-30","GRUPO INTERNO DE TRABAJO DE GESTIÓN Y SISTEMAS DE INFORMACIÓN","Uso de tecnologías en la nube","Software","Español","Pública Clasificada",{"$f":"+IF(O65=\"Alta\",0.5,IF(O65=\"Media\",0.3,IF(O65=\"Baja\",0.2,\"\")))","v":0.5},"Alta",{"$f":"+IF(#REF!=\"Grave \",0.5,IF(#REF!=\"Importante\",0.3,IF(#REF!=\"Leve\",0.2,\"\")))","v":{"$error":"#REF!"}},"SI","Ley 1712 Articulo 18 literal c. Los secretos comerciales, industriales y profesionales asi como los estipulados en el paragrafo del articulo 77 de la ley 1474 de 2015","Ley 1712 de 2014","Sin reserva","2021-07-19","Permanente"]
[{"$f":"IF(D66<>\"\",VLOOKUP('Activos de información - ICYR'!D66,DATA!$B$2:$C$95,2,)&\"-\"&IF(ISERR(B66),\"LEB\",B66),\"\")","v":"1402-LEB"},{"$f":"IF(AND(A65=\"\",D66<>\"\"),\"LEB\",IF(D66<>\"\",1+B65,\"\"))","v":{"$error":"#REF!"}},"Información Digital","GRUPO INTERNO DE TRABAJO DE GESTIÓN Y SISTEMAS DE INFORMACIÓN","Modelos de NLP procesamiento de texto de Actas de grupo comité primario","Modelos de NLP procesamiento de texto de Actas de grupo comité primario","GRUPO INTERNO DE TRABAJO DE GESTIÓN Y SISTEMAS DE INFORMACIÓN","2021-04-30","GRUPO INTERNO DE TRABAJO DE GESTIÓN Y SISTEMAS DE INFORMACIÓN","Uso de tecnologías en la nube","Software","Español","Pública Clasificada",{"$f":"+IF(O66=\"Alta\",0.5,IF(O66=\"Media\",0.3,IF(O66=\"Baja\",0.2,\"\")))","v":0.5},"Alta",{"$f":"+IF(#REF!=\"Grave \",0.5,IF(#REF!=\"Importante\",0.3,IF(#REF!=\"Leve\",0.2,\"\")))","v":{"$error":"#REF!"}},"SI","Ley 1712 Articulo 18 literal c. Los secretos comerciales, industriales y profesionales asi como los estipulados en el paragrafo del articulo 77 de la ley 1474 de 2016","Ley 1712 de 2014","Sin reserva","2021-07-19","Permanente"]
[{"$f":"IF(D67<>\"\",VLOOKUP('Activos de información - ICYR'!D67,DATA!$B$2:$C$95,2,)&\"-\"&IF(ISERR(B67),\"LEB\",B67),\"\")","v":"15-LEB"},{"$f":"IF(AND(#REF!=\"\",D67<>\"\"),\"LEB\",IF(D67<>\"\",1+#REF!,\"\"))","v":{"$error":"#REF!"}},"Información Digital","OFICINA DE FOMENTO REGIONAL DE TECNOLOGÍAS DE LA INFORMACIÓN Y LAS COMUNICACIONES","Base de datos Alcaldes y Gobernadores ","Base de datos que contiene la información básica de los alcaldes y gobernadores del territorio nacional, con el fin de llevar la oferta TIC","OFICINA DE FOMENTO REGIONAL DE TECNOLOGÍAS DE LA INFORMACIÓN Y LAS COMUNICACIONES","2020-08-01","OFICINA DE FOMENTO REGIONAL DE TECNOLOGÍAS DE LA INFORMACIÓN Y LAS COMUNICACIONES","Documentos de Archivo - electrónicos","Base de datos","Español","Pública Clasificada",{"$f":"+IF(O67=\"Alta\",0.5,IF(O67=\"Media\",0.3,IF(O67=\"Baja\",0.2,\"\")))","v":0.5},"Alta",{"$f":"+IF(#REF!=\"Grave \",0.5,IF(#REF!=\"Importante\",0.3,IF(#REF!=\"Leve\",0.2,\"\")))","v":{"$error":"#REF!"}},"SI","Ley 1581 de 2012","LEY 1712. ART 18. LITERAL A.\nLey 1581 de 2012 ","Sin reserva","01/18/2020","Permanente"]
[{"$f":"IF(D68<>\"\",VLOOKUP('Activos de información - ICYR'!D68,DATA!$B$2:$C$95,2,)&\"-\"&IF(ISERR(B68),\"LEB\",B68),\"\")","v":"1501-LEB"},{"$f":"IF(AND(#REF!=\"\",D68<>\"\"),\"LEB\",IF(D68<>\"\",1+#REF!,\"\"))","v":{"$error":"#REF!"}},"Información Digital","GRUPO INTERNO DE TRABAJO DE CONSENSO SOCIAL","INFORMES DE GESTIÓN O INSUMOS PARA ENTES DE CONTROL INTERNOS O EXTERNOS","INFORMES DE GESTIÓN O INSUMOS PARA ENTES DE CONTROL INTERNOS O EXTERNOS CON RELACIÓN AL AVANCE Y CUMPLIMIENTO DE LOS COMPROMISOS Y ACCIONES DESARROLLADAS CON GRUPOS ÉTNICOS Y/O SOCIALES, VICTIMAS DEL CONFLICTO ARMADO Y POBLACIÓN EN RIESGO ","GRUPO INTERNO DE TRABAJO DE CONSENSO SOCIAL","2018-11-28","GRUPO INTERNO DE TRABAJO DE CONSENSO SOCIAL","Documentos de Archivo - electrónicos","PDF","Español","Pública Clasificada",{"$f":"+IF(O68=\"Alta\",0.5,IF(O68=\"Media\",0.3,IF(O68=\"Baja\",0.2,\"\")))","v":0.3},"Media",{"$f":"+IF(#REF!=\"Grave \",0.5,IF(#REF!=\"Importante\",0.3,IF(#REF!=\"Leve\",0.2,\"\")))","v":{"$error":"#REF!"}},"SI","LEY 1712. ART 18. LITERAL A. ","LEY 1712. ART 18. LITERAL A. ","Sin reserva","2018-11-28","Permanente"]
[{"$f":"IF(D69<>\"\",VLOOKUP('Activos de información - ICYR'!D69,DATA!$B$2:$C$95,2,)&\"-\"&IF(ISERR(B69),\"LEB\",B69),\"\")","v":"1501-LEB"},{"$f":"IF(AND(#REF!=\"\",D69<>\"\"),\"LEB\",IF(D69<>\"\",1+#REF!,\"\"))","v":{"$error":"#REF!"}},"Información Digital","GRUPO INTERNO DE TRABAJO DE CONSENSO SOCIAL","PLANES DE ATENCIÓN A VICTIMAS Y POBLACIÓN VULNERABLE","FORMULACIÓN, SEGUIMIENTO, CONTROL Y CIERRE DE: PLANES INTEGRALES DE REPARACIÓN COLECTIVA A LAS VICTIMAS, PLAN OPERATIVO ANUAL PARA LAS VICTIMAS Y PLAN DE ACCIÓN Y FORTALECIMIENTO INSTITUCIONAL PARA LA ATENCIÓN INTEGRAL A LAS VICTIMAS ","GRUPO INTERNO DE TRABAJO DE CONSENSO SOCIAL","2018-11-28","GRUPO INTERNO DE TRABAJO DE CONSENSO SOCIAL","Documentos de Archivo - electrónicos","XLS -PDF","Español","Pública Clasificada",{"$f":"+IF(O69=\"Alta\",0.5,IF(O69=\"Media\",0.3,IF(O69=\"Baja\",0.2,\"\")))","v":0.3},"Media",{"$f":"+IF(#REF!=\"Grave \",0.5,IF(#REF!=\"Importante\",0.3,IF(#REF!=\"Leve\",0.2,\"\")))","v":{"$error":"#REF!"}},"SI","LEY 1712. ART 18. LITERAL A. ","LEY 1712. ART 18. LITERAL A. ","Sin reserva","2018-11-28","Permanente"]
[{"$f":"IF(D70<>\"\",VLOOKUP('Activos de información - ICYR'!D70,DATA!$B$2:$C$95,2,)&\"-\"&IF(ISERR(B70),\"LEB\",B70),\"\")","v":"16-LEB"},{"$f":"IF(AND(#REF!=\"\",D70<>\"\"),\"LEB\",IF(D70<>\"\",1+#REF!,\"\"))","v":{"$error":"#REF!"}},"Información Digital","OFICINA DE CONTROL INTERNO","Acta de comité de coordinación del sistema de control interno","Documento que contiene lo tratado en las reuniones del Comité de Coordinación del Sistema de Control Interno de acuerdo con la periodicidad  establecida en la resolución 3212 de 2018. ","OFICINA DE CONTROL INTERNO","2020-03-10","OFICINA DE CONTROL INTERNO","Archivos Institucionales - electrónico","PDF","Español","Pública Clasificada",{"$f":"+IF(O70=\"Alta\",0.5,IF(O70=\"Media\",0.3,IF(O70=\"Baja\",0.2,\"\")))","v":0.3},"Media",{"$f":"+IF(#REF!=\"Grave \",0.5,IF(#REF!=\"Importante\",0.3,IF(#REF!=\"Leve\",0.2,\"\")))","v":{"$error":"#REF!"}},"SI","Ley 1712 de 2014 \nartículo 18\n","Ley 1712 de 2014 \nartículo 18\n","Sin reserva","2020-03-10","Permanente"]
[{"$f":"IF(D71<>\"\",VLOOKUP('Activos de información - ICYR'!D71,DATA!$B$2:$C$95,2,)&\"-\"&IF(ISERR(B71),\"LEB\",B71),\"\")","v":"16-LEB"},{"$f":"IF(AND(A70=\"\",D71<>\"\"),\"LEB\",IF(D71<>\"\",1+B70,\"\"))","v":{"$error":"#REF!"}},"Información Física – Digital","OFICINA DE CONTROL INTERNO","Auditorías internas de Gestión","Corresponde a los informes finales de auditorías internas de gestión, establecidas en el Programa Anual de Auditoría de cada vigencia y se desarrollan de acuerdo con los lineamientos establecidos en el procedimiento de auditoría interna de Gestión.","OFICINA DE CONTROL INTERNO","2017-06-30","OFICINA DE CONTROL INTERNO","Archivos Institucionales - electrónico","PDF","Español","Pública Clasificada",{"$f":"+IF(O71=\"Alta\",0.5,IF(O71=\"Media\",0.3,IF(O71=\"Baja\",0.2,\"\")))","v":0.5},"Alta",{"$f":"+IF(#REF!=\"Grave \",0.5,IF(#REF!=\"Importante\",0.3,IF(#REF!=\"Leve\",0.2,\"\")))","v":{"$error":"#REF!"}},"SI","Ley 1712 de 2014 \nartículo 18\n","Ley 1712 de 2014 \nartículo 18\n","Sin reserva","2021-09-20","Permanente"]
[{"$f":"IF(D72<>\"\",VLOOKUP('Activos de información - ICYR'!D72,DATA!$B$2:$C$95,2,)&\"-\"&IF(ISERR(B72),\"LEB\",B72),\"\")","v":"16-LEB"},{"$f":"IF(AND(#REF!=\"\",D72<>\"\"),\"LEB\",IF(D72<>\"\",1+#REF!,\"\"))","v":{"$error":"#REF!"}},"Información Digital","OFICINA DE CONTROL INTERNO","Seguimiento a Planes de mejoramiento internos y Organismos de Control.","Son los seguimientos que se realizan a los planes de mejoramiento que implementan los procesos de la entidad como resultado de las auditorías realizadas por la Oficina de Control Interno y por los entes de control externos para el Fondo Único y Ministerio TIC.","OFICINA DE CONTROL INTERNO","2018-12-20","OFICINA DE CONTROL INTERNO","Sistemas de Información corporativos","Hoja de cálculo","Español","Pública Clasificada",{"$f":"+IF(O72=\"Alta\",0.5,IF(O72=\"Media\",0.3,IF(O72=\"Baja\",0.2,\"\")))","v":0.3},"Media",{"$f":"+IF(#REF!=\"Grave \",0.5,IF(#REF!=\"Importante\",0.3,IF(#REF!=\"Leve\",0.2,\"\")))","v":{"$error":"#REF!"}},"SI","Ley 1712 de 2014 \nartículo 18\n","Ley 1712 de 2014 \nartículo 18\n","Sin reserva","2021-09-20","Permanente"]
[{"$f":"IF(D73<>\"\",VLOOKUP('Activos de información - ICYR'!D73,DATA!$B$2:$C$95,2,)&\"-\"&IF(ISERR(B73),\"LEB\",B73),\"\")","v":"1701-LEB"},{"$f":"IF(AND(#REF!=\"\",D73<>\"\"),\"LEB\",IF(D73<>\"\",1+#REF!,\"\"))","v":{"$error":"#REF!"}},"Información Digital","GRUPO INTERNO DE TRABAJO DE DOCTRINA Y SEGURIDAD JURÍDICA","CONCEPTOS","Conceptos jurídicos sobre consultas de clientes internos con reserva.","GRUPO INTERNO DE TRABAJO DE DOCTRINA Y SEGURIDAD JURÍDICA","2018-11-28","GRUPO INTERNO DE TRABAJO DE DOCTRINA Y SEGURIDAD JURÍDICA","Documentos de Archivo - electrónicos","Imagen","Español","Pública Reservada",{"$f":"+IF(O73=\"Alta\",0.5,IF(O73=\"Media\",0.3,IF(O73=\"Baja\",0.2,\"\")))","v":0.5},"Alta",{"$f":"+IF(#REF!=\"Grave \",0.5,IF(#REF!=\"Importante\",0.3,IF(#REF!=\"Leve\",0.2,\"\")))","v":{"$error":"#REF!"}},"SI","No Aplica","Ley  1712 de 2014, Artículo 19, Literal d","Reserva total","2018-11-28","Permanente"]
[{"$f":"IF(D74<>\"\",VLOOKUP('Activos de información - ICYR'!D74,DATA!$B$2:$C$95,2,)&\"-\"&IF(ISERR(B74),\"LEB\",B74),\"\")","v":"1703-LEB"},{"$f":"IF(AND(#REF!=\"\",D74<>\"\"),\"LEB\",IF(D74<>\"\",1+#REF!,\"\"))","v":{"$error":"#REF!"}},"Información Física – Digital","GRUPO INTERNO DE TRABAJO DE COBRO COACTIVO","Procedimientos administrativos de cobro coactivo","Es el conjunto de actos administrativos y documentos expedidos en  desarrollo de la actuación administrativa de cobroAuto de avoque del procedimiento, Auto de mandamiento de pago,\nOficios y/o consultas de investigación de bienes, Oficio citación para notificación (personal, correo, aviso), Excepciones contra el auto de mandamiento de pagos, Oficio citación para notificación (por correo, aviso), Resolución que resuelve recurso contra las excepciones, Oficio citación para notificación (personal, correo, aviso), Resolución que ordena seguir adelante con la ejecución\nAuto que decreta medidas cautelares, Oficio inscripción y/o comunicación de medida cautelar\nRespuesta a peticiones formuladas por el ejecutado, Resolución por medio de la cual se otorga facilidad de pago o Acuerdo con FONPET, Auto de suspensión del procedimiento\nAuto de liquidación del crédito  y auto que deja en firme la liquidación del crédito, Auto de imputación de título de depósito judicial, Auto de Terminación y archivo del procedimiento","GRUPO INTERNO DE TRABAJO DE COBRO COACTIVO","2018-11-28","GRUPO INTERNO DE TRABAJO DE COBRO COACTIVO","Documentos de Archivo - físicos","Papel","Español","Pública Reservada",{"$f":"+IF(O74=\"Alta\",0.5,IF(O74=\"Media\",0.3,IF(O74=\"Baja\",0.2,\"\")))","v":0.5},"Alta",{"$f":"+IF(#REF!=\"Grave \",0.5,IF(#REF!=\"Importante\",0.3,IF(#REF!=\"Leve\",0.2,\"\")))","v":{"$error":"#REF!"}},"SI","Decreto 624 de 1989- Estatuto Tributario","849-4 Estatuto Tributario","Reserva total","2018-11-28","Permanente"]
[{"$f":"IF(D75<>\"\",VLOOKUP('Activos de información - ICYR'!D75,DATA!$B$2:$C$95,2,)&\"-\"&IF(ISERR(B75),\"LEB\",B75),\"\")","v":"1703-LEB"},{"$f":"IF(AND(A74=\"\",D75<>\"\"),\"LEB\",IF(D75<>\"\",1+B74,\"\"))","v":{"$error":"#REF!"}},"Información Digital","GRUPO INTERNO DE TRABAJO DE COBRO COACTIVO","BASE DE DATOS APLICATIVO DE GESTIÓN DE COBRO COACTIVO ","Base de datos que contiene la información de todos los procesos que se manejan al interior del GIT de Cobro Coactivo","GRUPO INTERNO DE TRABAJO DE COBRO COACTIVO","2018-11-28","GRUPO INTERNO DE TRABAJO DE GESTIÓN Y SISTEMAS DE INFORMACIÓN","Documentos de Archivo - electrónicos","Base de datos","Español","Pública Reservada",{"$f":"+IF(O75=\"Alta\",0.5,IF(O75=\"Media\",0.3,IF(O75=\"Baja\",0.2,\"\")))","v":0.5},"Alta",{"$f":"+IF(#REF!=\"Grave \",0.5,IF(#REF!=\"Importante\",0.3,IF(#REF!=\"Leve\",0.2,\"\")))","v":{"$error":"#REF!"}},"SI","Decreto 624 de 1989- Estatuto Tributario","849-4 Estatuto Tributario","Reserva total","Permanente","Permanente"]
[{"$f":"IF(D76<>\"\",VLOOKUP('Activos de información - ICYR'!D76,DATA!$B$2:$C$95,2,)&\"-\"&IF(ISERR(B76),\"LEB\",B76),\"\")","v":"1703-LEB"},{"$f":"IF(AND(A75=\"\",D76<>\"\"),\"LEB\",IF(D76<>\"\",1+B75,\"\"))","v":{"$error":"#REF!"}},"Información Digital","GRUPO INTERNO DE TRABAJO DE COBRO COACTIVO","BASE DE DATOS CUADRO CONTROL PROCESOS EXCEL ","Base de datos que contiene la información de todos los procesos que se manejan al interior del GIT de Cobro Coactivo","GRUPO INTERNO DE TRABAJO DE COBRO COACTIVO","2018-11-28","GRUPO INTERNO DE TRABAJO DE COBRO COACTIVO","Documentos de Archivo - electrónicos","Base de datos","Español","Pública Reservada",{"$f":"+IF(O76=\"Alta\",0.5,IF(O76=\"Media\",0.3,IF(O76=\"Baja\",0.2,\"\")))","v":0.5},"Alta",{"$f":"+IF(#REF!=\"Grave \",0.5,IF(#REF!=\"Importante\",0.3,IF(#REF!=\"Leve\",0.2,\"\")))","v":{"$error":"#REF!"}},"SI","Decreto 624 de 1989- Estatuto Tributario","849-4 Estatuto Tributario","Reserva total","Permanente","Permanente "]
[{"$f":"IF(D77<>\"\",VLOOKUP('Activos de información - ICYR'!D77,DATA!$B$2:$C$95,2,)&\"-\"&IF(ISERR(B77),\"LEB\",B77),\"\")","v":"2002-LEB"},{"$f":"IF(AND(#REF!=\"\",D77<>\"\"),\"LEB\",IF(D77<>\"\",1+#REF!,\"\"))","v":{"$error":"#REF!"}},"Información Digital","GRUPO INTERNO DE TRABAJO DE FORTALECIMIENTO AL SISTEMA DE MEDIOS PÚBLICOS","IDEAS CREATIVAS DE LAS CONVOCATORIAS AUDIOVISUALES","Propuestas de los interesados que participan en las convocatorias audiovisuales","GRUPO INTERNO DE TRABAJO DE FORTALECIMIENTO AL SISTEMA DE MEDIOS PÚBLICOS","No Aplica","GRUPO INTERNO DE TRABAJO DE FORTALECIMIENTO AL SISTEMA DE MEDIOS PÚBLICOS","Documentos de Archivo - electrónicos","PDF","Español","Pública Clasificada",{"$f":"+IF(O77=\"Alta\",0.5,IF(O77=\"Media\",0.3,IF(O77=\"Baja\",0.2,\"\")))","v":0.5},"Alta",{"$f":"+IF(#REF!=\"Grave \",0.5,IF(#REF!=\"Importante\",0.3,IF(#REF!=\"Leve\",0.2,\"\")))","v":{"$error":"#REF!"}},"SI","Ley 1712 de 2014, Artículo 18","Ley 1712 de 2014, Artículo 18","Sin reserva","2021-01-01","Permanente"]
[{"$f":"IF(D78<>\"\",VLOOKUP('Activos de información - ICYR'!D78,DATA!$B$2:$C$95,2,)&\"-\"&IF(ISERR(B78),\"LEB\",B78),\"\")","v":"21-LEB"},{"$f":"IF(AND(#REF!=\"\",D78<>\"\"),\"LEB\",IF(D78<>\"\",1+#REF!,\"\"))","v":{"$error":"#REF!"}},"Información Digital","DIRECCIÓN DE INFRAESTRUCTURA","GESTIÓN DE INFORMACIÓN","CONTIENE INFORMACIÓN DE LOS BENEFICIARIOS DE LOS PROYECTOS","DIRECCIÓN DE INFRAESTRUCTURA","2019-11-28","DIRECCIÓN DE INFRAESTRUCTURA","Portales, Intranet y Extranet","Software","Español","Pública Clasificada",{"$f":"+IF(O78=\"Alta\",0.5,IF(O78=\"Media\",0.3,IF(O78=\"Baja\",0.2,\"\")))","v":0.3},"Media",{"$f":"+IF(#REF!=\"Grave \",0.5,IF(#REF!=\"Importante\",0.3,IF(#REF!=\"Leve\",0.2,\"\")))","v":{"$error":"#REF!"}},"SI","Del artículo 18 de la Ley 1712 de 2014","Para la publicación, se deben ocultar los datos privados de los usuarios beneficiarios de acuerdo con el derecho a la intimidad de que habla el literal a). Del artículo 18 de la Ley 1712 de 2014. y \"...La correspondencia y demás formas de comunicación privada son inviolables…\" Artículo 15 Constitución política de Colombia","Sin reserva","2019-11-28","Permanente"]
[{"$f":"IF(D79<>\"\",VLOOKUP('Activos de información - ICYR'!D79,DATA!$B$2:$C$95,2,)&\"-\"&IF(ISERR(B79),\"LEB\",B79),\"\")","v":"21-LEB"},{"$f":"IF(AND(#REF!=\"\",D79<>\"\"),\"LEB\",IF(D79<>\"\",1+#REF!,\"\"))","v":{"$error":"#REF!"}},"Información Digital","DIRECCIÓN DE INFRAESTRUCTURA","BASE CENTRO CONTACTO AL CIUDADANO DIRINFRA_BASE CAPTURA DE DATOS","CONTIENE INFORMACIÓN DE LA GESTIÓN DE TICKETS DEL CENTRO DE CONTACTO AL CIUDADANO DE LA DIRECCIÓN DE INFRAESTRUCTURA","DIRECCIÓN DE INFRAESTRUCTURA","2020-08-01","DIRECCIÓN DE INFRAESTRUCTURA","Archivos Institucionales - electrónico","Base de datos","Español","Pública Clasificada",{"$f":"+IF(O79=\"Alta\",0.5,IF(O79=\"Media\",0.3,IF(O79=\"Baja\",0.2,\"\")))","v":0.3},"Media",{"$f":"+IF(#REF!=\"Grave \",0.5,IF(#REF!=\"Importante\",0.3,IF(#REF!=\"Leve\",0.2,\"\")))","v":{"$error":"#REF!"}},"SI","Del artículo 18 de la Ley 1712 de 2014","Ley 1712 literal A","Reserva parcial","2020-07-01","ILIMITADA"]
[{"$f":"IF(D80<>\"\",VLOOKUP('Activos de información - ICYR'!D80,DATA!$B$2:$C$95,2,)&\"-\"&IF(ISERR(B80),\"LEB\",B80),\"\")","v":"21-LEB"},{"$f":"IF(AND(#REF!=\"\",D80<>\"\"),\"LEB\",IF(D80<>\"\",1+#REF!,\"\"))","v":{"$error":"#REF!"}},"Información Digital","DIRECCIÓN DE INFRAESTRUCTURA","PROYECTO NACIONAL DE ALTA VELOCIDAD- INTERVENTORIA_PNCAV 2","CONTIENE INFORMACIÓN DE LOS BENEFICARIOS DEL PROYECTO NACIONAL DE ALTA VELOCIDAD","DIRECCIÓN DE INFRAESTRUCTURA","2019-11-28","DIRECCIÓN DE INFRAESTRUCTURA","Archivos Institucionales - electrónico","Base de datos","Español","Pública Clasificada",{"$f":"+IF(O80=\"Alta\",0.5,IF(O80=\"Media\",0.3,IF(O80=\"Baja\",0.2,\"\")))","v":0.3},"Media",{"$f":"+IF(#REF!=\"Grave \",0.5,IF(#REF!=\"Importante\",0.3,IF(#REF!=\"Leve\",0.2,\"\")))","v":{"$error":"#REF!"}},"SI","Del artículo 18 de la Ley 1712 de 2014","Ley 1712 literal A","Reserva parcial","2019-11-28","ILIMITADA"]
[{"$f":"IF(D81<>\"\",VLOOKUP('Activos de información - ICYR'!D81,DATA!$B$2:$C$95,2,)&\"-\"&IF(ISERR(B81),\"LEB\",B81),\"\")","v":"21-LEB"},{"$f":"IF(AND(A80=\"\",D81<>\"\"),\"LEB\",IF(D81<>\"\",1+B80,\"\"))","v":{"$error":"#REF!"}},"Información Digital","DIRECCIÓN DE INFRAESTRUCTURA","PROYECTO NACIONAL DE FIBRA ÓPTICA_OPERADOR_BASE DE  CONTACTOS DE LAS INSTITUCIONES PUBLICAS BENEFICIADAS","CONTIENE INFORMACIÓN DE USUARIOS DE LA INSTITUCIONES PÚBLICAS BENEFICIADAS ","DIRECCIÓN DE INFRAESTRUCTURA","2019-11-28","DIRECCIÓN DE INFRAESTRUCTURA","Archivos Institucionales - electrónico","Base de datos","Español","Pública Clasificada",{"$f":"+IF(O81=\"Alta\",0.5,IF(O81=\"Media\",0.3,IF(O81=\"Baja\",0.2,\"\")))","v":0.3},"Media",{"$f":"+IF(#REF!=\"Grave \",0.5,IF(#REF!=\"Importante\",0.3,IF(#REF!=\"Leve\",0.2,\"\")))","v":{"$error":"#REF!"}},"SI","Del artículo 18 de la Ley 1712 de 2014","Ley 1712 literal A","Reserva parcial","2019-11-28","ILIMITADA"]
[{"$f":"IF(D82<>\"\",VLOOKUP('Activos de información - ICYR'!D82,DATA!$B$2:$C$95,2,)&\"-\"&IF(ISERR(B82),\"LEB\",B82),\"\")","v":"21-LEB"},{"$f":"IF(AND(#REF!=\"\",D82<>\"\"),\"LEB\",IF(D82<>\"\",1+#REF!,\"\"))","v":{"$error":"#REF!"}},"Información Digital","DIRECCIÓN DE INFRAESTRUCTURA","ACCESO UNIVERSAL SOSTENIBLE_OPERADOR_BASE DE USUARIOS DEL SERVICIO WIFI","CONTIENE INORMACIÓN DE LA CANTIDAD DE USUARIOS CONECTADOS A LAS ZONAS DIGITALES","DIRECCIÓN DE INFRAESTRUCTURA","2019-11-28","DIRECCIÓN DE INFRAESTRUCTURA","Archivos Institucionales - electrónico","Base de datos","Español","Pública Clasificada",{"$f":"+IF(O82=\"Alta\",0.5,IF(O82=\"Media\",0.3,IF(O82=\"Baja\",0.2,\"\")))","v":0.3},"Media",{"$f":"+IF(#REF!=\"Grave \",0.5,IF(#REF!=\"Importante\",0.3,IF(#REF!=\"Leve\",0.2,\"\")))","v":{"$error":"#REF!"}},"SI","Del artículo 18 de la Ley 1712 de 2014","Ley 1712 literal A","Reserva parcial","2019-11-28","ILIMITADA"]
[{"$f":"IF(D83<>\"\",VLOOKUP('Activos de información - ICYR'!D83,DATA!$B$2:$C$95,2,)&\"-\"&IF(ISERR(B83),\"LEB\",B83),\"\")","v":"21-LEB"},{"$f":"IF(AND(#REF!=\"\",D83<>\"\"),\"LEB\",IF(D83<>\"\",1+#REF!,\"\"))","v":{"$error":"#REF!"}},"Información Digital","DIRECCIÓN DE INFRAESTRUCTURA","ACCESO UNIVERSAL SOSTENIBLE_INTERVENTORIA_LP_873_MINTIC-2019","CONTIENE INFORMACIÓN CONSOLIDADA DE LA GESTIÓN DE LA INTERVENTORÍA ASOCIADA A LOS BENEFICIARIOS DEL PROYECTO ACCESO UNIVERSAL SOSTENIBLE","DIRECCIÓN DE INFRAESTRUCTURA","2019-11-28","DIRECCIÓN DE INFRAESTRUCTURA","Archivos Institucionales - electrónico","Base de datos","Español","Pública Clasificada",{"$f":"+IF(O83=\"Alta\",0.5,IF(O83=\"Media\",0.3,IF(O83=\"Baja\",0.2,\"\")))","v":0.3},"Media",{"$f":"+IF(#REF!=\"Grave \",0.5,IF(#REF!=\"Importante\",0.3,IF(#REF!=\"Leve\",0.2,\"\")))","v":{"$error":"#REF!"}},"SI","Del artículo 18 de la Ley 1712 de 2014","Ley 1712 literal A","Reserva parcial","2019-11-28","ILIMITADA"]
[{"$f":"IF(D84<>\"\",VLOOKUP('Activos de información - ICYR'!D84,DATA!$B$2:$C$95,2,)&\"-\"&IF(ISERR(B84),\"LEB\",B84),\"\")","v":"21-LEB"},{"$f":"IF(AND(#REF!=\"\",D84<>\"\"),\"LEB\",IF(D84<>\"\",1+#REF!,\"\"))","v":{"$error":"#REF!"}},"Información Digital","DIRECCIÓN DE INFRAESTRUCTURA","FORTALECIMIENTO A LA INFRAESTRUCTURA LOCAL_OPERADOR_BENEFICIARIOS MINTIC","CONTIENE INFORMACIÓN CONSOLIDADA DE LOS BENEFICIARIOS DEL PROYECTO FORTALECIMIENTO A LA INFRAESTRUCTURA LOCAL","DIRECCIÓN DE INFRAESTRUCTURA","2019-11-28","DIRECCIÓN DE INFRAESTRUCTURA","Archivos Institucionales - electrónico","Base de datos","Español","Pública Clasificada",{"$f":"+IF(O84=\"Alta\",0.5,IF(O84=\"Media\",0.3,IF(O84=\"Baja\",0.2,\"\")))","v":0.3},"Media",{"$f":"+IF(#REF!=\"Grave \",0.5,IF(#REF!=\"Importante\",0.3,IF(#REF!=\"Leve\",0.2,\"\")))","v":{"$error":"#REF!"}},"SI","Del artículo 18 de la Ley 1712 de 2014","Ley 1712 literal A","Reserva parcial","2020-08-28","N/A"]
[{"$f":"IF(D85<>\"\",VLOOKUP('Activos de información - ICYR'!D85,DATA!$B$2:$C$95,2,)&\"-\"&IF(ISERR(B85),\"LEB\",B85),\"\")","v":"21-LEB"},{"$f":"IF(AND(A84=\"\",D85<>\"\"),\"LEB\",IF(D85<>\"\",1+B84,\"\"))","v":{"$error":"#REF!"}},"Información Digital","DIRECCIÓN DE INFRAESTRUCTURA","FORTALECIMIENTO A LA INFRAESTRUCTURA LOCAL_OPERADOR_CUNDI_CLIENTES (CARRIERWEB)","CONTIENE INFORMACIÓN REGIÓN CUNDINAMARCA DE LOS BENEFICIARIOS DEL PROYECTO FORTALECIMIENTO A LA INFRAESTRUCTURA LOCAL","DIRECCIÓN DE INFRAESTRUCTURA","2019-11-28","DIRECCIÓN DE INFRAESTRUCTURA","Archivos Institucionales - electrónico","Base de datos","Español","Pública Clasificada",{"$f":"+IF(O85=\"Alta\",0.5,IF(O85=\"Media\",0.3,IF(O85=\"Baja\",0.2,\"\")))","v":0.3},"Media",{"$f":"+IF(#REF!=\"Grave \",0.5,IF(#REF!=\"Importante\",0.3,IF(#REF!=\"Leve\",0.2,\"\")))","v":{"$error":"#REF!"}},"N/A","Del artículo 18 de la Ley 1712 de 2014","Ley 1712 literal A","Reserva parcial","2020-08-28","N/A"]
[{"$f":"IF(D86<>\"\",VLOOKUP('Activos de información - ICYR'!D86,DATA!$B$2:$C$95,2,)&\"-\"&IF(ISERR(B86),\"LEB\",B86),\"\")","v":"21-LEB"},{"$f":"IF(AND(A85=\"\",D86<>\"\"),\"LEB\",IF(D86<>\"\",1+B85,\"\"))","v":{"$error":"#REF!"}},"Información Digital","DIRECCIÓN DE INFRAESTRUCTURA","FORTALECIMIENTO A LA INFRAESTRUCTURA LOCAL_OPERADOR_C.ORIENTE_CLIENTES (CARRIERWEB)","CONTIENE INFORMACIÓN REGIÓNORIENTE DE LOS BENEFICIARIOS DEL PROYECTO FORTALECIMIENTO A LA INFRAESTRUCTURA LOCAL","DIRECCIÓN DE INFRAESTRUCTURA","2019-11-28","DIRECCIÓN DE INFRAESTRUCTURA","Archivos Institucionales - electrónico","Base de datos","Español","Pública Clasificada",{"$f":"+IF(O86=\"Alta\",0.5,IF(O86=\"Media\",0.3,IF(O86=\"Baja\",0.2,\"\")))","v":0.3},"Media",{"$f":"+IF(#REF!=\"Grave \",0.5,IF(#REF!=\"Importante\",0.3,IF(#REF!=\"Leve\",0.2,\"\")))","v":{"$error":"#REF!"}},"N/A","Del artículo 18 de la Ley 1712 de 2014","Ley 1712 literal A","N/A","2020-08-28","N/A"]
[{"$f":"IF(D87<>\"\",VLOOKUP('Activos de información - ICYR'!D87,DATA!$B$2:$C$95,2,)&\"-\"&IF(ISERR(B87),\"LEB\",B87),\"\")","v":"21-LEB"},{"$f":"IF(AND(A86=\"\",D87<>\"\"),\"LEB\",IF(D87<>\"\",1+B86,\"\"))","v":{"$error":"#REF!"}},"Información Digital","DIRECCIÓN DE INFRAESTRUCTURA","FORTALECIMIENTO A LA INFRAESTRUCTURA LOCAL_OPERADOR_GCON_SISOTTSA_SISTEMAGESTION","CONTIENE INFORMACIÓN DE ACCESOS META Y ADICIONALES PROYECTADOS DEL PROYECTO FORTALECIMIENTO A LA INFRAESTRUCTURA LOCAL","DIRECCIÓN DE INFRAESTRUCTURA","2019-11-28","DIRECCIÓN DE INFRAESTRUCTURA","Archivos Institucionales - electrónico","Base de datos","Español","Pública Clasificada",{"$f":"+IF(O87=\"Alta\",0.5,IF(O87=\"Media\",0.3,IF(O87=\"Baja\",0.2,\"\")))","v":0.3},"Media",{"$f":"+IF(#REF!=\"Grave \",0.5,IF(#REF!=\"Importante\",0.3,IF(#REF!=\"Leve\",0.2,\"\")))","v":{"$error":"#REF!"}},"N/A","Del artículo 18 de la Ley 1712 de 2014","Ley 1712 literal A","N/A","2020-08-28","N/A"]
[{"$f":"IF(D88<>\"\",VLOOKUP('Activos de información - ICYR'!D88,DATA!$B$2:$C$95,2,)&\"-\"&IF(ISERR(B88),\"LEB\",B88),\"\")","v":"21-LEB"},{"$f":"IF(AND(A87=\"\",D88<>\"\"),\"LEB\",IF(D88<>\"\",1+B87,\"\"))","v":{"$error":"#REF!"}},"Información Digital","DIRECCIÓN DE INFRAESTRUCTURA","FORTALECIMIENTO A LA INFRAESTRUCTURA LOCAL_INTERVENTORÍA_ENCUESTA CALIDAD DE SERVICIO-VALIDACIÓN DE INSTALACIÓN Y NSU","CONTIENE INFORMACIÓN DESAGREGADA POR MUNICIPO Y DEPARTAMENTO DE LA META Y AVANCE EN INSTALACIONES DEL PROYECTO","DIRECCIÓN DE INFRAESTRUCTURA","2019-11-28","DIRECCIÓN DE INFRAESTRUCTURA","Archivos Institucionales - electrónico","Base de datos","Español","Pública Clasificada",{"$f":"+IF(O88=\"Alta\",0.5,IF(O88=\"Media\",0.3,IF(O88=\"Baja\",0.2,\"\")))","v":0.3},"Media",{"$f":"+IF(#REF!=\"Grave \",0.5,IF(#REF!=\"Importante\",0.3,IF(#REF!=\"Leve\",0.2,\"\")))","v":{"$error":"#REF!"}},"N/A","Del artículo 18 de la Ley 1712 de 2014","Ley 1712 literal A","N/A","2020-08-28","N/A"]
[{"$f":"IF(D89<>\"\",VLOOKUP('Activos de información - ICYR'!D89,DATA!$B$2:$C$95,2,)&\"-\"&IF(ISERR(B89),\"LEB\",B89),\"\")","v":"211-LEB"},{"$f":"IF(AND(#REF!=\"\",D89<>\"\"),\"LEB\",IF(D89<>\"\",1+#REF!,\"\"))","v":{"$error":"#REF!"}},"Información Digital","SUBDIRECCIÓN DE ESTRUCTURACIÓN DE PROYECTOS","MODELO FINANCIERO DE CONCURSO DE MÉRITOS","LOS MODELOS FINANCIEROS CONSTITUYEN EL MARCO DE REFERENCIA RESPECTO DE LAS VARIABLES FINANCIERAS INICIALES DE CADA CONTRATO. LOS MODELOS ELABORADOS POR LA ENTIDAD GOZAN DE RESERVA LEGAL, EN PRIMER LUGAR PORQUE SON PARÁMETROS FINANCIEROS NO ESTABLECIDOS CONTRACTUALMENTE Y ADEMÁS PORQUE DE SU CONFIDENCIALIDAD DEPENDE LA CORRECTA ADJUDICACIÓN DE LOS CONTRATOS Y LA EFICACIA DEL NEGOCIO FINANCIERO.","SUBDIRECCIÓN DE ESTRUCTURACIÓN DE PROYECTOS","2019-08-31","SUBDIRECCIÓN DE ESTRUCTURACIÓN DE PROYECTOS","Documentos de Archivo - electrónicos","PDF","Español","Pública Reservada",{"$f":"+IF(O89=\"Alta\",0.5,IF(O89=\"Media\",0.3,IF(O89=\"Baja\",0.2,\"\")))","v":0.5},"Alta",{"$f":"+IF(#REF!=\"Grave \",0.5,IF(#REF!=\"Importante\",0.3,IF(#REF!=\"Leve\",0.2,\"\")))","v":{"$error":"#REF!"}},"SI","Decreto 1510 de 2013 ","Decreto 1510 de 2013\nLey 1712 de 2014, Arículo 19, Literal h ","Reserva total","2019-08-31","Permanente"]
[{"$f":"IF(D90<>\"\",VLOOKUP('Activos de información - ICYR'!D90,DATA!$B$2:$C$95,2,)&\"-\"&IF(ISERR(B90),\"LEB\",B90),\"\")","v":"22-LEB"},{"$f":"IF(AND(#REF!=\"\",D90<>\"\"),\"LEB\",IF(D90<>\"\",1+#REF!,\"\"))","v":{"$error":"#REF!"}},"Información Digital","DIRECCIÓN DE INDUSTRIA DE COMUNICACIONES","INFORMES DE GESTION","Emisión de informes de la gestión de la Dirección respecto a aspectos particulares de su rol en la entidad","DIRECCIÓN DE INDUSTRIA DE COMUNICACIONES","2018-11-28","SUBDIRECCIÓN PARA LA GESTIÓN DEL TALENTO HUMANO","Documentos de Archivo - electrónicos","PDF","Español","Pública Clasificada",{"$f":"+IF(O90=\"Alta\",0.5,IF(O90=\"Media\",0.3,IF(O90=\"Baja\",0.2,\"\")))","v":0.5},"Alta",{"$f":"+IF(#REF!=\"Grave \",0.5,IF(#REF!=\"Importante\",0.3,IF(#REF!=\"Leve\",0.2,\"\")))","v":{"$error":"#REF!"}},"SI","Ley 1712 de 2014","Ley 1712 de 2015 Articulo 18 literal C","Sin reserva","2018-11-28","Permanente"]
[{"$f":"IF(D91<>\"\",VLOOKUP('Activos de información - ICYR'!D91,DATA!$B$2:$C$95,2,)&\"-\"&IF(ISERR(B91),\"LEB\",B91),\"\")","v":"22-LEB"},{"$f":"IF(AND(#REF!=\"\",D91<>\"\"),\"LEB\",IF(D91<>\"\",1+#REF!,\"\"))","v":{"$error":"#REF!"}},"Información Digital","DIRECCIÓN DE INDUSTRIA DE COMUNICACIONES","PROCESOS DE SELECCIÓN OBJETIVA DEL ESPECTRO RADIOELÉCTRICO EN LAS BANDAS IMT PARA CELULARES","Procesos por medio del cual se otorgan permisos para uso del espectro radioeléctrico en Colombia luego de la validación administrativa y técnica que hace el Ministerio de TIC con el apoyo técnico de la ANE, y demás entidades que tienen que ver con el lanzamiento de estas convocatorias para subastas corrientemente","DIRECCIÓN DE INDUSTRIA DE COMUNICACIONES","2018-11-28","DIRECCIÓN DE INDUSTRIA DE COMUNICACIONES","Documentos de Archivo - electrónicos","Documento de Texto","Español","Pública Clasificada",{"$f":"+IF(O91=\"Alta\",0.5,IF(O91=\"Media\",0.3,IF(O91=\"Baja\",0.2,\"\")))","v":0.5},"Alta",{"$f":"+IF(#REF!=\"Grave \",0.5,IF(#REF!=\"Importante\",0.3,IF(#REF!=\"Leve\",0.2,\"\")))","v":{"$error":"#REF!"}},"SI","ley 1712 de 2014 y 1581 de 2012","Ley 1712 de 2015 Articulo 18 literal C","Sin reserva","2019-01-31","Permanente"]
[{"$f":"IF(D92<>\"\",VLOOKUP('Activos de información - ICYR'!D92,DATA!$B$2:$C$95,2,)&\"-\"&IF(ISERR(B92),\"LEB\",B92),\"\")","v":"22-LEB"},{"$f":"IF(AND(#REF!=\"\",D92<>\"\"),\"LEB\",IF(D92<>\"\",1+#REF!,\"\"))","v":{"$error":"#REF!"}},"Información Física – Digital","DIRECCIÓN DE INDUSTRIA DE COMUNICACIONES","REGISTRO ÚNICO DE TIC","Documentación relativa a los trámites de inscripción e incorporación, modificación o archivos relacionados a la habilitación general bajo el marco del Registro único de TIC","DIRECCIÓN DE INDUSTRIA DE COMUNICACIONES","2011-11-28","DIRECCIÓN DE INDUSTRIA DE COMUNICACIONES","Sistemas de Información corporativos","Base de datos","Español","Pública Clasificada",{"$f":"+IF(O92=\"Alta\",0.5,IF(O92=\"Media\",0.3,IF(O92=\"Baja\",0.2,\"\")))","v":0.5},"Alta",{"$f":"+IF(#REF!=\"Grave \",0.5,IF(#REF!=\"Importante\",0.3,IF(#REF!=\"Leve\",0.2,\"\")))","v":{"$error":"#REF!"}},"SI","DECRETO 103-2015","Ley 1712 de 2015 Articulo 18 literal C","Sin reserva","2018-11-30","Permanente"]
[{"$f":"IF(D93<>\"\",VLOOKUP('Activos de información - ICYR'!D93,DATA!$B$2:$C$95,2,)&\"-\"&IF(ISERR(B93),\"LEB\",B93),\"\")","v":"22-LEB"},{"$f":"IF(AND(#REF!=\"\",D93<>\"\"),\"LEB\",IF(D93<>\"\",1+#REF!,\"\"))","v":{"$error":"#REF!"}},"Información Digital","DIRECCIÓN DE INDUSTRIA DE COMUNICACIONES","LISTADO DE SOLICITUDES DE USUARIO Y CLAVE ISP","Información relacionada a las solicitudes por parte de los ISP - Proveedores del servicio de Internet requiriendo el acceso a las URL para bloqueo de pornogafría infantil","DIRECCIÓN DE INDUSTRIA DE COMUNICACIONES","2013-04-09","DIRECCIÓN DE INDUSTRIA DE COMUNICACIONES","Uso de tecnologías en la nube","XLS","Español","Pública Clasificada",{"$f":"+IF(O93=\"Alta\",0.5,IF(O93=\"Media\",0.3,IF(O93=\"Baja\",0.2,\"\")))","v":0.5},"Alta",{"$f":"+IF(#REF!=\"Grave \",0.5,IF(#REF!=\"Importante\",0.3,IF(#REF!=\"Leve\",0.2,\"\")))","v":{"$error":"#REF!"}},"SI","DECRETO 103-2015","Ley 1712 de 2015 Articulo 18 literal C","Sin reserva","2013-04-09","Permanente"]
[{"$f":"IF(D94<>\"\",VLOOKUP('Activos de información - ICYR'!D94,DATA!$B$2:$C$95,2,)&\"-\"&IF(ISERR(B94),\"LEB\",B94),\"\")","v":"22-LEB"},{"$f":"IF(AND(A93=\"\",D94<>\"\"),\"LEB\",IF(D94<>\"\",1+B93,\"\"))","v":{"$error":"#REF!"}},"Información Digital","DIRECCIÓN DE INDUSTRIA DE COMUNICACIONES","LISTADO OPERADORES SERVICIOS TELEVISIÓN","Información relacionada a aquellos Proveedores de redes y servicios de telecomunicaciones PRST que al momento de su inscripción en el Registro Único de TIC RUTIC señalaron la prestación de algún servicio de televisión y presentaron su decisión de acogimiento","DIRECCIÓN DE INDUSTRIA DE COMUNICACIONES","2019-09-26","DIRECCIÓN DE INDUSTRIA DE COMUNICACIONES","Uso de tecnologías en la nube","XLS","Español","Pública Clasificada",{"$f":"+IF(O94=\"Alta\",0.5,IF(O94=\"Media\",0.3,IF(O94=\"Baja\",0.2,\"\")))","v":0.5},"Alta",{"$f":"+IF(#REF!=\"Grave \",0.5,IF(#REF!=\"Importante\",0.3,IF(#REF!=\"Leve\",0.2,\"\")))","v":{"$error":"#REF!"}},"SI","DECRETO 103-2015","Ley 1712 de 2015 Articulo 18 literal C","Sin reserva","2019-09-26","Permanente"]
[{"$f":"IF(D95<>\"\",VLOOKUP('Activos de información - ICYR'!D95,DATA!$B$2:$C$95,2,)&\"-\"&IF(ISERR(B95),\"LEB\",B95),\"\")","v":"22-LEB"},{"$f":"IF(AND(A94=\"\",D95<>\"\"),\"LEB\",IF(D95<>\"\",1+B94,\"\"))","v":{"$error":"#REF!"}},"Información Física – Digital","DIRECCIÓN DE INDUSTRIA DE COMUNICACIONES","BASE DE DATOS BDU PLUS","Base de datos que contiene información relativa a todos los expedientes de registros, permisos, licencias, concesiones a cargo de la Dirección de Industria de Comunicaciones y sus subdirecciones","DIRECCIÓN DE INDUSTRIA DE COMUNICACIONES","2021-05-14","DIRECCIÓN DE INDUSTRIA DE COMUNICACIONES","Sistemas de Bases de Datos","Base de datos","Español","Pública Clasificada",{"$f":"+IF(O95=\"Alta\",0.5,IF(O95=\"Media\",0.3,IF(O95=\"Baja\",0.2,\"\")))","v":0.5},"Alta",{"$f":"+IF(#REF!=\"Grave \",0.5,IF(#REF!=\"Importante\",0.3,IF(#REF!=\"Leve\",0.2,\"\")))","v":{"$error":"#REF!"}},"SI","DECRETO 103-2015","Ley 1712 de 2015 Articulo 18 literal C","Sin reserva","2021-05-14","Permanente"]
[{"$f":"IF(D96<>\"\",VLOOKUP('Activos de información - ICYR'!D96,DATA!$B$2:$C$95,2,)&\"-\"&IF(ISERR(B96),\"LEB\",B96),\"\")","v":"2201-LEB"},{"$f":"IF(AND(#REF!=\"\",D96<>\"\"),\"LEB\",IF(D96<>\"\",1+#REF!,\"\"))","v":{"$error":"#REF!"}},"Información Física – Digital","GRUPO INTERNO DE TRABAJO DE GESTIÓN DE GARANTÍAS","DERECHOS DE PETICIÓN","Documentación relativa a los PQRSD de garantías presentadas por los Proveedores de Redes y Servcios de Telecomunicaciones ante la Coordinación. Peticiones, quejas, reclamos, sugerencias, denuncias y respuestas a derechos de petición.","GRUPO INTERNO DE TRABAJO DE GESTIÓN DE GARANTÍAS","2018-11-28","GRUPO INTERNO DE TRABAJO DE GRUPOS DE INTERÉS Y GESTIÓN DOCUMENTAL","Documentos de Archivo - físicos/electrónico","Papel","Español","Pública Clasificada",{"$f":"+IF(O96=\"Alta\",0.5,IF(O96=\"Media\",0.3,IF(O96=\"Baja\",0.2,\"\")))","v":0.5},"Alta",{"$f":"+IF(#REF!=\"Grave \",0.5,IF(#REF!=\"Importante\",0.3,IF(#REF!=\"Leve\",0.2,\"\")))","v":{"$error":"#REF!"}},"SI","Ley 1712 de 2014, Artículo 18, Literal a \nLey 1581 de 2012","Ley 1712 de 2014, Artículo 18, Literal a \nLey 1581 de 2012\n","Sin reserva","2018-11-28","Permanente"]
[{"$f":"IF(D97<>\"\",VLOOKUP('Activos de información - ICYR'!D97,DATA!$B$2:$C$95,2,)&\"-\"&IF(ISERR(B97),\"LEB\",B97),\"\")","v":"2201-LEB"},{"$f":"IF(AND(#REF!=\"\",D97<>\"\"),\"LEB\",IF(D97<>\"\",1+#REF!,\"\"))","v":{"$error":"#REF!"}},"Información Física – Digital","GRUPO INTERNO DE TRABAJO DE GESTIÓN DE GARANTÍAS","REGISTROS DE GESTIÓN DE GARANTÍAS","Documentación del trámite de presentación y aprobación de garantías  presentadas por los proveedores de redes y servicios de telecomunicaciones. Comunicaciones oficiales de aprobación de garantías, conceptos, garantías bancarias, informes, pólizas, recibos de caja, testigos documentales / referencias cruzadas.","GRUPO INTERNO DE TRABAJO DE GESTIÓN DE GARANTÍAS","2018-11-28","GRUPO INTERNO DE TRABAJO DE GRUPOS DE INTERÉS Y GESTIÓN DOCUMENTAL","Documentos de Archivo - físicos/electrónico","Papel","Español","Pública Clasificada",{"$f":"+IF(O97=\"Alta\",0.5,IF(O97=\"Media\",0.3,IF(O97=\"Baja\",0.2,\"\")))","v":0.5},"Alta",{"$f":"+IF(#REF!=\"Grave \",0.5,IF(#REF!=\"Importante\",0.3,IF(#REF!=\"Leve\",0.2,\"\")))","v":{"$error":"#REF!"}},"SI","Ley 1712 de 2014, Artículo 18, Literal a \nLey 1581 de 2012","Ley 1712 de 2014, Artículo 18, Literal a \nLey 1581 de 2012","Sin reserva","2018-11-28","Permanente"]
[{"$f":"IF(D98<>\"\",VLOOKUP('Activos de información - ICYR'!D98,DATA!$B$2:$C$95,2,)&\"-\"&IF(ISERR(B98),\"LEB\",B98),\"\")","v":"221-LEB"},{"$f":"IF(AND(#REF!=\"\",D98<>\"\"),\"LEB\",IF(D98<>\"\",1+#REF!,\"\"))","v":{"$error":"#REF!"}},"Información Digital","SUBDIRECCIÓN PARA LA INDUSTRIA DE COMUNICACIONES","Base de datos del BPM Auraportal","Base de datos conteniendo información relativa a RABCA, RUTIC, Registro de Capac. Satelital","SUBDIRECCIÓN PARA LA INDUSTRIA DE COMUNICACIONES","2018-11-28","SUBDIRECCIÓN PARA LA INDUSTRIA DE COMUNICACIONES","Sistemas de Información corporativos","Base de datos","Español","Pública Clasificada",{"$f":"+IF(O98=\"Alta\",0.5,IF(O98=\"Media\",0.3,IF(O98=\"Baja\",0.2,\"\")))","v":0.5},"Alta",{"$f":"+IF(#REF!=\"Grave \",0.5,IF(#REF!=\"Importante\",0.3,IF(#REF!=\"Leve\",0.2,\"\")))","v":{"$error":"#REF!"}},"SI","LEY 1712 DE 2014 art. 18 y sus modificaciones.","LEY 1712 DE 2014 art. 18 y sus modificaciones.","Sin reserva","2020-08-20","Permanente"]
[{"$f":"IF(D99<>\"\",VLOOKUP('Activos de información - ICYR'!D99,DATA!$B$2:$C$95,2,)&\"-\"&IF(ISERR(B99),\"LEB\",B99),\"\")","v":"221-LEB"},{"$f":"IF(AND(A98=\"\",D99<>\"\"),\"LEB\",IF(D99<>\"\",1+B98,\"\"))","v":{"$error":"#REF!"}},"Información Digital","SUBDIRECCIÓN PARA LA INDUSTRIA DE COMUNICACIONES","Base de datos del Sistema de Gestión del Especto Radio Eléctrico (SGE)","Base de datos conteniendo información relativa a los permisos de uso del espectro radioeléctrico","SUBDIRECCIÓN PARA LA INDUSTRIA DE COMUNICACIONES","2018-11-28","SUBDIRECCIÓN PARA LA INDUSTRIA DE COMUNICACIONES","Sistemas de Información corporativos","Base de datos","Español","Pública Clasificada",{"$f":"+IF(O99=\"Alta\",0.5,IF(O99=\"Media\",0.3,IF(O99=\"Baja\",0.2,\"\")))","v":0.5},"Alta",{"$f":"+IF(#REF!=\"Grave \",0.5,IF(#REF!=\"Importante\",0.3,IF(#REF!=\"Leve\",0.2,\"\")))","v":{"$error":"#REF!"}},"SI","LEY 1712 DE 2014 art. 18 y sus modificaciones.","LEY 1712 DE 2014 art. 18 y sus modificaciones.","Sin reserva","2020-08-20","Permanente"]
[{"$f":"IF(D100<>\"\",VLOOKUP('Activos de información - ICYR'!D100,DATA!$B$2:$C$95,2,)&\"-\"&IF(ISERR(B100),\"LEB\",B100),\"\")","v":"221-LEB"},{"$f":"IF(AND(A99=\"\",D100<>\"\"),\"LEB\",IF(D100<>\"\",1+B99,\"\"))","v":{"$error":"#REF!"}},"Información Digital","SUBDIRECCIÓN PARA LA INDUSTRIA DE COMUNICACIONES","Evidencias de controles a riesgos operativos SICOM","Carpeta compartida para almacenar evidencias del cumplimiento de indicadores de gestión o de planes de mejora impuestos por la auditoría o control interno.","SUBDIRECCIÓN PARA LA INDUSTRIA DE COMUNICACIONES","2018-11-28","SUBDIRECCIÓN PARA LA INDUSTRIA DE COMUNICACIONES","Sistemas de Información corporativos","PDF","Español","Pública Clasificada",{"$f":"+IF(O100=\"Alta\",0.5,IF(O100=\"Media\",0.3,IF(O100=\"Baja\",0.2,\"\")))","v":0.5},"Alta",{"$f":"+IF(#REF!=\"Grave \",0.5,IF(#REF!=\"Importante\",0.3,IF(#REF!=\"Leve\",0.2,\"\")))","v":{"$error":"#REF!"}},"SI","LEY 1712 DE 2014 art. 18 y sus modificaciones.","LEY 1712 DE 2014 art. 18 y sus modificaciones.","Sin reserva","2018-11-28","Permanente"]
[{"$f":"IF(D101<>\"\",VLOOKUP('Activos de información - ICYR'!D101,DATA!$B$2:$C$95,2,)&\"-\"&IF(ISERR(B101),\"LEB\",B101),\"\")","v":"221-LEB"},{"$f":"IF(AND(A100=\"\",D101<>\"\"),\"LEB\",IF(D101<>\"\",1+B100,\"\"))","v":{"$error":"#REF!"}},"Información Digital","SUBDIRECCIÓN PARA LA INDUSTRIA DE COMUNICACIONES","Base de datos PLUS (BDU PLUS)","Base de datos conteniendo información relativa a todos los expedientes de registros, permisos, licencias, concesiones a cargo de la SICOM","SUBDIRECCIÓN PARA LA INDUSTRIA DE COMUNICACIONES","2018-11-22","SUBDIRECCIÓN PARA LA INDUSTRIA DE COMUNICACIONES","Sistemas de Información corporativos","Base de datos","Español","Pública Clasificada",{"$f":"+IF(O101=\"Alta\",0.5,IF(O101=\"Media\",0.3,IF(O101=\"Baja\",0.2,\"\")))","v":0.5},"Alta",{"$f":"+IF(#REF!=\"Grave \",0.5,IF(#REF!=\"Importante\",0.3,IF(#REF!=\"Leve\",0.2,\"\")))","v":{"$error":"#REF!"}},"SI","LEY 1712 DE 2014 art. 18 y sus modificaciones.","LEY 1712 DE 2014 art. 18 y sus modificaciones.","Sin reserva","2020-08-20","Permanente"]
[{"$f":"IF(D102<>\"\",VLOOKUP('Activos de información - ICYR'!D102,DATA!$B$2:$C$95,2,)&\"-\"&IF(ISERR(B102),\"LEB\",B102),\"\")","v":"2211-LEB"},{"$f":"IF(AND(#REF!=\"\",D102<>\"\"),\"LEB\",IF(D102<>\"\",1+#REF!,\"\"))","v":{"$error":"#REF!"}},"Información Física – Digital","GRUPO INTERNO DE TRABAJO DE GESTIÓN DE ESPECTRO RADIOELÉCTRICO","PROCESOS DE ASIGNACIÓN DIRECTA DEL ESPECTRO\nRADIOELECTRICO PARA LA ATENCION Y PREVENCION DE\nSITUACIONES DE EMERGENCIA","Acto administrativo a Anexo a Auto a Certificación / Aval de la Policia Nacional en los casos que aplique a Certificado de la Registraduria Nacional del Estado Civil avalando el cargo para el cual fue elegido el representante legal de la entidad en los casos que aplique a Certificado de existencia y representación legal a Citación a notificación a Comunicación oficial a Concepto jurídico a Concepto técnico a Constancia de firmeza de acto administrativo o de ejecutoria a Copia del registro TIC a Cuadro de características técnicas de red a Documento de identificación a Estado de cuenta a Formato técnico básico de solicitud a Formato técnico de descripción de redes cubrimiento a Formato técnico de descripción de redes enlaces a Formato técnico información técnica de equipos cubrimiento o enlaces a Formulario único de recaudo FUR a Liquidación de derechos a Modificatorio al acto admisnistrativo a Notificación de acto administrativo a Poder a Recurso de reposición a Registro único tributario (RUT) a Tarjeta profesional del apoderado a Testigo documental / referencias cruzadas","GRUPO INTERNO DE TRABAJO DE GESTIÓN DE ESPECTRO RADIOELÉCTRICO","2018-11-28","GRUPO INTERNO DE TRABAJO DE GESTIÓN DE ESPECTRO RADIOELÉCTRICO","Documentos de Archivo - físicos/electrónico","PDF","Español","Pública Reservada",{"$f":"+IF(O102=\"Alta\",0.5,IF(O102=\"Media\",0.3,IF(O102=\"Baja\",0.2,\"\")))","v":0.5},"Alta",{"$f":"+IF(#REF!=\"Grave \",0.5,IF(#REF!=\"Importante\",0.3,IF(#REF!=\"Leve\",0.2,\"\")))","v":{"$error":"#REF!"}},"SI","Ley 1712 de 2014 Articulo 19, Literal b","Ley 1712 de 2014 Articulo 19, Literal b","Reserva total","2018-11-28","Permanente"]
[{"$f":"IF(D103<>\"\",VLOOKUP('Activos de información - ICYR'!D103,DATA!$B$2:$C$95,2,)&\"-\"&IF(ISERR(B103),\"LEB\",B103),\"\")","v":"2211-LEB"},{"$f":"IF(AND(A102=\"\",D103<>\"\"),\"LEB\",IF(D103<>\"\",1+B102,\"\"))","v":{"$error":"#REF!"}},"Información Física – Digital","GRUPO INTERNO DE TRABAJO DE GESTIÓN DE ESPECTRO RADIOELÉCTRICO","PROCESOS DE ASIGNACIÓN DIRECTA DEL ESPECTRO RADIOELECTRICO POR\nCONTINUIDAD DEL SERVICIO O PARA PRUEBA DE EQUIPOS","Acto administrativo a Aprobación de garantía / póliza de cumplimiento a Auto a Calculo de contraprestación a Certificado de existencia y representación legal a Citación a notificación a Comunicación oficial a Concepto jurídico a Concepto técnico a Constancia de firmeza de acto administrativo o de ejecutoria a Copia del registro TIC Cuadro de características técnicas de red a Documento de identificación a Anexo 1 a Estado de cuenta a Formato técnico básico de solicitud a Formato técnico de descripción de redes cubrimiento a Formato técnico de descripción de redes enlaces a Formato técnico información técnica de equipos cubrimiento o enlaces a Formulario único de recaudo FUR a Garantía / póliza de cumplimiento a Liquidación de derechos a Modificatorio al acto administrativo a Notificación de acto administrativo a Poder a Recurso de reposición a Registro único tributario (RUT) a Tarjeta profesional del apoderado","GRUPO INTERNO DE TRABAJO DE GESTIÓN DE ESPECTRO RADIOELÉCTRICO","2018-11-28","GRUPO INTERNO DE TRABAJO DE GESTIÓN DE ESPECTRO RADIOELÉCTRICO","Documentos de Archivo - físicos/electrónico","PDF","Español","Pública Clasificada",{"$f":"+IF(O103=\"Alta\",0.5,IF(O103=\"Media\",0.3,IF(O103=\"Baja\",0.2,\"\")))","v":0.5},"Alta",{"$f":"+IF(#REF!=\"Grave \",0.5,IF(#REF!=\"Importante\",0.3,IF(#REF!=\"Leve\",0.2,\"\")))","v":{"$error":"#REF!"}},"SI","Ley 1712 de 2014 Articulo 18","Parte de la información técnica es considerada secreto comercial","Sin reserva","2019-01-02","Permanente"]
[{"$f":"IF(D104<>\"\",VLOOKUP('Activos de información - ICYR'!D104,DATA!$B$2:$C$95,2,)&\"-\"&IF(ISERR(B104),\"LEB\",B104),\"\")","v":"2211-LEB"},{"$f":"IF(AND(A103=\"\",D104<>\"\"),\"LEB\",IF(D104<>\"\",1+B103,\"\"))","v":{"$error":"#REF!"}},"Información Física – Digital","GRUPO INTERNO DE TRABAJO DE GESTIÓN DE ESPECTRO RADIOELÉCTRICO","PROCESOS DE SELECCIÓN OBJETIVA PARA ASIGNACIÓN DE ESPECTRO RADIOELÉCTRICO","Acto administrativo a Anexo a Aprobación de Garantía / Póliza de cumplimiento a Auto a Certificado de existencia y representación legal a Citación a notificación a Comunicaciones a Concepto jurídico a Concepto técnico a Constancia de firmeza de acto administrativo o de ejecutoria a Copia del registro TIC a Cuadro de características técnicas de red a Documento de identificación a Estado de cuenta a Estudio o informe de estudio a Formato técnico básico de solicitud a Formulario único de recaudo FUR a Garantía / póliza de cumplimiento a Informe de gestión a Informe preliminar de evaluación a Informe final de evaluación a Informe final de asignación a Liquidación de derechos a Manifestación de interés en el proceso de selección objetiva a Modificatorio al acto administrativo a Notificación de acto administrativo a Poder a Recurso de reposición a Registro único tributario (RUT) a Tarjeta profesional","GRUPO INTERNO DE TRABAJO DE GESTIÓN DE ESPECTRO RADIOELÉCTRICO","2018-11-28","GRUPO INTERNO DE TRABAJO DE GESTIÓN DE ESPECTRO RADIOELÉCTRICO","Documentos de Archivo - físicos/electrónico","PDF","Español","Pública Clasificada",{"$f":"+IF(O104=\"Alta\",0.5,IF(O104=\"Media\",0.3,IF(O104=\"Baja\",0.2,\"\")))","v":0.5},"Alta",{"$f":"+IF(#REF!=\"Grave \",0.5,IF(#REF!=\"Importante\",0.3,IF(#REF!=\"Leve\",0.2,\"\")))","v":{"$error":"#REF!"}},"SI","Ley 1712 de 2014 Articulo 18","Parte de la información técnica es considerada secreto comercial","Sin reserva","2019-01-02","Permanente"]
[{"$f":"IF(D105<>\"\",VLOOKUP('Activos de información - ICYR'!D105,DATA!$B$2:$C$95,2,)&\"-\"&IF(ISERR(B105),\"LEB\",B105),\"\")","v":"2211-LEB"},{"$f":"IF(AND(A104=\"\",D105<>\"\"),\"LEB\",IF(D105<>\"\",1+B104,\"\"))","v":{"$error":"#REF!"}},"Información Física – Digital","GRUPO INTERNO DE TRABAJO DE GESTIÓN DE ESPECTRO RADIOELÉCTRICO","REGISTROS DE RADIOAFICIONADOS Y RADIOS ITINERANTES","\nAnexos a Licencia de Radioaficionados a Certificado de aptitud de radioaficionado (examén) a Comunicaciones a Copia de la licencia de radioaficionado otorgada en el exterior a Denuncia de pérdida de carné a Documento de identificación a Consignación, o recibo de caja a Foto a Legalización del pago a Oficio de información técnica de expedición del carné a Solicitud / formato básico de solicitud","GRUPO INTERNO DE TRABAJO DE GESTIÓN DE ESPECTRO RADIOELÉCTRICO","2018-11-28","GRUPO INTERNO DE TRABAJO DE GESTIÓN DE ESPECTRO RADIOELÉCTRICO","Sistemas de Información corporativos","PDF","Español","Pública Clasificada",{"$f":"+IF(O105=\"Alta\",0.5,IF(O105=\"Media\",0.3,IF(O105=\"Baja\",0.2,\"\")))","v":0.5},"Alta",{"$f":"+IF(#REF!=\"Grave \",0.5,IF(#REF!=\"Importante\",0.3,IF(#REF!=\"Leve\",0.2,\"\")))","v":{"$error":"#REF!"}},"SI","Ley 1581 de 2012, Ley 1712 de 2014","Las frecuencias de operación no se dan a conocer al público para evitar que les sean interferidas","Sin reserva","2019-01-02","Permanente"]
[{"$f":"IF(D106<>\"\",VLOOKUP('Activos de información - ICYR'!D106,DATA!$B$2:$C$95,2,)&\"-\"&IF(ISERR(B106),\"LEB\",B106),\"\")","v":"2211-LEB"},{"$f":"IF(AND(A105=\"\",D106<>\"\"),\"LEB\",IF(D106<>\"\",1+B105,\"\"))","v":{"$error":"#REF!"}},"Información Física – Digital","GRUPO INTERNO DE TRABAJO DE GESTIÓN DE ESPECTRO RADIOELÉCTRICO","REGISTROS DE ASOCIACIONES DE RADIOAFICIONADOS Y DE\nBANDA CIUDADANA","Acto administrativo a Certificación a Certificado de existencia y representación legal a Comunicaciones a Consignación, o recibo de caja a Copia de estatutos a Descripción de la ubicación de repetidora y datos asociados / Descripción de características técnicas de los equipos y antenas a Documento de identificación a Formato básico de solicitud a Formulario autorización redes repetidora. a Formulario de registro de equipos a Recurso de reposición a Registro de Asociaciones y autorización de operación de estaciones repetidoras a Registro único tributario (RUT)","GRUPO INTERNO DE TRABAJO DE GESTIÓN DE ESPECTRO RADIOELÉCTRICO","2018-11-28","GRUPO INTERNO DE TRABAJO DE GESTIÓN DE ESPECTRO RADIOELÉCTRICO","Documentos de Archivo - físicos/electrónico","PDF","Español","Pública Clasificada",{"$f":"+IF(O106=\"Alta\",0.5,IF(O106=\"Media\",0.3,IF(O106=\"Baja\",0.2,\"\")))","v":0.5},"Alta",{"$f":"+IF(#REF!=\"Grave \",0.5,IF(#REF!=\"Importante\",0.3,IF(#REF!=\"Leve\",0.2,\"\")))","v":{"$error":"#REF!"}},"SI","Ley 1712 de 2014","Las frecuencias de operación no se dan a conocer al público para evitar que les sean interferidas","Sin reserva","2019-01-02","Permanente"]
[{"$f":"IF(D107<>\"\",VLOOKUP('Activos de información - ICYR'!D107,DATA!$B$2:$C$95,2,)&\"-\"&IF(ISERR(B107),\"LEB\",B107),\"\")","v":"2211-LEB"},{"$f":"IF(AND(A106=\"\",D107<>\"\"),\"LEB\",IF(D107<>\"\",1+B106,\"\"))","v":{"$error":"#REF!"}},"Información Física – Digital","GRUPO INTERNO DE TRABAJO DE GESTIÓN DE ESPECTRO RADIOELÉCTRICO","REGISTROS DE PROVEEDOR DE CAPACIDAD SATELITAL","Acta a Acto administrativo a Anexo Técnico de la red satelital a Auto a Autorización del operador satelital a Certificado de existencia y representación legal a Citación a notificación a Comunicaciones a Conceptos a Consignaciones, facturas, recibos de caja a Diagrama de cobertura de los diferentes haces (huellas o trayectorias sobre la tierra) a Constancia de firmeza de acto administrativo o de ejecutoria a Copia del registro TIC a Documento de identificación representante legal o Apoderado a Estado de cuenta a Notificación de acto administrativo a Poder a Recurso de reposición a Registro andino satelital a Registro único tributario (RUT) o equivalente internacional a Tarjeta profesional","GRUPO INTERNO DE TRABAJO DE GESTIÓN DE ESPECTRO RADIOELÉCTRICO","2018-11-28","GRUPO INTERNO DE TRABAJO DE GESTIÓN DE ESPECTRO RADIOELÉCTRICO","Documentos de Archivo - físicos/electrónico","PDF","Español","Pública Clasificada",{"$f":"+IF(O107=\"Alta\",0.5,IF(O107=\"Media\",0.3,IF(O107=\"Baja\",0.2,\"\")))","v":0.5},"Alta",{"$f":"+IF(#REF!=\"Grave \",0.5,IF(#REF!=\"Importante\",0.3,IF(#REF!=\"Leve\",0.2,\"\")))","v":{"$error":"#REF!"}},"SI","Ley 1712 de 2014","Parte de la información técnica es considerada secreto comercial","Sin reserva","2019-01-02","Permanente"]
[{"$f":"IF(D108<>\"\",VLOOKUP('Activos de información - ICYR'!D108,DATA!$B$2:$C$95,2,)&\"-\"&IF(ISERR(B108),\"LEB\",B108),\"\")","v":"222-LEB"},{"$f":"IF(AND(A107=\"\",D108<>\"\"),\"LEB\",IF(D108<>\"\",1+B107,\"\"))","v":{"$error":"#REF!"}},"Información Física – Digital","SUBDIRECCIÓN DE RADIODIFUSIÓN SONORA","Actas de Comité Consultivo de Emisoras Comunitarias","Documentos soporte de la realización de los comités consultivos de radio comunitaria","SUBDIRECCIÓN DE RADIODIFUSIÓN SONORA","2021-05-24","GRUPO INTERNO DE TRABAJO DE GRUPOS DE INTERÉS Y GESTIÓN DOCUMENTAL","Documentos de Archivo - físicos/electrónico","Papel y/o digital","Español","Pública Clasificada",{"$f":"+IF(O108=\"Alta\",0.5,IF(O108=\"Media\",0.3,IF(O108=\"Baja\",0.2,\"\")))","v":0.5},"Alta",{"$f":"+IF(#REF!=\"Grave \",0.5,IF(#REF!=\"Importante\",0.3,IF(#REF!=\"Leve\",0.2,\"\")))","v":{"$error":"#REF!"}},"SI","Ley 1712 de 2014 artículo 18, 19","Ley 1712 de 2014 artículo 18","Sin reserva","2009-07-29","Permanente"]
[{"$f":"IF(D109<>\"\",VLOOKUP('Activos de información - ICYR'!D109,DATA!$B$2:$C$95,2,)&\"-\"&IF(ISERR(B109),\"LEB\",B109),\"\")","v":"222-LEB"},{"$f":"IF(AND(A108=\"\",D109<>\"\"),\"LEB\",IF(D109<>\"\",1+B108,\"\"))","v":{"$error":"#REF!"}},"Información Física – Digital","SUBDIRECCIÓN DE RADIODIFUSIÓN SONORA","Estudios de radiodifusión sonora","Información de estudios relacionados con el servicio de radiodifusión sonora","SUBDIRECCIÓN DE RADIODIFUSIÓN SONORA","2021-05-24","GRUPO INTERNO DE TRABAJO DE GRUPOS DE INTERÉS Y GESTIÓN DOCUMENTAL","Documentos de Archivo - físicos/electrónico","Papel y/o digital","Español","Pública Clasificada",{"$f":"+IF(O109=\"Alta\",0.5,IF(O109=\"Media\",0.3,IF(O109=\"Baja\",0.2,\"\")))","v":0.5},"Alta",{"$f":"+IF(#REF!=\"Grave \",0.5,IF(#REF!=\"Importante\",0.3,IF(#REF!=\"Leve\",0.2,\"\")))","v":{"$error":"#REF!"}},"SI","Ley 1712 de 2014 artículo 18, 19","Ley 1712 de 2014 artículo 18, 19","Sin reserva","2009-07-30","Permanente"]
[{"$f":"IF(D110<>\"\",VLOOKUP('Activos de información - ICYR'!D110,DATA!$B$2:$C$95,2,)&\"-\"&IF(ISERR(B110),\"LEB\",B110),\"\")","v":"222-LEB"},{"$f":"IF(AND(A109=\"\",D110<>\"\"),\"LEB\",IF(D110<>\"\",1+B109,\"\"))","v":{"$error":"#REF!"}},"Información Física – Digital","SUBDIRECCIÓN DE RADIODIFUSIÓN SONORA","Expedientes de emisoras de interés público","Documentación de expedientes de emisoras de interés público","SUBDIRECCIÓN DE RADIODIFUSIÓN SONORA","2021-05-24","GRUPO INTERNO DE TRABAJO DE GRUPOS DE INTERÉS Y GESTIÓN DOCUMENTAL","Documentos de Archivo - físicos/electrónico","Papel y/o digital","Español","Pública Reservada",{"$f":"+IF(O110=\"Alta\",0.5,IF(O110=\"Media\",0.3,IF(O110=\"Baja\",0.2,\"\")))","v":0.5},"Alta",{"$f":"+IF(#REF!=\"Grave \",0.5,IF(#REF!=\"Importante\",0.3,IF(#REF!=\"Leve\",0.2,\"\")))","v":{"$error":"#REF!"}},"SI","Ley 1712 de 2014 artículos 18 y 19","Ley 1712 de 2014 artículos 18 y 19","Reserva parcial","2009-07-30","Permanente"]
[{"$f":"IF(D111<>\"\",VLOOKUP('Activos de información - ICYR'!D111,DATA!$B$2:$C$95,2,)&\"-\"&IF(ISERR(B111),\"LEB\",B111),\"\")","v":"222-LEB"},{"$f":"IF(AND(A110=\"\",D111<>\"\"),\"LEB\",IF(D111<>\"\",1+B110,\"\"))","v":{"$error":"#REF!"}},"Información Física – Digital","SUBDIRECCIÓN DE RADIODIFUSIÓN SONORA","Expedientes de emisoras comerciales","Documentación de expedientes de emisoras comerciales","SUBDIRECCIÓN DE RADIODIFUSIÓN SONORA","2021-05-24","GRUPO INTERNO DE TRABAJO DE GRUPOS DE INTERÉS Y GESTIÓN DOCUMENTAL","Documentos de Archivo - físicos/electrónico","Papel y/o digital","Español","Pública Clasificada",{"$f":"+IF(O111=\"Alta\",0.5,IF(O111=\"Media\",0.3,IF(O111=\"Baja\",0.2,\"\")))","v":0.5},"Alta",{"$f":"+IF(#REF!=\"Grave \",0.5,IF(#REF!=\"Importante\",0.3,IF(#REF!=\"Leve\",0.2,\"\")))","v":{"$error":"#REF!"}},"SI","Ley 1712 de 2014 artículos 18","Ley 1712 de 2014 artículos 18","Sin reserva","2009-07-30","Permanente"]
[{"$f":"IF(D112<>\"\",VLOOKUP('Activos de información - ICYR'!D112,DATA!$B$2:$C$95,2,)&\"-\"&IF(ISERR(B112),\"LEB\",B112),\"\")","v":"222-LEB"},{"$f":"IF(AND(A111=\"\",D112<>\"\"),\"LEB\",IF(D112<>\"\",1+B111,\"\"))","v":{"$error":"#REF!"}},"Información Física – Digital","SUBDIRECCIÓN DE RADIODIFUSIÓN SONORA","Expedientes de emisoras comunitarias","Documentación de expedientes de emisoras comunitarias","SUBDIRECCIÓN DE RADIODIFUSIÓN SONORA","2021-05-24","GRUPO INTERNO DE TRABAJO DE GRUPOS DE INTERÉS Y GESTIÓN DOCUMENTAL","Documentos de Archivo - físicos/electrónico","Papel y/o digital","Español","Pública Clasificada",{"$f":"+IF(O112=\"Alta\",0.5,IF(O112=\"Media\",0.3,IF(O112=\"Baja\",0.2,\"\")))","v":0.5},"Alta",{"$f":"+IF(#REF!=\"Grave \",0.5,IF(#REF!=\"Importante\",0.3,IF(#REF!=\"Leve\",0.2,\"\")))","v":{"$error":"#REF!"}},"SI","Ley 1712 de 2014 artículo 18","Ley 1712 de 2014 artículo 18","Sin reserva","2009-07-30","Permanente"]
[{"$f":"IF(D113<>\"\",VLOOKUP('Activos de información - ICYR'!D113,DATA!$B$2:$C$95,2,)&\"-\"&IF(ISERR(B113),\"LEB\",B113),\"\")","v":"222-LEB"},{"$f":"IF(AND(A112=\"\",D113<>\"\"),\"LEB\",IF(D113<>\"\",1+B112,\"\"))","v":{"$error":"#REF!"}},"Información Física – Digital","SUBDIRECCIÓN DE RADIODIFUSIÓN SONORA","Expedientes de cadenas radiales","Documentación de expedientes de cadenas radiales","SUBDIRECCIÓN DE RADIODIFUSIÓN SONORA","2021-05-24","GRUPO INTERNO DE TRABAJO DE GRUPOS DE INTERÉS Y GESTIÓN DOCUMENTAL","Documentos de Archivo - físicos/electrónico","Papel y/o digital","Español","Pública Clasificada",{"$f":"+IF(O113=\"Alta\",0.5,IF(O113=\"Media\",0.3,IF(O113=\"Baja\",0.2,\"\")))","v":0.5},"Alta",{"$f":"+IF(#REF!=\"Grave \",0.5,IF(#REF!=\"Importante\",0.3,IF(#REF!=\"Leve\",0.2,\"\")))","v":{"$error":"#REF!"}},"SI","Ley 1712 de 2014 artículo 18","Ley 1712 de 2014 artículo 18","Sin reserva","2009-07-30","Permanente"]
[{"$f":"IF(D114<>\"\",VLOOKUP('Activos de información - ICYR'!D114,DATA!$B$2:$C$95,2,)&\"-\"&IF(ISERR(B114),\"LEB\",B114),\"\")","v":"222-LEB"},{"$f":"IF(AND(A113=\"\",D114<>\"\"),\"LEB\",IF(D114<>\"\",1+B113,\"\"))","v":{"$error":"#REF!"}},"Información Física – Digital","SUBDIRECCIÓN DE RADIODIFUSIÓN SONORA","Expedientes de Transmóviles","Documentación de expedientes de Transmóviles","SUBDIRECCIÓN DE RADIODIFUSIÓN SONORA","2021-05-24","GRUPO INTERNO DE TRABAJO DE GRUPOS DE INTERÉS Y GESTIÓN DOCUMENTAL","Documentos de Archivo - físicos/electrónico","Papel y/o digital","Español","Pública Clasificada",{"$f":"+IF(O114=\"Alta\",0.5,IF(O114=\"Media\",0.3,IF(O114=\"Baja\",0.2,\"\")))","v":0.5},"Alta",{"$f":"+IF(#REF!=\"Grave \",0.5,IF(#REF!=\"Importante\",0.3,IF(#REF!=\"Leve\",0.2,\"\")))","v":{"$error":"#REF!"}},"SI","Ley 1712 de 2014 artículo 18","Ley 1712 de 2014 artículo 18","Sin reserva","2009-07-30","Permanente"]
[{"$f":"IF(D115<>\"\",VLOOKUP('Activos de información - ICYR'!D115,DATA!$B$2:$C$95,2,)&\"-\"&IF(ISERR(B115),\"LEB\",B115),\"\")","v":"222-LEB"},{"$f":"IF(AND(#REF!=\"\",D115<>\"\"),\"LEB\",IF(D115<>\"\",1+#REF!,\"\"))","v":{"$error":"#REF!"}},"Información Física – Digital","SUBDIRECCIÓN DE RADIODIFUSIÓN SONORA","Política y Planes de Radiodifusión Sonora","Documentos relacionados con la Política nacional de radiodifusión sonora","SUBDIRECCIÓN DE RADIODIFUSIÓN SONORA","2021-05-24","GRUPO INTERNO DE TRABAJO DE GRUPOS DE INTERÉS Y GESTIÓN DOCUMENTAL","Documentos de Archivo - físicos/electrónico","Papel y/o digital","Español","Pública Clasificada",{"$f":"+IF(O115=\"Alta\",0.5,IF(O115=\"Media\",0.3,IF(O115=\"Baja\",0.2,\"\")))","v":0.5},"Alta",{"$f":"+IF(#REF!=\"Grave \",0.5,IF(#REF!=\"Importante\",0.3,IF(#REF!=\"Leve\",0.2,\"\")))","v":{"$error":"#REF!"}},"SI","Ley 1712 de 2014","Ley 1712 de 2014 artículo 18","Sin reserva","2009-07-30","Permanente"]
[{"$f":"IF(D116<>\"\",VLOOKUP('Activos de información - ICYR'!D116,DATA!$B$2:$C$95,2,)&\"-\"&IF(ISERR(B116),\"LEB\",B116),\"\")","v":"222-LEB"},{"$f":"IF(AND(A115=\"\",D116<>\"\"),\"LEB\",IF(D116<>\"\",1+B115,\"\"))","v":{"$error":"#REF!"}},"Información Física – Digital","SUBDIRECCIÓN DE RADIODIFUSIÓN SONORA","Procesos de selección objetiva Radiodifusión Sonora","Documentos relacionados con los procesos de selección objetiva de radiodifusión sonora","SUBDIRECCIÓN DE RADIODIFUSIÓN SONORA","2021-05-24","GRUPO INTERNO DE TRABAJO DE GRUPOS DE INTERÉS Y GESTIÓN DOCUMENTAL","Documentos de Archivo - físicos/electrónico","Papel y/o digital","Español","Pública Clasificada",{"$f":"+IF(O116=\"Alta\",0.5,IF(O116=\"Media\",0.3,IF(O116=\"Baja\",0.2,\"\")))","v":0.5},"Alta",{"$f":"+IF(#REF!=\"Grave \",0.5,IF(#REF!=\"Importante\",0.3,IF(#REF!=\"Leve\",0.2,\"\")))","v":{"$error":"#REF!"}},"SI","Ley 1712 de 2014","Ley 1712 de 2014 artículo 18","Sin reserva","2009-07-30","Permanente"]
[{"$f":"IF(D117<>\"\",VLOOKUP('Activos de información - ICYR'!D117,DATA!$B$2:$C$95,2,)&\"-\"&IF(ISERR(B117),\"LEB\",B117),\"\")","v":"222-LEB"},{"$f":"IF(AND(#REF!=\"\",D117<>\"\"),\"LEB\",IF(D117<>\"\",1+#REF!,\"\"))","v":{"$error":"#REF!"}},"Información Digital","SUBDIRECCIÓN DE RADIODIFUSIÓN SONORA","Base de datos de Manifestaciones de Interés en emisoras comunitarias o comerciales","Registros de datos de quienes generan manifestación de interés en obtener licencia para operar emisoras comunitarias o comerciales","SUBDIRECCIÓN DE RADIODIFUSIÓN SONORA","2020-05-19","OFICINA DE TECNOLOGÍAS DE LA INFORMACIÓN","Sistemas de Bases de Datos","Base de datos","Español","Pública Clasificada",{"$f":"+IF(O117=\"Alta\",0.5,IF(O117=\"Media\",0.3,IF(O117=\"Baja\",0.2,\"\")))","v":0.5},"Alta",{"$f":"+IF(#REF!=\"Grave \",0.5,IF(#REF!=\"Importante\",0.3,IF(#REF!=\"Leve\",0.2,\"\")))","v":{"$error":"#REF!"}},"SI","Ley 1712 de 2014 artículos 18","Ley 1712 de 2014 artículos 18","Sin reserva","2014-03-06","Permanente"]
[{"$f":"IF(D118<>\"\",VLOOKUP('Activos de información - ICYR'!D118,DATA!$B$2:$C$95,2,)&\"-\"&IF(ISERR(B118),\"LEB\",B118),\"\")","v":"222-LEB"},{"$f":"IF(AND(A117=\"\",D118<>\"\"),\"LEB\",IF(D118<>\"\",1+B117,\"\"))","v":{"$error":"#REF!"}},"Información Digital","SUBDIRECCIÓN DE RADIODIFUSIÓN SONORA","Base de datos de información del Registro TIC del Servicio de Radiodifusión Sonora","Información asociada al registro de TIC de los concesionarios del servicio de radiodifusión sonora","SUBDIRECCIÓN DE RADIODIFUSIÓN SONORA","2020-01-01","OFICINA DE TECNOLOGÍAS DE LA INFORMACIÓN","Sistemas de Bases de Datos","Base de datos","Español","Pública Reservada",{"$f":"+IF(O118=\"Alta\",0.5,IF(O118=\"Media\",0.3,IF(O118=\"Baja\",0.2,\"\")))","v":0.5},"Alta",{"$f":"+IF(#REF!=\"Grave \",0.5,IF(#REF!=\"Importante\",0.3,IF(#REF!=\"Leve\",0.2,\"\")))","v":{"$error":"#REF!"}},"SI","Ley 1712 de 2014 artículos 18,19","Ley 1712 de 2014 artículos 18,19","Reserva parcial","2009-07-30","Permanente"]
[{"$f":"IF(D119<>\"\",VLOOKUP('Activos de información - ICYR'!D119,DATA!$B$2:$C$95,2,)&\"-\"&IF(ISERR(B119),\"LEB\",B119),\"\")","v":"222-LEB"},{"$f":"IF(AND(A118=\"\",D119<>\"\"),\"LEB\",IF(D119<>\"\",1+B118,\"\"))","v":{"$error":"#REF!"}},"Información Digital","SUBDIRECCIÓN DE RADIODIFUSIÓN SONORA","Base de datos de información Administrativa de expedientes de concesiones del servicio de radiodifusión sonora (PLUS)","Información administrativa (Actos Administrativos, contactos) de los expedientes de concesionarios del servicio de radiodifusión sonora","SUBDIRECCIÓN DE RADIODIFUSIÓN SONORA","2020-01-01","OFICINA DE TECNOLOGÍAS DE LA INFORMACIÓN","Sistemas de Bases de Datos","Base de datos","Español","Pública Reservada",{"$f":"+IF(O119=\"Alta\",0.5,IF(O119=\"Media\",0.3,IF(O119=\"Baja\",0.2,\"\")))","v":0.5},"Alta",{"$f":"+IF(#REF!=\"Grave \",0.5,IF(#REF!=\"Importante\",0.3,IF(#REF!=\"Leve\",0.2,\"\")))","v":{"$error":"#REF!"}},"SI","Ley 1712 de 2014 artículos 18,19","Ley 1712 de 2014 artículos 18,19","Reserva parcial","2009-07-30","Permanente"]
[{"$f":"IF(D120<>\"\",VLOOKUP('Activos de información - ICYR'!D120,DATA!$B$2:$C$95,2,)&\"-\"&IF(ISERR(B120),\"LEB\",B120),\"\")","v":"222-LEB"},{"$f":"IF(AND(A119=\"\",D120<>\"\"),\"LEB\",IF(D120<>\"\",1+B119,\"\"))","v":{"$error":"#REF!"}},"Información Digital","SUBDIRECCIÓN DE RADIODIFUSIÓN SONORA","Base de datos de Información técnica de concesiones (SGE)","Información técnica de los expedientes de concesionarios del servicio de radiodifusión sonora","SUBDIRECCIÓN DE RADIODIFUSIÓN SONORA","2020-01-01","OFICINA DE TECNOLOGÍAS DE LA INFORMACIÓN","Sistemas de Bases de Datos","Base de datos","Español","Pública Reservada",{"$f":"+IF(O120=\"Alta\",0.5,IF(O120=\"Media\",0.3,IF(O120=\"Baja\",0.2,\"\")))","v":0.5},"Alta",{"$f":"+IF(#REF!=\"Grave \",0.5,IF(#REF!=\"Importante\",0.3,IF(#REF!=\"Leve\",0.2,\"\")))","v":{"$error":"#REF!"}},"SI","Ley 1712 de 2014 artículos 18,19","Ley 1712 de 2014 artículos 18,19","Reserva parcial","2009-07-30","Permanente"]
[{"$f":"IF(D121<>\"\",VLOOKUP('Activos de información - ICYR'!D121,DATA!$B$2:$C$95,2,)&\"-\"&IF(ISERR(B121),\"LEB\",B121),\"\")","v":"223-LEB"},{"$f":"IF(AND(#REF!=\"\",D121<>\"\"),\"LEB\",IF(D121<>\"\",1+#REF!,\"\"))","v":{"$error":"#REF!"}},"Información Física – Digital","SUBDIRECCIÓN DE ASUNTOS POSTALES","RESOLUCIONES DE HABILITACIONES DE SERVICIOS POSTALES","CONTIENE INFORMACIÓN DE LAS SOLICITUDES REALIZADAS POR LOS OPERADORES ASI COMO DE LA INCORPORACION AL REGISTRO POSTAL","SUBDIRECCIÓN DE ASUNTOS POSTALES","2018-11-28","GRUPO INTERNO DE TRABAJO DE GRUPOS DE INTERÉS Y GESTIÓN DOCUMENTAL","Archivos Institucionales - físicos","Papel","Español","Pública Reservada",{"$f":"+IF(O121=\"Alta\",0.5,IF(O121=\"Media\",0.3,IF(O121=\"Baja\",0.2,\"\")))","v":0.5},"Alta",{"$f":"+IF(#REF!=\"Grave \",0.5,IF(#REF!=\"Importante\",0.3,IF(#REF!=\"Leve\",0.2,\"\")))","v":{"$error":"#REF!"}},"SI","LEY 1369 DE 2009\nDECRETO 867 DEL 2010","Ley 1712 de 2015 Articulo 18 literal C","Reserva parcial","2018-11-28","Permanente"]
[{"$f":"IF(D122<>\"\",VLOOKUP('Activos de información - ICYR'!D122,DATA!$B$2:$C$95,2,)&\"-\"&IF(ISERR(B122),\"LEB\",B122),\"\")","v":"223-LEB"},{"$f":"IF(AND(A121=\"\",D122<>\"\"),\"LEB\",IF(D122<>\"\",1+B121,\"\"))","v":{"$error":"#REF!"}},"Información Física – Digital","SUBDIRECCIÓN DE ASUNTOS POSTALES","RESOLUCIONES DE A HABILITACION DE LOS OPERADORES POSTALES DE PAGO","CONTIENE INFORMACION REALIZADAS POR LOS OPERADORES POSTALES DE PAGO , ASÍ COMO LOS ACTOS ADMINISTRATIVOS DE OTORGAMIENTO, PRORROGA, TERMINACIONES, AUTO DE ARCHIVO ENTRE OTROS","SUBDIRECCIÓN DE ASUNTOS POSTALES","2018-11-28","GRUPO INTERNO DE TRABAJO DE GRUPOS DE INTERÉS Y GESTIÓN DOCUMENTAL","Archivos Institucionales - físicos","Papel","Español","Pública Reservada",{"$f":"+IF(O122=\"Alta\",0.5,IF(O122=\"Media\",0.3,IF(O122=\"Baja\",0.2,\"\")))","v":0.5},"Alta",{"$f":"+IF(#REF!=\"Grave \",0.5,IF(#REF!=\"Importante\",0.3,IF(#REF!=\"Leve\",0.2,\"\")))","v":{"$error":"#REF!"}},"SI","LEY 1369 DE 2009\nDECRETO 867 DEL 2010","Ley 1712 de 2015 Articulo 18 literal C","Reserva parcial","2018-11-28","Permanente"]
[{"$f":"IF(D123<>\"\",VLOOKUP('Activos de información - ICYR'!D123,DATA!$B$2:$C$95,2,)&\"-\"&IF(ISERR(B123),\"LEB\",B123),\"\")","v":"223-LEB"},{"$f":"IF(AND(A122=\"\",D123<>\"\"),\"LEB\",IF(D123<>\"\",1+B122,\"\"))","v":{"$error":"#REF!"}},"Información Física – Digital","SUBDIRECCIÓN DE ASUNTOS POSTALES","RESOLUCIONES DE HABILITACION DE SERVICIOS POSTALES","CONTIENE LA INFORMACION REALIZADAS POR LOS OPERADORES POSTALES DE MENSAJERIA EXPRESA","SUBDIRECCIÓN DE ASUNTOS POSTALES","2018-11-28","GRUPO INTERNO DE TRABAJO DE GRUPOS DE INTERÉS Y GESTIÓN DOCUMENTAL","Documentos de Archivo - físicos","Papel","Español","Pública Reservada",{"$f":"+IF(O123=\"Alta\",0.5,IF(O123=\"Media\",0.3,IF(O123=\"Baja\",0.2,\"\")))","v":0.5},"Alta",{"$f":"+IF(#REF!=\"Grave \",0.5,IF(#REF!=\"Importante\",0.3,IF(#REF!=\"Leve\",0.2,\"\")))","v":{"$error":"#REF!"}},"SI","DECRETO 1064 DE 2020 Articulo 20 Literal 7","Ley 1712 de 2015 Articulo 18 literal C","Reserva parcial","2018-11-28","Permanente"]
[{"$f":"IF(D124<>\"\",VLOOKUP('Activos de información - ICYR'!D124,DATA!$B$2:$C$95,2,)&\"-\"&IF(ISERR(B124),\"LEB\",B124),\"\")","v":"23-LEB"},{"$f":"IF(AND(#REF!=\"\",D124<>\"\"),\"LEB\",IF(D124<>\"\",1+#REF!,\"\"))","v":{"$error":"#REF!"}},"Información Física – Digital","DIRECCIÓN DE VIGILANCIA INSPECCIÓN Y CONTROL","PROCESOS ADMINISTRATIVOS","Corresponde a los procesos que adelanta de la Dirección de Vigilancia, Inspección y Control de procesos administrativos sancionatorios en contra de los prestadores de redes y servicios de comunicaciones relacionados con posibles incumplimientos a la normatividad legal vigente.Procesos administrativos con solicitud de reserva por parte del vigilado","DIRECCIÓN DE VIGILANCIA, INSPECCIÓN Y CONTROL","2018-11-28","DIRECCIÓN DE VIGILANCIA, INSPECCIÓN Y CONTROL","Documentos de Archivo - físicos/electrónico","Papel","Español","Pública Reservada",{"$f":"+IF(O124=\"Alta\",0.5,IF(O124=\"Media\",0.3,IF(O124=\"Baja\",0.2,\"\")))","v":0.5},"Alta",{"$f":"+IF(#REF!=\"Grave \",0.5,IF(#REF!=\"Importante\",0.3,IF(#REF!=\"Leve\",0.2,\"\")))","v":{"$error":"#REF!"}},"SI","Ley 1712 de 2014, Artículo 19, Literal d","Ley 1712 de 2014, Artículo 19, Literal d","Reserva parcial","2018-11-28","Permanente"]
[{"$f":"IF(D125<>\"\",VLOOKUP('Activos de información - ICYR'!D125,DATA!$B$2:$C$95,2,)&\"-\"&IF(ISERR(B125),\"LEB\",B125),\"\")","v":"2321-LEB"},{"$f":"IF(AND(#REF!=\"\",D125<>\"\"),\"LEB\",IF(D125<>\"\",1+#REF!,\"\"))","v":{"$error":"#REF!"}},"Información Física – Digital","GRUPO INTERNO DE TRABAJO DE PROCESOS ADMINISTRATIVOS SANCIONATORIOS","PROCESOS ADMINISTRATIVOS RESERVADOS","Corresponde a los procesos que adelanta el GIT de procesos administrativos sancionatorios en contra de los prestadores de redes y servicios de comunicaciones relacionados con posibles incumplimientos a la normatividad legal vigente.Procesos administrativos con solicitud de reserva por parte del vigilado.","GRUPO INTERNO DE TRABAJO DE PROCESOS ADMINISTRATIVOS SANCIONATORIOS","2018-11-28","GRUPO INTERNO DE TRABAJO DE PROCESOS ADMINISTRATIVOS SANCIONATORIOS","Documentos de Archivo - físicos/electrónico","Papel","Español","Pública Reservada",{"$f":"+IF(O125=\"Alta\",0.5,IF(O125=\"Media\",0.3,IF(O125=\"Baja\",0.2,\"\")))","v":0.5},"Alta",{"$f":"+IF(#REF!=\"Grave \",0.5,IF(#REF!=\"Importante\",0.3,IF(#REF!=\"Leve\",0.2,\"\")))","v":{"$error":"#REF!"}},"SI","Ley 1712 de 2014, Artículo 19, Literal d","Ley 1712 de 2014, Artículo 19, Literal d","Reserva parcial","2018-11-28","Permanente"]
[{"$f":"IF(D126<>\"\",VLOOKUP('Activos de información - ICYR'!D126,DATA!$B$2:$C$95,2,)&\"-\"&IF(ISERR(B126),\"LEB\",B126),\"\")","v":"232-LEB"},{"$f":"IF(AND(#REF!=\"\",D126<>\"\"),\"LEB\",IF(D126<>\"\",1+#REF!,\"\"))","v":{"$error":"#REF!"}},"Información Física – Digital","SUBDIRECCIÓN DE INVESTIGACIONES ADMINISTRATIVAS","PROCESOS ADMINISTRATIVOS DE INVESTIGACIONES ADMINISTRATIVAS RESERVADOS","Corresponde a las investigaciones que  adelanta la subdirección investigaciones administrativas en contra de los prestadores de redes y servicios de comunicaciones relacionados con posibles incumplimientos a la normatividad legal vigente. Procesos administrativos con solicitud de reserva por parte del vigilado","SUBDIRECCIÓN INVESTIGACIÓNES ADMINISTRATIVAS","2018-11-28","SUBDIRECCIÓNES INVESTIGACIÓNES ADMINISTRATIVAS ","Documentos de Archivo - físicos/electrónico","Papel","Español","Pública Reservada",{"$f":"+IF(O126=\"Alta\",0.5,IF(O126=\"Media\",0.3,IF(O126=\"Baja\",0.2,\"\")))","v":0.5},"Alta",{"$f":"+IF(#REF!=\"Grave \",0.5,IF(#REF!=\"Importante\",0.3,IF(#REF!=\"Leve\",0.2,\"\")))","v":{"$error":"#REF!"}},"SI","Ley 1712 de 2014, Artículo 19, Literal d","Ley 1712 de 2014, Artículo 19, Literal d","Reserva parcial","2018-11-28","Permanente"]
[{"$f":"IF(D127<>\"\",VLOOKUP('Activos de información - ICYR'!D127,DATA!$B$2:$C$95,2,)&\"-\"&IF(ISERR(B127),\"LEB\",B127),\"\")","v":"23-LEB"},{"$f":"IF(AND(#REF!=\"\",D127<>\"\"),\"LEB\",IF(D127<>\"\",1+#REF!,\"\"))","v":{"$error":"#REF!"}},"Información Digital","DIRECCIÓN DE VIGILANCIA INSPECCIÓN Y CONTROL","Base de Datos Transaccional  de Giros Postales","Recepción de Giros Postales-Pago de Producción","DIRECCIÓN DE VIGILANCIA, INSPECCIÓN Y CONTROL","2018-11-28","DIRECCIÓN DE VIGILANCIA, INSPECCIÓN Y CONTROL","Uso de tecnologías en la nube","Base de datos","Español","Pública Reservada",{"$f":"+IF(O127=\"Alta\",0.5,IF(O127=\"Media\",0.3,IF(O127=\"Baja\",0.2,\"\")))","v":0.5},"Alta",{"$f":"+IF(#REF!=\"Grave \",0.5,IF(#REF!=\"Importante\",0.3,IF(#REF!=\"Leve\",0.2,\"\")))","v":{"$error":"#REF!"}},"SI","Ley 1712 de 2014 Art. 19 Inciso D; Ley 1581 de 2012, Art 17","Ley 1712 de 2014 Art. 19 Inciso D.\nResolución 924 de 2020. Por la cual se actualiza la política de tratamiento de datos personales del Ministerio/Fondo Único de Tecnologías de la Información y las\nComunicaciones","Reserva parcial","2021-11-30","15 Años"]
[{"$f":"IF(D128<>\"\",VLOOKUP('Activos de información - ICYR'!D128,DATA!$B$2:$C$95,2,)&\"-\"&IF(ISERR(B128),\"LEB\",B128),\"\")","v":"31-LEB"},{"$f":"IF(AND(#REF!=\"\",D128<>\"\"),\"LEB\",IF(D128<>\"\",1+#REF!,\"\"))","v":{"$error":"#REF!"}},"Información Física – Digital","DIRECCIÓN DE APROPIACIÓN DE TECNOLOGÍAS DE LA INFORMACIÓN Y LAS COMUNICACIONES","Bases de datos del número de beneficiarios de los proyectos de la Dirección de Apropiación TIC\n(Con Sentidos Tic)","Bases de datos del número de beneficiarios de los proyectos de la Dirección de Apropiación TIC\n(Con Sentidos Tic)","DIRECCIÓN DE APROPIACIÓN DE TECNOLOGÍAS DE LA INFORMACIÓN Y LAS COMUNICACIONES","2018-11-28","DIRECCIÓN DE APROPIACIÓN DE TECNOLOGÍAS DE LA INFORMACIÓN Y LAS COMUNICACIONES","Documentos de Archivo - electrónicos","Base de datos","Español","Pública Clasificada",{"$f":"+IF(O128=\"Alta\",0.5,IF(O128=\"Media\",0.3,IF(O128=\"Baja\",0.2,\"\")))","v":0.5},"Alta",{"$f":"+IF(#REF!=\"Grave \",0.5,IF(#REF!=\"Importante\",0.3,IF(#REF!=\"Leve\",0.2,\"\")))","v":{"$error":"#REF!"}},"SI","Ley 1581 de 2012","Ley 1272 de 2014, Art 18","Sin reserva","2020-07-23","Permanente"]
[{"$f":"IF(D129<>\"\",VLOOKUP('Activos de información - ICYR'!D129,DATA!$B$2:$C$95,2,)&\"-\"&IF(ISERR(B129),\"LEB\",B129),\"\")","v":"3101-LEB"},{"$f":"IF(AND(A128=\"\",D129<>\"\"),\"LEB\",IF(D129<>\"\",1+B128,\"\"))","v":{"$error":"#REF!"}},"Información Física – Digital","GRUPO INTERNO DE TRABAJO DE INCLUSIÓN TIC PARA PERSONAS CON DISCAPACIDAD","Bases de datos del número de beneficiarios de los proyectos de la Dirección de Apropiación TIC (Formación a PCD - Convertic)","Bases de datos del número de beneficiarios de los proyectos de la Dirección de Apropiación TIC (Formación a PCD)","GRUPO INTERNO DE TRABAJO DE INCLUSIÓN TIC PARA PERSONAS CON DISCAPACIDAD","2020-07-23","GRUPO INTERNO DE TRABAJO DE INCLUSIÓN TIC PARA PERSONAS CON DISCAPACIDAD","Documentos de Archivo - electrónicos","Base de datos","Español","Pública Reservada",{"$f":"+IF(O129=\"Alta\",0.5,IF(O129=\"Media\",0.3,IF(O129=\"Baja\",0.2,\"\")))","v":0.5},"Alta",{"$f":"+IF(#REF!=\"Grave \",0.5,IF(#REF!=\"Importante\",0.3,IF(#REF!=\"Leve\",0.2,\"\")))","v":{"$error":"#REF!"}},"Si","Ley 1581 de 2012","Ley 1272 de 2014, Art 19","Parcial","2020-07-23","Permanente"]
[{"$f":"IF(D130<>\"\",VLOOKUP('Activos de información - ICYR'!D130,DATA!$B$2:$C$95,2,)&\"-\"&IF(ISERR(B130),\"LEB\",B130),\"\")","v":"3101-LEB"},{"$f":"IF(AND(A129=\"\",D130<>\"\"),\"LEB\",IF(D130<>\"\",1+B129,\"\"))","v":{"$error":"#REF!"}},"Información Física – Digital","GRUPO INTERNO DE TRABAJO DE INCLUSIÓN TIC PARA PERSONAS CON DISCAPACIDAD","Bases de datos del número de beneficiarios de los proyectos de la Dirección de Apropiación TIC (Smartic incluyente) ","Bases de datos del número de beneficiarios de los proyectos de la Dirección de Apropiación TIC (Smartic incluyente) ","GRUPO INTERNO DE TRABAJO DE INCLUSIÓN TIC PARA PERSONAS CON DISCAPACIDAD","2020-07-23","GRUPO INTERNO DE TRABAJO DE INCLUSIÓN TIC PARA PERSONAS CON DISCAPACIDAD","Documentos de Archivo - electrónicos","Base de datos","Español","Pública Reservada",{"$f":"+IF(O130=\"Alta\",0.5,IF(O130=\"Media\",0.3,IF(O130=\"Baja\",0.2,\"\")))","v":0.5},"Alta",{"$f":"+IF(#REF!=\"Grave \",0.5,IF(#REF!=\"Importante\",0.3,IF(#REF!=\"Leve\",0.2,\"\")))","v":{"$error":"#REF!"}},"Si","Ley 1581 de 2013","Ley 1272 de 2014, Art 20","Parcial","2020-07-23","Permanente"]
[{"$f":"IF(D131<>\"\",VLOOKUP('Activos de información - ICYR'!D131,DATA!$B$2:$C$95,2,)&\"-\"&IF(ISERR(B131),\"LEB\",B131),\"\")","v":"3101-LEB"},{"$f":"IF(AND(A130=\"\",D131<>\"\"),\"LEB\",IF(D131<>\"\",1+B130,\"\"))","v":{"$error":"#REF!"}},"Información Física – Digital","GRUPO INTERNO DE TRABAJO DE INCLUSIÓN TIC PARA PERSONAS CON DISCAPACIDAD","Bases de datos del número de beneficiarios de los proyectos de la Dirección de Apropiación TIC (Centro de relevo)","Bases de datos del número de beneficiarios de los proyectos de la Dirección de Apropiación TIC (Centro de relevo)","GRUPO INTERNO DE TRABAJO DE INCLUSIÓN TIC PARA PERSONAS CON DISCAPACIDAD","2020-07-23","GRUPO INTERNO DE TRABAJO DE INCLUSIÓN TIC PARA PERSONAS CON DISCAPACIDAD","Documentos de Archivo - electrónicos","Base de datos","Español","Pública Clasificada",{"$f":"+IF(O131=\"Alta\",0.5,IF(O131=\"Media\",0.3,IF(O131=\"Baja\",0.2,\"\")))","v":0.5},"Alta",{"$f":"+IF(#REF!=\"Grave \",0.5,IF(#REF!=\"Importante\",0.3,IF(#REF!=\"Leve\",0.2,\"\")))","v":{"$error":"#REF!"}},"SI","Ley 1581 de 2012","Ley 1272 de 2014, Art 18","Sin reserva","2020-07-23","Permanente"]
[{"$f":"IF(D132<>\"\",VLOOKUP('Activos de información - ICYR'!D132,DATA!$B$2:$C$95,2,)&\"-\"&IF(ISERR(B132),\"LEB\",B132),\"\")","v":"3101-LEB"},{"$f":"IF(AND(A131=\"\",D132<>\"\"),\"LEB\",IF(D132<>\"\",1+B131,\"\"))","v":{"$error":"#REF!"}},"Información Física – Digital","GRUPO INTERNO DE TRABAJO DE INCLUSIÓN TIC PARA PERSONAS CON DISCAPACIDAD","Bases de datos del número de beneficiarios de los proyectos de la Dirección de Apropiación TIC (Legado de Gabo)","Bases de datos del número de beneficiarios de los proyectos de la Dirección de Apropiación TIC (Legado de Gabo)","GRUPO INTERNO DE TRABAJO DE INCLUSIÓN TIC PARA PERSONAS CON DISCAPACIDAD","2020-07-23","GRUPO INTERNO DE TRABAJO DE INCLUSIÓN TIC PARA PERSONAS CON DISCAPACIDAD","Documentos de Archivo - electrónicos","Base de datos","Español","Pública Reservada",{"$f":"+IF(O132=\"Alta\",0.5,IF(O132=\"Media\",0.3,IF(O132=\"Baja\",0.2,\"\")))","v":0.5},"Alta",{"$f":"+IF(#REF!=\"Grave \",0.5,IF(#REF!=\"Importante\",0.3,IF(#REF!=\"Leve\",0.2,\"\")))","v":{"$error":"#REF!"}},"SI","Ley 1581 de 2012","Ley 1272 de 2014, Art 19","Parcial","2020-07-23","Permanente"]
[{"$f":"IF(D133<>\"\",VLOOKUP('Activos de información - ICYR'!D133,DATA!$B$2:$C$95,2,)&\"-\"&IF(ISERR(B133),\"LEB\",B133),\"\")","v":"3102-LEB"},{"$f":"IF(AND(A132=\"\",D133<>\"\"),\"LEB\",IF(D133<>\"\",1+B132,\"\"))","v":{"$error":"#REF!"}},"Información Física – Digital","GRUPO INTERNO DE TRABAJO DE EDUCACIÓN Y CULTURA DIGITAL","Bases de datos del número de beneficiarios de los proyectos de la Dirección de Apropiación TIC (por tic mujer)","Bases de datos del número de beneficiarios de los proyectos de la Dirección de Apropiación TIC (por tic mujer)","GRUPO INTERNO DE TRABAJO DE EDUCACIÓN Y CULTURA DIGITAL","2020-07-23","GRUPO INTERNO DE TRABAJO DE EDUCACIÓN Y CULTURA DIGITAL","Documentos de Archivo - electrónicos","Base de datos","Español","Pública Clasificada",{"$f":"+IF(O133=\"Alta\",0.5,IF(O133=\"Media\",0.3,IF(O133=\"Baja\",0.2,\"\")))","v":0.5},"Alta",{"$f":"+IF(#REF!=\"Grave \",0.5,IF(#REF!=\"Importante\",0.3,IF(#REF!=\"Leve\",0.2,\"\")))","v":{"$error":"#REF!"}},"SI","Ley 1581 de 2012","Ley 1272 de 2014, Art 18","Sin reserva","2020-07-23","Permanente"]
[{"$f":"IF(D134<>\"\",VLOOKUP('Activos de información - ICYR'!D134,DATA!$B$2:$C$95,2,)&\"-\"&IF(ISERR(B134),\"LEB\",B134),\"\")","v":"3102-LEB"},{"$f":"IF(AND(A133=\"\",D134<>\"\"),\"LEB\",IF(D134<>\"\",1+B133,\"\"))","v":{"$error":"#REF!"}},"Información Física – Digital","GRUPO INTERNO DE TRABAJO DE EDUCACIÓN Y CULTURA DIGITAL","Bases de datos del número de beneficiarios de los proyectos de la Dirección de Apropiación TIC (Chicas steam)","Bases de datos del número de beneficiarios de los proyectos de la Dirección de Apropiación TIC (Chicas steam)","GRUPO INTERNO DE TRABAJO DE EDUCACIÓN Y CULTURA DIGITAL","2020-07-23","GRUPO INTERNO DE TRABAJO DE EDUCACIÓN Y CULTURA DIGITAL","Documentos de Archivo - electrónicos","Base de datos","Español","Pública Reservada",{"$f":"+IF(O134=\"Alta\",0.5,IF(O134=\"Media\",0.3,IF(O134=\"Baja\",0.2,\"\")))","v":0.5},"Alta",{"$f":"+IF(#REF!=\"Grave \",0.5,IF(#REF!=\"Importante\",0.3,IF(#REF!=\"Leve\",0.2,\"\")))","v":{"$error":"#REF!"}},"SI","Ley 1581 de 2012","Ley 1272 de 2014, Art 19","Parcial","2020-07-23","Permanente"]
[{"$f":"IF(D135<>\"\",VLOOKUP('Activos de información - ICYR'!D135,DATA!$B$2:$C$95,2,)&\"-\"&IF(ISERR(B135),\"LEB\",B135),\"\")","v":"3102-LEB"},{"$f":"IF(AND(A134=\"\",D135<>\"\"),\"LEB\",IF(D135<>\"\",1+B134,\"\"))","v":{"$error":"#REF!"}},"Información Física – Digital","GRUPO INTERNO DE TRABAJO DE EDUCACIÓN Y CULTURA DIGITAL","Bases de datos del número de beneficiarios de los proyectos de la Dirección de Apropiación TIC (En tic confio)","Bases de datos del número de beneficiarios de los proyectos de la Dirección de Apropiación TIC (En tic confio)","GRUPO INTERNO DE TRABAJO DE EDUCACIÓN Y CULTURA DIGITAL","2020-07-23","GRUPO INTERNO DE TRABAJO DE EDUCACIÓN Y CULTURA DIGITAL","Documentos de Archivo - electrónicos","Base de datos","Español","Pública Reservada",{"$f":"+IF(O135=\"Alta\",0.5,IF(O135=\"Media\",0.3,IF(O135=\"Baja\",0.2,\"\")))","v":0.5},"Alta",{"$f":"+IF(#REF!=\"Grave \",0.5,IF(#REF!=\"Importante\",0.3,IF(#REF!=\"Leve\",0.2,\"\")))","v":{"$error":"#REF!"}},"SI","Ley 1581 de 2012","Ley 1272 de 2014, Art 19","Parcial","2020-07-23","Permanente"]
[{"$f":"IF(D136<>\"\",VLOOKUP('Activos de información - ICYR'!D136,DATA!$B$2:$C$95,2,)&\"-\"&IF(ISERR(B136),\"LEB\",B136),\"\")","v":"3103-LEB"},{"$f":"IF(AND(A135=\"\",D136<>\"\"),\"LEB\",IF(D136<>\"\",1+B135,\"\"))","v":{"$error":"#REF!"}},"Información Física – Digital","GRUPO INTERNO DE TRABAJO DE FOMENTO DE HABILIDADES DIGITALES PARA LA PRODUCTIVIDAD","Bases de datos del número de beneficiarios de los proyectos de la Dirección de Apropiación TIC (Llegamos contic)","Bases de datos del número de beneficiarios de los proyectos de la Dirección de Apropiación TIC (Llegamos contic)","GRUPO INTERNO DE TRABAJO DE FOMENTO DE HABILIDADES DIGITALES PARA LA PRODUCTIVIDAD","2020-07-23","GRUPO INTERNO DE TRABAJO DE INCLUSIÓN TIC PARA PERSONAS CON DISCAPACIDAD","Documentos de Archivo - electrónicos","Base de datos","Español","Pública Clasificada",{"$f":"+IF(O136=\"Alta\",0.5,IF(O136=\"Media\",0.3,IF(O136=\"Baja\",0.2,\"\")))","v":0.5},"Alta",{"$f":"+IF(#REF!=\"Grave \",0.5,IF(#REF!=\"Importante\",0.3,IF(#REF!=\"Leve\",0.2,\"\")))","v":{"$error":"#REF!"}},"SI","Ley 1581 de 2021","Ley 1272 de 2014, Art 18","Sin reserva","2020-07-23","Permanente"]
[{"$f":"IF(D137<>\"\",VLOOKUP('Activos de información - ICYR'!D137,DATA!$B$2:$C$95,2,)&\"-\"&IF(ISERR(B137),\"LEB\",B137),\"\")","v":"3103-LEB"},{"$f":"IF(AND(A136=\"\",D137<>\"\"),\"LEB\",IF(D137<>\"\",1+B136,\"\"))","v":{"$error":"#REF!"}},"Información Física – Digital","GRUPO INTERNO DE TRABAJO DE FOMENTO DE HABILIDADES DIGITALES PARA LA PRODUCTIVIDAD","Bases de datos del número de beneficiarios de los proyectos de la Dirección de Apropiación TIC (Teletrabajo)","Bases de datos del número de beneficiarios de los proyectos de la Dirección de Apropiación TIC (Teletrabajo)","GRUPO INTERNO DE TRABAJO DE FOMENTO DE HABILIDADES DIGITALES PARA LA PRODUCTIVIDAD","2020-07-23","GRUPO INTERNO DE TRABAJO DE INCLUSIÓN TIC PARA PERSONAS CON DISCAPACIDAD","Documentos de Archivo - electrónicos","Base de datos","Español","Pública Clasificada",{"$f":"+IF(O137=\"Alta\",0.5,IF(O137=\"Media\",0.3,IF(O137=\"Baja\",0.2,\"\")))","v":0.5},"Alta",{"$f":"+IF(#REF!=\"Grave \",0.5,IF(#REF!=\"Importante\",0.3,IF(#REF!=\"Leve\",0.2,\"\")))","v":{"$error":"#REF!"}},"SI","Ley 1581 de 2022","Ley 1272 de 2014, Art 18","Sin reserva","2020-07-23","Permanente"]
[{"$f":"IF(D138<>\"\",VLOOKUP('Activos de información - ICYR'!D138,DATA!$B$2:$C$95,2,)&\"-\"&IF(ISERR(B138),\"LEB\",B138),\"\")","v":"3201-LEB"},{"$f":"IF(AND(#REF!=\"\",D138<>\"\"),\"LEB\",IF(D138<>\"\",1+#REF!,\"\"))","v":{"$error":"#REF!"}},"Software","GRUPO INTERNO DE TRABAJO DE SERVICIOS CIUDADANOS DIGITALES","Portal único del Estado Colombiano Portal GOV.CO\n(SCD)","Se trata del Portal ünico del Estado Colombiano, donde deberán integrarse todas las sedes electrónicas, Ventanillas únicas, Portales Especificos de programas transversales y todos los trámites y servicios que se oferta desde el Estado Colombiano.","GRUPO INTERNO DE TRABAJO DE SERVICIOS CIUDADANOS DIGITALES","No Aplica","GRUPO INTERNO DE TRABAJO DE SERVICIOS CIUDADANOS DIGITALES","Uso de tecnologías en la nube","HTML (Página Web)","Inglés y Español","Pública Clasificada",{"$f":"+IF(O138=\"Alta\",0.5,IF(O138=\"Media\",0.3,IF(O138=\"Baja\",0.2,\"\")))","v":0.5},"Alta",{"$f":"+IF(#REF!=\"Grave \",0.5,IF(#REF!=\"Importante\",0.3,IF(#REF!=\"Leve\",0.2,\"\")))","v":{"$error":"#REF!"}},"SI","Decreto 1078 de 2015\nLey 1955 de 2019\nDirectiva presidencial 02 de abril de 2019\nDecreto 2106 de 2019\nDecreto 620 de 2020","Ley 1712/2014 - Artículo 18. Los secretos comerciales, industriales y profesionales,\nasí como los estipulados en el parágrafo del artículo 77\nde la Ley 1474 de 2011.","Sin reserva","2020-06-24","Permanente"]
[{"$f":"IF(D139<>\"\",VLOOKUP('Activos de información - ICYR'!D139,DATA!$B$2:$C$95,2,)&\"-\"&IF(ISERR(B139),\"LEB\",B139),\"\")","v":"3201-LEB"},{"$f":"IF(AND(A138=\"\",D139<>\"\"),\"LEB\",IF(D139<>\"\",1+B138,\"\"))","v":{"$error":"#REF!"}},"Información Digital","GRUPO INTERNO DE TRABAJO DE SERVICIOS CIUDADANOS DIGITALES","Documentación de la Integración de Trámites y Servicios de las entidades a GOV.CO\n(SCD)","Comprende toda la información que acompaña el proyecto desde su face incial hasta la entrega del mismo.","GRUPO INTERNO DE TRABAJO DE SERVICIOS CIUDADANOS DIGITALES","2020-07-07","GRUPO INTERNO DE TRABAJO DE SERVICIOS CIUDADANOS DIGITALES","Documentos de Archivo - electrónicos","PDF","Inglés y Español","Pública Reservada",{"$f":"+IF(O139=\"Alta\",0.5,IF(O139=\"Media\",0.3,IF(O139=\"Baja\",0.2,\"\")))","v":0.5},"Alta",{"$f":"+IF(#REF!=\"Grave \",0.5,IF(#REF!=\"Importante\",0.3,IF(#REF!=\"Leve\",0.2,\"\")))","v":{"$error":"#REF!"}},"No Aplica","Directiva 02 de 2019\nDecreto 2106 de 2019\nDecreto 620 del 2020","Ley 1712/2014 - Artículo 18. Los secretos comerciales, industriales y profesionales,\nasí como los estipulados en el parágrafo del artículo 77 de la Ley 1474 de 2011.","Reserva parcial","2020-08-06","Permanente"]
[{"$f":"IF(D140<>\"\",VLOOKUP('Activos de información - ICYR'!D140,DATA!$B$2:$C$95,2,)&\"-\"&IF(ISERR(B140),\"LEB\",B140),\"\")","v":"3201-LEB"},{"$f":"IF(AND(A139=\"\",D140<>\"\"),\"LEB\",IF(D140<>\"\",1+B139,\"\"))","v":{"$error":"#REF!"}},"Información Digital","GRUPO INTERNO DE TRABAJO DE SERVICIOS CIUDADANOS DIGITALES","Documentación GOV.CO\n(SCD)","Documentación del proyecto GOV.CO en cuanto a desarrollo, implantación, soporte y operación- Corresponde a la documentación del Portal ünico del Estado Colombiano, donde deberán integrarse todas las sedes electrónicas, Ventanillas únicas, Portales Especificos de programas transversales y todos los trámites y servicios que se oferta desde el Estado Colombiano.","GRUPO INTERNO DE TRABAJO DE SERVICIOS CIUDADANOS DIGITALES","2020-07-07","GRUPO INTERNO DE TRABAJO DE SERVICIOS CIUDADANOS DIGITALES","Documentos de Archivo - electrónicos","PDF","Español","Pública Reservada",{"$f":"+IF(O140=\"Alta\",0.5,IF(O140=\"Media\",0.3,IF(O140=\"Baja\",0.2,\"\")))","v":0.5},"Alta",{"$f":"+IF(#REF!=\"Grave \",0.5,IF(#REF!=\"Importante\",0.3,IF(#REF!=\"Leve\",0.2,\"\")))","v":{"$error":"#REF!"}},"No Aplica","Directiva 02 de 2019\nDecreto 2106 de 2019\nDecreto 620 del 2020","Ley 1712/2014 - Artículo 18. Los secretos comerciales, industriales y profesionales,\nasí como los estipulados en el parágrafo del artículo 77\nde la Ley 1474 de 2011.","Reserva parcial","2020-07-07","Permanente"]
[{"$f":"IF(D141<>\"\",VLOOKUP('Activos de información - ICYR'!D141,DATA!$B$2:$C$95,2,)&\"-\"&IF(ISERR(B141),\"LEB\",B141),\"\")","v":"3201-LEB"},{"$f":"IF(AND(A140=\"\",D141<>\"\"),\"LEB\",IF(D141<>\"\",1+B140,\"\"))","v":{"$error":"#REF!"}},"Software","GRUPO INTERNO DE TRABAJO DE SERVICIOS CIUDADANOS DIGITALES","Infraestructura como servicio\n(SCD)","Infraestructura como Servicio de nube pública o privada administrada por un tercero (GOV.CO)","GRUPO INTERNO DE TRABAJO DE SERVICIOS CIUDADANOS DIGITALES","No Aplica","GRUPO INTERNO DE TRABAJO DE SERVICIOS CIUDADANOS DIGITALES","Uso de tecnologías en la nube","No Aplica","Inglés y Español","Pública Clasificada",{"$f":"+IF(O141=\"Alta\",0.5,IF(O141=\"Media\",0.3,IF(O141=\"Baja\",0.2,\"\")))","v":0.5},"Alta",{"$f":"+IF(#REF!=\"Grave \",0.5,IF(#REF!=\"Importante\",0.3,IF(#REF!=\"Leve\",0.2,\"\")))","v":{"$error":"#REF!"}},"SI","Decreto 1078 de 2015\nLey 1955 de 2019\nDirectiva presidencial 02 de abril de 2019\nDecreto 2106 de 2019\nDecreto 620 de 2020","Ley 1712/2014 - Artículo 18. Los secretos comerciales, industriales y profesionales,\nasí como los estipulados en el parágrafo del artículo 77\nde la Ley 1474 de 2011.","Sin reserva","2020-07-07","Permanente"]
[{"$f":"IF(D142<>\"\",VLOOKUP('Activos de información - ICYR'!D142,DATA!$B$2:$C$95,2,)&\"-\"&IF(ISERR(B142),\"LEB\",B142),\"\")","v":"322-LEB"},{"$f":"IF(AND(#REF!=\"\",D142<>\"\"),\"LEB\",IF(D142<>\"\",1+#REF!,\"\"))","v":{"$error":"#REF!"}},"Información Digital","SUBDIRECCIÓN DE FORTALECIMIENTO DE CAPACIDADES PÚBLICAS DIGITALES","BD CIO NACIONALES\n(FCPD)","Tabla en excel donde se registran los CIO a nivel territorial con nombre, cargo, sector, entidad, correos electrónicos, celulares y telefonos de contacto","SUBDIRECCIÓN DE FORTALECIMIENTO DE CAPACIDADES PÚBLICAS DIGITALES",43922,"SUBDIRECCIÓN DE FORTALECIMIENTO DE CAPACIDADES PÚBLICAS DIGITALES","Uso de tecnologías en la nube","Base de datos","Español","Pública Clasificada",{"$f":"+IF(O142=\"Alta\",0.5,IF(O142=\"Media\",0.3,IF(O142=\"Baja\",0.2,\"\")))","v":0.5},"Alta",{"$f":"+IF(#REF!=\"Grave \",0.5,IF(#REF!=\"Importante\",0.3,IF(#REF!=\"Leve\",0.2,\"\")))","v":{"$error":"#REF!"}},"SI","Ley 1581 de 2012","Ley 1712/2014 - Artículo 18. Información exceptuada por daño de derechos a personas naturales o jurídicas. Literal a)","Reserva parcial",44049,"No Aplica"]
[{"$f":"IF(D143<>\"\",VLOOKUP('Activos de información - ICYR'!D143,DATA!$B$2:$C$95,2,)&\"-\"&IF(ISERR(B143),\"LEB\",B143),\"\")","v":"322-LEB"},{"$f":"IF(AND(A142=\"\",D143<>\"\"),\"LEB\",IF(D143<>\"\",1+B142,\"\"))","v":{"$error":"#REF!"}},"Información Digital","SUBDIRECCIÓN DE FORTALECIMIENTO DE CAPACIDADES PÚBLICAS DIGITALES","BD CIO TERRITORIALES/ALCALDES Y GOBERNADORES\n(FCPD)","Tabla en excel donde se registran los CIO a nivel territorial con nombre, cargo, sector, entidad, correos electrónicos, celulares y telefonos de contacto","SUBDIRECCIÓN DE FORTALECIMIENTO DE CAPACIDADES PÚBLICAS DIGITALES",43922,"SUBDIRECCIÓN DE FORTALECIMIENTO DE CAPACIDADES PÚBLICAS DIGITALES","Uso de tecnologías en la nube","Base de datos","Español","Pública Clasificada",{"$f":"+IF(O143=\"Alta\",0.5,IF(O143=\"Media\",0.3,IF(O143=\"Baja\",0.2,\"\")))","v":0.5},"Alta",{"$f":"+IF(#REF!=\"Grave \",0.5,IF(#REF!=\"Importante\",0.3,IF(#REF!=\"Leve\",0.2,\"\")))","v":{"$error":"#REF!"}},"SI","Ley 1581 de 2012","Ley 1712/2014 - Artículo 18. Información exceptuada por daño de derechos a personas naturales o jurídicas. Literal a)","Reserva parcial",44049,"No Aplica"]
[{"$f":"IF(D144<>\"\",VLOOKUP('Activos de información - ICYR'!D144,DATA!$B$2:$C$95,2,)&\"-\"&IF(ISERR(B144),\"LEB\",B144),\"\")","v":"321-LEB"},{"$f":"IF(AND(#REF!=\"\",D144<>\"\"),\"LEB\",IF(D144<>\"\",1+#REF!,\"\"))","v":{"$error":"#REF!"}},"Información Digital","SUBDIRECCIÓN DE ESTÁNDARES Y ARQUITECTURA DE TECNOLOGÍAS DE LA INFORMACIÓN","Registros internos de gestión del grupo\n(SPI)","Documentos de la gestion realizada por el grupo de seguridad y privacidad de la información","SUBDIRECCIÓN DE ESTÁNDARES Y ARQUITECTURA DE TECNOLOGÍAS DE LA INFORMACIÓN","2020-01-01","SUBDIRECCIÓN DE ESTÁNDARES Y ARQUITECTURA DE TECNOLOGÍAS DE LA INFORMACIÓN","Documentos de Archivo - electrónicos","Base de datos","Español","Pública Clasificada",{"$f":"+IF(O144=\"Alta\",0.5,IF(O144=\"Media\",0.3,IF(O144=\"Baja\",0.2,\"\")))","v":0.3},"Media",{"$f":"+IF(#REF!=\"Grave \",0.5,IF(#REF!=\"Importante\",0.3,IF(#REF!=\"Leve\",0.2,\"\")))","v":{"$error":"#REF!"}},"SI","Ley 1712/2014 - Artículo 18. Los secretos comerciales, industriales y profesionales,\nasí como los estipulados en el parágrafo del artículo 77\nde la Ley 1474 de 2011.","Ley 1712/2014 - Artículo 18. Los secretos comerciales, industriales y profesionales,\nasí como los estipulados en el parágrafo del artículo 77\nde la Ley 1474 de 2011.","Sin reserva","2020-07-09","Permanente"]
[{"$f":"IF(D145<>\"\",VLOOKUP('Activos de información - ICYR'!D145,DATA!$B$2:$C$95,2,)&\"-\"&IF(ISERR(B145),\"LEB\",B145),\"\")","v":"321-LEB"},{"$f":"IF(AND(#REF!=\"\",D145<>\"\"),\"LEB\",IF(D145<>\"\",1+#REF!,\"\"))","v":{"$error":"#REF!"}},"Información Digital","SUBDIRECCIÓN DE ESTÁNDARES Y ARQUITECTURA DE TECNOLOGÍAS DE LA INFORMACIÓN","Informes de vulnerabilidades\n(SPI)","Corresponde a todos los informes de vulnerabilidades y Ethical Hacking realializados para las Entidades y Autoridades por demanda o por requerimiento legal","SUBDIRECCIÓN DE ESTÁNDARES Y ARQUITECTURA DE TECNOLOGÍAS DE LA INFORMACIÓN","2020-08-27","SUBDIRECCIÓN DE ESTÁNDARES Y ARQUITECTURA DE TECNOLOGÍAS DE LA INFORMACIÓN","Documentos de Archivo - electrónicos","PDF","Inglés y Español","Pública Clasificada",{"$f":"+IF(O145=\"Alta\",0.5,IF(O145=\"Media\",0.3,IF(O145=\"Baja\",0.2,\"\")))","v":0.5},"Alta",{"$f":"+IF(#REF!=\"Grave \",0.5,IF(#REF!=\"Importante\",0.3,IF(#REF!=\"Leve\",0.2,\"\")))","v":{"$error":"#REF!"}},"SI","Ley 1712/2014 -","Artículo 19. Información exceptuada por daño a los intereses públicos. Es\ntoda aquella información pública reservada, cuyo acceso podrá ser rechazado o\ndenegado de manera motivada y por escrito en las siguientes circunstancias,\nsiempre que dicho acceso estuviere expresamente prohibido por una norma legal o\nconstituciona","Sin reserva","2020-08-27","Permanente"]
[{"$f":"IF(D146<>\"\",VLOOKUP('Activos de información - ICYR'!D146,DATA!$B$2:$C$95,2,)&\"-\"&IF(ISERR(B146),\"LEB\",B146),\"\")","v":"321-LEB"},{"$f":"IF(AND(#REF!=\"\",D146<>\"\"),\"LEB\",IF(D146<>\"\",1+#REF!,\"\"))","v":{"$error":"#REF!"}},"Software","SUBDIRECCIÓN DE ESTÁNDARES Y ARQUITECTURA DE TECNOLOGÍAS DE LA INFORMACIÓN","Herramienta de seguimiento a la adopción de IPv6","Aplicativo de seguimiento a las entidades en IPv6","SUBDIRECCIÓN DE ESTÁNDARES Y ARQUITECTURA DE TECNOLOGÍAS DE LA INFORMACIÓN","2020-08-05","SUBDIRECCIÓN DE ESTÁNDARES Y ARQUITECTURA DE TECNOLOGÍAS DE LA INFORMACIÓN","Documentos de Archivo - electrónicos","HTML (Página Web)","Español","Pública Clasificada",{"$f":"+IF(O146=\"Alta\",0.5,IF(O146=\"Media\",0.3,IF(O146=\"Baja\",0.2,\"\")))","v":0.3},"Media",{"$f":"+IF(#REF!=\"Grave \",0.5,IF(#REF!=\"Importante\",0.3,IF(#REF!=\"Leve\",0.2,\"\")))","v":{"$error":"#REF!"}},"SI","Ley 1712 de 2014","circunstancias,\nsiempre que dicho acceso estuviere expresamente prohibido por una norma legal o\nconstitucional","Sin reserva","2020-08-05","Permanente"]
[{"$f":"IF(D147<>\"\",VLOOKUP('Activos de información - ICYR'!D147,DATA!$B$2:$C$95,2,)&\"-\"&IF(ISERR(B147),\"LEB\",B147),\"\")","v":"32-LEB"},{"$f":"IF(AND(#REF!=\"\",D147<>\"\"),\"LEB\",IF(D147<>\"\",1+#REF!,\"\"))","v":{"$error":"#REF!"}},"Información Física – Digital","DIRECCIÓN DE GOBIERNO DIGITAL","MEMORANDOS\n(ET- JURIDICA)","EL MEMORANDO ES UN FORMATO ESTABLECIDO DONDE SE INDICA QUIEN ENVIA Y A QUIEN VA DIRIGIDO EL DOCUMENTO ASI COMO LA FIRMA DE LA PERSONA ENCARGADA DEL ÁREA.\n","DIRECCIÓN DE GOBIERNO DIGITAL","2020-07-07","DIRECCIÓN DE GOBIERNO DIGITAL","Documentos de Archivo - electrónicos","PDF","Español","Pública Clasificada",{"$f":"+IF(O147=\"Alta\",0.5,IF(O147=\"Media\",0.3,IF(O147=\"Baja\",0.2,\"\")))","v":0.5},"Alta",{"$f":"+IF(#REF!=\"Grave \",0.5,IF(#REF!=\"Importante\",0.3,IF(#REF!=\"Leve\",0.2,\"\")))","v":{"$error":"#REF!"}},"SI","ARTICULO 23 CONSTITUCIÓN POLITICA / LEY 1755 / 2015","ARTICULO 23 CONSTITUCIÓN POLITICA / LEY 1755 / 2015","Sin reserva","2020-07-07","Permanente"]
[{"$f":"IF(D148<>\"\",VLOOKUP('Activos de información - ICYR'!D148,DATA!$B$2:$C$95,2,)&\"-\"&IF(ISERR(B148),\"LEB\",B148),\"\")","v":"32-LEB"},{"$f":"IF(AND(A147=\"\",D148<>\"\"),\"LEB\",IF(D148<>\"\",1+B147,\"\"))","v":{"$error":"#REF!"}},"Información Física – Digital","DIRECCIÓN DE GOBIERNO DIGITAL","DOCUMENTOS DE CONTRATACIÓN ENTIDADES\n(ET- JURIDICA)","PROCESO QUE CONTIENE VARIOS DOCUMENTOS: ESTUDIOS PREVIOS, ESTUDIOS DEL SECTOR, CERTFICADO DE IDONEIDAD, GESTION DE TALENTO HUMANO, MEMORANDO. CONDICIONES DE SALUD, COMPROMISO CUMPLIMIENTO MEDIDAS DE BIOSEGURIDAD, CONFLICTO DE INTERESES, TRATAMIENTO DE DATOS, COMPROMISO DE CONFIDENCIALIDAD. DENTRO DE LOS CONTRATOS SE PUEDEN PRESENTAR SOLICITUDES POR PARTE DEL CONTRATISTA COMO SON : CESIONES, SUSPENSIONES, REINICIO, TERMINACIÓN DEL CONTRATO.  PARA EL CASO DE CONTRATOS PERSONA JURÍDICA SE MANEJARIAN LIQUIDACIONES.","DIRECCIÓN DE GOBIERNO DIGITAL","2020-07-07","DIRECCIÓN DE GOBIERNO DIGITAL","Documentos de Archivo - electrónicos","PDF","Español","Pública Reservada",{"$f":"+IF(O148=\"Alta\",0.5,IF(O148=\"Media\",0.3,IF(O148=\"Baja\",0.2,\"\")))","v":0.5},"Alta",{"$f":"+IF(#REF!=\"Grave \",0.5,IF(#REF!=\"Importante\",0.3,IF(#REF!=\"Leve\",0.2,\"\")))","v":{"$error":"#REF!"}},"SI","Ley 80 de 1993","Ley 80 de 1993","Reserva parcial","2020-07-07","MIENTRAS SE SURTE EL PROCESO Y SE HACE PÚBLICO"]
[{"$f":"IF(D149<>\"\",VLOOKUP('Activos de información - ICYR'!D149,DATA!$B$2:$C$95,2,)&\"-\"&IF(ISERR(B149),\"LEB\",B149),\"\")","v":"32-LEB"},{"$f":"IF(AND(A148=\"\",D149<>\"\"),\"LEB\",IF(D149<>\"\",1+B148,\"\"))","v":{"$error":"#REF!"}},"Información Física – Digital","DIRECCIÓN DE GOBIERNO DIGITAL","DOCUMENTO NO ESTABLECIDO POR FORMATOS MIG - DONDE SE DA RESPUESTA A LAS PQRS\n(ET-JURIDICA)","RESPUESTA A LAS PQRS  QUE LLEGAN O SON ASIGNADAS A LA DIRECCIÓN DE GOBIENO DIGITAL","DIRECCIÓN DE GOBIERNO DIGITAL","2020-07-07","DIRECCIÓN DE GOBIERNO DIGITAL","Documentos de Archivo - electrónicos","PDF","Español","Pública Reservada",{"$f":"+IF(O149=\"Alta\",0.5,IF(O149=\"Media\",0.3,IF(O149=\"Baja\",0.2,\"\")))","v":0.5},"Alta",{"$f":"+IF(#REF!=\"Grave \",0.5,IF(#REF!=\"Importante\",0.3,IF(#REF!=\"Leve\",0.2,\"\")))","v":{"$error":"#REF!"}},"SI","ARTICULO 23 CONSTITUCIÓN POLITICA / LEY 1755 / 2015","ARTICULO 23 CONSTITUCIÓN POLITICA / LEY 1755 / 2015","Reserva parcial","2020-07-07","MIENTRAS SE SURTE EL PROCESO Y SE HACE PÚBLICO"]
[{"$f":"IF(D150<>\"\",VLOOKUP('Activos de información - ICYR'!D150,DATA!$B$2:$C$95,2,)&\"-\"&IF(ISERR(B150),\"LEB\",B150),\"\")","v":"33-LEB"},{"$f":"IF(AND(#REF!=\"\",D150<>\"\"),\"LEB\",IF(D150<>\"\",1+#REF!,\"\"))","v":{"$error":"#REF!"}},"Información Digital","DIRECCIÓN DE ECONOMIA DIGITAL","Actas de grupo comité primario","Seguimiento a la gestión de las Subdirecciones y la Dirección de acuerdo a los compromisos pactados","DIRECCIÓN DE ECONOMIA DIGITAL","2018-11-28","OFICINA DE TECNOLOGÍAS DE LA INFORMACIÓN","Documentos de Archivo - electrónicos","PDF","Español","Pública Clasificada",{"$f":"+IF(O150=\"Alta\",0.5,IF(O150=\"Media\",0.3,IF(O150=\"Baja\",0.2,\"\")))","v":0.3},"Media",{"$f":"+IF(#REF!=\"Grave \",0.5,IF(#REF!=\"Importante\",0.3,IF(#REF!=\"Leve\",0.2,\"\")))","v":{"$error":"#REF!"}},"SI","Del artículo 18 de la Ley 1712 de 2014","Literal A\nParágrafo","Sin reserva","2020-08-27","Permanente"]
[{"$f":"IF(D151<>\"\",VLOOKUP('Activos de información - ICYR'!D151,DATA!$B$2:$C$95,2,)&\"-\"&IF(ISERR(B151),\"LEB\",B151),\"\")","v":"33-LEB"},{"$f":"IF(AND(A150=\"\",D151<>\"\"),\"LEB\",IF(D151<>\"\",1+B150,\"\"))","v":{"$error":"#REF!"}},"Información Física","DIRECCIÓN DE ECONOMIA DIGITAL","Documentos de los procesos de contratación de convenios y/o contratos","Documentación  que se genera con la firma de convenios y/o contratos:\nEstudio de viabilidad\nEstudios Previos\nEvaluaciones de Procesos\nSolicitudes de CDP\nDocumentos de vigencias futuras\nActas de juntas y/o reuniones de seguimiento que se desarrollan en el contexto de avance de convenios  y/o contratos.\nInformes de supervisión","DIRECCIÓN DE ECONOMIA DIGITAL","2018-11-28","DIRECCIÓN DE ECONOMIA DIGITAL","Documentos de Archivo - físicos","Papel","Español","Pública Clasificada",{"$f":"+IF(O151=\"Alta\",0.5,IF(O151=\"Media\",0.3,IF(O151=\"Baja\",0.2,\"\")))","v":0.3},"Media",{"$f":"+IF(#REF!=\"Grave \",0.5,IF(#REF!=\"Importante\",0.3,IF(#REF!=\"Leve\",0.2,\"\")))","v":{"$error":"#REF!"}},"SI","Del artículo 18 de la Ley 1712 de 2014","Literal A\nParágrafo","Sin reserva","2020-08-27","Permanente"]
[{"$f":"IF(D152<>\"\",VLOOKUP('Activos de información - ICYR'!D152,DATA!$B$2:$C$95,2,)&\"-\"&IF(ISERR(B152),\"LEB\",B152),\"\")","v":"33-LEB"},{"$f":"IF(AND(A151=\"\",D152<>\"\"),\"LEB\",IF(D152<>\"\",1+B151,\"\"))","v":{"$error":"#REF!"}},"Información Digital","DIRECCIÓN DE ECONOMIA DIGITAL","Documentos de los procesos de contratación de convenios y/o contratos","Documentación  que se genera con la firma de convenios y/o contratos:\nEstudio de viabilidad\nEstudios Previos\nEvaluaciones de Procesos\nSolicitudes de CDP\nDocumentos de vigencias futuras\nActas de juntas y/o reuniones de seguimiento que se desarrollan en el contexto de avance de convenios  y/o contratos.\nInformes de supervisión","DIRECCIÓN DE ECONOMIA DIGITAL","2018-11-28","GRUPO INTERNO DE TRABAJO DE GRUPOS DE INTERÉS Y GESTIÓN DOCUMENTAL","Documentos de Archivo - electrónicos","PDF","Español","Pública Clasificada",{"$f":"+IF(O152=\"Alta\",0.5,IF(O152=\"Media\",0.3,IF(O152=\"Baja\",0.2,\"\")))","v":0.3},"Media",{"$f":"+IF(#REF!=\"Grave \",0.5,IF(#REF!=\"Importante\",0.3,IF(#REF!=\"Leve\",0.2,\"\")))","v":{"$error":"#REF!"}},"SI","Del artículo 18 de la Ley 1712 de 2014","Literal A\nParágrafo","Sin reserva","2020-08-27","Permanente"]
[{"$f":"IF(D153<>\"\",VLOOKUP('Activos de información - ICYR'!D153,DATA!$B$2:$C$95,2,)&\"-\"&IF(ISERR(B153),\"LEB\",B153),\"\")","v":"331-LEB"},{"$f":"IF(AND(#REF!=\"\",D153<>\"\"),\"LEB\",IF(D153<>\"\",1+#REF!,\"\"))","v":{"$error":"#REF!"}},"Información Digital","SUBDIRECCIÓN PARA LAS COMPETENCIAS DIGITALES","Base de datos de los docentes beneficiarios en el proyecto Programación para niños y niñas","Información de los docentes beneficiarios del proyecto programación para niños y niñas","SUBDIRECCIÓN PARA LAS COMPETENCIAS DIGITALES","2018-11-28","SUBDIRECCIÓN PARA LAS COMPETENCIAS DIGITALES","Sistemas de Información corporativos","Base de datos","Español","Pública Reservada",{"$f":"+IF(O153=\"Alta\",0.5,IF(O153=\"Media\",0.3,IF(O153=\"Baja\",0.2,\"\")))","v":0.5},"Alta",{"$f":"+IF(#REF!=\"Grave \",0.5,IF(#REF!=\"Importante\",0.3,IF(#REF!=\"Leve\",0.2,\"\")))","v":{"$error":"#REF!"}},"SI","Ley 1581 de 2012, Ley 1712 de 2014 Articulo 19 ","Ley 1581 de 2012, Ley 1712 de 2014 Articulo 19 ","Reserva total","2018-11-28","Permanente"]
[{"$f":"IF(D154<>\"\",VLOOKUP('Activos de información - ICYR'!D154,DATA!$B$2:$C$95,2,)&\"-\"&IF(ISERR(B154),\"LEB\",B154),\"\")","v":"331-LEB"},{"$f":"IF(AND(A153=\"\",D154<>\"\"),\"LEB\",IF(D154<>\"\",1+B153,\"\"))","v":{"$error":"#REF!"}},"Información Digital","SUBDIRECCIÓN PARA LAS COMPETENCIAS DIGITALES","Base de datos de docentes beneficiarios de la estrategia Curriculos digitales","Información de los beneficiarios de la estrategia curriculos digitales","SUBDIRECCIÓN PARA LAS COMPETENCIAS DIGITALES","2018-11-28","SUBDIRECCIÓN PARA LAS COMPETENCIAS DIGITALES","Sistemas de Información corporativos","Base de datos","Español","Pública Reservada",{"$f":"+IF(O154=\"Alta\",0.5,IF(O154=\"Media\",0.3,IF(O154=\"Baja\",0.2,\"\")))","v":0.5},"Alta",{"$f":"+IF(#REF!=\"Grave \",0.5,IF(#REF!=\"Importante\",0.3,IF(#REF!=\"Leve\",0.2,\"\")))","v":{"$error":"#REF!"}},"SI","Ley 1581 de 2012, Ley 1712 de 2014 Articulo 19 ","Ley 1581 de 2012, Ley 1712 de 2014 Articulo 19 ","Reserva total","2018-11-28","Permanente"]
[{"$f":"IF(D155<>\"\",VLOOKUP('Activos de información - ICYR'!D155,DATA!$B$2:$C$95,2,)&\"-\"&IF(ISERR(B155),\"LEB\",B155),\"\")","v":"331-LEB"},{"$f":"IF(AND(A154=\"\",D155<>\"\"),\"LEB\",IF(D155<>\"\",1+B154,\"\"))","v":{"$error":"#REF!"}},"Información Digital","SUBDIRECCIÓN PARA LAS COMPETENCIAS DIGITALES","Base de datos beneficiarios de Inteligencia Artificial","Información de los beneficiarios de la formación en Inteligencia Artificial","SUBDIRECCIÓN PARA LAS COMPETENCIAS DIGITALES","2018-11-28","SUBDIRECCIÓN PARA LAS COMPETENCIAS DIGITALES","Sistemas de Información corporativos","Base de datos","Español","Pública Reservada",{"$f":"+IF(O155=\"Alta\",0.5,IF(O155=\"Media\",0.3,IF(O155=\"Baja\",0.2,\"\")))","v":0.5},"Alta",{"$f":"+IF(#REF!=\"Grave \",0.5,IF(#REF!=\"Importante\",0.3,IF(#REF!=\"Leve\",0.2,\"\")))","v":{"$error":"#REF!"}},"SI","Ley 1581 de 2012, Ley 1712 de 2014 Articulo 19","Ley 1581 de 2012, Ley 1712 de 2014 Articulo 19","Reserva total","2018-11-28","Permanente"]
[{"$f":"IF(D156<>\"\",VLOOKUP('Activos de información - ICYR'!D156,DATA!$B$2:$C$95,2,)&\"-\"&IF(ISERR(B156),\"LEB\",B156),\"\")","v":"331-LEB"},{"$f":"IF(AND(A155=\"\",D156<>\"\"),\"LEB\",IF(D156<>\"\",1+B155,\"\"))","v":{"$error":"#REF!"}},"Información Digital","SUBDIRECCIÓN PARA LAS COMPETENCIAS DIGITALES","Base de datos beneficiarios convenios Icetex ","Información de los beneficiarios de las convocatorias de formación que se han realizado el convenio con el Icetex","SUBDIRECCIÓN PARA LAS COMPETENCIAS DIGITALES","2020-08-19","SUBDIRECCIÓN PARA LAS COMPETENCIAS DIGITALES","Sistemas de Información corporativos","Base de datos","Español","Pública Reservada",{"$f":"+IF(O156=\"Alta\",0.5,IF(O156=\"Media\",0.3,IF(O156=\"Baja\",0.2,\"\")))","v":0.5},"Alta",{"$f":"+IF(#REF!=\"Grave \",0.5,IF(#REF!=\"Importante\",0.3,IF(#REF!=\"Leve\",0.2,\"\")))","v":{"$error":"#REF!"}},"SI","Ley 1581 de 2012, Ley 1712 de 2014 Articulo 19","Ley 1581 de 2012, Ley 1712 de 2014 Articulo 19","Reserva total","2020-08-19","Permanente"]
[{"$f":"IF(D157<>\"\",VLOOKUP('Activos de información - ICYR'!D157,DATA!$B$2:$C$95,2,)&\"-\"&IF(ISERR(B157),\"LEB\",B157),\"\")","v":"331-LEB"},{"$f":"IF(AND(A156=\"\",D157<>\"\"),\"LEB\",IF(D157<>\"\",1+B156,\"\"))","v":{"$error":"#REF!"}},"Información Digital","SUBDIRECCIÓN PARA LAS COMPETENCIAS DIGITALES","Base de datos beneficiarios de talento digital para empresas","Información de los beneficiarios del proyecto Talento digital para empresas","SUBDIRECCIÓN PARA LAS COMPETENCIAS DIGITALES","2020-08-19","SUBDIRECCIÓN PARA LAS COMPETENCIAS DIGITALES","Sistemas de Información corporativos","Base de datos","Español","Pública Reservada",{"$f":"+IF(O157=\"Alta\",0.5,IF(O157=\"Media\",0.3,IF(O157=\"Baja\",0.2,\"\")))","v":0.5},"Alta",{"$f":"+IF(#REF!=\"Grave \",0.5,IF(#REF!=\"Importante\",0.3,IF(#REF!=\"Leve\",0.2,\"\")))","v":{"$error":"#REF!"}},"SI","Ley 1581 de 2012, Ley 1712 de 2014 Articulo 19","Ley 1581 de 2012, Ley 1712 de 2014 Articulo 19","Reserva total","2020-08-19","Permanente"]
[{"$f":"IF(D158<>\"\",VLOOKUP('Activos de información - ICYR'!D158,DATA!$B$2:$C$95,2,)&\"-\"&IF(ISERR(B158),\"LEB\",B158),\"\")","v":"331-LEB"},{"$f":"IF(AND(A157=\"\",D158<>\"\"),\"LEB\",IF(D158<>\"\",1+B157,\"\"))","v":{"$error":"#REF!"}},"Información Digital","SUBDIRECCIÓN PARA LAS COMPETENCIAS DIGITALES","Base de datos de beneficiarios del proyecto 100mil programadores","Información de los beneficiarios del proyecto 100mil programadores","SUBDIRECCIÓN PARA LAS COMPETENCIAS DIGITALES","2020-08-19","SUBDIRECCIÓN PARA LAS COMPETENCIAS DIGITALES","Sistemas de Información corporativos","Base de datos","Español","Pública Reservada",{"$f":"+IF(O158=\"Alta\",0.5,IF(O158=\"Media\",0.3,IF(O158=\"Baja\",0.2,\"\")))","v":0.5},"Alta",{"$f":"+IF(#REF!=\"Grave \",0.5,IF(#REF!=\"Importante\",0.3,IF(#REF!=\"Leve\",0.2,\"\")))","v":{"$error":"#REF!"}},"SI","Ley 1581 de 2012, Ley 1712 de 2014 Articulo 19","Ley 1581 de 2012, Ley 1712 de 2014 Articulo 19","Reserva total","2020-08-19","Permanente"]
[{"$f":"IF(D159<>\"\",VLOOKUP('Activos de información - ICYR'!D159,DATA!$B$2:$C$95,2,)&\"-\"&IF(ISERR(B159),\"LEB\",B159),\"\")","v":"331-LEB"},{"$f":"IF(AND(A158=\"\",D159<>\"\"),\"LEB\",IF(D159<>\"\",1+B158,\"\"))","v":{"$error":"#REF!"}},"Información Digital","SUBDIRECCIÓN PARA LAS COMPETENCIAS DIGITALES","Base de datos de los beneficiarios de la formación para la reactivación de la fuerza laboral","Información de datos personales de los beneficiarios de la inciativa formación para la reactivación de la fuerza laboral","SUBDIRECCIÓN PARA LAS COMPETENCIAS DIGITALES","2020-08-19","SUBDIRECCIÓN PARA LAS COMPETENCIAS DIGITALES","Sistemas de Información corporativos","Base de datos","Español","Pública Reservada",{"$f":"+IF(O159=\"Alta\",0.5,IF(O159=\"Media\",0.3,IF(O159=\"Baja\",0.2,\"\")))","v":0.5},"Alta",{"$f":"+IF(#REF!=\"Grave \",0.5,IF(#REF!=\"Importante\",0.3,IF(#REF!=\"Leve\",0.2,\"\")))","v":{"$error":"#REF!"}},"SI","Ley 1581 de 2012, Ley 1712 de 2014 Articulo 19","Ley 1581 de 2012, Ley 1712 de 2014 Articulo 19","Reserva total","2020-08-19","Permanente"]
[{"$f":"IF(D160<>\"\",VLOOKUP('Activos de información - ICYR'!D160,DATA!$B$2:$C$95,2,)&\"-\"&IF(ISERR(B160),\"LEB\",B160),\"\")","v":"331-LEB"},{"$f":"IF(AND(A159=\"\",D160<>\"\"),\"LEB\",IF(D160<>\"\",1+B159,\"\"))","v":{"$error":"#REF!"}},"Información Digital","SUBDIRECCIÓN PARA LAS COMPETENCIAS DIGITALES","Base de datos de beneficiarios de Ciencia de Datos","Información de los beneficiarios de la formación en Ciencia de Datos","SUBDIRECCIÓN PARA LAS COMPETENCIAS DIGITALES","2018-11-28","SUBDIRECCIÓN PARA LAS COMPETENCIAS DIGITALES","Sistemas de Información corporativos","Base de datos","Español","Pública Reservada",{"$f":"+IF(O160=\"Alta\",0.5,IF(O160=\"Media\",0.3,IF(O160=\"Baja\",0.2,\"\")))","v":0.5},"Alta",{"$f":"+IF(#REF!=\"Grave \",0.5,IF(#REF!=\"Importante\",0.3,IF(#REF!=\"Leve\",0.2,\"\")))","v":{"$error":"#REF!"}},"SI","Ley 1581 de 2012, Ley 1712 de 2014 Articulo 19","Ley 1581 de 2012, Ley 1712 de 2014 Articulo 19","Reserva total","2018-11-28","Permanente"]
[{"$f":"IF(D161<>\"\",VLOOKUP('Activos de información - ICYR'!D161,DATA!$B$2:$C$95,2,)&\"-\"&IF(ISERR(B161),\"LEB\",B161),\"\")","v":"331-LEB"},{"$f":"IF(AND(A160=\"\",D161<>\"\"),\"LEB\",IF(D161<>\"\",1+B160,\"\"))","v":{"$error":"#REF!"}},"Información Digital","SUBDIRECCIÓN PARA LAS COMPETENCIAS DIGITALES","Base de datos - Programas ofrecidos por la Subdirección Competencias Digitales","Información de los beneficiarios y aspirantes a los programas ofrecidos por la subdirección.","SUBDIRECCIÓN PARA LAS COMPETENCIAS DIGITALES","2005-01-01","SUBDIRECCIÓN PARA LAS COMPETENCIAS DIGITALES","Sistemas de Información corporativos","Base de datos","Español","Pública Reservada",{"$f":"+IF(O161=\"Alta\",0.5,IF(O161=\"Media\",0.3,IF(O161=\"Baja\",0.2,\"\")))","v":0.5},"Alta",{"$f":"+IF(#REF!=\"Grave \",0.5,IF(#REF!=\"Importante\",0.3,IF(#REF!=\"Leve\",0.2,\"\")))","v":{"$error":"#REF!"}},"SI","Ley 1581 de 2012, Ley 1712 de 2014 Articulo 19","Ley 1581 de 2012, Ley 1712 de 2014 Articulo 19","No Aplica","2005-01-01","Permanente"]
[{"$f":"IF(D162<>\"\",VLOOKUP('Activos de información - ICYR'!D162,DATA!$B$2:$C$95,2,)&\"-\"&IF(ISERR(B162),\"LEB\",B162),\"\")","v":"331-LEB"},{"$f":"IF(AND(A161=\"\",D162<>\"\"),\"LEB\",IF(D162<>\"\",1+B161,\"\"))","v":{"$error":"#REF!"}},"Información Digital","SUBDIRECCIÓN PARA LAS COMPETENCIAS DIGITALES","Repositorio de soporte de ejecución de proyectos de la Subdirección Competencias Digitales","Carpeta que permite el seguimiento al avance de los proyectos con su debido soporte.","SUBDIRECCIÓN PARA LAS COMPETENCIAS DIGITALES","2018-08-31","SUBDIRECCIÓN PARA LAS COMPETENCIAS DIGITALES","Sistemas de Información corporativos","Base de datos","Español","Pública Reservada",{"$f":"+IF(O162=\"Alta\",0.5,IF(O162=\"Media\",0.3,IF(O162=\"Baja\",0.2,\"\")))","v":0.5},"Alta",{"$f":"+IF(#REF!=\"Grave \",0.5,IF(#REF!=\"Importante\",0.3,IF(#REF!=\"Leve\",0.2,\"\")))","v":{"$error":"#REF!"}},"SI","Ley 1581 de 2012, Ley 1712 de 2014 Articulo 19","Ley 1581 de 2012, Ley 1712 de 2014 Articulo 19","No Aplica","2018-08-31","Permanente"]
[{"$f":"IF(D163<>\"\",VLOOKUP('Activos de información - ICYR'!D163,DATA!$B$2:$C$95,2,)&\"-\"&IF(ISERR(B163),\"LEB\",B163),\"\")","v":"331-LEB"},{"$f":"IF(AND(A162=\"\",D163<>\"\"),\"LEB\",IF(D163<>\"\",1+B162,\"\"))","v":{"$error":"#REF!"}},"Información Digital","SUBDIRECCIÓN PARA LAS COMPETENCIAS DIGITALES","Seguimiento al programa  MisiónTIC: Plataforma 100k","Captura de información y su respectiva representación gráfica del programa MisiónTIC para la toma de decisión.","SUBDIRECCIÓN PARA LAS COMPETENCIAS DIGITALES","2019-10-01","SUBDIRECCIÓN PARA LAS COMPETENCIAS DIGITALES","Sistemas de Información corporativos","Base de datos","Español","Pública Reservada",{"$f":"+IF(O163=\"Alta\",0.5,IF(O163=\"Media\",0.3,IF(O163=\"Baja\",0.2,\"\")))","v":0.5},"Alta",{"$f":"+IF(#REF!=\"Grave \",0.5,IF(#REF!=\"Importante\",0.3,IF(#REF!=\"Leve\",0.2,\"\")))","v":{"$error":"#REF!"}},"SI","Ley 1581 de 2012, Ley 1712 de 2014 Articulo 19","Ley 1581 de 2012, Ley 1712 de 2014 Articulo 19","No Aplica","2019-10-01","Permanente"]
[{"$f":"IF(D164<>\"\",VLOOKUP('Activos de información - ICYR'!D164,DATA!$B$2:$C$95,2,)&\"-\"&IF(ISERR(B164),\"LEB\",B164),\"\")","v":"331-LEB"},{"$f":"IF(AND(A163=\"\",D164<>\"\"),\"LEB\",IF(D164<>\"\",1+B163,\"\"))","v":{"$error":"#REF!"}},"Información Digital","SUBDIRECCIÓN PARA LAS COMPETENCIAS DIGITALES","Plataforma de condonación convenio ICETEX","Permite la gestión documental de los procesos de condonación de los convenios ofrecidos con ICETEX, desde el cargue de archivos por parte de los beneficiarios hasta la determinación de la solicitud.","SUBDIRECCIÓN PARA LAS COMPETENCIAS DIGITALES","2005-01-01","SUBDIRECCIÓN PARA LAS COMPETENCIAS DIGITALES","Sistemas de Información corporativos","Base de datos","Español","Pública Reservada",{"$f":"+IF(O164=\"Alta\",0.5,IF(O164=\"Media\",0.3,IF(O164=\"Baja\",0.2,\"\")))","v":0.5},"Alta",{"$f":"+IF(#REF!=\"Grave \",0.5,IF(#REF!=\"Importante\",0.3,IF(#REF!=\"Leve\",0.2,\"\")))","v":{"$error":"#REF!"}},"SI","Ley 1581 de 2012, Ley 1712 de 2014 Articulo 19","Ley 1581 de 2012, Ley 1712 de 2014 Articulo 19","No Aplica","2005-01-01","Permanente"]
[{"$f":"IF(D165<>\"\",VLOOKUP('Activos de información - ICYR'!D165,DATA!$B$2:$C$95,2,)&\"-\"&IF(ISERR(B165),\"LEB\",B165),\"\")","v":"331-LEB"},{"$f":"IF(AND(A164=\"\",D165<>\"\"),\"LEB\",IF(D165<>\"\",1+B164,\"\"))","v":{"$error":"#REF!"}},"Información Digital","SUBDIRECCIÓN PARA LAS COMPETENCIAS DIGITALES","Aplicativo web para consultas - Programa de la subdirección","Permite la consolidación de cifras de los programas y  la generación de reportes.  La plataforma también permite la buúsqueda de aspirantes por diferentes campos en todos los programas. Además de un tablero en PowerBI para describir el perfil de los aspirantes y beneficiarios.","SUBDIRECCIÓN PARA LAS COMPETENCIAS DIGITALES","2005-01-01","SUBDIRECCIÓN PARA LAS COMPETENCIAS DIGITALES","Sistemas de Información corporativos","Base de datos","Español","Pública Reservada",{"$f":"+IF(O165=\"Alta\",0.5,IF(O165=\"Media\",0.3,IF(O165=\"Baja\",0.2,\"\")))","v":0.5},"Alta",{"$f":"+IF(#REF!=\"Grave \",0.5,IF(#REF!=\"Importante\",0.3,IF(#REF!=\"Leve\",0.2,\"\")))","v":{"$error":"#REF!"}},"SI","Ley 1581 de 2012, Ley 1712 de 2014 Articulo 19","Ley 1581 de 2012, Ley 1712 de 2014 Articulo 19","No Aplica","2005-01-01","Permanente"]
[{"$f":"IF(D166<>\"\",VLOOKUP('Activos de información - ICYR'!D166,DATA!$B$2:$C$95,2,)&\"-\"&IF(ISERR(B166),\"LEB\",B166),\"\")","v":"331-LEB"},{"$f":"IF(AND(A165=\"\",D166<>\"\"),\"LEB\",IF(D166<>\"\",1+B165,\"\"))","v":{"$error":"#REF!"}},"Información Digital","SUBDIRECCIÓN PARA LAS COMPETENCIAS DIGITALES","Base de datos de beneficiarios del programa TutoTIC","Información de los beneficiarios de las tutorias en el programa TutoTIC","SUBDIRECCIÓN PARA LAS COMPETENCIAS DIGITALES","2018-11-28","SUBDIRECCIÓN PARA LAS COMPETENCIAS DIGITALES","Sistemas de Información corporativos","Base de datos","Español","Pública Reservada",{"$f":"+IF(O166=\"Alta\",0.5,IF(O166=\"Media\",0.3,IF(O166=\"Baja\",0.2,\"\")))","v":0.5},"Alta",{"$f":"+IF(#REF!=\"Grave \",0.5,IF(#REF!=\"Importante\",0.3,IF(#REF!=\"Leve\",0.2,\"\")))","v":{"$error":"#REF!"}},"SI","Ley 1581 de 2012, Ley 1712 de 2014 Articulo 19","Ley 1581 de 2012, Ley 1712 de 2014 Articulo 19","Reserva total","2018-11-28","Permanente"]
[{"$f":"IF(D167<>\"\",VLOOKUP('Activos de información - ICYR'!D167,DATA!$B$2:$C$95,2,)&\"-\"&IF(ISERR(B167),\"LEB\",B167),\"\")","v":"331-LEB"},{"$f":"IF(AND(A166=\"\",D167<>\"\"),\"LEB\",IF(D167<>\"\",1+B166,\"\"))","v":{"$error":"#REF!"}},"Información Digital","SUBDIRECCIÓN PARA LAS COMPETENCIAS DIGITALES","Base de datos de beneficiarios del programa C-level","Información de los beneficiarios de la formación en el programa C-level","SUBDIRECCIÓN PARA LAS COMPETENCIAS DIGITALES","2018-11-28","SUBDIRECCIÓN PARA LAS COMPETENCIAS DIGITALES","Sistemas de Información corporativos","Base de datos","Español","Pública Reservada",{"$f":"+IF(O167=\"Alta\",0.5,IF(O167=\"Media\",0.3,IF(O167=\"Baja\",0.2,\"\")))","v":0.5},"Alta",{"$f":"+IF(#REF!=\"Grave \",0.5,IF(#REF!=\"Importante\",0.3,IF(#REF!=\"Leve\",0.2,\"\")))","v":{"$error":"#REF!"}},"SI","Ley 1581 de 2012, Ley 1712 de 2014 Articulo 19","Ley 1581 de 2012, Ley 1712 de 2014 Articulo 19","Reserva total","2018-11-28","Permanente"]
[{"$f":"IF(D168<>\"\",VLOOKUP('Activos de información - ICYR'!D168,DATA!$B$2:$C$95,2,)&\"-\"&IF(ISERR(B168),\"LEB\",B168),\"\")","v":"331-LEB"},{"$f":"IF(AND(A167=\"\",D168<>\"\"),\"LEB\",IF(D168<>\"\",1+B167,\"\"))","v":{"$error":"#REF!"}},"Información Digital","SUBDIRECCIÓN PARA LAS COMPETENCIAS DIGITALES","Base de datos de beneficiarios del programa Jugando y Kreando","Información de los beneficiarios de la formación en el programa Jugando y Kreando","SUBDIRECCIÓN PARA LAS COMPETENCIAS DIGITALES","2021-03-20","SUBDIRECCIÓN PARA LAS COMPETENCIAS DIGITALES","Sistemas de Información corporativos","Base de datos","Español","Pública Reservada",{"$f":"+IF(O168=\"Alta\",0.5,IF(O168=\"Media\",0.3,IF(O168=\"Baja\",0.2,\"\")))","v":0.5},"Alta",{"$f":"+IF(#REF!=\"Grave \",0.5,IF(#REF!=\"Importante\",0.3,IF(#REF!=\"Leve\",0.2,\"\")))","v":{"$error":"#REF!"}},"SI","Ley 1581 de 2012, Ley 1712 de 2014 Articulo 19","Ley 1581 de 2012, Ley 1712 de 2014 Articulo 19","Reserva total","2018-11-28","Permanente"]
[{"$f":"IF(D169<>\"\",VLOOKUP('Activos de información - ICYR'!D169,DATA!$B$2:$C$95,2,)&\"-\"&IF(ISERR(B169),\"LEB\",B169),\"\")","v":"331-LEB"},{"$f":"IF(AND(A168=\"\",D169<>\"\"),\"LEB\",IF(D169<>\"\",1+B168,\"\"))","v":{"$error":"#REF!"}},"Información Digital","SUBDIRECCIÓN PARA LAS COMPETENCIAS DIGITALES","Base de datos de beneficiarios del programa Ciberseguridad","Información de los beneficiarios de la formación en el programa Ciberseguridad","SUBDIRECCIÓN PARA LAS COMPETENCIAS DIGITALES","2021-04-20","SUBDIRECCIÓN PARA LAS COMPETENCIAS DIGITALES","Sistemas de Información corporativos","Base de datos","Español","Pública Reservada",{"$f":"+IF(O169=\"Alta\",0.5,IF(O169=\"Media\",0.3,IF(O169=\"Baja\",0.2,\"\")))","v":0.5},"Alta",{"$f":"+IF(#REF!=\"Grave \",0.5,IF(#REF!=\"Importante\",0.3,IF(#REF!=\"Leve\",0.2,\"\")))","v":{"$error":"#REF!"}},"SI","Ley 1581 de 2012, Ley 1712 de 2014 Articulo 19","Ley 1581 de 2012, Ley 1712 de 2014 Articulo 19","Reserva total","2018-11-28","Permanente"]
[{"$f":"IF(D170<>\"\",VLOOKUP('Activos de información - ICYR'!D170,DATA!$B$2:$C$95,2,)&\"-\"&IF(ISERR(B170),\"LEB\",B170),\"\")","v":"331-LEB"},{"$f":"IF(AND(A169=\"\",D170<>\"\"),\"LEB\",IF(D170<>\"\",1+B169,\"\"))","v":{"$error":"#REF!"}},"Información Digital","SUBDIRECCIÓN PARA LAS COMPETENCIAS DIGITALES","Base de datos de beneficiarios del programa Ruta STEM","Información de los beneficiarios de la formación en el programa Ruta STEM","SUBDIRECCIÓN PARA LAS COMPETENCIAS DIGITALES","2020-03-20","SUBDIRECCIÓN PARA LAS COMPETENCIAS DIGITALES","Sistemas de Información corporativos","Base de datos","Español","Pública Reservada",{"$f":"+IF(O170=\"Alta\",0.5,IF(O170=\"Media\",0.3,IF(O170=\"Baja\",0.2,\"\")))","v":0.5},"Alta",{"$f":"+IF(#REF!=\"Grave \",0.5,IF(#REF!=\"Importante\",0.3,IF(#REF!=\"Leve\",0.2,\"\")))","v":{"$error":"#REF!"}},"SI","Ley 1581 de 2012, Ley 1712 de 2014 Articulo 19","Ley 1581 de 2012, Ley 1712 de 2014 Articulo 19","Reserva total","2018-11-28","Permanente"]
[{"$f":"IF(D171<>\"\",VLOOKUP('Activos de información - ICYR'!D171,DATA!$B$2:$C$95,2,)&\"-\"&IF(ISERR(B171),\"LEB\",B171),\"\")","v":"332-LEB"},{"$f":"IF(AND(A170=\"\",D171<>\"\"),\"LEB\",IF(D171<>\"\",1+B170,\"\"))","v":{"$error":"#REF!"}},"Información Física – Digital","SUBDIRECCIÓN DE INDUSTRIA DE TECNOLOGÍAS DE LA INFORMACIÓN","Bases de datos empresas beneficiadas Industria Digital","Información de las empresas beneficiadas de los proyectos de fortalecimiento a empresas de la industria digital","SUBDIRECCIÓN DE INDUSTRIA DE TECNOLOGÍAS DE LA INFORMACIÓN","1905-07-10","SUBDIRECCIÓN DE INDUSTRIA DE TECNOLOGÍAS DE LA INFORMACIÓN","Documentos de Archivo - electrónicos","XLS","Español","Pública Reservada",{"$f":"+IF(O171=\"Alta\",0.5,IF(O171=\"Media\",0.3,IF(O171=\"Baja\",0.2,\"\")))","v":0.5},"Alta",{"$f":"+IF(#REF!=\"Grave \",0.5,IF(#REF!=\"Importante\",0.3,IF(#REF!=\"Leve\",0.2,\"\")))","v":{"$error":"#REF!"}},"SI","Ley 1712 de 2014 Articulo 19","Ley 1712 de 2014 Articulo 19, literal a\nParágrafo","Reserva parcial","2020-08-27","Permanente"]
[{"$f":"IF(D172<>\"\",VLOOKUP('Activos de información - ICYR'!D172,DATA!$B$2:$C$95,2,)&\"-\"&IF(ISERR(B172),\"LEB\",B172),\"\")","v":"332-LEB"},{"$f":"IF(AND(A171=\"\",D172<>\"\"),\"LEB\",IF(D172<>\"\",1+B171,\"\"))","v":{"$error":"#REF!"}},"Información Física – Digital","SUBDIRECCIÓN DE INDUSTRIA DE TECNOLOGÍAS DE LA INFORMACIÓN","Actas de comité primario","Actas de seguimiento a la gestión de la Subdirección de Industria de TI","SUBDIRECCIÓN DE INDUSTRIA DE TECNOLOGÍAS DE LA INFORMACIÓN","1905-07-10","SUBDIRECCIÓN DE INDUSTRIA DE TECNOLOGÍAS DE LA INFORMACIÓN","Documentos de Archivo - electrónicos","PDF","Español","Pública Reservada",{"$f":"+IF(O172=\"Alta\",0.5,IF(O172=\"Media\",0.3,IF(O172=\"Baja\",0.2,\"\")))","v":0.5},"Alta",{"$f":"+IF(#REF!=\"Grave \",0.5,IF(#REF!=\"Importante\",0.3,IF(#REF!=\"Leve\",0.2,\"\")))","v":{"$error":"#REF!"}},"SI","Ley 1712 de 2014 Articulo 19","Ley 1712 de 2014 Articulo 19, literal a\nParágrafo","Reserva parcial","2020-08-27","Permanente"]
[{"$f":"IF(D173<>\"\",VLOOKUP('Activos de información - ICYR'!D173,DATA!$B$2:$C$95,2,)&\"-\"&IF(ISERR(B173),\"LEB\",B173),\"\")","v":"332-LEB"},{"$f":"IF(AND(A172=\"\",D173<>\"\"),\"LEB\",IF(D173<>\"\",1+B172,\"\"))","v":{"$error":"#REF!"}},"Información Física – Digital","SUBDIRECCIÓN DE INDUSTRIA DE TECNOLOGÍAS DE LA INFORMACIÓN","Base de Datos Beneficiarios Cursos Virtuales y semilleros emprendimiento digital","Información detallada de los beneficiarios de a formación en los cursos virtuales registrados en la plataforma de Apps.co","SUBDIRECCIÓN DE INDUSTRIA DE TECNOLOGÍAS DE LA INFORMACIÓN","1905-07-10","SUBDIRECCIÓN DE INDUSTRIA DE TECNOLOGÍAS DE LA INFORMACIÓN","Sistemas de Información corporativos","XLS","Español","Pública Reservada",{"$f":"+IF(O173=\"Alta\",0.5,IF(O173=\"Media\",0.3,IF(O173=\"Baja\",0.2,\"\")))","v":0.5},"Alta",{"$f":"+IF(#REF!=\"Grave \",0.5,IF(#REF!=\"Importante\",0.3,IF(#REF!=\"Leve\",0.2,\"\")))","v":{"$error":"#REF!"}},"SI","Ley 1712 de 2014 Articulo 19","Ley 1712 de 2014 Articulo 19, literal a\nParágrafo","Reserva parcial","2019-01-02","Permanente"]
[{"$f":"IF(D174<>\"\",VLOOKUP('Activos de información - ICYR'!D174,DATA!$B$2:$C$95,2,)&\"-\"&IF(ISERR(B174),\"LEB\",B174),\"\")","v":"332-LEB"},{"$f":"IF(AND(A173=\"\",D174<>\"\"),\"LEB\",IF(D174<>\"\",1+B173,\"\"))","v":{"$error":"#REF!"}},"Información Física – Digital","SUBDIRECCIÓN DE INDUSTRIA DE TECNOLOGÍAS DE LA INFORMACIÓN","Base de Datos Equipos Acompañados en Etapa Temprana y Avanzada","Información detallada de los equipos acompañados en etapa temprana y avanzada para cada una de las iteraciones del programa Apps.co ","SUBDIRECCIÓN DE INDUSTRIA DE TECNOLOGÍAS DE LA INFORMACIÓN","1905-07-10","SUBDIRECCIÓN DE INDUSTRIA DE TECNOLOGÍAS DE LA INFORMACIÓN","Sistemas de Información corporativos","XLS","Español","Pública Reservada",{"$f":"+IF(O174=\"Alta\",0.5,IF(O174=\"Media\",0.3,IF(O174=\"Baja\",0.2,\"\")))","v":0.5},"Alta",{"$f":"+IF(#REF!=\"Grave \",0.5,IF(#REF!=\"Importante\",0.3,IF(#REF!=\"Leve\",0.2,\"\")))","v":{"$error":"#REF!"}},"SI","Ley 1712 de 2014 Articulo 19","Ley 1712 de 2014 Articulo 19, literal a\nParágrafo","Reserva parcial","2019-01-02","Permanente"]
[{"$f":"IF(D175<>\"\",VLOOKUP('Activos de información - ICYR'!D175,DATA!$B$2:$C$95,2,)&\"-\"&IF(ISERR(B175),\"LEB\",B175),\"\")","v":"332-LEB"},{"$f":"IF(AND(A174=\"\",D175<>\"\"),\"LEB\",IF(D175<>\"\",1+B174,\"\"))","v":{"$error":"#REF!"}},"Información Física – Digital","SUBDIRECCIÓN DE INDUSTRIA DE TECNOLOGÍAS DE LA INFORMACIÓN","Políticas de promoción y generación de emprendimiento digital e Industria","Documentos técnicos, instrumentos y herramientas de formulación de políticas promoción y fortalecimiento del emprendimiento digital e industria digital","SUBDIRECCIÓN DE INDUSTRIA DE TECNOLOGÍAS DE LA INFORMACIÓN","1905-07-12","SUBDIRECCIÓN DE INDUSTRIA DE TECNOLOGÍAS DE LA INFORMACIÓN","Documentos de Archivo - electrónicos","XLS -PDF","Español","Pública Reservada",{"$f":"+IF(O175=\"Alta\",0.5,IF(O175=\"Media\",0.3,IF(O175=\"Baja\",0.2,\"\")))","v":0.5},"Alta",{"$f":"+IF(#REF!=\"Grave \",0.5,IF(#REF!=\"Importante\",0.3,IF(#REF!=\"Leve\",0.2,\"\")))","v":{"$error":"#REF!"}},"SI","Ley 1712 de 2014 Articulo 19","Ley 1712 de 2014 Articulo 19, literal a\nParágrafo","Reserva parcial","2019-01-03","Permanente"]
[{"$f":"IF(D176<>\"\",VLOOKUP('Activos de información - ICYR'!D176,DATA!$B$2:$C$95,2,)&\"-\"&IF(ISERR(B176),\"LEB\",B176),\"\")","v":"332-LEB"},{"$f":"IF(AND(A175=\"\",D176<>\"\"),\"LEB\",IF(D176<>\"\",1+B175,\"\"))","v":{"$error":"#REF!"}},"Información Física – Digital","SUBDIRECCIÓN DE INDUSTRIA DE TECNOLOGÍAS DE LA INFORMACIÓN","Estudios de viabilidad para el emprendimiento e industria digital","Documentos técnicos, estudios y formatos de viabilidad para la implementación de acciones para el emprendimiento y la industria digital","SUBDIRECCIÓN DE INDUSTRIA DE TECNOLOGÍAS DE LA INFORMACIÓN","1905-07-12","SUBDIRECCIÓN DE INDUSTRIA DE TECNOLOGÍAS DE LA INFORMACIÓN","Documentos de Archivo - electrónicos","XLS -PDF","Español","Pública Reservada",{"$f":"+IF(O176=\"Alta\",0.5,IF(O176=\"Media\",0.3,IF(O176=\"Baja\",0.2,\"\")))","v":0.5},"Alta",{"$f":"+IF(#REF!=\"Grave \",0.5,IF(#REF!=\"Importante\",0.3,IF(#REF!=\"Leve\",0.2,\"\")))","v":{"$error":"#REF!"}},"SI","Ley 1712 de 2014 Articulo 19","Ley 1712 de 2014 Articulo 19, literal a\nParágrafo","Reserva parcial","2019-01-03","Permanente"]
[{"$f":"IF(D177<>\"\",VLOOKUP('Activos de información - ICYR'!D177,DATA!$B$2:$C$95,2,)&\"-\"&IF(ISERR(B177),\"LEB\",B177),\"\")","v":"332-LEB"},{"$f":"IF(AND(#REF!=\"\",D177<>\"\"),\"LEB\",IF(D177<>\"\",1+#REF!,\"\"))","v":{"$error":"#REF!"}},"Información Física – Digital","SUBDIRECCIÓN DE INDUSTRIA DE TECNOLOGÍAS DE LA INFORMACIÓN","Respuestas a peticiones, quejas, reclamos, sugerencias y denuncias de la Subdirección – pqrsd","Respuestas a peticiones, quejas, reclamos, sugerencias y denuncias de la Subdirección – pqrsd","SUBDIRECCIÓN DE INDUSTRIA DE TECNOLOGÍAS DE LA INFORMACIÓN","1905-07-12","SUBDIRECCIÓN DE INDUSTRIA DE TECNOLOGÍAS DE LA INFORMACIÓN","Sistemas de Información corporativos","PDF","Español","Pública Reservada",{"$f":"+IF(O177=\"Alta\",0.5,IF(O177=\"Media\",0.3,IF(O177=\"Baja\",0.2,\"\")))","v":0.5},"Alta",{"$f":"+IF(#REF!=\"Grave \",0.5,IF(#REF!=\"Importante\",0.3,IF(#REF!=\"Leve\",0.2,\"\")))","v":{"$error":"#REF!"}},"No Aplica","Ley 1712 de 2014 Articulo 19","Ley 1712 de 2014 Articulo 19, literal a\nParágrafo","Reserva parcial","1905-07-12","Permanente"]
[{"$f":"IF(D178<>\"\",VLOOKUP('Activos de información - ICYR'!D178,DATA!$B$2:$C$95,2,)&\"-\"&IF(ISERR(B178),\"LEB\",B178),\"\")","v":"332-LEB"},{"$f":"IF(AND(A177=\"\",D178<>\"\"),\"LEB\",IF(D178<>\"\",1+B177,\"\"))","v":{"$error":"#REF!"}},"Información Física – Digital","SUBDIRECCIÓN DE INDUSTRIA DE TECNOLOGÍAS DE LA INFORMACIÓN","Bases de Datos de las legalizaciones de la Subdirección ","Información Datos de las legalizaciones de la Subdirección ","SUBDIRECCIÓN DE INDUSTRIA DE TECNOLOGÍAS DE LA INFORMACIÓN","1905-07-11","SUBDIRECCIÓN DE INDUSTRIA DE TECNOLOGÍAS DE LA INFORMACIÓN","Documentos de Archivo - electrónicos","XLS","Español","Pública Reservada",{"$f":"+IF(O178=\"Alta\",0.5,IF(O178=\"Media\",0.3,IF(O178=\"Baja\",0.2,\"\")))","v":0.5},"Alta",{"$f":"+IF(#REF!=\"Grave \",0.5,IF(#REF!=\"Importante\",0.3,IF(#REF!=\"Leve\",0.2,\"\")))","v":{"$error":"#REF!"}},"SI","Ley 1712 de 2014 Articulo 19","Ley 1712 de 2014 Articulo 19, literal a\nParágrafo","Reserva parcial","1905-07-12","Permanente"]
[{"$f":"IF(D179<>\"\",VLOOKUP('Activos de información - ICYR'!D179,DATA!$B$2:$C$95,2,)&\"-\"&IF(ISERR(B179),\"LEB\",B179),\"\")","v":"333-LEB"},{"$f":"IF(AND(#REF!=\"\",D179<>\"\"),\"LEB\",IF(D179<>\"\",1+#REF!,\"\"))","v":{"$error":"#REF!"}},"Información Digital","SUBDIRECCIÓN PARA LA TRANSFORMACIÓN SECTORIAL","Base de datos beneficiarios del proyecto Vende en Línea","Información de los beneficiarios del proyecto Vende en Línea","SUBDIRECCIÓN PARA LA TRANSFORMACIÓN SECTORIAL","2021-05-21","SUBDIRECCIÓN PARA LA TRANSFORMACIÓN SECTORIAL","Documentos de Archivo - electrónicos","Hoja de cálculo","Español","Pública Reservada",{"$f":"+IF(O179=\"Alta\",0.5,IF(O179=\"Media\",0.3,IF(O179=\"Baja\",0.2,\"\")))","v":0.5},"Alta",{"$f":"+IF(#REF!=\"Grave \",0.5,IF(#REF!=\"Importante\",0.3,IF(#REF!=\"Leve\",0.2,\"\")))","v":{"$error":"#REF!"}},"SI","Ley 1712 de 2014 Articulo 19","Ley 1712 de 2014 Articulo 19, literal a\nParágrafo","Reserva parcial","2021-05-21","Permanente"]
[{"$f":"IF(D180<>\"\",VLOOKUP('Activos de información - ICYR'!D180,DATA!$B$2:$C$95,2,)&\"-\"&IF(ISERR(B180),\"LEB\",B180),\"\")","v":"333-LEB"},{"$f":"IF(AND(A179=\"\",D180<>\"\"),\"LEB\",IF(D180<>\"\",1+B179,\"\"))","v":{"$error":"#REF!"}},"Información Digital","SUBDIRECCIÓN PARA LA TRANSFORMACIÓN SECTORIAL","Base de datos beneficiarios del proyecto Tiendas Virtuales","Información de los beneficiarios del proyecto Tiendas Virtuales","SUBDIRECCIÓN PARA LA TRANSFORMACIÓN SECTORIAL","2021-08-15","SUBDIRECCIÓN PARA LA TRANSFORMACIÓN SECTORIAL","Documentos de Archivo - electrónicos","Hoja de cálculo","Español","Pública Reservada",{"$f":"+IF(O180=\"Alta\",0.5,IF(O180=\"Media\",0.3,IF(O180=\"Baja\",0.2,\"\")))","v":0.5},"Alta",{"$f":"+IF(#REF!=\"Grave \",0.5,IF(#REF!=\"Importante\",0.3,IF(#REF!=\"Leve\",0.2,\"\")))","v":{"$error":"#REF!"}},"No Aplica","Ley 1712 de 2014 Articulo 19","Ley 1712 de 2014 Articulo 19, literal a\nParágrafo","Reserva parcial","2021-08-15","Permanente"]
[{"$f":"IF(D181<>\"\",VLOOKUP('Activos de información - ICYR'!D181,DATA!$B$2:$C$95,2,)&\"-\"&IF(ISERR(B181),\"LEB\",B181),\"\")","v":"333-LEB"},{"$f":"IF(AND(A180=\"\",D181<>\"\"),\"LEB\",IF(D181<>\"\",1+B180,\"\"))","v":{"$error":"#REF!"}},"Información Digital","SUBDIRECCIÓN PARA LA TRANSFORMACIÓN SECTORIAL","Base de datos beneficiarios del proyecto Datos y Tecnologías 4.0 ","Información de los beneficiarios del proyecto Datos y Tecnologías 4.0 ","SUBDIRECCIÓN PARA LA TRANSFORMACIÓN SECTORIAL","2021-08-15","SUBDIRECCIÓN PARA LA TRANSFORMACIÓN SECTORIAL","Documentos de Archivo - electrónicos","Hoja de cálculo","Español","Pública Reservada",{"$f":"+IF(O181=\"Alta\",0.5,IF(O181=\"Media\",0.3,IF(O181=\"Baja\",0.2,\"\")))","v":0.5},"Alta",{"$f":"+IF(#REF!=\"Grave \",0.5,IF(#REF!=\"Importante\",0.3,IF(#REF!=\"Leve\",0.2,\"\")))","v":{"$error":"#REF!"}},"No Aplica","Ley 1712 de 2014 Articulo 19","Ley 1712 de 2014 Articulo 19, literal a\nParágrafo","Reserva parcial","2021-08-15","Permanente"]
[{"$f":"IF(D182<>\"\",VLOOKUP('Activos de información - ICYR'!D182,DATA!$B$2:$C$95,2,)&\"-\"&IF(ISERR(B182),\"LEB\",B182),\"\")","v":"333-LEB"},{"$f":"IF(AND(A181=\"\",D182<>\"\"),\"LEB\",IF(D182<>\"\",1+B181,\"\"))","v":{"$error":"#REF!"}},"Información Digital","SUBDIRECCIÓN PARA LA TRANSFORMACIÓN SECTORIAL","Base de datos beneficiarios del proyecto Centros de Servicios Compartidos","Información de los beneficiarios del proyecto Centros de Servicios Compartidos","SUBDIRECCIÓN PARA LA TRANSFORMACIÓN SECTORIAL","2021-08-15","SUBDIRECCIÓN PARA LA TRANSFORMACIÓN SECTORIAL","Documentos de Archivo - electrónicos","Hoja de cálculo","Español","Pública Reservada",{"$f":"+IF(O182=\"Alta\",0.5,IF(O182=\"Media\",0.3,IF(O182=\"Baja\",0.2,\"\")))","v":0.5},"Alta",{"$f":"+IF(#REF!=\"Grave \",0.5,IF(#REF!=\"Importante\",0.3,IF(#REF!=\"Leve\",0.2,\"\")))","v":{"$error":"#REF!"}},"No Aplica","Ley 1712 de 2014 Articulo 19","Ley 1712 de 2014 Articulo 19, literal a\nParágrafo","Reserva parcial","2021-08-15","Permanente"]
[{"$f":"IF(D183<>\"\",VLOOKUP('Activos de información - ICYR'!D183,DATA!$B$2:$C$95,2,)&\"-\"&IF(ISERR(B183),\"LEB\",B183),\"\")","v":"333-LEB"},{"$f":"IF(AND(A182=\"\",D183<>\"\"),\"LEB\",IF(D183<>\"\",1+B182,\"\"))","v":{"$error":"#REF!"}},"Información Digital","SUBDIRECCIÓN PARA LA TRANSFORMACIÓN SECTORIAL","Base de datos beneficiarios del proyecto Centros de Transformación Digital Empresarial - CTDE","Información de los beneficiarios del proyecto Centros de Transformación Digital Empresarial - CTDE","SUBDIRECCIÓN PARA LA TRANSFORMACIÓN SECTORIAL","2021-12-30","SUBDIRECCIÓN PARA LA TRANSFORMACIÓN SECTORIAL","Documentos de Archivo - electrónicos","Hoja de cálculo","Español","Pública Reservada",{"$f":"+IF(O183=\"Alta\",0.5,IF(O183=\"Media\",0.3,IF(O183=\"Baja\",0.2,\"\")))","v":0.5},"Alta",{"$f":"+IF(#REF!=\"Grave \",0.5,IF(#REF!=\"Importante\",0.3,IF(#REF!=\"Leve\",0.2,\"\")))","v":{"$error":"#REF!"}},"No Aplica","Ley 1712 de 2014 Articulo 19","Ley 1712 de 2014 Articulo 19, literal a\nParágrafo","Reserva parcial","No Aplica","Permanente"]
[{"$f":"IF(D184<>\"\",VLOOKUP('Activos de información - ICYR'!D184,DATA!$B$2:$C$95,2,)&\"-\"&IF(ISERR(B184),\"LEB\",B184),\"\")","v":"4001-LEB"},{"$f":"IF(AND(#REF!=\"\",D184<>\"\"),\"LEB\",IF(D184<>\"\",1+#REF!,\"\"))","v":{"$error":"#REF!"}},"Información Física","GRUPO INTERNO DE TRABAJO DE CONTROL INTERNO DISCIPLINARIO","Denuncias, quejas  informes de servidor público o solicitudes","Corresponde a solicitudes generales, copias,  petición de información, denuncias o quejas e informes de servidor público presentados por posibles infracciones de servidores.","GRUPO INTERNO DE TRABAJO DE CONTROL INTERNO DISCIPLINARIO","2018-11-28","GRUPO INTERNO DE TRABAJO DE GRUPOS DE INTERÉS Y GESTIÓN DOCUMENTAL","Documentos de Archivo - físicos","Papel","Español","Pública Reservada",{"$f":"+IF(O184=\"Alta\",0.5,IF(O184=\"Media\",0.3,IF(O184=\"Baja\",0.2,\"\")))","v":0.5},"Alta",{"$f":"+IF(#REF!=\"Grave \",0.5,IF(#REF!=\"Importante\",0.3,IF(#REF!=\"Leve\",0.2,\"\")))","v":{"$error":"#REF!"}},"SI","Art 95 - Ley 734 de 2002","De conformidad con lo establecido en la Ley 1712 de 2014, artículo 19, literales d y e. Además de lo reglado en la Ley 1581 de 2012, artículo 6, literal d","Reserva parcial","2018-11-28","Hasta cuando se formule el pliego de cargos o la providencia que ordene el archivo definitivo"]
[{"$f":"IF(D185<>\"\",VLOOKUP('Activos de información - ICYR'!D185,DATA!$B$2:$C$95,2,)&\"-\"&IF(ISERR(B185),\"LEB\",B185),\"\")","v":"4001-LEB"},{"$f":"IF(AND(A184=\"\",D185<>\"\"),\"LEB\",IF(D185<>\"\",1+B184,\"\"))","v":{"$error":"#REF!"}},"Información Física","GRUPO INTERNO DE TRABAJO DE CONTROL INTERNO DISCIPLINARIO","PROCESOS DISCIPLINARIOS VERBALES","Expediente que contiene el procedimiento verbal disciplinario. Que es un mecanismo especial, contiene los siguientes elementos:\nAuto de citación a audiencia \nNotificación personal \nActa de celebración de primera audiencia (pruebas, descargos, versión libre, nulidades)\nActa de celebración de segunda audiencia (resuelve nulidades, decreta pruebas)\nActa de celebración de tercera audiencia (práctica de pruebas) \nActa de celebración de cuarta audiencia (alegatos de conclusión) \nActa de celebración de quinta audiencia (fallo de primera instancia) \nApelación \nAuto que concede apelación \nOficio remisorio para la segunda instancia \nFalla de segunda instancia (acto administrativo)\nOficio de citación\nNotificación\nResolución de ejecución de sanción disciplinaria\nNotificación\nComunicaciones de Ley (Procuraduría, Gestión Humana, Fiscalía, Contraloría)\nComunicaciones\n","GRUPO INTERNO DE TRABAJO DE CONTROL INTERNO DISCIPLINARIO","2018-11-28","GRUPO INTERNO DE TRABAJO DE GRUPOS DE INTERÉS Y GESTIÓN DOCUMENTAL","Documentos de Archivo - físicos","Papel","Español","Pública Reservada",{"$f":"+IF(O185=\"Alta\",0.5,IF(O185=\"Media\",0.3,IF(O185=\"Baja\",0.2,\"\")))","v":0.5},"Alta",{"$f":"+IF(#REF!=\"Grave \",0.5,IF(#REF!=\"Importante\",0.3,IF(#REF!=\"Leve\",0.2,\"\")))","v":{"$error":"#REF!"}},"SI","Art 95 - Ley 734 de 2002","De conformidad con lo establecido en la Ley 1712 de 2014, artículo 19, literales d y e. Además de lo reglado en la Ley 1581 de 2012, artículo 6, literal d. ","Reserva parcial","2002-02-05","Hasta cuando se formule el pliego de cargos o la providencia que ordene el archivo definitivo"]
[{"$f":"IF(D186<>\"\",VLOOKUP('Activos de información - ICYR'!D186,DATA!$B$2:$C$95,2,)&\"-\"&IF(ISERR(B186),\"LEB\",B186),\"\")","v":"4001-LEB"},{"$f":"IF(AND(A185=\"\",D186<>\"\"),\"LEB\",IF(D186<>\"\",1+B185,\"\"))","v":{"$error":"#REF!"}},"Información Física","GRUPO INTERNO DE TRABAJO DE CONTROL INTERNO DISCIPLINARIO","PROCESOS ORDINARIOS INDAGACIÓN PRELIMINAR / AUTOS INHIBITORIOS ","Expediente que contiene el procedimiento de indagación previa o decisión inhibitoria es decir de abstenerse de conocer de un asunto por las razones determinadas, contiene los siguientes elementos:\nQueja o informe\nAuto Inhibitorio\nOficio remisorio\nComunicaciones\n\nQueja o informe\nAuto de apertura\nNotificación del auto\nVersión libre\nDeclaración juramentada\nOficio práctica de pruebas\nAuto de archivo\nOficio de citación\nNotificación \nComunicaciones\n","GRUPO INTERNO DE TRABAJO DE CONTROL INTERNO DISCIPLINARIO","2018-11-28","GRUPO INTERNO DE TRABAJO DE GRUPOS DE INTERÉS Y GESTIÓN DOCUMENTAL","Documentos de Archivo - físicos","Papel","Español","Pública Reservada",{"$f":"+IF(O186=\"Alta\",0.5,IF(O186=\"Media\",0.3,IF(O186=\"Baja\",0.2,\"\")))","v":0.5},"Alta",{"$f":"+IF(#REF!=\"Grave \",0.5,IF(#REF!=\"Importante\",0.3,IF(#REF!=\"Leve\",0.2,\"\")))","v":{"$error":"#REF!"}},"SI","Art 95 - Ley 734 de 2002","De conformidad con lo establecido en la Ley 1712 de 2014, artículo 19, literales d y e. Además de lo reglado en la Ley 1581 de 2012, artículo 6, literal d","Reserva parcial","2002-02-05","Hasta cuando se formule el pliego de cargos o la providencia que ordene el archivo definitivo"]
[{"$f":"IF(D187<>\"\",VLOOKUP('Activos de información - ICYR'!D187,DATA!$B$2:$C$95,2,)&\"-\"&IF(ISERR(B187),\"LEB\",B187),\"\")","v":"4001-LEB"},{"$f":"IF(AND(A186=\"\",D187<>\"\"),\"LEB\",IF(D187<>\"\",1+B186,\"\"))","v":{"$error":"#REF!"}},"Información Física","GRUPO INTERNO DE TRABAJO DE CONTROL INTERNO DISCIPLINARIO","PROCESOS ORDINARIOS DE INVESTIGACIÓN DISCIPLINARIA","Expediente que contiene el procedimiento de investigación disciplinaria, contiene los siguientes elementos:\n\n\nQueja o informe\nAuto de apertura\nNotificación del auto\nVersión libre\nDeclaración juramentada\nOficio práctica de pruebas\nAuto de archivo\nOficio de citación\nNotificación \nComunicaciones\nRecurso de apelación\nAuto de que concede apelación\nOficio remisorio al despacho del ministro\nOficio remisorio para la segunda instancia \nFallo de segunda instancia (acto administrativo)\nOficio de citación\nNotificación\nResolución de ejecución de sanción disciplinaria\nNotificación\nComunicaciones de Ley (Procuraduría, Gestión Humana, Fiscalía, Contraloría)\nComunicaciones","GRUPO INTERNO DE TRABAJO DE CONTROL INTERNO DISCIPLINARIO","2018-11-28","GRUPO INTERNO DE TRABAJO DE GRUPOS DE INTERÉS Y GESTIÓN DOCUMENTAL","Documentos de Archivo - físicos","Papel","Español","Pública Reservada",{"$f":"+IF(O187=\"Alta\",0.5,IF(O187=\"Media\",0.3,IF(O187=\"Baja\",0.2,\"\")))","v":0.5},"Alta",{"$f":"+IF(#REF!=\"Grave \",0.5,IF(#REF!=\"Importante\",0.3,IF(#REF!=\"Leve\",0.2,\"\")))","v":{"$error":"#REF!"}},"SI","Art 95 - Ley 734 de 2002","De conformidad con lo establecido en la Ley 1712 de 2014, artículo 19, literales d y e. Además de lo reglado en la Ley 1581 de 2012, artículo 6, literal d","Reserva parcial","2002-02-05","Hasta cuando se formule el pliego de cargos o la providencia que ordene el archivo definitivo"]
[{"$f":"IF(D188<>\"\",VLOOKUP('Activos de información - ICYR'!D188,DATA!$B$2:$C$95,2,)&\"-\"&IF(ISERR(B188),\"LEB\",B188),\"\")","v":"4013-LEB"},{"$f":"IF(AND(#REF!=\"\",D188<>\"\"),\"LEB\",IF(D188<>\"\",1+#REF!,\"\"))","v":{"$error":"#REF!"}},"Información Digital","GRUPO INTERNO DE TRABAJO DE PRESUPUESTO","CERTIFICADO DE DISPONIBILIDAD PRESUPUESTAL FONDO","DOCUMENTO EXPEDIDO POR EL JEFE DE PRESUPUESTO CON EL CUAL SE GARANTIZA LA EXISATENCIA DE APROPACIÓN PRESUPUESTAL Y LIBRE DE AFECTACIÓN.","GRUPO INTERNO DE TRABAJO DE PRESUPUESTO","2020-08-13","GRUPO INTERNO DE TRABAJO DE PRESUPUESTO","Archivos Institucionales - electrónico","PDF","Español","Pública Clasificada",{"$f":"+IF(O188=\"Alta\",0.5,IF(O188=\"Media\",0.3,IF(O188=\"Baja\",0.2,\"\")))","v":0.5},"Alta",{"$f":"+IF(#REF!=\"Grave \",0.5,IF(#REF!=\"Importante\",0.3,IF(#REF!=\"Leve\",0.2,\"\")))","v":{"$error":"#REF!"}},"SI","LEY 1266 2008","LEY 1581 2012\nLEY 1712 2014 ART 18","Sin reserva","2020-08-13","Permanente"]
[{"$f":"IF(D189<>\"\",VLOOKUP('Activos de información - ICYR'!D189,DATA!$B$2:$C$95,2,)&\"-\"&IF(ISERR(B189),\"LEB\",B189),\"\")","v":"4013-LEB"},{"$f":"IF(AND(A188=\"\",D189<>\"\"),\"LEB\",IF(D189<>\"\",1+B188,\"\"))","v":{"$error":"#REF!"}},"Información Digital","GRUPO INTERNO DE TRABAJO DE PRESUPUESTO","CERTIFICADO DE DISPONIBILIDAD PRESUPUESTAL MINISTERIO","DOCUMENTO EXPEDIDO POR EL JEFE DE PRESUPUESTO CON EL CUAL SE GARANTIZA LA EXISATENCIA DE APROPACIÓN PRESUPUESTAL Y LIBRE DE AFECTACIÓN.","GRUPO INTERNO DE TRABAJO DE PRESUPUESTO","2020-08-13","GRUPO INTERNO DE TRABAJO DE PRESUPUESTO","Archivos Institucionales - electrónico","PDF","Español","Pública Clasificada",{"$f":"+IF(O189=\"Alta\",0.5,IF(O189=\"Media\",0.3,IF(O189=\"Baja\",0.2,\"\")))","v":0.5},"Alta",{"$f":"+IF(#REF!=\"Grave \",0.5,IF(#REF!=\"Importante\",0.3,IF(#REF!=\"Leve\",0.2,\"\")))","v":{"$error":"#REF!"}},"SI","LEY 1266 2008","LEY 1581 2012\nLEY 1712 2014 ART 18","Sin reserva","2020-08-13","Permanente"]
[{"$f":"IF(D190<>\"\",VLOOKUP('Activos de información - ICYR'!D190,DATA!$B$2:$C$95,2,)&\"-\"&IF(ISERR(B190),\"LEB\",B190),\"\")","v":"4013-LEB"},{"$f":"IF(AND(#REF!=\"\",D190<>\"\"),\"LEB\",IF(D190<>\"\",1+#REF!,\"\"))","v":{"$error":"#REF!"}},"Información Digital","GRUPO INTERNO DE TRABAJO DE PRESUPUESTO","REGISTROS PRESUPUESTALES FONDO","DOCUMENTO CON LA IMPUTACIÓN PRESUPUESTAL MEDIANTE LA CUAL SE AFECTA EN FORMA DEFENITIVA LA APROPACIÓN","GRUPO INTERNO DE TRABAJO DE PRESUPUESTO","2020-08-13","GRUPO INTERNO DE TRABAJO DE PRESUPUESTO","Documentos de Archivo - electrónicos","PDF","Español","Pública Clasificada",{"$f":"+IF(O190=\"Alta\",0.5,IF(O190=\"Media\",0.3,IF(O190=\"Baja\",0.2,\"\")))","v":0.5},"Alta",{"$f":"+IF(#REF!=\"Grave \",0.5,IF(#REF!=\"Importante\",0.3,IF(#REF!=\"Leve\",0.2,\"\")))","v":{"$error":"#REF!"}},"SI","LEY 1266 2008","LEY 1581 2012\nLEY 1712 2014 ART 18","Sin reserva","2020-08-13","Permanente"]
[{"$f":"IF(D191<>\"\",VLOOKUP('Activos de información - ICYR'!D191,DATA!$B$2:$C$95,2,)&\"-\"&IF(ISERR(B191),\"LEB\",B191),\"\")","v":"4013-LEB"},{"$f":"IF(AND(A190=\"\",D191<>\"\"),\"LEB\",IF(D191<>\"\",1+B190,\"\"))","v":{"$error":"#REF!"}},"Información Digital","GRUPO INTERNO DE TRABAJO DE PRESUPUESTO","REGISTROS PRESUPUESTALES MINISTERIO","DOCUMENTO CON LA IMPUTACIÓN PRESUPUESTAL MEDIANTE LA CUAL SE AFECTA EN FORMA DEFENITIVA LA APROPACIÓN","GRUPO INTERNO DE TRABAJO DE PRESUPUESTO","2020-08-13","GRUPO INTERNO DE TRABAJO DE PRESUPUESTO","Documentos de Archivo - electrónicos","PDF","Español","Pública Clasificada",{"$f":"+IF(O191=\"Alta\",0.5,IF(O191=\"Media\",0.3,IF(O191=\"Baja\",0.2,\"\")))","v":0.5},"Alta",{"$f":"+IF(#REF!=\"Grave \",0.5,IF(#REF!=\"Importante\",0.3,IF(#REF!=\"Leve\",0.2,\"\")))","v":{"$error":"#REF!"}},"SI","LEY 1266 2008","LEY 1581 2012\nLEY 1712 2014 ART 18","Sin reserva","2020-08-13","Permanente"]
[{"$f":"IF(D192<>\"\",VLOOKUP('Activos de información - ICYR'!D192,DATA!$B$2:$C$95,2,)&\"-\"&IF(ISERR(B192),\"LEB\",B192),\"\")","v":"4013-LEB"},{"$f":"IF(AND(A191=\"\",D192<>\"\"),\"LEB\",IF(D192<>\"\",1+B191,\"\"))","v":{"$error":"#REF!"}},"Información Digital","GRUPO INTERNO DE TRABAJO DE PRESUPUESTO","RESERVAS PRESUPUESTALES MINISTERIO","CORRESPONDEN A LOS CONTRATOS SUSCRITOS QUE TIENEN RESPALDO PRESUPUESTAL PERO QUE A LA FECHA DEL CIERRE ANUAL, NO SE HAN CONSTITUIDO OBLIGACIONES,","GRUPO INTERNO DE TRABAJO DE PRESUPUESTO","2020-08-13","GRUPO INTERNO DE TRABAJO DE PRESUPUESTO","Documentos de Archivo - electrónicos","PDF","Español","Pública Clasificada",{"$f":"+IF(O192=\"Alta\",0.5,IF(O192=\"Media\",0.3,IF(O192=\"Baja\",0.2,\"\")))","v":0.5},"Alta",{"$f":"+IF(#REF!=\"Grave \",0.5,IF(#REF!=\"Importante\",0.3,IF(#REF!=\"Leve\",0.2,\"\")))","v":{"$error":"#REF!"}},"SI","LEY 1266 2008","LEY 1581 2012\nLEY 1712 2014 ART 18","Sin reserva","2020-08-13","Permanente"]
[{"$f":"IF(D193<>\"\",VLOOKUP('Activos de información - ICYR'!D193,DATA!$B$2:$C$95,2,)&\"-\"&IF(ISERR(B193),\"LEB\",B193),\"\")","v":"4013-LEB"},{"$f":"IF(AND(A192=\"\",D193<>\"\"),\"LEB\",IF(D193<>\"\",1+B192,\"\"))","v":{"$error":"#REF!"}},"Información Digital","GRUPO INTERNO DE TRABAJO DE PRESUPUESTO","RESERVAS PRESUPUESTALES FONDO","CORRESPONDEN A LOS CONTRATOS SUSCRITOS QUE TIENEN RESPALDO PRESUPUESTAL PERO QUE A LA FECHA DEL CIERRE ANUAL, NO SE HAN CONSTITUIDO OBLIGACIONES,","GRUPO INTERNO DE TRABAJO DE PRESUPUESTO","2020-08-13","GRUPO INTERNO DE TRABAJO DE PRESUPUESTO","Documentos de Archivo - electrónicos","PDF","Español","Pública Clasificada",{"$f":"+IF(O193=\"Alta\",0.5,IF(O193=\"Media\",0.3,IF(O193=\"Baja\",0.2,\"\")))","v":0.5},"Alta",{"$f":"+IF(#REF!=\"Grave \",0.5,IF(#REF!=\"Importante\",0.3,IF(#REF!=\"Leve\",0.2,\"\")))","v":{"$error":"#REF!"}},"SI","LEY 1266 2008","LEY 1581 2012\nLEY 1712 2014 ART 18","Sin reserva","2020-08-13","Permanente"]
[{"$f":"IF(D194<>\"\",VLOOKUP('Activos de información - ICYR'!D194,DATA!$B$2:$C$95,2,)&\"-\"&IF(ISERR(B194),\"LEB\",B194),\"\")","v":"4013-LEB"},{"$f":"IF(AND(A193=\"\",D194<>\"\"),\"LEB\",IF(D194<>\"\",1+B193,\"\"))","v":{"$error":"#REF!"}},"Información Digital","GRUPO INTERNO DE TRABAJO DE PRESUPUESTO","SOLICITUD FONDO","DOCUMENTO POR EL CUAL SOLICITAN LA EXPEDICIÓN DE UN CDP,","GRUPO INTERNO DE TRABAJO DE PRESUPUESTO","2020-08-13","GRUPO INTERNO DE TRABAJO DE PRESUPUESTO","Documentos de Archivo - electrónicos","PDF","Español","Pública Clasificada",{"$f":"+IF(O194=\"Alta\",0.5,IF(O194=\"Media\",0.3,IF(O194=\"Baja\",0.2,\"\")))","v":0.5},"Alta",{"$f":"+IF(#REF!=\"Grave \",0.5,IF(#REF!=\"Importante\",0.3,IF(#REF!=\"Leve\",0.2,\"\")))","v":{"$error":"#REF!"}},"SI","LEY 1266 2008","LEY 1581 2012\nLEY 1712 2014 ART 18","Sin reserva","2020-08-13","Permanente"]
[{"$f":"IF(D195<>\"\",VLOOKUP('Activos de información - ICYR'!D195,DATA!$B$2:$C$95,2,)&\"-\"&IF(ISERR(B195),\"LEB\",B195),\"\")","v":"4013-LEB"},{"$f":"IF(AND(A194=\"\",D195<>\"\"),\"LEB\",IF(D195<>\"\",1+B194,\"\"))","v":{"$error":"#REF!"}},"Información Digital","GRUPO INTERNO DE TRABAJO DE PRESUPUESTO","SOLICITUD MINISTERIO","DOCUMENTO POR EL CUAL SOLICITAN LA EXPEDICIÓN DE UN CDP,","GRUPO INTERNO DE TRABAJO DE PRESUPUESTO","2020-08-13","GRUPO INTERNO DE TRABAJO DE PRESUPUESTO","Documentos de Archivo - electrónicos","PDF","Español","Pública Clasificada",{"$f":"+IF(O195=\"Alta\",0.5,IF(O195=\"Media\",0.3,IF(O195=\"Baja\",0.2,\"\")))","v":0.5},"Alta",{"$f":"+IF(#REF!=\"Grave \",0.5,IF(#REF!=\"Importante\",0.3,IF(#REF!=\"Leve\",0.2,\"\")))","v":{"$error":"#REF!"}},"SI","LEY 1266 2008","LEY 1581 2012\nLEY 1712 2014 ART 18","Sin reserva","2020-08-13","Permanente"]
[{"$f":"IF(D196<>\"\",VLOOKUP('Activos de información - ICYR'!D196,DATA!$B$2:$C$95,2,)&\"-\"&IF(ISERR(B196),\"LEB\",B196),\"\")","v":"4014-LEB"},{"$f":"IF(AND(#REF!=\"\",D196<>\"\"),\"LEB\",IF(D196<>\"\",1+#REF!,\"\"))","v":{"$error":"#REF!"}},"Información Física – Digital","GRUPO INTERNO DE TRABAJO DE CARTERA","CERTIFICACIONES DE CUMPLIMIENTO","DOCUMENTO QUE DA CUENTA DEL CUMPLIMIENTO DE OBLIGACIONES DE LOS PRST","GRUPO INTERNO DE TRABAJO DE CARTERA","2020-08-13","GRUPO INTERNO DE TRABAJO DE GRUPOS DE INTERÉS Y GESTIÓN DOCUMENTAL","Documentos de Archivo - físicos/electrónico","PDF","Español","Pública Clasificada",{"$f":"+IF(O196=\"Alta\",0.5,IF(O196=\"Media\",0.3,IF(O196=\"Baja\",0.2,\"\")))","v":0.5},"Alta",{"$f":"+IF(#REF!=\"Grave \",0.5,IF(#REF!=\"Importante\",0.3,IF(#REF!=\"Leve\",0.2,\"\")))","v":{"$error":"#REF!"}},"SI","Artículo 18 literal a, c y artículo 19  literal b ley 1712 de 2014","Artículo 18 literal a, c y artículo 19  literal b ley 1712 de 2014","Sin reserva","2020-08-13","15 años"]
[{"$f":"IF(D197<>\"\",VLOOKUP('Activos de información - ICYR'!D197,DATA!$B$2:$C$95,2,)&\"-\"&IF(ISERR(B197),\"LEB\",B197),\"\")","v":"4014-LEB"},{"$f":"IF(AND(A196=\"\",D197<>\"\"),\"LEB\",IF(D197<>\"\",1+B196,\"\"))","v":{"$error":"#REF!"}},"Información Física – Digital","GRUPO INTERNO DE TRABAJO DE CARTERA","OFICIO COBRO COACTIVO","DOCUMENTO DE REMISIÓN DE OBLIGACIONES PARA COBRO COACTIVO","GRUPO INTERNO DE TRABAJO DE CARTERA","2020-08-13","GRUPO INTERNO DE TRABAJO DE GRUPOS DE INTERÉS Y GESTIÓN DOCUMENTAL","Documentos de Archivo - físicos/electrónico","PDF","Español","Pública Clasificada",{"$f":"+IF(O197=\"Alta\",0.5,IF(O197=\"Media\",0.3,IF(O197=\"Baja\",0.2,\"\")))","v":0.5},"Alta",{"$f":"+IF(#REF!=\"Grave \",0.5,IF(#REF!=\"Importante\",0.3,IF(#REF!=\"Leve\",0.2,\"\")))","v":{"$error":"#REF!"}},"SI","Artículo 18 literal a, c y artículo 19  literal b ley 1712 de 2014","Artículo 18 literal a, c y artículo 19  literal b ley 1712 de 2014","Sin reserva","2020-08-13","15 años"]
[{"$f":"IF(D198<>\"\",VLOOKUP('Activos de información - ICYR'!D198,DATA!$B$2:$C$95,2,)&\"-\"&IF(ISERR(B198),\"LEB\",B198),\"\")","v":"4014-LEB"},{"$f":"IF(AND(A197=\"\",D198<>\"\"),\"LEB\",IF(D198<>\"\",1+B197,\"\"))","v":{"$error":"#REF!"}},"Información Física – Digital","GRUPO INTERNO DE TRABAJO DE CARTERA","OFICIO COBRO PERSUASIVO","DOCUMENTO  DE COBRO DE OBLIGACIONES EN ETAPA PERSUASIVA","GRUPO INTERNO DE TRABAJO DE CARTERA","2020-08-13","GRUPO INTERNO DE TRABAJO DE GRUPOS DE INTERÉS Y GESTIÓN DOCUMENTAL","Sistemas de Información corporativos","PDF","Español","Pública Clasificada",{"$f":"+IF(O198=\"Alta\",0.5,IF(O198=\"Media\",0.3,IF(O198=\"Baja\",0.2,\"\")))","v":0.5},"Alta",{"$f":"+IF(#REF!=\"Grave \",0.5,IF(#REF!=\"Importante\",0.3,IF(#REF!=\"Leve\",0.2,\"\")))","v":{"$error":"#REF!"}},"SI","Artículo 18 literal a, c y artículo 19  literal b ley 1712 de 2014","Artículo 18 literal a, c y artículo 19  literal b ley 1712 de 2014","Sin reserva","2020-08-13","15 años"]
[{"$f":"IF(D199<>\"\",VLOOKUP('Activos de información - ICYR'!D199,DATA!$B$2:$C$95,2,)&\"-\"&IF(ISERR(B199),\"LEB\",B199),\"\")","v":"4014-LEB"},{"$f":"IF(AND(A198=\"\",D199<>\"\"),\"LEB\",IF(D199<>\"\",1+B198,\"\"))","v":{"$error":"#REF!"}},"Información Física – Digital","GRUPO INTERNO DE TRABAJO DE CARTERA","ESTADO DE CUENTA","DOCUMENTO QUE REFLEJA EL ESTADO DE  LAS OBLIGACIONES DE LOS PRST","GRUPO INTERNO DE TRABAJO DE CARTERA","2020-08-13","GRUPO INTERNO DE TRABAJO DE GRUPOS DE INTERÉS Y GESTIÓN DOCUMENTAL","Documentos de Archivo - físicos/electrónico","PDF","Español","Pública Clasificada",{"$f":"+IF(O199=\"Alta\",0.5,IF(O199=\"Media\",0.3,IF(O199=\"Baja\",0.2,\"\")))","v":0.5},"Alta",{"$f":"+IF(#REF!=\"Grave \",0.5,IF(#REF!=\"Importante\",0.3,IF(#REF!=\"Leve\",0.2,\"\")))","v":{"$error":"#REF!"}},"SI","Artículo 18 literal a, c y artículo 19  literal b ley 1712 de 2014","Artículo 18 literal a, c y artículo 19  literal b ley 1712 de 2014","Reserva total","2020-08-13","15 años"]
[{"$f":"IF(D200<>\"\",VLOOKUP('Activos de información - ICYR'!D200,DATA!$B$2:$C$95,2,)&\"-\"&IF(ISERR(B200),\"LEB\",B200),\"\")","v":"4014-LEB"},{"$f":"IF(AND(#REF!=\"\",D200<>\"\"),\"LEB\",IF(D200<>\"\",1+#REF!,\"\"))","v":{"$error":"#REF!"}},"Información Física – Digital","GRUPO INTERNO DE TRABAJO DE CARTERA","INFORMES DE REVISIÓN DE AUTOLIQUIDACIONES","INFORME DE REVISIÓN DE AUTOLIQUIDACIONES POR EL USO DE ESPECTRO","GRUPO INTERNO DE TRABAJO DE CARTERA","2020-08-13","GRUPO INTERNO DE TRABAJO DE GRUPOS DE INTERÉS Y GESTIÓN DOCUMENTAL","Documentos de Archivo - físicos/electrónico","PDF","Español","Pública Clasificada",{"$f":"+IF(O200=\"Alta\",0.5,IF(O200=\"Media\",0.3,IF(O200=\"Baja\",0.2,\"\")))","v":0.5},"Alta",{"$f":"+IF(#REF!=\"Grave \",0.5,IF(#REF!=\"Importante\",0.3,IF(#REF!=\"Leve\",0.2,\"\")))","v":{"$error":"#REF!"}},"SI","Artículo 18 literal a, c y artículo 19  literal b ley 1712 de 2014","Artículo 18 literal a, c y artículo 19  literal b ley 1712 de 2014 ","Reserva total","2020-08-13","15 años"]
[{"$f":"IF(D201<>\"\",VLOOKUP('Activos de información - ICYR'!D201,DATA!$B$2:$C$95,2,)&\"-\"&IF(ISERR(B201),\"LEB\",B201),\"\")","v":"4014-LEB"},{"$f":"IF(AND(A200=\"\",D201<>\"\"),\"LEB\",IF(D201<>\"\",1+B200,\"\"))","v":{"$error":"#REF!"}},"Información Física – Digital","GRUPO INTERNO DE TRABAJO DE CARTERA","PETICIONES, QUEJAS, RECLAMOS, SUGERENCIAS Y DENUNCIAS PQRSD","SOLICITUDES, TRAMITES Y/O RESPUESTAS","GRUPO INTERNO DE TRABAJO DE CARTERA","2020-08-13","GRUPO INTERNO DE TRABAJO DE GRUPOS DE INTERÉS Y GESTIÓN DOCUMENTAL","Documentos de Archivo - físicos/electrónico","PDF","Español","Pública Clasificada",{"$f":"+IF(O201=\"Alta\",0.5,IF(O201=\"Media\",0.3,IF(O201=\"Baja\",0.2,\"\")))","v":0.3},"Media",{"$f":"+IF(#REF!=\"Grave \",0.5,IF(#REF!=\"Importante\",0.3,IF(#REF!=\"Leve\",0.2,\"\")))","v":{"$error":"#REF!"}},"SI","Artículo 18 literal a, c y artículo 19  literal b ley 1712 de 2014","Artículo 18 literal a, c y artículo 19  literal b ley 1712 de 2014","Reserva total","2020-08-13","15 años"]
[{"$f":"IF(D202<>\"\",VLOOKUP('Activos de información - ICYR'!D202,DATA!$B$2:$C$95,2,)&\"-\"&IF(ISERR(B202),\"LEB\",B202),\"\")","v":"4011-LEB"},{"$f":"IF(AND(#REF!=\"\",D202<>\"\"),\"LEB\",IF(D202<>\"\",1+#REF!,\"\"))","v":{"$error":"#REF!"}},"Información Digital","GRUPO INTERNO DE TRABAJO DE TESORERÍA","DECLARACIONES TRIBUTARIAS PERSONA JURIDICA FONDO","Formato donde se informa las responsabilidades tributarias y se solicitan beneficios tributarios","GRUPO INTERNO DE TRABAJO DE TESORERIA","2020-08-13","GRUPO INTERNO DE TRABAJO DE TESORERIA","Documentos de Archivo - físicos","PDF","Español","Pública Clasificada",{"$f":"+IF(O202=\"Alta\",0.5,IF(O202=\"Media\",0.3,IF(O202=\"Baja\",0.2,\"\")))","v":0.5},"Alta",{"$f":"+IF(#REF!=\"Grave \",0.5,IF(#REF!=\"Importante\",0.3,IF(#REF!=\"Leve\",0.2,\"\")))","v":{"$error":"#REF!"}},"SI","Estatuto Tributario; Decreto 1808 y 1625 de 2019; Decreto 2499 de2012 ","Toda la información que sea de un tercero no se publica ","Sin reserva","2020-08-13","Permanente"]
[{"$f":"IF(D203<>\"\",VLOOKUP('Activos de información - ICYR'!D203,DATA!$B$2:$C$95,2,)&\"-\"&IF(ISERR(B203),\"LEB\",B203),\"\")","v":"4011-LEB"},{"$f":"IF(AND(#REF!=\"\",D203<>\"\"),\"LEB\",IF(D203<>\"\",1+#REF!,\"\"))","v":{"$error":"#REF!"}},"Información Digital","GRUPO INTERNO DE TRABAJO DE TESORERÍA","DECLARACIONES TRIBUTARIAS DE RETENCIÓN EN LA FUENTE FONDO","Formato litrográfico para presentar declaraciones mensuales de retención","GRUPO INTERNO DE TRABAJO DE TESORERIA","2020-08-13","GRUPO INTERNO DE TRABAJO DE TESORERIA","Documentos de Archivo - electrónicos","PDF","Español","Pública Clasificada",{"$f":"+IF(O203=\"Alta\",0.5,IF(O203=\"Media\",0.3,IF(O203=\"Baja\",0.2,\"\")))","v":0.5},"Alta",{"$f":"+IF(#REF!=\"Grave \",0.5,IF(#REF!=\"Importante\",0.3,IF(#REF!=\"Leve\",0.2,\"\")))","v":{"$error":"#REF!"}},"SI","Estatuto Tributario; Decreto 1808 y 1625 de 2019; Decreto 2499 de2012 ","Toda la información que sea de un tercero no se publica ","Sin reserva","2020-08-13","Permanente"]
[{"$f":"IF(D204<>\"\",VLOOKUP('Activos de información - ICYR'!D204,DATA!$B$2:$C$95,2,)&\"-\"&IF(ISERR(B204),\"LEB\",B204),\"\")","v":"4011-LEB"},{"$f":"IF(AND(A203=\"\",D204<>\"\"),\"LEB\",IF(D204<>\"\",1+B203,\"\"))","v":{"$error":"#REF!"}},"Información Digital","GRUPO INTERNO DE TRABAJO DE TESORERÍA","DECLARACIONES TRIBUTARIAS DE RETENCIÓN EN LA FUENTE MINISTERIO","Formato litrográfico para presentar declaraciones mensuales de retención","GRUPO INTERNO DE TRABAJO DE TESORERIA","2020-08-13","GRUPO INTERNO DE TRABAJO DE TESORERIA","Documentos de Archivo - electrónicos","PDF","Español","Pública Clasificada",{"$f":"+IF(O204=\"Alta\",0.5,IF(O204=\"Media\",0.3,IF(O204=\"Baja\",0.2,\"\")))","v":0.5},"Alta",{"$f":"+IF(#REF!=\"Grave \",0.5,IF(#REF!=\"Importante\",0.3,IF(#REF!=\"Leve\",0.2,\"\")))","v":{"$error":"#REF!"}},"SI","Estatuto Tributario; Decreto 1808 y 1625 de 2019; Decreto 2499 de2012 ","Toda la información que sea de un tercero no se publica ","Sin reserva","2020-08-13","Permanente"]
[{"$f":"IF(D205<>\"\",VLOOKUP('Activos de información - ICYR'!D205,DATA!$B$2:$C$95,2,)&\"-\"&IF(ISERR(B205),\"LEB\",B205),\"\")","v":"4011-LEB"},{"$f":"IF(AND(#REF!=\"\",D205<>\"\"),\"LEB\",IF(D205<>\"\",1+#REF!,\"\"))","v":{"$error":"#REF!"}},"Información Física – Digital","GRUPO INTERNO DE TRABAJO DE TESORERÍA","EMBARGOS","Medidas cautelares judiciales","GRUPO INTERNO DE TRABAJO DE TESORERIA","2020-08-13","GRUPO INTERNO DE TRABAJO DE TESORERIA","Documentos de Archivo - físicos/electrónico","PDF","Español","Pública Clasificada",{"$f":"+IF(O205=\"Alta\",0.5,IF(O205=\"Media\",0.3,IF(O205=\"Baja\",0.2,\"\")))","v":0.5},"Alta",{"$f":"+IF(#REF!=\"Grave \",0.5,IF(#REF!=\"Importante\",0.3,IF(#REF!=\"Leve\",0.2,\"\")))","v":{"$error":"#REF!"}},"SI","Art 2; 29;229 de la CP; Ley 270 de 1996; Código General del Proceso","Toda la información que sea de un tercero no se publica ","Sin reserva","2020-08-13","Permanente"]
[{"$f":"IF(D206<>\"\",VLOOKUP('Activos de información - ICYR'!D206,DATA!$B$2:$C$95,2,)&\"-\"&IF(ISERR(B206),\"LEB\",B206),\"\")","v":"4011-LEB"},{"$f":"IF(AND(A205=\"\",D206<>\"\"),\"LEB\",IF(D206<>\"\",1+B205,\"\"))","v":{"$error":"#REF!"}},"Información Física – Digital","GRUPO INTERNO DE TRABAJO DE TESORERÍA","EMBARGOS","Medidas cautelares judiciales","GRUPO INTERNO DE TRABAJO DE TESORERIA","2020-08-13","GRUPO INTERNO DE TRABAJO DE TESORERIA","Documentos de Archivo - físicos/electrónico","PDF","Español","Pública Clasificada",{"$f":"+IF(O206=\"Alta\",0.5,IF(O206=\"Media\",0.3,IF(O206=\"Baja\",0.2,\"\")))","v":0.5},"Alta",{"$f":"+IF(#REF!=\"Grave \",0.5,IF(#REF!=\"Importante\",0.3,IF(#REF!=\"Leve\",0.2,\"\")))","v":{"$error":"#REF!"}},"SI","Art 2; 29;229 de la CP; Ley 270 de 1996; Código General del Proceso","Toda la información que sea de un tercero no se publica ","Sin reserva","2020-08-13","Permanente"]
[{"$f":"IF(D207<>\"\",VLOOKUP('Activos de información - ICYR'!D207,DATA!$B$2:$C$95,2,)&\"-\"&IF(ISERR(B207),\"LEB\",B207),\"\")","v":"4011-LEB"},{"$f":"IF(AND(#REF!=\"\",D207<>\"\"),\"LEB\",IF(D207<>\"\",1+#REF!,\"\"))","v":{"$error":"#REF!"}},"Información Física – Digital","GRUPO INTERNO DE TRABAJO DE TESORERÍA","NOMINA","Relación de servidores que devengan contraprestaciónes laborales","GRUPO INTERNO DE TRABAJO DE TESORERIA","2020-08-13","GRUPO INTERNO DE TRABAJO DE TESORERIA","Documentos de Archivo - físicos/electrónico","PDF","Español","Pública Clasificada",{"$f":"+IF(O207=\"Alta\",0.5,IF(O207=\"Media\",0.3,IF(O207=\"Baja\",0.2,\"\")))","v":0.5},"Alta",{"$f":"+IF(#REF!=\"Grave \",0.5,IF(#REF!=\"Importante\",0.3,IF(#REF!=\"Leve\",0.2,\"\")))","v":{"$error":"#REF!"}},"SI","Resolución 3361 de 2017","Toda la información que sea de un tercero no se publica ","Sin reserva","2020-08-13","Permanente"]
[{"$f":"IF(D208<>\"\",VLOOKUP('Activos de información - ICYR'!D208,DATA!$B$2:$C$95,2,)&\"-\"&IF(ISERR(B208),\"LEB\",B208),\"\")","v":"4011-LEB"},{"$f":"IF(AND(A207=\"\",D208<>\"\"),\"LEB\",IF(D208<>\"\",1+B207,\"\"))","v":{"$error":"#REF!"}},"Información Física – Digital","GRUPO INTERNO DE TRABAJO DE TESORERÍA","ORDENES DE PAGO","Documento donde se determina la cantidad pagada a un tercero, junto con sus soportes","GRUPO INTERNO DE TRABAJO DE TESORERIA","2020-08-13","GRUPO INTERNO DE TRABAJO DE TESORERIA","Documentos de Archivo - físicos/electrónico","PDF","Español","Pública Clasificada",{"$f":"+IF(O208=\"Alta\",0.5,IF(O208=\"Media\",0.3,IF(O208=\"Baja\",0.2,\"\")))","v":0.5},"Alta",{"$f":"+IF(#REF!=\"Grave \",0.5,IF(#REF!=\"Importante\",0.3,IF(#REF!=\"Leve\",0.2,\"\")))","v":{"$error":"#REF!"}},"SI","Resolución 3361 de 2017","Toda la información que sea de un tercero no se publica ","Sin reserva","2020-08-13","Permanente"]
[{"$f":"IF(D209<>\"\",VLOOKUP('Activos de información - ICYR'!D209,DATA!$B$2:$C$95,2,)&\"-\"&IF(ISERR(B209),\"LEB\",B209),\"\")","v":"4011-LEB"},{"$f":"IF(AND(A208=\"\",D209<>\"\"),\"LEB\",IF(D209<>\"\",1+B208,\"\"))","v":{"$error":"#REF!"}},"Información Física – Digital","GRUPO INTERNO DE TRABAJO DE TESORERÍA","ORDENES DE PAGO","Documento donde se determina la cantidad pagada a un tercero, junto con sus soportes","GRUPO INTERNO DE TRABAJO DE TESORERIA","2020-08-13","GRUPO INTERNO DE TRABAJO DE TESORERIA","Documentos de Archivo - físicos/electrónico","PDF","Español","Pública Clasificada",{"$f":"+IF(O209=\"Alta\",0.5,IF(O209=\"Media\",0.3,IF(O209=\"Baja\",0.2,\"\")))","v":0.5},"Alta",{"$f":"+IF(#REF!=\"Grave \",0.5,IF(#REF!=\"Importante\",0.3,IF(#REF!=\"Leve\",0.2,\"\")))","v":{"$error":"#REF!"}},"SI","Resolución 3361 de 2017","Toda la información que sea de un tercero no se publica ","Sin reserva","2020-08-13","Permanente"]
[{"$f":"IF(D210<>\"\",VLOOKUP('Activos de información - ICYR'!D210,DATA!$B$2:$C$95,2,)&\"-\"&IF(ISERR(B210),\"LEB\",B210),\"\")","v":"402-LEB"},{"$f":"IF(AND(#REF!=\"\",D210<>\"\"),\"LEB\",IF(D210<>\"\",1+#REF!,\"\"))","v":{"$error":"#REF!"}},"Información Física – Digital","SUBDIRECCIÓN PARA LA GESTIÓN DEL TALENTO HUMANO","actas de comité ","Registro de las actividades del Comité paritario de saly y seguridad en el trabajo,  procesos de eleccion, lo reglamentado en el Copasst y las solicitudes del área. Incluye la convocatoria, proceso de elección, resolución de conformacion de Copasst y otras solicitudes)","GRUPO INTERNO DE TRABAJO DE GESTIÓN DEL TALENTO HUMANO","2017-07-02","GRUPO INTERNO DE TRABAJO DE GRUPOS DE INTERÉS Y GESTIÓN DOCUMENTAL","Documentos de Archivo - electrónicos","PDF","Español","Pública Clasificada",{"$f":"+IF(O210=\"Alta\",0.5,IF(O210=\"Media\",0.3,IF(O210=\"Baja\",0.2,\"\")))","v":0.5},"Alta",{"$f":"+IF(#REF!=\"Grave \",0.5,IF(#REF!=\"Importante\",0.3,IF(#REF!=\"Leve\",0.2,\"\")))","v":{"$error":"#REF!"}},"SI","Decreto 103 de 2015 Artículo 18 literal a Ley 1712 de 2014","Ley 1712 de 2014 ","Sin reserva","2018-11-30","Permanente"]
[{"$f":"IF(D211<>\"\",VLOOKUP('Activos de información - ICYR'!D211,DATA!$B$2:$C$95,2,)&\"-\"&IF(ISERR(B211),\"LEB\",B211),\"\")","v":"402-LEB"},{"$f":"IF(AND(A210=\"\",D211<>\"\"),\"LEB\",IF(D211<>\"\",1+B210,\"\"))","v":{"$error":"#REF!"}},"Información Física – Digital","SUBDIRECCIÓN PARA LA GESTIÓN DEL TALENTO HUMANO","Solicitud ","Recibida la petición, queja, reclamo, sugerencia, o denuncia interpuesta por el usuario se tramite conforme lo establece la Ley 1755 de 2015","SUBDIRECCIÓN PARA LA GESTIÓN DEL TALENTO HUMANO","2017-07-01","GRUPO INTERNO DE TRABAJO DE GRUPOS DE INTERÉS Y GESTIÓN DOCUMENTAL","Sistema de Administración de Documentos","PDF","Español","Pública Clasificada",{"$f":"+IF(O211=\"Alta\",0.5,IF(O211=\"Media\",0.3,IF(O211=\"Baja\",0.2,\"\")))","v":0.5},"Alta",{"$f":"+IF(#REF!=\"Grave \",0.5,IF(#REF!=\"Importante\",0.3,IF(#REF!=\"Leve\",0.2,\"\")))","v":{"$error":"#REF!"}},"SI","Decreto 103 de 2015 Artículo 18 literal a Ley 1712 de 2014","Ley 1712 de 2014","Sin reserva","2018-11-30","Permanente"]
[{"$f":"IF(D212<>\"\",VLOOKUP('Activos de información - ICYR'!D212,DATA!$B$2:$C$95,2,)&\"-\"&IF(ISERR(B212),\"LEB\",B212),\"\")","v":"402-LEB"},{"$f":"IF(AND(A211=\"\",D212<>\"\"),\"LEB\",IF(D212<>\"\",1+B211,\"\"))","v":{"$error":"#REF!"}},"Información Física – Digital","SUBDIRECCIÓN PARA LA GESTIÓN DEL TALENTO HUMANO","Plan de Seguridad y Salud en el Trabajo","Registro de los documentos que hacen parte del plan de seguridad y salud en el trabajo (Plan, Cronograma de actividades, Matriz de peligros, Política de seguridad y salud en el trabajo, Manual del sistema de gestión, Consolidado de reporte y accidente de trabajo,Solicitudes y respuestas de EPS y ARL y actividades de prevención y divulgación)","SUBDIRECCIÓN PARA LA GESTIÓN DEL TALENTO HUMANO","2017-07-01","GRUPO INTERNO DE TRABAJO DE GRUPOS DE INTERÉS Y GESTIÓN DOCUMENTAL","Documentos de Archivo - físicos/electrónico","Hoja de cálculo","Español","Pública Clasificada",{"$f":"+IF(O212=\"Alta\",0.5,IF(O212=\"Media\",0.3,IF(O212=\"Baja\",0.2,\"\")))","v":0.3},"Media",{"$f":"+IF(#REF!=\"Grave \",0.5,IF(#REF!=\"Importante\",0.3,IF(#REF!=\"Leve\",0.2,\"\")))","v":{"$error":"#REF!"}},"SI","Decreto 103 de 2015 Artículo 18 literal a Ley 1712 de 2014","Ley 1712 de 2014","Sin reserva","2018-11-30","Permanente"]
[{"$f":"IF(D213<>\"\",VLOOKUP('Activos de información - ICYR'!D213,DATA!$B$2:$C$95,2,)&\"-\"&IF(ISERR(B213),\"LEB\",B213),\"\")","v":"402-LEB"},{"$f":"IF(AND(A212=\"\",D213<>\"\"),\"LEB\",IF(D213<>\"\",1+B212,\"\"))","v":{"$error":"#REF!"}},"Información Física – Digital","SUBDIRECCIÓN PARA LA GESTIÓN DEL TALENTO HUMANO","Plan de bienestar social e incentivos","Información de los programas de Capacitación, Bienestar, Incentivos, Seguridad y Salud en el Trabajo, asi como el impacto de las actividades en los funcionarios (Programa, Diagnóstico de necesidades, Consolidado de necesidades,Propuestas, Divulgación de los planes, Otras actividades de bienestar y salud en el trabajo, Impacto de la capacitación, Informe de resultados de impacto","SUBDIRECCIÓN PARA LA GESTIÓN DEL TALENTO HUMANO","2017-07-01","GRUPO INTERNO DE TRABAJO DE GRUPOS DE INTERÉS Y GESTIÓN DOCUMENTAL","Documentos de Archivo - electrónicos","PDF","Español","Pública Clasificada",{"$f":"+IF(O213=\"Alta\",0.5,IF(O213=\"Media\",0.3,IF(O213=\"Baja\",0.2,\"\")))","v":0.5},"Alta",{"$f":"+IF(#REF!=\"Grave \",0.5,IF(#REF!=\"Importante\",0.3,IF(#REF!=\"Leve\",0.2,\"\")))","v":{"$error":"#REF!"}},"SI","Decreto 103 de 2015 Artículo 18 literal a Ley 1712 de 2015","Ley 1712 de 2014","Sin reserva","2018-11-30","Permanente"]
[{"$f":"IF(D214<>\"\",VLOOKUP('Activos de información - ICYR'!D214,DATA!$B$2:$C$95,2,)&\"-\"&IF(ISERR(B214),\"LEB\",B214),\"\")","v":"402-LEB"},{"$f":"IF(AND(A213=\"\",D214<>\"\"),\"LEB\",IF(D214<>\"\",1+B213,\"\"))","v":{"$error":"#REF!"}},"Información Física – Digital","SUBDIRECCIÓN PARA LA GESTIÓN DEL TALENTO HUMANO","Plan de formación y capacitación ","Información de los programas de Capacitación, Bienestar, Incentivos, Seguridad y Salud en el Trabajo, asi como el impacto de las actividades en los funcionarios (Programa, Diagnóstico de necesidades, Consolidado de necesidades,Propuestas, Divulgación de los planes, Otras actividades de bienestar y salud en el trabajo, Impacto de la capacitación, Informe de resultados de impacto","SUBDIRECCIÓN PARA LA GESTIÓN DEL TALENTO HUMANO","2017-07-01","GRUPO INTERNO DE TRABAJO DE GRUPOS DE INTERÉS Y GESTIÓN DOCUMENTAL","Documentos de Archivo - electrónicos","PDF","Español","Pública Clasificada",{"$f":"+IF(O214=\"Alta\",0.5,IF(O214=\"Media\",0.3,IF(O214=\"Baja\",0.2,\"\")))","v":0.5},"Alta",{"$f":"+IF(#REF!=\"Grave \",0.5,IF(#REF!=\"Importante\",0.3,IF(#REF!=\"Leve\",0.2,\"\")))","v":{"$error":"#REF!"}},"SI","Decreto 103 de 2015 Artículo 18 literal a Ley 1712 de 2016","Ley 1712 de 2014","Sin reserva","2018-11-30","Permanente"]
[{"$f":"IF(D215<>\"\",VLOOKUP('Activos de información - ICYR'!D215,DATA!$B$2:$C$95,2,)&\"-\"&IF(ISERR(B215),\"LEB\",B215),\"\")","v":"402-LEB"},{"$f":"IF(AND(#REF!=\"\",D215<>\"\"),\"LEB\",IF(D215<>\"\",1+#REF!,\"\"))","v":{"$error":"#REF!"}},"Información Digital","SUBDIRECCIÓN PARA LA GESTIÓN DEL TALENTO HUMANO","Base de datos de funcionarios de planta activos","Base de datos con la información de los funcionarios activos de la entidad ","GRUPO INTERNO DE TRABAJO DE GESTIÓN DEL TALENTO HUMANO","2017-07-01","GRUPO INTERNO DE TRABAJO DE GESTIÓN DEL TALENTO HUMANO","Documentos de Archivo - electrónicos","Base de datos","Español","Pública Clasificada",{"$f":"+IF(O215=\"Alta\",0.5,IF(O215=\"Media\",0.3,IF(O215=\"Baja\",0.2,\"\")))","v":0.3},"Media",{"$f":"+IF(#REF!=\"Grave \",0.5,IF(#REF!=\"Importante\",0.3,IF(#REF!=\"Leve\",0.2,\"\")))","v":{"$error":"#REF!"}},"SI","Ley 1712/2014 Art 18\nLey 1581/2012","Ley 1712/2014 Art 18 \nLey 1581/2012","Sin reserva","2018-11-30","Permanente"]
[{"$f":"IF(D216<>\"\",VLOOKUP('Activos de información - ICYR'!D216,DATA!$B$2:$C$95,2,)&\"-\"&IF(ISERR(B216),\"LEB\",B216),\"\")","v":"402-LEB"},{"$f":"IF(AND(A215=\"\",D216<>\"\"),\"LEB\",IF(D216<>\"\",1+B215,\"\"))","v":{"$error":"#REF!"}},"Información Digital","SUBDIRECCIÓN PARA LA GESTIÓN DEL TALENTO HUMANO","Base de datos de caracterización de planta de personal ","Base de datos de caracterización de planta de personal ","GRUPO INTERNO DE TRABAJO DE GESTIÓN DEL TALENTO HUMANO","2017-07-01","GRUPO INTERNO DE TRABAJO DE GESTIÓN DEL TALENTO HUMANO","Documentos de Archivo - electrónicos","Base de datos","Español","Pública Reservada",{"$f":"+IF(O216=\"Alta\",0.5,IF(O216=\"Media\",0.3,IF(O216=\"Baja\",0.2,\"\")))","v":0.5},"Alta",{"$f":"+IF(#REF!=\"Grave \",0.5,IF(#REF!=\"Importante\",0.3,IF(#REF!=\"Leve\",0.2,\"\")))","v":{"$error":"#REF!"}},"SI","Ley 1712/2014 Art 19\nLey 1581/2012","Ley 1712/2014 Art 19\nLey 1581/2012","Reserva total","2018-11-30","Permanente"]
[{"$f":"IF(D217<>\"\",VLOOKUP('Activos de información - ICYR'!D217,DATA!$B$2:$C$95,2,)&\"-\"&IF(ISERR(B217),\"LEB\",B217),\"\")","v":"402-LEB"},{"$f":"IF(AND(A216=\"\",D217<>\"\"),\"LEB\",IF(D217<>\"\",1+B216,\"\"))","v":{"$error":"#REF!"}},"Información Digital","SUBDIRECCIÓN PARA LA GESTIÓN DEL TALENTO HUMANO","Base de datos de usuarios del plan de salud Ley 314 de 1996 ( Plan M10)","Base de datos de usuarios del plan de salud Ley 314 de 1996 ( Plan M10)","SUBDIRECCIÓN PARA LA GESTIÓN DEL TALENTO HUMANO","2003-01-02","SUBDIRECCIÓN PARA LA GESTIÓN DEL TALENTO HUMANO","Documentos de Archivo - electrónicos","Base de datos","Español","Pública Reservada",{"$f":"+IF(O217=\"Alta\",0.5,IF(O217=\"Media\",0.3,IF(O217=\"Baja\",0.2,\"\")))","v":0.5},"Alta",{"$f":"+IF(#REF!=\"Grave \",0.5,IF(#REF!=\"Importante\",0.3,IF(#REF!=\"Leve\",0.2,\"\")))","v":{"$error":"#REF!"}},"SI","Ley 1712/2014 Art 19\nLey 1581/2012","Ley 1712/2014 Art 19\nLey 1581/2012","Reserva parcial","2018-12-01","Permanente"]
[{"$f":"IF(D218<>\"\",VLOOKUP('Activos de información - ICYR'!D218,DATA!$B$2:$C$95,2,)&\"-\"&IF(ISERR(B218),\"LEB\",B218),\"\")","v":"402-LEB"},{"$f":"IF(AND(A217=\"\",D218<>\"\"),\"LEB\",IF(D218<>\"\",1+B217,\"\"))","v":{"$error":"#REF!"}},"Información Digital","SUBDIRECCIÓN PARA LA GESTIÓN DEL TALENTO HUMANO","Consolidado Covid-19","Base de datos de seguimiento y consolidado de casos Covid-19","SUBDIRECCIÓN PARA LA GESTIÓN DEL TALENTO HUMANO","2020-03-02","SUBDIRECCIÓN PARA LA GESTIÓN DEL TALENTO HUMANO","Documentos de Archivo - electrónicos","Base de datos","Español","Pública Reservada",{"$f":"+IF(O218=\"Alta\",0.5,IF(O218=\"Media\",0.3,IF(O218=\"Baja\",0.2,\"\")))","v":0.5},"Alta",{"$f":"+IF(#REF!=\"Grave \",0.5,IF(#REF!=\"Importante\",0.3,IF(#REF!=\"Leve\",0.2,\"\")))","v":{"$error":"#REF!"}},"SI","Ley 1712/2014 Art 19\nLey 1581/2012","Ley 1712/2014 Art 19\nLey 1581/2012","Reserva total","2021-04-04","Permanente"]
[{"$f":"IF(D219<>\"\",VLOOKUP('Activos de información - ICYR'!D219,DATA!$B$2:$C$95,2,)&\"-\"&IF(ISERR(B219),\"LEB\",B219),\"\")","v":"402-LEB"},{"$f":"IF(AND(A218=\"\",D219<>\"\"),\"LEB\",IF(D219<>\"\",1+B218,\"\"))","v":{"$error":"#REF!"}},"Información Digital","SUBDIRECCIÓN PARA LA GESTIÓN DEL TALENTO HUMANO","Inspecciones","Consolidado de inspecciones de puesto de trabajo para candidatos a teletrabajo","SUBDIRECCIÓN PARA LA GESTIÓN DEL TALENTO HUMANO","2021-01-02","SUBDIRECCIÓN PARA LA GESTIÓN DEL TALENTO HUMANO","Documentos de Archivo - electrónicos","Base de datos","Español","Pública Reservada",{"$f":"+IF(O219=\"Alta\",0.5,IF(O219=\"Media\",0.3,IF(O219=\"Baja\",0.2,\"\")))","v":0.5},"Alta",{"$f":"+IF(#REF!=\"Grave \",0.5,IF(#REF!=\"Importante\",0.3,IF(#REF!=\"Leve\",0.2,\"\")))","v":{"$error":"#REF!"}},"SI","Ley 1712/2014 Art 19\nLey 1581/2012","Ley 1712/2014 Art 19\nLey 1581/2012","Reserva parcial","2021-01-02","Permanente"]
[{"$f":"IF(D220<>\"\",VLOOKUP('Activos de información - ICYR'!D220,DATA!$B$2:$C$95,2,)&\"-\"&IF(ISERR(B220),\"LEB\",B220),\"\")","v":"402-LEB"},{"$f":"IF(AND(A219=\"\",D220<>\"\"),\"LEB\",IF(D220<>\"\",1+B219,\"\"))","v":{"$error":"#REF!"}},"Información Digital","SUBDIRECCIÓN PARA LA GESTIÓN DEL TALENTO HUMANO","Encuestas","Encuesta de satisfacción de servicios ofrecidos por el proceso","SUBDIRECCIÓN PARA LA GESTIÓN DEL TALENTO HUMANO","2021-01-02","SUBDIRECCIÓN PARA LA GESTIÓN DEL TALENTO HUMANO","Documentos de Archivo - electrónicos","Base de datos","Español","Pública Clasificada",{"$f":"+IF(O220=\"Alta\",0.5,IF(O220=\"Media\",0.3,IF(O220=\"Baja\",0.2,\"\")))","v":0.5},"Alta",{"$f":"+IF(#REF!=\"Grave \",0.5,IF(#REF!=\"Importante\",0.3,IF(#REF!=\"Leve\",0.2,\"\")))","v":{"$error":"#REF!"}},"SI","Ley 1712/2014 Art 19\nLey 1581/2012","Ley 1712/2014 Art 19\nLey 1581/2012","Reserva parcial","2021-01-03","Permanente"]
[{"$f":"IF(D221<>\"\",VLOOKUP('Activos de información - ICYR'!D221,DATA!$B$2:$C$95,2,)&\"-\"&IF(ISERR(B221),\"LEB\",B221),\"\")","v":"4021-LEB"},{"$f":"IF(AND(A220=\"\",D221<>\"\"),\"LEB\",IF(D221<>\"\",1+B220,\"\"))","v":{"$error":"#REF!"}},"Información Física – Digital","GRUPO INTERNO DE TRABAJO DE GESTIÓN DEL TALENTO HUMANO","HISTORIAS LABORALES","De acuerdo con lo establecido en el Decreto No. 726 del 26 de abril de 2018 expedido por el Ministerio de Hacienda y Crédito Público y el Ministerio del Trabajo, la Oficina de Bonos informó que el aplicativo para la expedición de Certificaciones Electrónicas de Tiempos Laborados – CETIL ha sido implementado y se encuentra disponible para todas las entidades públicas expidan las certificaciones firmadas digitalmente a través de este.\n","GRUPO INTERNO DE TRABAJO DE GESTION PENSIONAL","2018-11-28","GRUPO INTERNO DE TRABAJO DE GRUPOS DE INTERÉS Y GESTIÓN DOCUMENTAL","Documentos de Archivo - físicos/electrónico","Papel","Español","Pública Reservada",{"$f":"+IF(O221=\"Alta\",0.5,IF(O221=\"Media\",0.3,IF(O221=\"Baja\",0.2,\"\")))","v":0.5},"Alta",{"$f":"+IF(#REF!=\"Grave \",0.5,IF(#REF!=\"Importante\",0.3,IF(#REF!=\"Leve\",0.2,\"\")))","v":{"$error":"#REF!"}},"SI","Ley 1437 de 2011, art 24, sustituido por la ley 1755 de 2015","Ley 1581 de 2012\nLey 1712 de 2014, art 19 literal d","Reserva total","2018-11-28","Permanente"]
[{"$f":"IF(D222<>\"\",VLOOKUP('Activos de información - ICYR'!D222,DATA!$B$2:$C$95,2,)&\"-\"&IF(ISERR(B222),\"LEB\",B222),\"\")","v":"4022-LEB"},{"$f":"IF(AND(A221=\"\",D222<>\"\"),\"LEB\",IF(D222<>\"\",1+B221,\"\"))","v":{"$error":"#REF!"}},"Información Física – Digital","GRUPO INTERNO DE TRABAJO DE GESTIÓN PENSIONAL","INFORMES A ORGANISMOS DE CONTROL","PERTENENCE A LAS SOLICITUDES QUE REALIZAN LOS ENTES DE CONTRO, ENTIDADES EXTERNAS PARA TRAMITES DE CUOTAS PARTES Y BONOS PENSIONALES","GRUPO INTERNO DE TRABAJO DE GESTIÓN PENSIONAL","2018-11-28","GRUPO INTERNO DE TRABAJO DE GRUPOS DE INTERÉS Y GESTIÓN DOCUMENTAL","Documentos de Archivo - físicos/electrónico","Papel","Español","Pública Clasificada",{"$f":"+IF(O222=\"Alta\",0.5,IF(O222=\"Media\",0.3,IF(O222=\"Baja\",0.2,\"\")))","v":0.3},"Media",{"$f":"+IF(#REF!=\"Grave \",0.5,IF(#REF!=\"Importante\",0.3,IF(#REF!=\"Leve\",0.2,\"\")))","v":{"$error":"#REF!"}},"SI","CIRCULAR CONJUNTA No.13 de 2007 EXPEDIDA POR EL MINISTERIO DE HACIENDA Y CREDITO PUBLICO","TODA LA INFORMACION QUE SEA DE UN TERCERO NO SE PUBLICA","Sin reserva","2018-11-28","Permanente"]
[{"$f":"IF(D223<>\"\",VLOOKUP('Activos de información - ICYR'!D223,DATA!$B$2:$C$95,2,)&\"-\"&IF(ISERR(B223),\"LEB\",B223),\"\")","v":"4022-LEB"},{"$f":"IF(AND(A222=\"\",D223<>\"\"),\"LEB\",IF(D223<>\"\",1+B222,\"\"))","v":{"$error":"#REF!"}},"Información Física – Digital","GRUPO INTERNO DE TRABAJO DE GESTIÓN PENSIONAL","INFORME PARA CALCULO ACTUARIAL ","La elaboración del Cálculo Actuarial determina el valor de los Pasivos Pensionales por los antiguos trabajadores de las entidades del sector comunicaciones (entidades liquidadas), precisa de la información provista y entregada por MINTIC, de manera tanto escrita, magnética y oral, incluyendo el personal jubilado, sobrevivientes beneficiarios vitalicios o temporales y Bonos pensionales.","GRUPO INTERNO DE TRABAJO DE GESTIÓN PENSIONAL","2018-11-28","GRUPO INTERNO DE TRABAJO DE GRUPOS DE INTERÉS Y GESTIÓN DOCUMENTAL","Documentos de Archivo - físicos","Papel","Español","Pública Clasificada",{"$f":"+IF(O223=\"Alta\",0.5,IF(O223=\"Media\",0.3,IF(O223=\"Baja\",0.2,\"\")))","v":0.5},"Alta",{"$f":"+IF(#REF!=\"Grave \",0.5,IF(#REF!=\"Importante\",0.3,IF(#REF!=\"Leve\",0.2,\"\")))","v":{"$error":"#REF!"}},"SI","CIRCULAR CONJUNTA No.13 de 2007 EXPEDIDA POR EL MINISTERIO DE HACIENDA Y CREDITO PUBLICO","TODA LA INFORMACION QUE SEA DE UN TERCERO NO SE PUBLICA","Sin reserva","2018-11-28","Permanente"]
[{"$f":"IF(D224<>\"\",VLOOKUP('Activos de información - ICYR'!D224,DATA!$B$2:$C$95,2,)&\"-\"&IF(ISERR(B224),\"LEB\",B224),\"\")","v":"4022-LEB"},{"$f":"IF(AND(A223=\"\",D224<>\"\"),\"LEB\",IF(D224<>\"\",1+B223,\"\"))","v":{"$error":"#REF!"}},"Información Física – Digital","GRUPO INTERNO DE TRABAJO DE GESTIÓN PENSIONAL","INFORMES DE GESTIÓN","LOS INFORMES DE GESTIÓN CONTIENEN INFORMACIÓN OFICIAL Y DETALLADA SOBRE EL EJERCICIO DE LAS FUNCIONES DE LAS DEPENDENCIAS Y DE LA ENTIDAD MISMA.ESTA INFORMACION EN EL FUTURO, SERA, MATERIAL PROPICIO PARA SER USADO COMO INSUMO POR PARTE INVESTIGADORES O CIUDADANOS.","GRUPO INTERNO DE TRABAJO DE GESTIÓN PENSIONAL","2018-11-28","GRUPO INTERNO DE TRABAJO DE GRUPOS DE INTERÉS Y GESTIÓN DOCUMENTAL","Documentos de Archivo - físicos","Papel","Español","Pública Clasificada",{"$f":"+IF(O224=\"Alta\",0.5,IF(O224=\"Media\",0.3,IF(O224=\"Baja\",0.2,\"\")))","v":0.5},"Alta",{"$f":"+IF(#REF!=\"Grave \",0.5,IF(#REF!=\"Importante\",0.3,IF(#REF!=\"Leve\",0.2,\"\")))","v":{"$error":"#REF!"}},"SI","CIRCULAR CONJUNTA No.13 de 2007 EXPEDIDA POR EL MINISTERIO DE HACIENDA Y CREDITO PUBLICO","TODA LA INFORMACION QUE SEA DE UN TERCERO NO SE PUBLICA","Sin reserva","2018-11-28","Permanente"]
[{"$f":"IF(D225<>\"\",VLOOKUP('Activos de información - ICYR'!D225,DATA!$B$2:$C$95,2,)&\"-\"&IF(ISERR(B225),\"LEB\",B225),\"\")","v":"4022-LEB"},{"$f":"IF(AND(#REF!=\"\",D225<>\"\"),\"LEB\",IF(D225<>\"\",1+#REF!,\"\"))","v":{"$error":"#REF!"}},"Información Física – Digital","GRUPO INTERNO DE TRABAJO DE GESTIÓN PENSIONAL","REQUERIMIENTOS PARA RECONOCER BONO PENSIONAL Y CUOTA PARTE PENSIONAL","LOS REQUERIMIENTOS PARA PODER RECONOCER EL BONO PENSIONAL CONSTAN Oficio de respuestas a requerimientos, Formato de liquidación de bono pensional, Registro presupuestal, Certificado de disponibilidad presupuestal - CDP, Resolución que ordena el Pago","GRUPO INTERNO DE TRABAJO DE GESTIÓN PENSIONAL","2018-11-28","GRUPO INTERNO DE TRABAJO DE GRUPOS DE INTERÉS Y GESTIÓN DOCUMENTAL","Documentos de Archivo - físicos","Papel","Español","Pública Clasificada",{"$f":"+IF(O225=\"Alta\",0.5,IF(O225=\"Media\",0.3,IF(O225=\"Baja\",0.2,\"\")))","v":0.5},"Alta",{"$f":"+IF(#REF!=\"Grave \",0.5,IF(#REF!=\"Importante\",0.3,IF(#REF!=\"Leve\",0.2,\"\")))","v":{"$error":"#REF!"}},"SI","CIRCULAR CONJUNTA No.13 de 2007 EXPEDIDA POR EL MINISTERIO DE HACIENDA Y CREDITO PUBLICO","TODA LA INFORMACION QUE SEA DE UN TERCERO NO SE PUBLICA","Sin reserva","2018-11-28","Permanente"]
[{"$f":"IF(D226<>\"\",VLOOKUP('Activos de información - ICYR'!D226,DATA!$B$2:$C$95,2,)&\"-\"&IF(ISERR(B226),\"LEB\",B226),\"\")","v":"4032-LEB"},{"$f":"IF(AND(#REF!=\"\",D226<>\"\"),\"LEB\",IF(D226<>\"\",1+#REF!,\"\"))","v":{"$error":"#REF!"}},"Información Digital","GRUPO INTERNO DE TRABAJO DE NOTIFICACIONES","BASE DE DATOS DE SEGUIMIENTO DE LOS PROCESOS DE NOTIFICACIONES","Base de datos la cual es descargada desde SGDEA (Sistema de Gestión Documental Electrónico y de Archivo) de la Entidad.\n\nEsta Base de Datos tiene registros con datos del proceso de notificacion, de esta forma se realiza el respectivo seguimiento por parte de los colaboradores del GIT de Notificaciones.","GRUPO INTERNO DE TRABAJO DE GRUPOS DE INTERÉS Y GESTIÓN DOCUMENTAL","2021-05-05","GRUPO INTERNO DE TRABAJO DE NOTIFICACIONES","Documentos de Archivo - electrónicos","Base de datos","Español","Pública Clasificada",{"$f":"+IF(O226=\"Alta\",0.5,IF(O226=\"Media\",0.3,IF(O226=\"Baja\",0.2,\"\")))","v":0.5},"Alta",{"$f":"+IF(#REF!=\"Grave \",0.5,IF(#REF!=\"Importante\",0.3,IF(#REF!=\"Leve\",0.2,\"\")))","v":{"$error":"#REF!"}},"SI","Ley 1712 art. 18\nLey 1581-2012","Ley 1712 art. 18\nLey 1581-2012","Sin reserva","2021-11-22","Permanente"]
[{"$f":"IF(D227<>\"\",VLOOKUP('Activos de información - ICYR'!D227,DATA!$B$2:$C$95,2,)&\"-\"&IF(ISERR(B227),\"LEB\",B227),\"\")","v":"403-LEB"},{"$f":"IF(AND(#REF!=\"\",D227<>\"\"),\"LEB\",IF(D227<>\"\",1+#REF!,\"\"))","v":{"$error":"#REF!"}},"Información Física – Digital","SUBDIRECCIÓN ADMINISTRATIVA","PQRSD","Solicitudes o respuestas a PQRSD generadas por los grupos de interés","SUBDIRECCIÓN ADMINISTRATIVA","2018-11-28","GRUPO INTERNO DE TRABAJO DE GRUPOS DE INTERÉS Y GESTIÓN DOCUMENTAL","Documentos de Archivo - físicos/electrónico","PDF","Español","Pública Clasificada",{"$f":"+IF(O227=\"Alta\",0.5,IF(O227=\"Media\",0.3,IF(O227=\"Baja\",0.2,\"\")))","v":0.5},"Alta",{"$f":"+IF(#REF!=\"Grave \",0.5,IF(#REF!=\"Importante\",0.3,IF(#REF!=\"Leve\",0.2,\"\")))","v":{"$error":"#REF!"}},"SI","Ley 1712 de 2014\nDecreto 103 de 2015\nLey 1755 de 2015","Ley 1712 de 2014\nDecreto 103 de 2015\nLey 1755 de 2015","Sin reserva","2021-09-20","Permanente"]
[{"$f":"IF(D228<>\"\",VLOOKUP('Activos de información - ICYR'!D228,DATA!$B$2:$C$95,2,)&\"-\"&IF(ISERR(B228),\"LEB\",B228),\"\")","v":"403-LEB"},{"$f":"IF(AND(A227=\"\",D228<>\"\"),\"LEB\",IF(D228<>\"\",1+B227,\"\"))","v":{"$error":"#REF!"}},"Información Física – Digital","SUBDIRECCIÓN ADMINISTRATIVA","Programa de seguros y Notificación de Siniestros","Documentos relacionados con el programa de Seguros y la notificación de siniestros.","SUBDIRECCIÓN ADMINISTRATIVA","2021-01-01","GRUPO INTERNO DE TRABAJO DE GRUPOS DE INTERÉS Y GESTIÓN DOCUMENTAL","Documentos de Archivo - físicos/electrónico","PDF","Español","Pública Clasificada",{"$f":"+IF(O228=\"Alta\",0.5,IF(O228=\"Media\",0.3,IF(O228=\"Baja\",0.2,\"\")))","v":0.5},"Alta",{"$f":"+IF(#REF!=\"Grave \",0.5,IF(#REF!=\"Importante\",0.3,IF(#REF!=\"Leve\",0.2,\"\")))","v":{"$error":"#REF!"}},"SI","Ley 1712 de2014\nArt 18 Literal c","Ley 1712 de2014\nArt 18 Literal c","Sin reserva","2021-09-20","Permanente"]
[{"$f":"IF(D229<>\"\",VLOOKUP('Activos de información - ICYR'!D229,DATA!$B$2:$C$95,2,)&\"-\"&IF(ISERR(B229),\"LEB\",B229),\"\")","v":"404-LEB"},{"$f":"IF(AND(#REF!=\"\",D229<>\"\"),\"LEB\",IF(D229<>\"\",1+#REF!,\"\"))","v":{"$error":"#REF!"}},"Información Física","SUBDIRECCIÓN DE GESTIÓN CONTRACTUAL","ACTAS DE COMITÉ ASESOR DE SEGUIMIENTO AL PLAN ANUAL DE ADQUISICIONES","El Comité asesor de seguimiento al plan anual de adquisiciones es una instancia de carácter legal, creado mediante resolución en la cual se establecen sus integrantes y funciones, las cuales están encaminadas principalmente al seguimiento a los proyectos incorporados en el PAA.  cuyas tipologias documentakes son : citacion al comite - acta de comites.","SUBDIRECCIÓN DE GESTIÓN CONTRACTUAL","2018-11-28","SUBDIRECCIÓN DE GESTIÓN CONTRACTUAL","Documentos de Archivo - físicos/electrónico","PDF","Español","Pública Clasificada",{"$f":"+IF(O229=\"Alta\",0.5,IF(O229=\"Media\",0.3,IF(O229=\"Baja\",0.2,\"\")))","v":0.3},"Media",{"$f":"+IF(#REF!=\"Grave \",0.5,IF(#REF!=\"Importante\",0.3,IF(#REF!=\"Leve\",0.2,\"\")))","v":{"$error":"#REF!"}},"SI","Ley 1712 de 2014  del artículo 18","Ley 1712 de 2014  del artículo 18","Sin reserva","2018-11-28","Permanente"]
[{"$f":"IF(D230<>\"\",VLOOKUP('Activos de información - ICYR'!D230,DATA!$B$2:$C$95,2,)&\"-\"&IF(ISERR(B230),\"LEB\",B230),\"\")","v":"404-LEB"},{"$f":"IF(AND(A229=\"\",D230<>\"\"),\"LEB\",IF(D230<>\"\",1+B229,\"\"))","v":{"$error":"#REF!"}},"Información Física","SUBDIRECCIÓN DE GESTIÓN CONTRACTUAL","ACTAS DE COMITÉ ASESOR DE CONTRATACIÓN","El Comité asesor de contratación es una instancia de consulta de carácter legal, creado mediante resolución en la cual se establecen sus integrantes y funciones, las cuales están encaminadas principalmente a la definición y orientación de los lineamientos generales que regirán la actividad contractual de la entidad","SUBDIRECCIÓN DE GESTIÓN CONTRACTUAL","2018-11-28","SUBDIRECCIÓN DE GESTIÓN CONTRACTUAL","Documentos de Archivo - físicos/electrónico","PDF","Español","Pública Clasificada",{"$f":"+IF(O230=\"Alta\",0.5,IF(O230=\"Media\",0.3,IF(O230=\"Baja\",0.2,\"\")))","v":0.3},"Media",{"$f":"+IF(#REF!=\"Grave \",0.5,IF(#REF!=\"Importante\",0.3,IF(#REF!=\"Leve\",0.2,\"\")))","v":{"$error":"#REF!"}},"SI","Ley 1712 de 2014  del artículo 18","Ley 1712 de 2014  del artículo 18","Sin reserva","2018-11-28","Permanente"]
[{"$f":"IF(D231<>\"\",VLOOKUP('Activos de información - ICYR'!D231,DATA!$B$2:$C$95,2,)&\"-\"&IF(ISERR(B231),\"LEB\",B231),\"\")","v":"404-LEB"},{"$f":"IF(AND(#REF!=\"\",D231<>\"\"),\"LEB\",IF(D231<>\"\",1+#REF!,\"\"))","v":{"$error":"#REF!"}},"Información Digital","SUBDIRECCIÓN DE GESTIÓN CONTRACTUAL","BASE DE DATOS DE CONTRATOS SUSCRITOS","DOCUMENTO QUE CONTIENE LA RELACIÓN DE LOS CONTRATOS SUSCRITOS POR PARTE DEL MINSITERIO/FONDO UNICO DE TECNOLOGÍAS DE LA INFORMACIÓN Y LAS COMUNICACIONES","SUBDIRECCIÓN DE GESTIÓN CONTRACTUAL","2013-01-08","SUBDIRECCIÓN DE GESTIÓN CONTRACTUAL","Documentos de Archivo - electrónicos","Base de datos","Español","Pública Clasificada",{"$f":"+IF(O231=\"Alta\",0.5,IF(O231=\"Media\",0.3,IF(O231=\"Baja\",0.2,\"\")))","v":0.5},"Alta",{"$f":"+IF(#REF!=\"Grave \",0.5,IF(#REF!=\"Importante\",0.3,IF(#REF!=\"Leve\",0.2,\"\")))","v":{"$error":"#REF!"}},"SI","LEY 1581 DE 2012 \nLEY 1712 DE 2014","LEY 1712 DE 2014  del artículo 18","Sin reserva","2013-01-08","PERMANENTE"]
[{"$f":"IF(D232<>\"\",VLOOKUP('Activos de información - ICYR'!D232,DATA!$B$2:$C$95,2,)&\"-\"&IF(ISERR(B232),\"LEB\",B232),\"\")","v":"4041-LEB"},{"$f":"IF(AND(A231=\"\",D232<>\"\"),\"LEB\",IF(D232<>\"\",1+B231,\"\"))","v":{"$error":"#REF!"}},"Información Digital","GRUPO INTERNO DE TRABAJO DE ACTUACIONES ADMINISTRATIVAS CONTRACTUALES","Respuestas PQRSD","Respuestas producto de las solicitudes internas y externas de PQRSD competencia de la Coordinación del Grupo Interno de Trabajo de Actuaciones Administrativas Contractuales.","GRUPO INTERNO DE TRABAJO DE ACTUACIONES ADMINISTRATIVAS CONTRACTUALES","2018-11-28","GRUPO INTERNO DE TRABAJO DE ACTUACIONES ADMINISTRATIVAS CONTRACTUALES","Sistemas de Información corporativos","Documento de Texto","Español","Pública Clasificada",{"$f":"+IF(O232=\"Alta\",0.5,IF(O232=\"Media\",0.3,IF(O232=\"Baja\",0.2,\"\")))","v":0.3},"Media",{"$f":"+IF(#REF!=\"Grave \",0.5,IF(#REF!=\"Importante\",0.3,IF(#REF!=\"Leve\",0.2,\"\")))","v":{"$error":"#REF!"}},"SI","Ley 1712 de 2014","Ley 1712 de 2014","Sin reserva","2018-11-28","Permanente"]
[{"$f":"IF(D233<>\"\",VLOOKUP('Activos de información - ICYR'!D233,DATA!$B$2:$C$95,2,)&\"-\"&IF(ISERR(B233),\"LEB\",B233),\"\")","v":"4-LEB"},{"$f":"IF(AND(#REF!=\"\",D233<>\"\"),\"LEB\",IF(D233<>\"\",1+#REF!,\"\"))","v":{"$error":"#REF!"}},"Información Física","SECRETARÍA GENERAL","Actas de reunion con los sindicatos ","Documento donde se consigna lo sucedido en las mesas de trabajo con los sindicatos compromisos y demas aspectos que se tratan. ","SECRETARÍA GENERAL","2018-11-28","SECRETARÍA GENERAL","Documentos de Archivo - físicos","PDF","Español","Pública Clasificada",{"$f":"+IF(O233=\"Alta\",0.5,IF(O233=\"Media\",0.3,IF(O233=\"Baja\",0.2,\"\")))","v":0.5},"Alta",{"$f":"+IF(#REF!=\"Grave \",0.5,IF(#REF!=\"Importante\",0.3,IF(#REF!=\"Leve\",0.2,\"\")))","v":{"$error":"#REF!"}},"SI","Ley 1712 Articulo 18 literal c. Los secretos comerciales, industriales y profesionales asi como los estipulados en el paragrafo del articulo 77 de la ley 1474 de 2011","Ley 1712 Articulo 18 literal c. Los secretos comerciales, industriales y profesionales","Sin reserva","2018-11-28","Permanente"]
[{"$f":"IF(D234<>\"\",VLOOKUP('Activos de información - ICYR'!D234,DATA!$B$2:$C$95,2,)&\"-\"&IF(ISERR(B234),\"LEB\",B234),\"\")","v":"4-LEB"},{"$f":"IF(AND(A233=\"\",D234<>\"\"),\"LEB\",IF(D234<>\"\",1+B233,\"\"))","v":{"$error":"#REF!"}},"Información Física","SECRETARÍA GENERAL","Actas de Comité Directivo","Documento que contiene la toma de decisiones respecto al Ministerio","SECRETARÍA GENERAL","2018-11-28","GRUPO INTERNO DE TRABAJO DE GESTIÓN DE LA INFORMACIÓN","Documentos de Archivo - físicos","Papel","Español","Pública Clasificada",{"$f":"+IF(O234=\"Alta\",0.5,IF(O234=\"Media\",0.3,IF(O234=\"Baja\",0.2,\"\")))","v":0.5},"Alta",{"$f":"+IF(#REF!=\"Grave \",0.5,IF(#REF!=\"Importante\",0.3,IF(#REF!=\"Leve\",0.2,\"\")))","v":{"$error":"#REF!"}},"SI","Ley 1712 Articulo 19 Parágrafo. Se exceptúan también los documentos que contengan las opiniones o puntos de vista que formen parte del proceso deliberativo de los servidores públicos.","Ley 1712 Articulo 18 literal c. Los secretos comerciales, industriales y profesionale","Sin reserva","2018-11-28","Permanente"]
[{"$f":"IF(D235<>\"\",VLOOKUP('Activos de información - ICYR'!D235,DATA!$B$2:$C$95,2,)&\"-\"&IF(ISERR(B235),\"LEB\",B235),\"\")","v":"4-LEB"},{"$f":"IF(AND(#REF!=\"\",D235<>\"\"),\"LEB\",IF(D235<>\"\",1+#REF!,\"\"))","v":{"$error":"#REF!"}},"Información Física – Digital","SECRETARÍA GENERAL","Respuestas/Trámites PQRSD","Respuestas a PQRSD de usuarios, entes internos y Externos","SECRETARÍA GENERAL","2018-11-28","GRUPO INTERNO DE TRABAJO DE FORTALECIMIENTO DE LAS RELACIONES CON LOS GRUPOS DE INTERES","Documentos de Archivo - físicos","Papel","Español","Pública Clasificada",{"$f":"+IF(O235=\"Alta\",0.5,IF(O235=\"Media\",0.3,IF(O235=\"Baja\",0.2,\"\")))","v":0.3},"Media",{"$f":"+IF(#REF!=\"Grave \",0.5,IF(#REF!=\"Importante\",0.3,IF(#REF!=\"Leve\",0.2,\"\")))","v":{"$error":"#REF!"}},"SI","Ley 1712 Artículo 18 literal a","Ley 1712 Articulo 18 literal c. Los secretos comerciales, industriales y profesionales","Sin reserva","2018-11-28","Permanente"]

{"sheet":"DATA","index":1,"n_rows":591,"n_cols":18,"rows_kept":591,"cut":false,"hidden":true,"merged":[]}
["Unido Unidades / Grupos de Trabajo","Unidades / Grupos de Trabajo","Código del área","Series",null,"Código de la Serie","Unido Series","Subseries",null,"Código de la Subserie",null,"Tipo_Activo","Tipo_MacroProceso","ESTRATEGICO","APOYO","EVALUACION","MISIONAL","N/A"]
[{"$f":"SUBSTITUTE(B2,\" \",\"\")","v":"DESPACHODELMINISTRO"},"DESPACHO DEL MINISTRO",1,"DERECHOS DE PETICIÓN",{"$f":"SUBSTITUTE(D2,\" \",\"_\")","v":"DERECHOS_DE_PETICIÓN"},27,{"$f":"_xlfn.CONCAT(E2,F2)","v":"DERECHOS_DE_PETICIÓN27"},"N/A","DERECHOS_DE_PETICIÓN27","N/A",null,"Información Física","ESTRATEGICO","ARQUITECTURA_INSTITUCIONAL","GESTION_RECURSOS","ANALISIS_MEJORA_GESTION","ACCESO_USO_APROPIACION_TIC","No_Aplica"]
[{"$f":"SUBSTITUTE(B3,\" \",\"\")","v":"OFICINAASESORADEPLANEACIÓNYESTUDIOSSECTORIALES"},"OFICINA ASESORA DE PLANEACIÓN Y ESTUDIOS SECTORIALES",11,"ESTATUTOS INTERNOS DEL FONDO DE TECNOLOGIAS DE LA INFORMACIÓN Y LAS COMUNICACIONES",{"$f":"SUBSTITUTE(D3,\" \",\"_\")","v":"ESTATUTOS_INTERNOS_DEL_FONDO_DE_TECNOLOGIAS_DE_LA_INFORMACIÓN_Y_LAS_COMUNICACIONES"},32,{"$f":"_xlfn.CONCAT(E3,F3)","v":"ESTATUTOS_INTERNOS_DEL_FONDO_DE_TECNOLOGIAS_DE_LA_INFORMACIÓN_Y_LAS_COMUNICACIONES32"},"N/A","ESTATUTOS_INTERNOS_DEL_FONDO_DE_TECNOLOGIAS_DE_LA_INFORMACIÓN_Y_LAS_COMUNICACIONES32","N/A",null,"Información Digital","APOYO","COMUNICACION_ESTRATEGICA","GESTION_JURIDICA",null,"GESTION_CONOCIMIENTO_SECTOR_TIC"]
[{"$f":"SUBSTITUTE(B4,\" \",\"\")","v":"GRUPOINTERNODETRABAJODEPLANEACIÓNYSEGUIMIENTO"},"GRUPO INTERNO DE TRABAJO DE PLANEACIÓN Y SEGUIMIENTO",1101,"INFORMES","INFORMES",41,"INFORMES41","INFORMES A ORGANISMOS DE CONTROL","INFORMES41","41.1",null,"Información Física – Digital","EVALUACION","COOPERACION_INTERNACIONAL",null,null,"PLANEACION_FORMULACION_POLITICAS_TIC"]
[{"$f":"SUBSTITUTE(B5,\" \",\"\")","v":"GRUPOINTERNODETRABAJODEESTADÍSTICAYESTUDIOSSECTORIALES"},"GRUPO INTERNO DE TRABAJO DE ESTADÍSTICA Y ESTUDIOS SECTORIALES",1102,"INFORMES","INFORMES",41,"INFORMES41","INFORMES DE GESTIÓN","INFORMES41","41.4",null,"Hardware","MISIONAL","GESTION_ATENCION_GRUPOS_INTERES",null,null,"SEGUIMIENTO_CONTROL_POLITICAS_TIC"]
["GRUPOINTERNODETRABAJODETRANSFORMACIÓNORGANIZACIONAL","GRUPO INTERNO DE TRABAJO DE TRANSFORMACIÓN ORGANIZACIONAL",1103,"POLITICAS","POLITICAS",61,"POLITICAS61","POLITICAS DE DIVULGACIÓN Y PROMOCIÓN DE TECNOLOGIA DE LA INFORMACIÓN Y LAS COMUNCIACIONES","POLITICAS61","61.2",null,"Software","No_Aplica","MARCO_ESTRATEGICO"]
["OFICINAASESORADEPRENSA","OFICINA ASESORA DE PRENSA",12,"PROYECTOS","PROYECTOS",65,"PROYECTOS65","PROYECTOS DE CANALES DE TELEVISIÓN ","PROYECTOS65","65.1",null,"Servicio"]
["OFICINAINTERNACIONAL","OFICINA INTERNACIONAL",13,"PROYECTOS","PROYECTOS",65,"PROYECTOS65","PROYECTOS DE LEY","PROYECTOS65","65.6",null,"Recurso Humano - P"]
["OFICINADETECNOLOGÍASDELAINFORMACIÓN","OFICINA DE TECNOLOGÍAS DE LA INFORMACIÓN",14,"ACTAS","ACTAS",2,"ACTAS2","ACTAS DE COMITÉ","ACTAS2","2.1",null,"Recurso Humano - C"]
[{"$f":"SUBSTITUTE(B10,\" \",\"\")","v":"GRUPOINTERNODETRABAJODESERVICIOSTECNOLÓGICOS"},"GRUPO INTERNO DE TRABAJO DE SERVICIOS TECNOLÓGICOS",1401,"ACTAS",{"$f":"SUBSTITUTE(D10,\" \",\"_\")","v":"ACTAS"},2,{"$f":"_xlfn.CONCAT(E10,F10)","v":"ACTAS2"},"ACTAS DE COMITÉ","ACTAS2","2.1",null,"Equipamiento Auxiliar o Soporte"]
["GRUPOINTERNODETRABAJODEGESTIÓNYSISTEMASDEINFORMACIÓN","GRUPO INTERNO DE TRABAJO DE GESTIÓN Y SISTEMAS DE INFORMACIÓN",1402,"ACTAS","ACTAS",2,"ACTAS2","ACTAS DE GRUPO PRIMARIO","ACTAS2","2.4",null,"Intangibles"]
["OFICINADEFOMENTOREGIONALDETECNOLOGÍASDELAINFORMACIÓNYLASCOMUNICACIONES","OFICINA DE FOMENTO REGIONAL DE TECNOLOGÍAS DE LA INFORMACIÓN Y LAS COMUNICACIONES",15,"CONCEPTOS","CONCEPTOS",19,"CONCEPTOS19","CONCEPTOS DE VIABILIDAD A LOS PROYECTOS DE INVERSIÓN","CONCEPTOS19","19.1"]
["GRUPOINTERNODETRABAJODECONSENSOSOCIAL","GRUPO INTERNO DE TRABAJO DE CONSENSO SOCIAL",1501,"INFORMES","INFORMES",41,"INFORMES41","INFORMES A ORGANISMOS DE CONTROL","INFORMES41","41.1"]
["OFICINADECONTROLINTERNO","OFICINA DE CONTROL INTERNO",16,"INFORMES","INFORMES",41,"INFORMES41","INFORMES DE GESTIÓN","INFORMES41","41.4"]
["DIRECCIÓNJURÍDICA","DIRECCIÓN JURÍDICA",17,"MANUALES","MANUALES",50,"MANUALES50","MANUALES DE PROCESOS Y PROCEDIMIENTOS","MANUALES50","50.3"]
["GRUPOINTERNODETRABAJODEDOCTRINAYSEGURIDADJURÍDICA","GRUPO INTERNO DE TRABAJO DE DOCTRINA Y SEGURIDAD JURÍDICA",1701,"DERECHOS DE PETICIÓN","DERECHOS_DE_PETICIÓN",27,"DERECHOS_DE_PETICIÓN27","N/A","DERECHOS_DE_PETICIÓN27","N/A"]
["GRUPOINTERNODETRABAJODEPROCESOSJUDICIALESYEXTRAJUDICIALES","GRUPO INTERNO DE TRABAJO DE PROCESOS JUDICIALES Y EXTRAJUDICIALES",1702,"PLANES","PLANES",59,"PLANES59","PLAN ANTICORRUPCIÓN Y DE ATENCIÓN AL CIUDADANO","PLANES59","59.1"]
["GRUPOINTERNODETRABAJODECOBROCOACTIVO","GRUPO INTERNO DE TRABAJO DE COBRO COACTIVO",1703,"PLANES","PLANES",59,"PLANES59","PLANES INSTITUCIONALES","PLANES59","59.12"]
["DESPACHODELVICEMINISTRODECONECTIVIDAD","DESPACHO DEL VICEMINISTRO DE CONECTIVIDAD",2,"PLANES","PLANES",59,"PLANES59","PLANES INSTITUCIONALES","PLANES59","59.12"]
["GRUPOINTERNODETRABAJOESPECIALIZADODEAPELACIONES","GRUPO INTERNO DE TRABAJO ESPECIALIZADO DE APELACIONES",2001,"ANTEPROYECTO DEL PRESUPUESTO DE INVERSIÓN","ANTEPROYECTO_DEL_PRESUPUESTO_DE_INVERSIÓN",6,"ANTEPROYECTO_DEL_PRESUPUESTO_DE_INVERSIÓN6","N/A","ANTEPROYECTO_DEL_PRESUPUESTO_DE_INVERSIÓN6","N/A"]
["GRUPOINTERNODETRABAJODEFORTALECIMIENTOALSISTEMADEMEDIOSPÚBLICOS","GRUPO INTERNO DE TRABAJO DE FORTALECIMIENTO AL SISTEMA DE MEDIOS PÚBLICOS",2002,"INFORMES","INFORMES",412,"INFORMES412","INFORMES DE GESTIÓN","INFORMES412","41.4"]
["DIRECCIÓNDEINFRAESTRUCTURA","DIRECCIÓN DE INFRAESTRUCTURA",21,"INFORMES","INFORMES",412,"INFORMES412","INFORMES DE GESTIÓN","INFORMES41","41.4"]
["GRUPOINTERNODETRABAJODERELACIONESINSTITUCIONALES","GRUPO INTERNO DE TRABAJO DE RELACIONES INSTITUCIONALES",2101,"PLANES","PLANES",592,"PLANES592","PLANES ESTRATÉGICOS","PLANES592","59.11"]
[{"$f":"SUBSTITUTE(B24,\" \",\"\")","v":"SUBDIRECCIÓNDEESTRUCTURACIÓNDEPROYECTOS"},"SUBDIRECCIÓN DE ESTRUCTURACIÓN DE PROYECTOS",211,"PLANES","PLANES",592,"PLANES592","PLANES INSTITUCIONALES","PLANES592","59.12"]
["SUBDIRECCIÓNDEOPERACIONES","SUBDIRECCIÓN DE OPERACIONES",212,"PROYECTOS","PROYECTOS",652,"PROYECTOS652","PROYECTOS DE GESTIÓN INTERNOS","PROYECTOS652","65.3"]
["DIRECCIÓNDEINDUSTRIADECOMUNICACIONES","DIRECCIÓN DE INDUSTRIA DE COMUNICACIONES",22,"PROYECTOS","PROYECTOS",652,"PROYECTOS652","PROYECTOS DE INVERSIÓN","PROYECTOS652","65.4"]
["GRUPOINTERNODETRABAJODEGESTIÓNDEGARANTÍAS","GRUPO INTERNO DE TRABAJO DE GESTIÓN DE GARANTÍAS",2201,"ACTAS","ACTAS",21,{"$f":"_xlfn.CONCAT(E27,F27)","v":"ACTAS21"},"ACTAS DE LA MESA TÉCNICA DE ESTADISTICAS TIC","ACTAS21","2.6"]
["SUBDIRECCIÓNPARALAINDUSTRIADECOMUNICACIONES","SUBDIRECCIÓN PARA LA INDUSTRIA DE COMUNICACIONES",221,"CERTIFICADOS","CERTIFICADOS",13,"CERTIFICADOS13","CERTIFICACIONES DE CALIDAD ESTADISTICA","CERTIFICADOS13","13.1"]
["GRUPOINTERNODETRABAJODEGESTIÓNDEESPECTRORADIOELÉCTRICO","GRUPO INTERNO DE TRABAJO DE GESTIÓN DE ESPECTRO RADIOELÉCTRICO",2211,"ESTUDIOS","ESTUDIOS",33,"ESTUDIOS33","ESTUDIOS SECTORIALES","ESTUDIOS33","33.3"]
["SUBDIRECCIÓNDERADIODIFUSIÓNSONORA","SUBDIRECCIÓN DE RADIODIFUSIÓN SONORA",222,"MODELO INTEGRADO DE GESTION","MODELO_INTEGRADO_DE_GESTION",52,"MODELO_INTEGRADO_DE_GESTION52","POLÍTICA DE GESTIÓN DE INFORMACIÓN ESTADÍSTICA","MODELO_INTEGRADO_DE_GESTION52","52.1"]
["SUBDIRECCIÓNDEASUNTOSPOSTALES","SUBDIRECCIÓN DE ASUNTOS POSTALES",223,"MODELO INTEGRADO DE GESTION","MODELO_INTEGRADO_DE_GESTION",52,"MODELO_INTEGRADO_DE_GESTION52","PROCESOS MIG ","MODELO_INTEGRADO_DE_GESTION52","52.2"]
[{"$f":"SUBSTITUTE(B32,\" \",\"\")","v":"DIRECCIÓNDEVIGILANCIAINSPECCIÓNYCONTROL"},"DIRECCIÓN DE VIGILANCIA INSPECCIÓN Y CONTROL",23,"OPERACIONES ESTADISTICAS","OPERACIONES_ESTADISTICAS",57,"OPERACIONES_ESTADISTICAS57","N/A","OPERACIONES_ESTADISTICAS57","N/A"]
["SUBDIRECCIÓNDEVIGILANCIAEINSPECCIÓN","SUBDIRECCIÓN DE VIGILANCIA E INSPECCIÓN",231,"FORMULARIOS UNICOS DE REPORTE DE AVANCES DE LA GESTIÓN FURAG","FORMULARIOS_UNICOS_DE_REPORTE_DE_AVANCES_DE_LA_GESTIÓN_FURAG",36,"FORMULARIOS_UNICOS_DE_REPORTE_DE_AVANCES_DE_LA_GESTIÓN_FURAG36","N/A","FORMULARIOS_UNICOS_DE_REPORTE_DE_AVANCES_DE_LA_GESTIÓN_FURAG36","N/A"]
["GRUPOINTERNODETRABAJODEPROMOCIÓNYPREVENCIÓN","GRUPO INTERNO DE TRABAJO DE PROMOCIÓN Y PREVENCIÓN",2311,"INFORMES","INFORMES",413,"INFORMES413","INFORMES DE ADMINISTRACIÓN DE RIESGOS","INFORMES413","41.2"]
["GRUPOINTERNODETRABAJODERECOLECCIÓNYANÁLISISDEINFORMACIÓN","GRUPO INTERNO DE TRABAJO DE RECOLECCIÓN Y ANÁLISIS DE INFORMACIÓN",2312,"INFORMES","INFORMES",413,"INFORMES413","INFORMES DE ARQUITECTURA INSTITUCIONAL - COMPONENTE PROCESOS","INFORMES413","41.3"]
["SUBDIRECCIÓNDEINVESTIGACIONESADMINISTRATIVAS","SUBDIRECCIÓN DE INVESTIGACIONES ADMINISTRATIVAS",232,"INFORMES","INFORMES",413,"INFORMES413","INFORMES A ORGANISMOS DE CONTROL","INFORMES413","41.1"]
["GRUPOINTERNODETRABAJODEPROCESOSADMINISTRATIVOSSANCIONATORIOS","GRUPO INTERNO DE TRABAJO DE PROCESOS ADMINISTRATIVOS SANCIONATORIOS",2321,"INFORMES","INFORMES",413,"INFORMES413","INFORMES DE GESTIÓN","INFORMES413","41.4"]
["DESPACHODELVICEMINISTRODETRANSFORMACIÓNDIGITAL","DESPACHO DEL VICEMINISTRO DE TRANSFORMACIÓN DIGITAL",3,"INFORMES","INFORMES",413,"INFORMES413","INFORMES DE SEGUIMIENTO A LAS POLÍTICAS DE GESTIÓN Y DESEMPEÑO","INFORMES413","N/A"]
["GRUPOINTERNODETRABAJODEDOMINIO.COYGOBERNANZADEINTERNET","GRUPO INTERNO DE TRABAJO DE DOMINIO.CO Y GOBERNANZA DE INTERNET",3001,"INFORMES","INFORMES",413,"INFORMES413","INFORMES DE SEGUIMIENTO, CONTROL Y MEJORA","INFORMES413","N/A"]
["DIRECCIÓNDEAPROPIACIÓNDETECNOLOGÍASDELAINFORMACIÓNYLASCOMUNICACIONES","DIRECCIÓN DE APROPIACIÓN DE TECNOLOGÍAS DE LA INFORMACIÓN Y LAS COMUNICACIONES",31,"INFORMES","INFORMES",413,"INFORMES413","INFORMES DEL EJE ARTICULADOR -GESTIÓN DEL CONOCIMIENTO E INNOVACIÓN","INFORMES41","N/A"]
["GRUPOINTERNODETRABAJODEINCLUSIÓNTICPARAPERSONASCONDISCAPACIDAD","GRUPO INTERNO DE TRABAJO DE INCLUSIÓN TIC PARA PERSONAS CON DISCAPACIDAD",3101,"DERECHOS DE PETICIÓN","DERECHOS_DE_PETICIÓN",27,"DERECHOS_DE_PETICIÓN27","N/A","DERECHOS_DE_PETICIÓN27","N/A"]
["GRUPOINTERNODETRABAJODEEDUCACIÓNYCULTURADIGITAL","GRUPO INTERNO DE TRABAJO DE EDUCACIÓN Y CULTURA DIGITAL",3102,"PLANES","PLANES",591,"PLANES591","PLAN ANTICORRUPCIÓN Y DE ATENCIÓN AL CIUDADANO","PLANES591","N/A"]
["GRUPOINTERNODETRABAJODEFOMENTODEHABILIDADESDIGITALESPARALAPRODUCTIVIDAD","GRUPO INTERNO DE TRABAJO DE FOMENTO DE HABILIDADES DIGITALES PARA LA PRODUCTIVIDAD",3103,"BOLETINES","BOLETINES",12,"BOLETINES12","BOLETINES INFORMATIVOS","BOLETINES12","N/A"]
["DIRECCIÓNDEGOBIERNODIGITAL","DIRECCIÓN DE GOBIERNO DIGITAL",32,"COMUNICADOS DE PRENSA","COMUNICADOS_DE_PRENSA",18,"COMUNICADOS_DE_PRENSA18","N/A","COMUNICADOS_DE_PRENSA18","N/A"]
[{"$f":"SUBSTITUTE(B45,\" \",\"\")","v":"GRUPOINTERNODETRABAJODESERVICIOSCIUDADANOSDIGITALES"},"GRUPO INTERNO DE TRABAJO DE SERVICIOS CIUDADANOS DIGITALES",3201,"INFORMES",{"$f":"SUBSTITUTE(D45,\" \",\"_\")","v":"INFORMES"},414,{"$f":"_xlfn.CONCAT(E45,F45)","v":"INFORMES414"},"INFORMES DE GESTIÓN","INFORMES414","N/A"]
[{"$f":"SUBSTITUTE(B46,\" \",\"\")","v":"SUBDIRECCIÓNDEESTÁNDARESYARQUITECTURADETECNOLOGÍASDELAINFORMACIÓN"},"SUBDIRECCIÓN DE ESTÁNDARES Y ARQUITECTURA DE TECNOLOGÍAS DE LA INFORMACIÓN",321,"INVENTARIOS","INVENTARIOS",44,"INVENTARIOS44","INVENTARIOS DE ACTIVOS DE INFORMACIÓN","INVENTARIOS44","N/A"]
["SUBDIRECCIÓNDEFORTALECIMIENTODECAPACIDADESPÚBLICASDIGITALES","SUBDIRECCIÓN DE FORTALECIMIENTO DE CAPACIDADES PÚBLICAS DIGITALES",322,"DERECHOS DE PETICIÓN","DERECHOS_DE_PETICIÓN",27,"DERECHOS_DE_PETICIÓN27","N/A","DERECHOS_DE_PETICIÓN27","N/A"]
["DIRECCIÓNDEECONOMIADIGITAL","DIRECCIÓN DE ECONOMIA DIGITAL",33,"ACUERDOS","ACUERDOS",4,"ACUERDOS4","ACUERDOS INTERNACIONALES DE COOPERACIÓN","ACUERDOS4","4.7"]
["SUBDIRECCIÓNPARALASCOMPETENCIASDIGITALES","SUBDIRECCIÓN PARA LAS COMPETENCIAS DIGITALES",331,"INFORMES","INFORMES",41,"INFORMES41","INFORMES A ORGANISMOS DE CONTROL","INFORMES41","41.1"]
["SUBDIRECCIÓNDEINDUSTRIADETECNOLOGÍASDELAINFORMACIÓN","SUBDIRECCIÓN DE INDUSTRIA DE TECNOLOGÍAS DE LA INFORMACIÓN",332,"INFORMES",{"$f":"SUBSTITUTE(D50,\" \",\"_\")","v":"INFORMES"},41,{"$f":"_xlfn.CONCAT(E50,F50)","v":"INFORMES41"},"INFORMES DE GESTIÓN","INFORMES41","41.4"]
["SUBDIRECCIÓNPARALATRANSFORMACIÓNSECTORIAL","SUBDIRECCIÓN PARA LA TRANSFORMACIÓN SECTORIAL",333,"ACTAS","ACTAS",22,{"$f":"_xlfn.CONCAT(E51,F51)","v":"ACTAS22"},"ACTAS DE COMITÉ","ACTAS22","2.1"]
["SECRETARÍAGENERAL","SECRETARÍA GENERAL",4,"ACUERDOS","ACUERDOS",41,"ACUERDOS41","ACUERDOS DE SERVICIOS ESTRATÉGICOS CON ENTIDADES DEL SECTOR","ACUERDOS41","4.5"]
["GRUPOINTERNODETRABAJODECONTROLINTERNODISCIPLINARIO","GRUPO INTERNO DE TRABAJO DE CONTROL INTERNO DISCIPLINARIO",4001,"INFORMES","INFORMES",415,{"$f":"_xlfn.CONCAT(E53,F53)","v":"INFORMES415"},"INFORMES DE GESTIÓN","INFORMES415","41.4"]
["SUBDIRECCIÓNFINANCIERA","SUBDIRECCIÓN FINANCIERA",401,"PLANES","PLANES",593,"PLANES593","PLANES INSTITUCIONALES","PLANES593","59.12"]
["GRUPOINTERNODETRABAJODETESORERÍA","GRUPO INTERNO DE TRABAJO DE TESORERÍA",4011,"PROCESOS","PROCESOS",62,"PROCESOS62","PROCESOS DE INFORMACIÓN SECTORIAL","PROCESOS62","62.7"]
["GRUPOINTERNODETRABAJODECONTABILIDAD","GRUPO INTERNO DE TRABAJO DE CONTABILIDAD",4012,"ACTAS","ACTAS",23,"ACTAS23","ACTAS DE COMITÉ","ACTAS23","2.1"]
["GRUPOINTERNODETRABAJODEPRESUPUESTO","GRUPO INTERNO DE TRABAJO DE PRESUPUESTO",4013,"INFORMES","INFORMES",416,"INFORMES416","INFORMES DE GESTIÓN","INFORMES416","41.4"]
["GRUPOINTERNODETRABAJODECARTERA","GRUPO INTERNO DE TRABAJO DE CARTERA",4014,"PLANES","PLANES",594,"PLANES594","PLANES INSTITUCIONALES","PLANES594","59.12"]
["SUBDIRECCIÓNPARALAGESTIÓNDELTALENTOHUMANO","SUBDIRECCIÓN PARA LA GESTIÓN DEL TALENTO HUMANO",402,"POLITICAS","POLITICAS",612,"POLITICAS612","N/A","POLITICAS612","N/A"]
["GRUPOINTERNODETRABAJODEGESTIÓNDELTALENTOHUMANO","GRUPO INTERNO DE TRABAJO DE GESTIÓN DEL TALENTO HUMANO",4021,"INFORMES","INFORMES",416,"INFORMES416","INFORMES DE GESTIÓN","INFORMES416","41.4"]
["GRUPOINTERNODETRABAJODEGESTIÓNPENSIONAL","GRUPO INTERNO DE TRABAJO DE GESTIÓN PENSIONAL",4022,"PLANES","PLANES",595,{"$f":"_xlfn.CONCAT(E61,F61)","v":"PLANES595"},"PLANES INSTITUCIONALES","PLANES595","59.12"]
["SUBDIRECCIÓNADMINISTRATIVA","SUBDIRECCIÓN ADMINISTRATIVA",403,"POLITICAS","POLITICAS",612,"POLITICAS612","N/A","POLITICAS612","N/A"]
["GRUPOINTERNODETRABAJODEADMINISTRACIÓNDEBIENES","GRUPO INTERNO DE TRABAJO DE ADMINISTRACIÓN DE BIENES",4031,"ACTAS","ACTAS",24,"ACTAS24","ACTAS DE REUNIÓN","ACTAS24","N/A"]
["GRUPOINTERNODETRABAJODENOTIFICACIONES","GRUPO INTERNO DE TRABAJO DE NOTIFICACIONES",4032,"ASESORÍAS","ASESORÍAS",10,"ASESORÍAS10","N/A","ASESORÍAS10","N/A"]
["GRUPOINTERNODETRABAJODEGRUPOSDEINTERÉSYGESTIÓNDOCUMENTAL","GRUPO INTERNO DE TRABAJO DE GRUPOS DE INTERÉS Y GESTIÓN DOCUMENTAL",4033,"INFORMES","INFORMES",416,"INFORMES416","INFORMES DE GESTIÓN","INFORMES416","41.4"]
["GRUPOINTERNODETRABAJODEGESTIÓNDESERVICIOSADMINISTRATIVOS","GRUPO INTERNO DE TRABAJO DE GESTIÓN DE SERVICIOS ADMINISTRATIVOS",4034,"DERECHOS DE PETICIÓN","DERECHOS_DE_PETICIÓN",27,"DERECHOS_DE_PETICIÓN27","N/A","DERECHOS_DE_PETICIÓN27","N/A"]
["SUBDIRECCIÓNDEGESTIÓNCONTRACTUAL","SUBDIRECCIÓN DE GESTIÓN CONTRACTUAL",404,"PLANES","PLANES",596,"PLANES596","PLANES INSTITUCIONALES","PLANES596","59.12"]
["GRUPOINTERNODETRABAJODEACTUACIONESADMINISTRATIVASCONTRACTUALES","GRUPO INTERNO DE TRABAJO DE ACTUACIONES ADMINISTRATIVAS CONTRACTUALES",4041,"PLANES","PLANES",59,"PLANES59","PLANES ESTRATÉGICOS","PLANES59","59.11"]
[{"$f":"SUBSTITUTE(B69,\" \",\"\")","v":"OFICINAPARALAGESTIÓNDEINGRESOSDELFONDO"},"OFICINA PARA LA GESTIÓN DE INGRESOS DEL FONDO",410,"PLANES","PLANES",59,"PLANES59","PLANES DE INVERSIÓN","PLANES59","59.7"]
["GRUPOINTERNODETRABAJODESEGUIMIENTOALOSINGRESOSDELFONDO","GRUPO INTERNO DE TRABAJO DE SEGUIMIENTO A LOS INGRESOS DEL FONDO",4101,"POLITICAS","POLITICAS",613,"POLITICAS613","POLÍTICAS PUBLICAS CON ENFOQUE DIFERENCIAL","POLITICAS613","61.6"]
["GRUPOINTERNODETRABAJODESEGUIMIENTOALAEJECUCIÓNDERECURSOSDELFONDO","GRUPO INTERNO DE TRABAJO DE SEGUIMIENTO A LA EJECUCIÓN DE RECURSOS DEL FONDO",4102,"ACTAS","ACTAS",25,"ACTAS25","N/A","ACTAS25","N/A"]
["",null,null,"INFORMES","INFORMES",416,"INFORMES416","INFORMES DE GESTIÓN","INFORMES416","41.4"]
["",null,null,"DERECHOS DE PETICIÓN","DERECHOS_DE_PETICIÓN",27,"DERECHOS_DE_PETICIÓN27","N/A","DERECHOS_DE_PETICIÓN27","N/A"]
["",null,null,"PLANES","PLANES",597,"PLANES597","PLANES ETNICOS","PLANES59","59.9"]
["",null,null,"PLANES","PLANES",59,"PLANES59","PLANES INSTITUCIONALES","PLANES59","59.12"]
["",null,null,"POLITICAS","POLITICAS",613,"POLITICAS613","POLÍTICAS PUBLICAS CON ENFOQUE DIFERENCIAL","POLITICAS613","61.6"]
["",null,null,"ACTAS","ACTAS",22,"ACTAS22","ACTAS DE COMITÉ","ACTAS22","2.1"]
[null,null,null,"AUDITORIAS INTERNAS","AUDITORIAS_INTERNAS",8,"AUDITORIAS_INTERNAS8","AUDITORÍAS INTERNAS DE GESTIÓN","AUDITORIAS_INTERNAS8","8.1"]
[null,null,null,"AUDITORIAS INTERNAS","AUDITORIAS_INTERNAS",8,"AUDITORIAS_INTERNAS8","AUDITORÍAS INTERNAS DE SISTEMAS DE GESTIÓN","AUDITORIAS_INTERNAS8","8.2"]
[null,null,null,"INFORMES","INFORMES",418,"INFORMES418","INFORMES A ORGANISMOS DE CONTROL","INFORMES418","41.1"]
[null,null,null,"INFORMES","INFORMES",41,"INFORMES41","INFORMES DE SEGUIMIENTO DE LEY Y EVALUACIÓN","INFORMES41","41.8"]
[null,null,null,"PLANES","PLANES",598,"PLANES598","PLANES DE MEJORAMIENTO","PLANES598","59.8"]
[null,null,null,"DERECHOS DE PETICIÓN","DERECHOS_DE_PETICIÓN",27,"DERECHOS_DE_PETICIÓN27","N/A","DERECHOS_DE_PETICIÓN27","N/A"]
[null,null,null,"INFORMES","INFORMES",412,"INFORMES412","INFORMES DE GESTIÓN","INFORMES412","41.4"]
[null,null,null,"INFORMES","INFORMES",41,"INFORMES41","INFORMES DE GESTIÓN","INFORMES41","41.4"]
[null,null,null,"DERECHOS DE PETICIÓN","DERECHOS_DE_PETICIÓN",27,"DERECHOS_DE_PETICIÓN27","N/A","DERECHOS_DE_PETICIÓN27","N/A"]
[null,null,null,"PROYECTOS","PROYECTOS",657,"PROYECTOS657","PROYECTOS NORMATIVOS","PROYECTOS657","65.8"]
[null,null,null,"CONCEPTOS",{"$f":"SUBSTITUTE(D88,\" \",\"_\")","v":"CONCEPTOS"},191,{"$f":"_xlfn.CONCAT(E88,F88)","v":"CONCEPTOS191"},"CONCEPTOS JUIRDICOS","CONCEPTOS191","19.2"]
[null,null,null,"INFORMES","INFORMES",412,"INFORMES412","INFORMES DE GESTIÓN","INFORMES412","41.4"]
[null,null,null,"DIRECTRICES JURÍDICAS","DIRECTRICES_JURÍDICAS",28,"DIRECTRICES_JURÍDICAS28","N/A","DIRECTRICES_JURÍDICAS28","N/A"]
[null,null,null,"DERECHOS DE PETICIÓN","DERECHOS_DE_PETICIÓN",27,"DERECHOS_DE_PETICIÓN27","N/A","DERECHOS_DE_PETICIÓN27","N/A"]
[null,null,null,"ACTAS","ACTAS",26,"ACTAS26","ACTAS DE COMITÉ","ACTAS26","2.1"]
[null,null,null,"ACTAS","ACTAS",2,"ACTAS2","ACTAS DEL SUBCOMITÉ","ACTAS2","2.10"]
[null,null,null,"ACCIONES CONSTITUCIONALES","ACCIONES_CONSTITUCIONALES",1,"ACCIONES_CONSTITUCIONALES1","ACCIONES DE CUMPLIMIENTO","ACCIONES_CONSTITUCIONALES1","1.1"]
[null,null,null,"ACCIONES CONSTITUCIONALES","ACCIONES_CONSTITUCIONALES",1,"ACCIONES_CONSTITUCIONALES1","ACCIONES DE GRUPO","ACCIONES_CONSTITUCIONALES1","1.2"]
[null,null,null,"ACCIONES CONSTITUCIONALES","ACCIONES_CONSTITUCIONALES",1,"ACCIONES_CONSTITUCIONALES1","ACCIONES DE INCONSTITUCIONALIDAD","ACCIONES_CONSTITUCIONALES1","1.3"]
[null,null,null,"ACCIONES CONSTITUCIONALES",{"$f":"SUBSTITUTE(D97,\" \",\"_\")","v":"ACCIONES_CONSTITUCIONALES"},1,{"$f":"_xlfn.CONCAT(E97,F97)","v":"ACCIONES_CONSTITUCIONALES1"},"ACCIONES DE TUTELA","ACCIONES_CONSTITUCIONALES1","1.4"]
[null,null,null,"ACCIONES CONSTITUCIONALES","ACCIONES_CONSTITUCIONALES",1,"ACCIONES_CONSTITUCIONALES1","ACCIONES POPULARES","ACCIONES_CONSTITUCIONALES1","1.5"]
[null,null,null,"CONCILIACIONES","CONCILIACIONES",20,{"$f":"_xlfn.CONCAT(E99,F99)","v":"CONCILIACIONES20"},"N/A","CONCILIACIONES20","N/A"]
[null,null,null,"INFORMES","INFORMES",419,"INFORMES419","INFORMES A ORGANISMOS DE CONTROL","INFORMES419","41.1"]
[null,null,null,"INFORMES","INFORMES",41,"INFORMES41","INFORMES DE GESTIÓN","INFORMES41","N/A"]
[null,null,null,"PROCESOS","PROCESOS",626,"PROCESOS626","PROCESOS JUDICIALES DE AMPARO POLICIVO","PROCESOS626","N/A"]
[null,null,null,"PROCESOS","PROCESOS",62,"PROCESOS62","PROCESOS JUDICIALES DE CONFLICTOS DE COMPETENCIAS","PROCESOS62","N/A"]
[null,null,null,"PROCESOS","PROCESOS",62,"PROCESOS62","PROCESOS JUDICIALES DE CONTROVERSIAS CONTRACTUAL","PROCESOS62","N/A"]
[null,null,null,"PROCESOS","PROCESOS",62,"PROCESOS62","PROCESOS ARBITRALES","PROCESOS62","62.15"]
[null,null,null,"PROCESOS","PROCESOS",62,"PROCESOS62","PROCESOS JUDICIALES DE LIQUIDACIÓN VOLUNTARIA","PROCESOS62","62.16"]
[null,null,null,"PROCESOS","PROCESOS",62,"PROCESOS62","PROCESOS JUDICIALES DE NULIDAD","PROCESOS62","62.17"]
[null,null,null,"PROCESOS","PROCESOS",62,"PROCESOS62","PROCESOS JUDICIALES DE NULIDAD POR INSCONSTITUCIONALIDAD","PROCESOS62","62.18"]
[null,null,null,"PROCESOS","PROCESOS",62,"PROCESOS62","PROCESOS JUDICIALES DE NULIDAD Y RESTABLECIMIENTO DEL DERECHO","PROCESOS62","62.19"]
[null,null,null,"PROCESOS","PROCESOS",62,"PROCESOS62","PROCESOS JUDICIALES DE REPARACIÓN DIRECTA","PROCESOS62","62.20"]
[null,null,null,"PROCESOS","PROCESOS",62,"PROCESOS62","PROCESOS JUDICIALES DE RESTITUCIÓN DE TIERRAS","PROCESOS62","62.21"]
[null,null,null,"PROCESOS","PROCESOS",62,"PROCESOS62","PROCESOS JUDICIALES EJECUTIVOS","PROCESOS62","62.22"]
[null,null,null,"PROCESOS",{"$f":"SUBSTITUTE(D113,\" \",\"_\")","v":"PROCESOS"},62,{"$f":"_xlfn.CONCAT(E113,F113)","v":"PROCESOS62"},"PROCESOS JUDICIALES ORDINARIO LABORAL","PROCESOS62","62.23"]
[null,null,null,"PROCESOS","PROCESOS",62,"PROCESOS62","PROCESOS PENALES","PROCESOS62","62.25"]
[null,null,null,"PROCESOS","PROCESOS",62,"PROCESOS62","PROCESOS VERBALES","PROCESOS62","62.27"]
[null,null,null,"PROCESOS","PROCESOS",62,"PROCESOS62","PROCESOS Y ACTUACIONES ADMINISTRATIVAS","PROCESOS62","62.28"]
[null,null,null,"ACUERDOS",{"$f":"SUBSTITUTE(D117,\" \",\"_\")","v":"ACUERDOS"},43,{"$f":"_xlfn.CONCAT(E117,F117)","v":"ACUERDOS43"},"ACUERDOS DE LIQUIDACIÓN OBLIGATORIA O VOLUNTARIA","ACUERDOS43","4.1"]
[null,null,null,"ACUERDOS","ACUERDOS",4,"ACUERDOS4","ACUERDOS DE REESTRUCTURACIÓN","ACUERDOS4","4.3"]
[null,null,null,"ACUERDOS","ACUERDOS",4,"ACUERDOS4","ACUERDOS EXTRAJUDICIALES DE VALIDACIÓN","ACUERDOS4","4.6"]
[null,null,null,"INFORMES","INFORMES",41,"INFORMES41","INFORMES A ORGANISMOS DE CONTROL","INFORMES41","41.1"]
[null,null,null,"INFORMES","INFORMES",41,"INFORMES41","INFORMES DE GESTIÓN","INFORMES41","41.4"]
[null,null,null,"PROCEDIMIENTOS ABIERTOS DE COBRO COACTIVO","PROCEDIMIENTOS_ABIERTOS_DE_COBRO_COACTIVO",63,"PROCEDIMIENTOS_ABIERTOS_DE_COBRO_COACTIVO63","N/A","PROCEDIMIENTOS_ABIERTOS_DE_COBRO_COACTIVO63","N/A"]
[null,null,null,"RESOLUCIONES","RESOLUCIONES",68,"RESOLUCIONES68","N/A","RESOLUCIONES68","N/A"]
[null,null,null,"INFORMES","INFORMES",4102,"INFORMES4102","INFORMES DE GESTIÓN","INFORMES4102","41.4"]
[null,null,null,"INFORMES","INFORMES",41,"INFORMES41","INSTRUMENTOS DE CONTROL PARA LAS ACTUACIONES ADMINISTRATIVAS","INFORMES41","43.3"]
[null,null,null,"DERECHOS DE PETICIÓN","DERECHOS_DE_PETICIÓN",27,"DERECHOS_DE_PETICIÓN27","N/A","DERECHOS_DE_PETICIÓN27","N/A"]
[null,null,null,"INFORMES","INFORMES",4103,"INFORMES4103","INFORMES DE GESTIÓN","INFORMES4103","41.4"]
[null,null,null,"INSTRUMENTOS DE CONTROL","INSTRUMENTOS_DE_CONTROL",43,"INSTRUMENTOS_DE_CONTROL43","INSTRUMENTOS DE CONTROL PARA LAS ACTUACIONES ADMINISTRATIVAS","INSTRUMENTOS_DE_CONTROL43","43.3"]
[null,null,null,"DERECHOS DE PETICIÓN","DERECHOS_DE_PETICIÓN",27,"DERECHOS_DE_PETICIÓN27","N/A","DERECHOS_DE_PETICIÓN27","N/A"]
[null,null,null,"RESOLUCIONES","RESOLUCIONES",68,"RESOLUCIONES68","N/A","RESOLUCIONES68","N/A"]
[null,null,null,"INFORMES","INFORMES",4104,"INFORMES4104","INFORMES DE GESTIÓN","INFORMES4104","41.4"]
[null,null,null,"INFORMES","INFORMES",41,"INFORMES41","INFORMES DE PARTICIPACIÓN DELEGADA CON CANALES REGIONALES","INFORMES41","41.5"]
[null,null,null,"DERECHOS DE PETICIÓN","DERECHOS_DE_PETICIÓN",27,"DERECHOS_DE_PETICIÓN27","N/A","DERECHOS_DE_PETICIÓN27","N/A"]
[null,null,null,"INSTRUMENTOS DE CONTROL","INSTRUMENTOS_DE_CONTROL",43,"INSTRUMENTOS_DE_CONTROL43","INSTRUMENTOS DE CONTROL PARA LAS ACTUACIONES ADMINISTRATIVAS","INSTRUMENTOS_DE_CONTROL43","N/A"]
[null,null,null,"INFORMES","INFORMES",4105,"INFORMES4105","INFORMES A ORGANISMOS DE CONTROL","INFORMES4105","N/A"]
[null,null,null,"INFORMES","INFORMES",41,"INFORMES41","INFORMES DE GESTIÓN","INFORMES41","N/A"]
[null,null,null,"INFORMES","INFORMES",41,"INFORMES41","INFORMES DE GESTIÓN","INFORMES41","N/A"]
[null,null,null,"PLANES","PLANES",599,"PLANES599","PLANES DE MEJORAMIENTO","PLANES599","N/A"]
[null,null,null,"ACTAS DE ARTICULACIÓN TERRITORIAL","ACTAS_DE_ARTICULACIÓN_TERRITORIAL",3,"ACTAS_DE_ARTICULACIÓN_TERRITORIAL3","N/A","ACTAS_DE_ARTICULACIÓN_TERRITORIAL3","N/A"]
[null,null,null,"INFORMES","INFORMES",4106,"INFORMES4106","INFORMES A ORGANISMOS DE CONTROL","INFORMES4106","N/A"]
[null,null,null,"DERECHOS DE PETICIÓN","DERECHOS_DE_PETICIÓN",27,"DERECHOS_DE_PETICIÓN27","N/A","DERECHOS_DE_PETICIÓN27","N/A"]
[null,null,null,"CONCEPTOS","CONCEPTOS",193,"CONCEPTOS193","CONCEPTOS TÉCNICOS","CONCEPTOS193","19.3"]
[null,null,null,"PROYECTOS","PROYECTOS",66,"PROYECTOS66","PROYESTOS DE FINANCIACIÓN","PROYECTOS66","65.2"]
[null,null,null,"INFORMES","INFORMES",4107,"INFORMES4107","INFORMES DE GESTIÓN","INFORMES4107","41.4"]
[null,null,null,"OBLIGACIONES DE HACER","OBLIGACIONES_DE_HACER",55,"OBLIGACIONES_DE_HACER55","N/A","OBLIGACIONES_DE_HACER55","N/A"]
[null,null,null,"PLANES","PLANES",593,"PLANES593","PLANES INSTITUCIONALES","PLANES593","59.12"]
[null,null,null,"CONCEPTOS","CONCEPTOS",193,"CONCEPTOS193","CONCEPTOS TÉCNICOS","CONCEPTOS193","19.3"]
[null,null,null,"PROYECTOS","PROYECTOS",653,"PROYECTOS653","N/A","PROYECTOS653","N/A"]
[null,null,null,"INFORMES","INFORMES",4107,"INFORMES4107","INFORMES DE GESTIÓN","INFORMES4107","41.4"]
[null,null,null,"DERECHOS DE PETICIÓN","DERECHOS_DE_PETICIÓN",27,"DERECHOS_DE_PETICIÓN27","N/A","DERECHOS_DE_PETICIÓN27","N/A"]
[null,null,null,"CONCEPTOS","CONCEPTOS",193,"CONCEPTOS193","CONCEPTOS TÉCNICOS","CONCEPTOS193","19.3"]
[null,null,null,"AUTORIZACIONES VENTA DE EQUIPOS  TERMINALES MOVILES","AUTORIZACIONES_VENTA_DE_EQUIPOS__TERMINALES_MOVILES",9,"AUTORIZACIONES_VENTA_DE_EQUIPOS__TERMINALES_MOVILES9","N/A","AUTORIZACIONES_VENTA_DE_EQUIPOS__TERMINALES_MOVILES9","N/A"]
[null,null,null,"INFORMES","INFORMES",4107,"INFORMES4107","INFORMES DE GESTIÓN","INFORMES4107","41.4"]
[null,null,null,"DERECHOS DE PETICIÓN","DERECHOS_DE_PETICIÓN",27,"DERECHOS_DE_PETICIÓN27","N/A","DERECHOS_DE_PETICIÓN27","N/A"]
[null,null,null,"LICENCIAS","LICENCIAS",49,"LICENCIAS49","LICENCIA DE SERVICIO DE TELEVISIÓN ABIERTA DE INTERÉS PÚBLICO NACIONAL","LICENCIAS49","49.2"]
[null,null,null,"LICENCIAS",{"$f":"SUBSTITUTE(D156,\" \",\"_\")","v":"LICENCIAS"},49,{"$f":"_xlfn.CONCAT(E156,F156)","v":"LICENCIAS49"},"LICENCIA DE SERVICIO DE TELEVISIÓN COMUNITARIA CERRADA SIN ÁNIMO DE LUCRO","LICENCIAS49","49.3"]
[null,null,null,"LICENCIAS","LICENCIAS",49,"LICENCIAS49","LICENCIA DE SERVICIO DE TELEVISIÓN ABIERTA DE CANALES REGIONALES","LICENCIAS49","49.4"]
[null,null,null,"LICENCIAS","LICENCIAS",49,"LICENCIAS49","LICENCIA DE SERVICIO DE TELEVISIÓN ABIERTA LOCAL SIN ÁNIMO DE LUCRO","LICENCIAS49","49.5"]
[null,null,null,"LICENCIAS",{"$f":"SUBSTITUTE(D159,\" \",\"_\")","v":"LICENCIAS"},49,"LICENCIAS49","CONTRATOS DE CONCESIÓN SERVICIO DE TELEVISIÓN","LICENCIAS49","49.12"]
[null,null,null,"PROCESOS","PROCESOS",6201,"PROCESOS6201","PROCESOS DE SELECCIÓN OBJETIVA DEL ESPECTRO","PROCESOS6201","62.9"]
[null,null,null,"PROYECTOS","PROYECTOS",6501,{"$f":"_xlfn.CONCAT(E161,F161)","v":"PROYECTOS6501"},"PROYECTOS DE INVERSIÓN","PROYECTOS6501","65.4"]
[null,null,null,"PROYECTOS","PROYECTOS",65,"PROYECTOS65","PROYECTOS NORMATIVOS","PROYECTOS65","65.8"]
[null,null,null,"Obligaciones de Hacer","Obligaciones_de_Hacer",55,"Obligaciones_de_Hacer55","N/A","Obligaciones_de_Hacer55","N/A"]
[null,null,null,"REGISTROS","REGISTROS",66,"REGISTROS66","REGISTRO UNICO DE TIC","REGISTROS66","N/A"]
[null,null,null,"INFORMES","INFORMES",4107,"INFORMES4107","INFORMES DE GESTIÓN","INFORMES4107","N/A"]
[null,null,null,"DERECHOS DE PETICIÓN","DERECHOS_DE_PETICIÓN",27,"DERECHOS_DE_PETICIÓN27","N/A","DERECHOS_DE_PETICIÓN27","N/A"]
[null,null,null,"PROYECTOS","PROYECTOS",6502,"PROYECTOS6502","PROYECTOS NORMATIVOS","PROYECTOS6502","N/A"]
[null,null,null,"REGISTROS","REGISTROS",6601,"REGISTROS6601","REGISTROS DE GESTIÓN DE GARANTÍAS","REGISTROS6601","N/A"]
[null,null,null,"REGISTROS","REGISTROS",66,"REGISTROS66","REGISTROS DE APOYO A LA CONFORMACIÓN DE TÍTULOS COMPLEJOS DE COBRO COACTIVO","REGISTROS66","N/A"]
[null,null,null,"DERECHOS DE PETICIÓN","DERECHOS_DE_PETICIÓN",27,"DERECHOS_DE_PETICIÓN27","N/A","DERECHOS_DE_PETICIÓN27","N/A"]
[null,null,null,"PROYECTOS",{"$f":"SUBSTITUTE(D171,\" \",\"_\")","v":"PROYECTOS"},6503,{"$f":"_xlfn.CONCAT(E171,F171)","v":"PROYECTOS6503"},"PROYECTOS TÉCNICOS Y NORMATIVOS","PROYECTOS6503","N/A"]
[null,null,null,"PLANES","PLANES",5901,"PLANES5901","PLANES DE ACCIÓN, SEGUIMIENTO Y MEJORA","PLANES5901","N/A"]
[null,null,null,"PROCESOS","PROCESOS",6203,"PROCESOS6203","PROCESO DE TRÁMITE DE REGISTRO DE CAPACIDAD SATELITAL, REGISTROS DE ASOCIACIONES DE BANDA CIUDADANA AUTORIZACIONES, CONCESIONES, LICENCIAS Y PERMISOS","PROCESOS6203","N/A"]
[null,null,null,"PARTICIPACIÓN EN COMISIONES TÉCNICAS O NORMATIVAS","PARTICIPACIÓN_EN_COMISIONES_TÉCNICAS_O_NORMATIVAS",58,"PARTICIPACIÓN_EN_COMISIONES_TÉCNICAS_O_NORMATIVAS58","N/A","PARTICIPACIÓN_EN_COMISIONES_TÉCNICAS_O_NORMATIVAS58","N/A"]
[null,null,null,"LICENCIAS","LICENCIAS",4901,"LICENCIAS4901","SOLICITUDES DENEGADAS DE REGISTROS, AUTORIZACIONES, LICENCIAS Y PERMISOS DE COMUNICACIONES","LICENCIAS4901","49.6"]
[null,null,null,"DERECHOS DE PETICIÓN","DERECHOS_DE_PETICIÓN",27,"DERECHOS_DE_PETICIÓN27","N/A","DERECHOS_DE_PETICIÓN27","N/A"]
[null,null,null,"PROCESOS","PROCESOS",6204,"PROCESOS6204","PROCESOS DE ASIGNACIÓN DIRECTA DEL ESPECTRO RADIOELECTRICO PARA LA ATENCION Y PREVENCION DE SITUACIONES DE EMERGENCIA","PROCESOS6204","62.5"]
[null,null,null,"PROCESOS","PROCESOS",62,"PROCESOS62","PROCESOS DE ASIGNACIÓN DIRECTA DEL ESPECTRO RADIOELECTRICO POR CONTINUIDAD DEL SERVICIO O PARA PRUEBA DE EQUIPOS","PROCESOS62","62.6"]
[null,null,null,"PROCESOS","PROCESOS",62,"PROCESOS62","PROCESOS DE SELECCIÓN OBJETIVA PARA ASIGNACIÓN DEL ESPECTRO RADIOELÉCTRICO","PROCESOS62","62.10"]
[null,null,null,"REGISTROS","REGISTROS",6603,"REGISTROS6603","REGISTROS DE RADIOAFICIONADOS Y RADIOS ITINERANTES","REGISTROS6603","66.5"]
[null,null,null,"REGISTROS","REGISTROS",6603,"REGISTROS6603","REGISTROS DE ASOCIACIONES DE RADIOAFICIONADOS Y DE BANDA CIUDADANA","REGISTROS66","66.1"]
[null,null,null,"REGISTROS","REGISTROS",6603,"REGISTROS6603","REGISTROS DE PROVEEDOR DE CAPACIDAD SATELITAL","REGISTROS66","66.4"]
[null,null,null,"ACTAS","ACTAS",201,"ACTAS201","ACTAS DE COMITÉ","ACTAS201","2.1"]
[null,null,null,"ESTUDIOS","ESTUDIOS",3301,"ESTUDIOS3301","N/A","ESTUDIOS3301","N/A"]
[null,null,null,"LICENCIAS DE CONCESIÓN DE SERVICIOS DE RADIODIFUSIÓN SONORA","LICENCIAS_DE_CONCESIÓN_DE_SERVICIOS_DE_RADIODIFUSIÓN_SONORA",4902,"LICENCIAS_DE_CONCESIÓN_DE_SERVICIOS_DE_RADIODIFUSIÓN_SONORA4902","LICENCIAS DE CONCESIÓN DE SERVICIOS DE RADIODIFUSIÓN SONORA","LICENCIAS_DE_CONCESIÓN_DE_SERVICIOS_DE_RADIODIFUSIÓN_SONORA4902","49.1"]
[null,null,null,"LICENCIAS DE CONCESIÓN DE SERVICIOS DE RADIODIFUSIÓN \nSONORA","LICENCIAS_DE_CONCESIÓN_DE_SERVICIOS_DE_RADIODIFUSIÓN_\nSONORA",49,"LICENCIAS_DE_CONCESIÓN_DE_SERVICIOS_DE_RADIODIFUSIÓN_\nSONORA49","SOLICITUDES LICENCIAS DE CADENAS RADIALES","LICENCIAS49","49.8"]
[null,null,null,"LICENCIAS DE CONCESIÓN DE SERVICIOS DE RADIODIFUSIÓN \nSONORA","LICENCIAS_DE_CONCESIÓN_DE_SERVICIOS_DE_RADIODIFUSIÓN_\nSONORA",49,"LICENCIAS_DE_CONCESIÓN_DE_SERVICIOS_DE_RADIODIFUSIÓN_\nSONORA49","SOLICITUDES LICENCIAS DE EMISORAS COMERCIALES","LICENCIAS49","49.9"]
[null,null,null,"LICENCIAS DE CONCESIÓN DE SERVICIOS DE RADIODIFUSIÓN \nSONORA","LICENCIAS_DE_CONCESIÓN_DE_SERVICIOS_DE_RADIODIFUSIÓN_\nSONORA",49,"LICENCIAS_DE_CONCESIÓN_DE_SERVICIOS_DE_RADIODIFUSIÓN_\nSONORA49","SOLICITUDES LICENCIAS DE EMISORAS COMUNITARIAS","LICENCIAS49","49.10"]
[null,null,null,"LICENCIAS DE CONCESIÓN DE SERVICIOS DE RADIODIFUSIÓN \nSONORA","LICENCIAS_DE_CONCESIÓN_DE_SERVICIOS_DE_RADIODIFUSIÓN_\nSONORA",49,"LICENCIAS_DE_CONCESIÓN_DE_SERVICIOS_DE_RADIODIFUSIÓN_\nSONORA49","SOLICITUDES LICENCIAS DE EMISORAS DE INTERÉS PÚBLICO","LICENCIAS49","49.11"]
[null,null,null,"LICENCIAS DE CONCESIÓN DE SERVICIOS DE RADIODIFUSIÓN \nSONORA","LICENCIAS_DE_CONCESIÓN_DE_SERVICIOS_DE_RADIODIFUSIÓN_\nSONORA",49,"LICENCIAS_DE_CONCESIÓN_DE_SERVICIOS_DE_RADIODIFUSIÓN_\nSONORA49","SOLICITUDES DE LICENCIAS DE TRANSMOVILES","LICENCIAS49","49.7"]
[null,null,null,"DERECHOS DE PETICIÓN","DERECHOS_DE_PETICIÓN",27,"DERECHOS_DE_PETICIÓN27","N/A","DERECHOS_DE_PETICIÓN27","N/A"]
[null,null,null,"POLITICAS Y PLANES DE RADIODIFUSION SONORA","POLITICAS_Y_PLANES_DE_RADIODIFUSION_SONORA",6103,"POLITICAS_Y_PLANES_DE_RADIODIFUSION_SONORA6103","N/A","POLITICAS_Y_PLANES_DE_RADIODIFUSION_SONORA6103","61.3"]
[null,null,null,"PROCESOS DE SELECCIÓN OBJETIVA ASIGNACIÓN DE LICENCIAS DE RADIODIFUSIÓN SONORA","PROCESOS_DE_SELECCIÓN_OBJETIVA_ASIGNACIÓN_DE_LICENCIAS_DE_RADIODIFUSIÓN_SONORA",6205,"PROCESOS_DE_SELECCIÓN_OBJETIVA_ASIGNACIÓN_DE_LICENCIAS_DE_RADIODIFUSIÓN_SONORA6205","N/A","PROCESOS_DE_SELECCIÓN_OBJETIVA_ASIGNACIÓN_DE_LICENCIAS_DE_RADIODIFUSIÓN_SONORA6205","62.8"]
[null,null,null,"PROYECTOS","PROYECTOS",6505,"PROYECTOS6505","PROYECTOS DE INVERSIÓN","PROYECTOS6505","65.4"]
[null,null,null,"CONCEPTOS","CONCEPTOS",193,"CONCEPTOS193","CONCEPTOS TÉCNICOS","CONCEPTOS193","19.3"]
[null,null,null,"CONVENIOS","CONVENIOS",23,"CONVENIOS23","CONVENIOS DEL CODIGO POSTAL DE LA REPÚBLICA DE COLOMBIA","CONVENIOS23","23.3"]
[null,null,null,"INFORMES","INFORMES",4107,"INFORMES4107","INFORMES DE GESTIÓN","INFORMES4107","41.4"]
[null,null,null,"PROCESOS","PROCESOS",6207,"PROCESOS6207","PROCESO DE INSCRIPCIÓN DE OPERADORES EN EL REGISTRO POSTAL","PROCESOS6207","62.2"]
[null,null,null,"INVENTARIOS DEL MUSEO DE TECNOLOGIAS DE LA INFORMACIÓN Y LAS COMUNICACIONES","INVENTARIOS_DEL_MUSEO_DE_TECNOLOGIAS_DE_LA_INFORMACIÓN_Y_LAS_COMUNICACIONES",45,"INVENTARIOS_DEL_MUSEO_DE_TECNOLOGIAS_DE_LA_INFORMACIÓN_Y_LAS_COMUNICACIONES45","N/A","INVENTARIOS_DEL_MUSEO_DE_TECNOLOGIAS_DE_LA_INFORMACIÓN_Y_LAS_COMUNICACIONES45","N/A"]
[null,null,null,"POLITICAS","POLITICAS",614,"POLITICAS614","POLITICA DE SERVICIOS POSTALES","POLITICAS614","61.1"]
[null,null,null,"HABILITACIÓN DE SERVICIOS POSTALES","HABILITACIÓN_DE_SERVICIOS_POSTALES",37,"HABILITACIÓN_DE_SERVICIOS_POSTALES37","HABILITACIÓN AL REGISTRO POSTAL","HABILITACIÓN_DE_SERVICIOS_POSTALES37","37.1"]
[null,null,null,"HABILITACIÓN DE SERVICIOS POSTALES","HABILITACIÓN_DE_SERVICIOS_POSTALES",37,"HABILITACIÓN_DE_SERVICIOS_POSTALES37","HABILITACIÓN DE SERVICIOS POSTALES DE PAGO","HABILITACIÓN_DE_SERVICIOS_POSTALES37","37.2"]
[null,null,null,"HABILITACIÓN DE SERVICIOS POSTALES",{"$f":"SUBSTITUTE(D203,\" \",\"_\")","v":"HABILITACIÓN_DE_SERVICIOS_POSTALES"},37,{"$f":"_xlfn.CONCAT(E203,F203)","v":"HABILITACIÓN_DE_SERVICIOS_POSTALES37"},"HABILITACIÓN DE SERVICIOS POSTALES PARA MENSAJERIA EXPRESA","HABILITACIÓN_DE_SERVICIOS_POSTALES37","37.3"]
[null,null,null,"PROCESOS","PROCESOS",6206,"PROCESOS6206","PROCESO DE EMISIONES FILATELICAS","PROCESOS6206","62.1"]
[null,null,null,"DERECHOS DE PETICIÓN","DERECHOS_DE_PETICIÓN",27,"DERECHOS_DE_PETICIÓN27","N/A","DERECHOS_DE_PETICIÓN27","N/A"]
[null,null,null,"INFORMES","INFORMES",4107,"INFORMES4107","INFORMES DE GESTIÓN","INFORMES4107","41.4"]
[null,null,null,"DERECHOS DE PETICIÓN","DERECHOS_DE_PETICIÓN",27,"DERECHOS_DE_PETICIÓN27","N/A","DERECHOS_DE_PETICIÓN27","N/A"]
[null,null,null,"PROCESOS","PROCESOS",6208,"PROCESOS6208","PROCESOS ADMINISTRATIVOS","PROCESOS6208","62.4"]
[null,null,null,"PROGRAMAS","PROGRAMAS",64,"PROGRAMAS64","PROGRAMAS DE VIGILANCIA Y CONTROL PREVENTIVOS","PROGRAMAS64","64.8"]
[null,null,null,"INVESTIGACIONES","INVESTIGACIONES",46,"INVESTIGACIONES46","N/A","INVESTIGACIONES46","N/A"]
[null,null,null,"INFORMES","INFORMES",4107,"INFORMES4107","INFORMES DE GESTIÓN","INFORMES4107","N/A"]
[null,null,null,"DERECHOS DE PETICIÓN","DERECHOS_DE_PETICIÓN",27,"DERECHOS_DE_PETICIÓN27","N/A","DERECHOS_DE_PETICIÓN27","N/A"]
[null,null,null,"VISITAS DE INSPECCION","VISITAS_DE_INSPECCION",69,"VISITAS_DE_INSPECCION69","N/A","VISITAS_DE_INSPECCION69","N/A"]
[null,null,null,"PROGRAMAS","PROGRAMAS",6401,"PROGRAMAS6401","N/A","PROGRAMAS6401","N/A"]
[null,null,null,"INFORMES","INFORMES",4107,"INFORMES4107","INFORMES DE GESTIÓN","INFORMES4107","41.4"]
[null,null,null,"DERECHOS DE PETICIÓN","DERECHOS_DE_PETICIÓN",27,"DERECHOS_DE_PETICIÓN27","N/A","DERECHOS_DE_PETICIÓN27","N/A"]
[null,null,null,"PLANES","PLANES",5902,"PLANES5902","PLANES Y PROGRAMAS DE PROMOCIÓN Y PREVENCIÓN","PLANES5902","59.13"]
[null,null,null,"INFORMES","INFORMES",4107,"INFORMES4107","INFORMES DE GESTIÓN","INFORMES4107","41.4"]
[null,null,null,"DERECHOS DE PETICIÓN","DERECHOS_DE_PETICIÓN",27,"DERECHOS_DE_PETICIÓN27","N/A","DERECHOS_DE_PETICIÓN27","N/A"]
[null,null,null,"PLANES","PLANES",5903,"PLANES5903","PLANES INSTITUCIONALES","PLANES5903","59.12"]
[null,null,null,"OBLIGACIONES DE HACER","OBLIGACIONES_DE_HACER",55,"OBLIGACIONES_DE_HACER55","N/A","OBLIGACIONES_DE_HACER55","N/A"]
[null,null,null,"INFORMES","INFORMES",4107,"INFORMES4107","INFORMES DE GESTIÓN","INFORMES4107","41.4"]
[null,null,null,"DERECHOS DE PETICIÓN","DERECHOS_DE_PETICIÓN",27,"DERECHOS_DE_PETICIÓN27","N/A","DERECHOS_DE_PETICIÓN27","N/A"]
[null,null,null,"PROCESOS","PROCESOS",6208,"PROCESOS6208","PROCESOS ADMINISTRATIVOS","PROCESOS6208","62.4"]
[null,null,null,"INFORMES","INFORMES",4107,"INFORMES4107","INFORMES DE GESTIÓN","INFORMES4107","41.4"]
[null,null,null,"DERECHOS DE PETICIÓN","DERECHOS_DE_PETICIÓN",27,"DERECHOS_DE_PETICIÓN27","N/A","DERECHOS_DE_PETICIÓN27","N/A"]
[null,null,null,"INVESTIGACIONES","INVESTIGACIONES",4601,"INVESTIGACIONES4601","INVESTIGACIONES ADMINISTRATIVAS","INVESTIGACIONES4601","N/A"]
[null,null,null,"PROCESOS","PROCESOS",6208,"PROCESOS6208","PROCESOS ADMINISTRATIVOS","PROCESOS6208","62.4"]
[null,null,null,"INFORMES","INFORMES",4107,"INFORMES4107","INFORMES DE GESTIÓN","INFORMES4107","41.4"]
[null,null,null,"PLANES","PLANES",5904,"PLANES5904","PLANES INSTITUCIONALES","PLANES5904","59.12"]
[null,null,null,"PLANES","PLANES",59,"PLANES59","PLANES DE INVERSIÓN","PLANES59","59.7"]
[null,null,null,"PROGRAMAS","PROGRAMAS",6401,"PROGRAMAS6401","N/A","PROGRAMAS6401","N/A"]
[null,null,null,"POLITICAS","POLITICAS",6101,"POLITICAS6101","N/A","POLITICAS6101","N/A"]
[null,null,null,"ACUERDOS",{"$f":"SUBSTITUTE(D234,\" \",\"_\")","v":"ACUERDOS"},401,{"$f":"_xlfn.CONCAT(E234,F234)","v":"ACUERDOS401"},"N/A","ACUERDOS401","N/A"]
[null,null,null,"PLANES","PLANES",5905,"PLANES5905","PLANES ESTRATÉGICOS","PLANES5905","N/A"]
[null,null,null,"INFORMES","INFORMES",4107,"INFORMES4107","INFORMES DE GESTIÓN","INFORMES4107","N/A"]
[null,null,null,"DERECHOS DE PETICIÓN","DERECHOS_DE_PETICIÓN",27,"DERECHOS_DE_PETICIÓN27","N/A","DERECHOS_DE_PETICIÓN27","N/A"]
[null,null,null,"POLITICAS","POLITICAS",6102,"POLITICAS6102","N/A","POLITICAS6102","N/A"]
[null,null,null,"CONCEPTOS","CONCEPTOS",1901,"CONCEPTOS1901","CONCEPTOS TÉCNICOS","CONCEPTOS1901","19.3"]
[null,null,null,"INFORMES","INFORMES",4107,"INFORMES4107","INFORMES DE GESTIÓN","INFORMES4107","41.4"]
[null,null,null,"DERECHOS DE PETICIÓN",{"$f":"SUBSTITUTE(D241,\" \",\"_\")","v":"DERECHOS_DE_PETICIÓN"},27,{"$f":"_xlfn.CONCAT(E241,F241)","v":"DERECHOS_DE_PETICIÓN27"},"N/A","DERECHOS_DE_PETICIÓN27","N/A"]
[null,null,null,"ACTAS","ACTAS",27,"ACTAS27","ACTAS DE REUNIÓN","ACTAS27","2.7"]
[null,null,null,"INFORMES","INFORMES",4107,"INFORMES4107","INFORMES DE GESTIÓN","INFORMES4107","41.4"]
[null,null,null,"ESTUDIOS","ESTUDIOS",3301,"ESTUDIOS3301","N/A","ESTUDIOS3301","N/A"]
[null,null,null,"CERTIFICADOS","CERTIFICADOS",1301,"CERTIFICADOS1301","N/A","CERTIFICADOS1301","N/A"]
[null,null,null,"PLANES","PLANES",5905,"PLANES5905","PLANES ESTRATÉGICOS","PLANES5905","59.11"]
[null,null,null,"POLITICAS","POLITICAS",6102,"POLITICAS6102","N/A","POLITICAS6102","N/A"]
[null,null,null,"PROGRAMAS","PROGRAMAS",6402,"PROGRAMAS6402","N/A","PROGRAMAS6402","N/A"]
[null,null,null,"PROYECTOS",{"$f":"SUBSTITUTE(D249,\" \",\"_\")","v":"PROYECTOS"},6506,{"$f":"_xlfn.CONCAT(E249,F249)","v":"PROYECTOS6506"},"N/A","PROYECTOS6506","N/A"]
[null,null,null,"DERECHOS DE PETICIÓN","DERECHOS_DE_PETICIÓN",27,"DERECHOS_DE_PETICIÓN27","N/A","DERECHOS_DE_PETICIÓN27","N/A"]
[null,null,null,"ACTAS","ACTAS",27,"ACTAS27","ACTAS DE REUNIÓN","ACTAS27","2.7"]
[null,null,null,"INFORMES","INFORMES",4107,"INFORMES4107","INFORMES DE GESTIÓN","INFORMES4107","41.4"]
[null,null,null,"PLANES","PLANES",5905,"PLANES5905","PLANES ESTRATÉGICOS","PLANES5905","59.11"]
[null,null,null,"PROGRAMAS","PROGRAMAS",6402,"PROGRAMAS6402","N/A","PROGRAMAS6402","N/A"]
[null,null,null,"PROYECTOS","PROYECTOS",6506,"PROYECTOS6506","N/A","PROYECTOS6506","N/A"]
[null,null,null,"DERECHOS DE PETICIÓN","DERECHOS_DE_PETICIÓN",27,"DERECHOS_DE_PETICIÓN27","N/A","DERECHOS_DE_PETICIÓN27","N/A"]
[null,null,null,"ACTAS","ACTAS",27,"ACTAS27","ACTAS DE REUNIÓN","ACTAS27","2.7"]
[null,null,null,"INFORMES","INFORMES",4107,"INFORMES4107","INFORMES DE GESTIÓN","INFORMES4107","41.4"]
[null,null,null,"ESTUDIOS","ESTUDIOS",3301,"ESTUDIOS3301","N/A","ESTUDIOS3301","N/A"]
[null,null,null,"CERTIFICADOS","CERTIFICADOS",1301,"CERTIFICADOS1301","N/A","CERTIFICADOS1301","N/A"]
[null,null,null,"PLANES","PLANES",5905,"PLANES5905","PLANES ESTRATÉGICOS","PLANES5905","59.11"]
[null,null,null,"POLITICAS","POLITICAS",6102,"POLITICAS6102","N/A","POLITICAS6102","N/A"]
[null,null,null,"PROGRAMAS","PROGRAMAS",6402,"PROGRAMAS6402","N/A","PROGRAMAS6402","N/A"]
[null,null,null,"PROYECTOS",{"$f":"SUBSTITUTE(D264,\" \",\"_\")","v":"PROYECTOS"},6506,{"$f":"_xlfn.CONCAT(E264,F264)","v":"PROYECTOS6506"},"N/A","PROYECTOS6506","N/A"]
[null,null,null,"DERECHOS DE PETICIÓN","DERECHOS_DE_PETICIÓN",27,"DERECHOS_DE_PETICIÓN27","N/A","DERECHOS_DE_PETICIÓN27","N/A"]
[null,null,null,"INFORMES","INFORMES",4107,"INFORMES4107","INFORMES DE GESTIÓN","INFORMES4107","N/A"]
[null,null,null,"DERECHOS DE PETICIÓN","DERECHOS_DE_PETICIÓN",27,"DERECHOS_DE_PETICIÓN27","N/A","DERECHOS_DE_PETICIÓN27","N/A"]
[null,null,null,"PLANES","PLANES",5901,"PLANES5901","PLANES DE ACCIÓN, SEGUIMIENTO Y MEJORA","PLANES5901","N/A"]
[null,null,null,"PROGRAMAS","PROGRAMAS",6404,"PROGRAMAS6404","PROGRAMAS DE TECNOLOGIAS DE LA INFORMACIÓN EN LAS ENTIDADES DEL ESTADO","PROGRAMAS6404","N/A"]
[null,null,null,"ASESORÍAS","ASESORÍAS",10,"ASESORÍAS10","N/A","ASESORÍAS10","N/A"]
[null,null,null,"INFORMES","INFORMES",4107,"INFORMES4107","INFORMES DE GESTIÓN","INFORMES4107","N/A"]
[null,null,null,"DERECHOS DE PETICIÓN","DERECHOS_DE_PETICIÓN",27,"DERECHOS_DE_PETICIÓN27","N/A","DERECHOS_DE_PETICIÓN27","N/A"]
[null,null,null,"POLITICAS","POLITICAS",6102,"POLITICAS6102","N/A","POLITICAS6102","N/A"]
[null,null,null,"PROGRAMAS","PROGRAMAS",6405,"PROGRAMAS6405","PROGRAMA PARA LA ADECUACIÓN DEL PORTAL ÚNICO DEL ESTADO COLOMBIANO Y LOS SERVICIOS CIUDADANOS DIGITALES","PROGRAMAS6405","64.10"]
[null,null,null,"ASOCIACIONES  PUBLICO PRIVADAS NACIONALES E INTERNACIONALES","ASOCIACIONES__PUBLICO_PRIVADAS_NACIONALES_E_INTERNACIONALES",7,"ASOCIACIONES__PUBLICO_PRIVADAS_NACIONALES_E_INTERNACIONALES7","N/A","ASOCIACIONES__PUBLICO_PRIVADAS_NACIONALES_E_INTERNACIONALES7","N/A"]
[null,null,null,"INFORMES","INFORMES",4107,"INFORMES4107","INFORMES DE GESTIÓN","INFORMES4107","41.4"]
[null,null,null,"PROYECTOS","PROYECTOS",6507,"PROYECTOS6507","PROYECTOS DE INVESTIGACIONES EN MATERIA DE TECNOLÓGIAS DE LA INFORMACIÓN","PROYECTOS6507","65.5"]
[null,null,null,"DERECHOS DE PETICIÓN","DERECHOS_DE_PETICIÓN",27,"DERECHOS_DE_PETICIÓN27","N/A","DERECHOS_DE_PETICIÓN27","N/A"]
[null,null,null,"POLITICAS","POLITICAS",6104,"POLITICAS6104","POLITICAS GESTIÓN DE TECNOLOGÍAS DE LA INFORMACIÓN Y SEGURIDAD DE LA INFORMACIÓN","POLITICAS6104","61.4"]
[null,null,null,"INFORMES","INFORMES",41,"INFORMES41","INFORMES A ORGANISMOS DE CONTROL","INFORMES41","41.1"]
[null,null,null,"INFORMES","INFORMES",41,"INFORMES41","INFORMES DE GESTIÓN","INFORMES41","41.4"]
[null,null,null,"PLANES","PLANES",5905,"PLANES5905","PLANES ESTRATÉGICOS","PLANES5905","59.11"]
[null,null,null,"POLITICAS","POLITICAS",6102,"POLITICAS6102","N/A","POLITICAS6102","N/A"]
[null,null,null,"PROGRAMAS","PROGRAMAS",6406,"PROGRAMAS6406","PROGRAMAS DE CIUDADES INTELIGENTES","PROGRAMAS6406","64.1"]
[null,null,null,"PROYECTOS","PROYECTOS",6508,"PROYECTOS6508","PROYECTOS DE GESTIÓN INTERNOS","PROYECTOS6508","65.3"]
[null,null,null,"ACTAS",{"$f":"SUBSTITUTE(D286,\" \",\"_\")","v":"ACTAS"},22,{"$f":"_xlfn.CONCAT(E286,F286)","v":"ACTAS22"},"ACTAS DE COMITÉ","ACTAS22","2.1"]
[null,null,null,"INFORMES","INFORMES",41,"INFORMES41","INFORMES A ORGANISMOS DE CONTROL","INFORMES41","41.1"]
[null,null,null,"INFORMES","INFORMES",41,"INFORMES41","INFORMES DE GESTIÓN","INFORMES41","N/A"]
[null,null,null,"DERECHOS DE PETICIÓN","DERECHOS_DE_PETICIÓN",27,"DERECHOS_DE_PETICIÓN27","N/A","DERECHOS_DE_PETICIÓN27","N/A"]
[null,null,null,"ESTUDIOS","ESTUDIOS",3302,"ESTUDIOS3302","ESTUDIOS DE VIABILIDAD","ESTUDIOS3302","N/A"]
[null,null,null,"ESTUDIOS","ESTUDIOS",33,"ESTUDIOS33","ESTUDIOS PARA LA INDUSTRIA DE TECNOLOGÍAS DE LA INFORMACIÓN Y LAS COMUNICACIONES","ESTUDIOS33","N/A"]
[null,null,null,"EVALUACIONES","EVALUACIONES",34,"EVALUACIONES34","EVALUACIONES DE CAPITAL HUMANO","EVALUACIONES34","N/A"]
[null,null,null,"PLANES","PLANES",5901,"PLANES5901","PLANES DE ACCIÓN, SEGUIMIENTO Y MEJORA","PLANES5901","N/A"]
[null,null,null,"PROGRAMAS","PROGRAMAS",6404,"PROGRAMAS6404","PROGRAMAS DE TECNOLOGIAS DE LA INFORMACIÓN EN LAS ENTIDADES DEL ESTADO","PROGRAMAS6404","N/A"]
[null,null,null,"PROYECTOS","PROYECTOS",6506,"PROYECTOS6506","N/A","PROYECTOS6506","N/A"]
[null,null,null,"POLITICAS","POLITICAS",6105,"POLITICAS6105","POLÍTICAS PARA LA INDUSTRIA DE TECNOLOGÍAS DE LA INFORMACIÓN Y LAS COMUNICACIONES","POLITICAS6105","N/A"]
[null,null,null,"INFORMES","INFORMES",4107,"INFORMES4107","INFORMES DE GESTIÓN","INFORMES4107","N/A"]
[null,null,null,"POLITICAS","POLITICAS",6102,"POLITICAS6102","N/A","POLITICAS6102","N/A"]
[null,null,null,"PROGRAMAS","PROGRAMAS",6407,"PROGRAMAS6407","PROGRAMAS DE FORMACIÓN","PROGRAMAS6407","N/A"]
[null,null,null,"ESTUDIOS","ESTUDIOS",3303,"ESTUDIOS3303","ESTUDIOS DE VIABILIDAD","ESTUDIOS3303","N/A"]
[null,null,null,"MODELO DE CALIDAD","MODELO_DE_CALIDAD",51,"MODELO_DE_CALIDAD51","N/A","MODELO_DE_CALIDAD51","N/A"]
[null,null,null,"INFORMES","INFORMES",4107,"INFORMES4107","INFORMES DE GESTIÓN","INFORMES4107","N/A"]
[null,null,null,"PLANES","PLANES",5905,"PLANES5905","PLANES ESTRATÉGICOS","PLANES5905","N/A"]
[null,null,null,"POLITICAS","POLITICAS",6102,"POLITICAS6102","N/A","POLITICAS6102","N/A"]
[null,null,null,"PROGRAMAS","PROGRAMAS",6408,"PROGRAMAS6408","PROGRAMAS DE EMPRENDIMIENTO DIGITAL E INDUSTRIA TI","PROGRAMAS6408","N/A"]
[null,null,null,"PROYECTOS","PROYECTOS",6509,"PROYECTOS6509","PROYESTOS DE FINANCIACIÓN","PROYECTOS6509","65.2"]
[null,null,null,"INFORMES","INFORMES",4107,"INFORMES4107","INFORMES DE GESTIÓN","INFORMES4107","41.4"]
[null,null,null,"PLANES","PLANES",5905,"PLANES5905","PLANES ESTRATÉGICOS","PLANES5905","59.11"]
[null,null,null,"POLITICAS","POLITICAS",6102,"POLITICAS6102","N/A","POLITICAS6102"]
[null,null,null,"PROGRAMAS","PROGRAMAS",6402,"PROGRAMAS6402","N/A","PROGRAMAS6402"]
[null,null,null,"PROYECTOS","PROYECTOS",6506,"PROYECTOS6506","N/A","PROYECTOS6506"]
[null,null,null,"ACTAS","ACTAS",28,"ACTAS28","ACTAS DE REUNIÓN DEL SINDICATO NACIONAL DE TRABAJADORES ","ACTAS28","2.8"]
[null,null,null,"ACTAS","ACTAS",2,"ACTAS2","ACTAS DE COMITÉ","ACTAS2","2.1"]
[null,null,null,"ACTAS","ACTAS",2,"ACTAS2","ACTAS DEL CONSEJO DE LA MEDALLA AL MERITO","ACTAS2","2.9"]
[null,null,null,"CIRCULARES NORMATIVAS","CIRCULARES_NORMATIVAS",14,"CIRCULARES_NORMATIVAS14","N/A","CIRCULARES_NORMATIVAS14"]
[null,null,null,"MANUALES","MANUALES",501,"MANUALES501","MANUALES DE CONTRATACIÓN","MANUALES501","50.1"]
[null,null,null,"MANUALES","MANUALES",50,"MANUALES50","MANUALES DE FUNCIONES Y DE COMPETENCIAS LABORALES","MANUALES50","50.2"]
[null,null,null,"DERECHOS DE PETICIÓN","DERECHOS_DE_PETICIÓN",27,"DERECHOS_DE_PETICIÓN27","N/A","DERECHOS_DE_PETICIÓN27"]
[null,null,null,"RESOLUCIONES","RESOLUCIONES",681,"RESOLUCIONES681","RESOLUCIONES DEL FONDO","RESOLUCIONES681","68.1"]
[null,null,null,"RESOLUCIONES","RESOLUCIONES",68,"RESOLUCIONES68","RESOLUCIONES DEL MINISTERIO","RESOLUCIONES68","68.2"]
[null,null,null,"INFORMES","INFORMES",4107,"INFORMES4107","INFORMES DE GESTIÓN","INFORMES4107","41.4"]
[null,null,null,"DERECHOS DE PETICIÓN","DERECHOS_DE_PETICIÓN",27,"DERECHOS_DE_PETICIÓN27","N/A","DERECHOS_DE_PETICIÓN27"]
[null,null,null,"PROCESOS","PROCESOS",6209,"PROCESOS6209","PROCESOS DISCIPLINARIOS","PROCESOS6209","62.11"]
[null,null,null,"PROCESOS","PROCESOS",62,"PROCESOS62","PROCESOS ORDINARIOS","PROCESOS62","62.24"]
[null,null,null,"INFORMES","INFORMES",41,"INFORMES41","INFORMES A ORGANISMOS DE CONTROL","INFORMES41","41.1"]
[null,null,null,"INFORMES","INFORMES",41,"INFORMES41","INFORMES DE GESTIÓN","INFORMES41","41.4"]
[null,null,null,"DERECHOS DE PETICIÓN","DERECHOS_DE_PETICIÓN",27,"DERECHOS_DE_PETICIÓN27","N/A","DERECHOS_DE_PETICIÓN27"]
[null,null,null,"ACUERDOS","ACUERDOS",402,"ACUERDOS402","ACUERDOS DE PAGO","ACUERDOS402","4.2"]
[null,null,null,"BOLETINES","BOLETINES",1201,"BOLETINES1201","BOLETINES DE CAJA Y BANCOS","BOLETINES1201","12.1"]
[null,null,null,"BOLETINES","BOLETINES",12,"BOLETINES12","BOLETINES DE CAJA Y BANCOS","BOLETINES12","12.1"]
[null,null,null,"CERTIFICADOS","CERTIFICADOS",1302,"CERTIFICADOS1302","CERTIFICADOS DE ICA IVA Y RENTA","CERTIFICADOS1302","13.4"]
[null,null,null,"CONCILIACIONES","CONCILIACIONES",2001,"CONCILIACIONES2001","CONCILIACIONES BANCARIAS","CONCILIACIONES2001","20.1"]
[null,null,null,"CONCILIACIONES","CONCILIACIONES",20,"CONCILIACIONES20","CONCILIACIONES BANCARIAS","CONCILIACIONES20","20.1"]
[null,null,null,"CONCILIACIONES","CONCILIACIONES",20,"CONCILIACIONES20","CONCILIACIONES BANCARIAS","CONCILIACIONES20","20.1"]
[null,null,null,"CUENTAS BANCARIAS","CUENTAS_BANCARIAS",24,"CUENTAS_BANCARIAS24","CUENTAS BANCARIAS DEL FONDO","CUENTAS_BANCARIAS24","24.1"]
[null,null,null,"CUENTAS BANCARIAS","CUENTAS_BANCARIAS",24,"CUENTAS_BANCARIAS24","CUENTAS BANCARIAS DEL MINISTERIO ","CUENTAS_BANCARIAS24","24.2"]
[null,null,null,"DECLARACIONES TRIBUTARIAS ","DECLARACIONES_TRIBUTARIAS_",26,"DECLARACIONES_TRIBUTARIAS_26","N/A","DECLARACIONES_TRIBUTARIAS_26"]
[null,null,null,"EMBARGOS","EMBARGOS",29,"EMBARGOS29","N/A","EMBARGOS29"]
[null,null,null,"INFORMES","INFORMES",4110,"INFORMES4110","INFORMES A ORGANISMOS DE CONTROL","INFORMES4110","41.1"]
[null,null,null,"INFORMES","INFORMES",41,"INFORMES41","INFORMES DE GESTIÓN","INFORMES41","41.4"]
[null,null,null,"INFORMES","INFORMES",41,"INFORMES41","INFORMES DE SEGUIMIENTO A CONVENIOS BANCARIOS","INFORMES41","41.6"]
[null,null,null,"LEGALIZACIONES","LEGALIZACIONES",47,"LEGALIZACIONES47","LEGALIZACIONES DE CAJA MENOR FONDO","LEGALIZACIONES47","47.1"]
[null,null,null,"LEGALIZACIONES","LEGALIZACIONES",47,"LEGALIZACIONES47","LEGALIZACIONES DE VIATICOS","LEGALIZACIONES47","47.2"]
[null,null,null,"LIBROS AUXILIARES","LIBROS_AUXILIARES",48,{"$f":"_xlfn.CONCAT(E344,F344)","v":"LIBROS_AUXILIARES48"},"N/A","LIBROS_AUXILIARES48"]
[null,null,null,"NOMINA",{"$f":"SUBSTITUTE(D345,\" \",\"_\")","v":"NOMINA"},53,"NOMINA53","N/A","NOMINA53"]
[null,null,null,"ORDENES DE PAGO","ORDENES_DE_PAGO",56,"ORDENES_DE_PAGO56","N/A","ORDENES_DE_PAGO56"]
[null,null,null,"DERECHOS DE PETICIÓN","DERECHOS_DE_PETICIÓN",27,"DERECHOS_DE_PETICIÓN27","N/A","DERECHOS_DE_PETICIÓN27"]
[null,null,null,"PLANES","PLANES",5908,"PLANES5908","PLANES ANUALES DE CAJA PAC","PLANES5908","59.4"]
[null,null,null,"PLANES","PLANES",59,"PLANES59","PLANES DE INVERSIÓN","PLANES59","59.7"]
[null,null,null,"FORMULARIO UNICO DE RECAUDO","FORMULARIO_UNICO_DE_RECAUDO",35,"FORMULARIO_UNICO_DE_RECAUDO35","N/A","FORMULARIO_UNICO_DE_RECAUDO35"]
[null,null,null,"COMPROBANTES","COMPROBANTES",17,"COMPROBANTES17","N/A","COMPROBANTES17"]
[null,null,null,"ACTAS","ACTAS",22,"ACTAS22","ACTAS DE COMITÉ","ACTAS22","2.1"]
[null,null,null,"COMPROBANTES","COMPROBANTES",1701,"COMPROBANTES1701","COMPROBANTES CONTABLES","COMPROBANTES1701","17.1"]
[null,null,null,"CONCILIACIONES","CONCILIACIONES",2002,"CONCILIACIONES2002","CONCILIACIONES BANCARIAS","CONCILIACIONES2002","20.1"]
[null,null,null,"CONCILIACIONES","CONCILIACIONES",20,"CONCILIACIONES20","CONCILIACIONES DE OPERACIONES RECIPROCAS","CONCILIACIONES20","20.2"]
[null,null,null,"ESTADOS FINANCIEROS","ESTADOS_FINANCIEROS",31,"ESTADOS_FINANCIEROS31","N/A","ESTADOS_FINANCIEROS31"]
[null,null,null,"INFORMES","INFORMES",4112,"INFORMES4112","INFORMES A ORGANISMOS DE CONTROL","INFORMES4112","41.1"]
[null,null,null,"DERECHOS DE PETICIÓN","DERECHOS_DE_PETICIÓN",27,"DERECHOS_DE_PETICIÓN27","N/A","DERECHOS_DE_PETICIÓN27"]
[null,null,null,"BALANCES PRESUPUESTALES","BALANCES_PRESUPUESTALES",11,"BALANCES_PRESUPUESTALES11","N/A","BALANCES_PRESUPUESTALES11"]
[null,null,null,"CERTIFICADOS","CERTIFICADOS",1303,"CERTIFICADOS1303","CERTIFICADOS DE DISPONIBILIDAD PRESUPUESTAL","CERTIFICADOS1303","13.3"]
[null,null,null,"INFORMES","INFORMES",41,"INFORMES41","INFORMES A ORGANISMOS DE CONTROL","INFORMES41","41.1"]
[null,null,null,"INFORMES","INFORMES",41,"INFORMES41","INFORMES DE GESTIÓN","INFORMES41","41.4"]
[null,null,null,"DERECHOS DE PETICIÓN","DERECHOS_DE_PETICIÓN",27,"DERECHOS_DE_PETICIÓN27","N/A","DERECHOS_DE_PETICIÓN27"]
[null,null,null,"PROYECTOS","PROYECTOS",6510,"PROYECTOS6510","PROYECTOS DE INVERSIÓN","PROYECTOS6510","65.4"]
[null,null,null,"PROYECTOS","PROYECTOS",65,"PROYECTOS65","PROYECTOS DE PRESUPUESTO","PROYECTOS65","65.7"]
[null,null,null,"REGISTROS","REGISTROS",6602,"REGISTROS6602","REGISTROS PRESUPUESTALES","REGISTROS6602","66.6"]
[null,null,null,"RESERVAS PRESUPUESTALES","RESERVAS_PRESUPUESTALES",67,"RESERVAS_PRESUPUESTALES67","N/A","RESERVAS_PRESUPUESTALES67"]
[null,null,null,"CERTIFICADOS","CERTIFICADOS",1304,"CERTIFICADOS1304","CERTIFICACIONES DE CUMPLIMIENTO","CERTIFICADOS1304","13.2"]
[null,null,null,"COBROS","COBROS",15,"COBROS15","COBROS COACTIVOS","COBROS15","15.1"]
[null,null,null,"COBROS","COBROS",15,"COBROS15","COBROS PERSUASIVOS","COBROS15","15.2"]
[null,null,null,"ESTADOS DE CUENTA","ESTADOS_DE_CUENTA",30,"ESTADOS_DE_CUENTA30","N/A","ESTADOS_DE_CUENTA30","N/A"]
[null,null,null,"INFORMES","INFORMES",4107,"INFORMES4107","INFORMES DE GESTIÓN","INFORMES4107","41.4"]
[null,null,null,"DERECHOS DE PETICIÓN","DERECHOS_DE_PETICIÓN",27,"DERECHOS_DE_PETICIÓN27","N/A","DERECHOS_DE_PETICIÓN27","N/A"]
[null,null,null,"PLANES","PLANES",5913,"PLANES5913","PLANES DE MEJORAMIENTO","PLANES5913","59.8"]
[null,null,null,"ACTAS","ACTAS",22,"ACTAS22","ACTAS DE COMITÉ","ACTAS22","2.1"]
[null,null,null,"ESTUDIOS","ESTUDIOS",3301,"ESTUDIOS3301","N/A","ESTUDIOS3301"]
[null,null,null,"INFORMES","INFORMES",4107,"INFORMES4107","INFORMES DE GESTIÓN","INFORMES4107","41.4"]
[null,null,null,"MANUALES","MANUALES",5001,"MANUALES5001","MANUALES DE FUNCIONES Y DE COMPETENCIAS LABORALES","MANUALES5001","50.2"]
[null,null,null,"DERECHOS DE PETICIÓN","DERECHOS_DE_PETICIÓN",27,"DERECHOS_DE_PETICIÓN27","N/A","DERECHOS_DE_PETICIÓN27","N/A"]
[null,null,null,"PLANES","PLANES",5914,"PLANES5914","PLANES DE SEGURIDAD","PLANES5914","59.10"]
[null,null,null,"PLANES","PLANES",59,"PLANES59","PLAN INSTITUCIONAL DE CAPACITACIÓN","PLANES59","59.3"]
[null,null,null,"PLANES","PLANES",59,"PLANES59","PLAN DE BIENESTAR SOCIAL E INCENTIVOS","PLANES59","59.2"]
[null,null,null,"PLANES","PLANES",59,"PLANES59","PLANES INSTITUCIONALES","PLANES59","59.12"]
[null,null,null,"PROGRAMAS","PROGRAMAS",6411,"PROGRAMAS6411","PROGRAMAS DE TELETRABAJO","PROGRAMAS6411","64.7"]
[null,null,null,"ACTAS","ACTAS",22,"ACTAS22","ACTAS DE COMITÉ","ACTAS22","2.1"]
[null,null,null,"CERTIFICADOS","CERTIFICADOS",1301,"CERTIFICADOS1301","N/A","CERTIFICADOS1301","N/A"]
[null,null,null,"NOMINA","NOMINA",5302,"NOMINA5302","NOVEDADES DE NÓMINA","NOMINA5302","N/A"]
[null,null,null,"DERECHOS DE PETICIÓN","DERECHOS_DE_PETICIÓN",27,"DERECHOS_DE_PETICIÓN27","N/A","DERECHOS_DE_PETICIÓN27","N/A"]
[null,null,null,"PLANES","PLANES",5915,"PLANES5915","PLANES DE SEGURIDAD","PLANES5915","N/A"]
[null,null,null,"PLANES","PLANES",59,"PLANES59","PLAN INSTITUCIONAL DE CAPACITACIÓN","PLANES59","N/A"]
[null,null,null,"PLANES","PLANES",59,"PLANES59","PLAN DE BIENESTAR SOCIAL E INCENTIVOS","PLANES59","N/A"]
[null,null,null,"PROGRAMAS","PROGRAMAS",6411,"PROGRAMAS6411","PROGRAMAS DE TELETRABAJO","PROGRAMAS6411","N/A"]
[null,null,null,"HISTORIAS LABORALES","HISTORIAS_LABORALES",40,"HISTORIAS_LABORALES40","HISTORIAS LABORALES ENTIDADES LIQUIDADAS","HISTORIAS_LABORALES40","N/A"]
[null,null,null,"CUOTAS PARTES PENSIONALES","CUOTAS_PARTES_PENSIONALES",25,"CUOTAS_PARTES_PENSIONALES25","CUOTAS PARTES PENSIONALES POR COBRAR","CUOTAS_PARTES_PENSIONALES25","N/A"]
[null,null,null,"CUOTAS PARTES PENSIONALES","CUOTAS_PARTES_PENSIONALES",25,"CUOTAS_PARTES_PENSIONALES25","CUOTAS PARTES PENSIONALES POR PAGAR ","CUOTAS_PARTES_PENSIONALES25","N/A"]
[null,null,null,"INFORMES","INFORMES",41,"INFORMES41","INFORMES A ORGANISMOS DE CONTROL","INFORMES41","N/A"]
[null,null,null,"INFORMES","INFORMES",41,"INFORMES41","INFORMES DE GESTIÓN","INFORMES41","N/A"]
[null,null,null,"DERECHOS DE PETICIÓN","DERECHOS_DE_PETICIÓN",27,"DERECHOS_DE_PETICIÓN27","N/A","DERECHOS_DE_PETICIÓN27","N/A"]
[null,null,null,"INFORMES","INFORMES",41,"INFORMES41","INFORMES A ORGANISMOS DE CONTROL","INFORMES41","N/A"]
[null,null,null,"INFORMES","INFORMES",41,"INFORMES41","INFORMES DE GESTIÓN","INFORMES41","41.4"]
[null,null,null,"NOTIFICACION DE ACTOS ADMINISTRATIVOS","NOTIFICACION_DE_ACTOS_ADMINISTRATIVOS",54,"NOTIFICACION_DE_ACTOS_ADMINISTRATIVOS54","N/A","NOTIFICACION_DE_ACTOS_ADMINISTRATIVOS54","N/A"]
[null,null,null,"DERECHOS DE PETICIÓN","DERECHOS_DE_PETICIÓN",27,"DERECHOS_DE_PETICIÓN27","N/A","DERECHOS_DE_PETICIÓN27","N/A"]
[null,null,null,"Programas","Programas",6401,"Programas6401","N/A","PROGRAMAS6401","N/A"]
[null,null,null,"PLANES","PLANES",5916,"PLANES5916","PLANES ANUALES DE COMPRAS","PLANES5916","59.5"]
[null,null,null,"ACTAS","ACTAS",22,"ACTAS22","ACTAS DE COMITÉ","ACTAS22","2.1"]
[null,null,null,"COMPROBANTES","COMPROBANTES",1702,"COMPROBANTES1702","COMPROBANTES DE ALMACEN","COMPROBANTES1702","17.2"]
[null,null,null,"HISTORIALES DE BIENES INMUEBLES","HISTORIALES_DE_BIENES_INMUEBLES",38,"HISTORIALES_DE_BIENES_INMUEBLES38","N/A","HISTORIALES_DE_BIENES_INMUEBLES38","N/A"]
[null,null,null,"INFORMES","INFORMES",41,{"$f":"_xlfn.CONCAT(E408,F408)","v":"INFORMES41"},"INFORMES A ORGANISMOS DE CONTROL","INFORMES41","41.1"]
[null,null,null,"INFORMES",{"$f":"SUBSTITUTE(D409,\" \",\"_\")","v":"INFORMES"},41,"INFORMES41","INFORMES DE GESTIÓN","INFORMES41","41.4"]
[null,null,null,"INSTRUMENTOS DE CONTROL","INSTRUMENTOS_DE_CONTROL",4301,"INSTRUMENTOS_DE_CONTROL4301","INSTRUMENTOS DE CONTROL PARA ADMINISTRACIÓN DE BIENES","INSTRUMENTOS_DE_CONTROL4301","43.2"]
[null,null,null,"ACTAS","ACTAS",202,"ACTAS202","ACTAS DE DECOMISOS DE BIENES","ACTAS202","2.2"]
[null,null,null,"INVENTARIOS","INVENTARIOS",4401,"INVENTARIOS4401","INVENTARIOS DE ALMACEN","INVENTARIOS4401","44.2"]
[null,null,null,"INVENTARIOS","INVENTARIOS",44,"INVENTARIOS44","INVENTARIOS DE ELEMENTOS DEVOLUTIVOS","INVENTARIOS44","44.4"]
[null,null,null,"INVENTARIOS","INVENTARIOS",44,"INVENTARIOS44","INVENTARIOS Y CONCILIACIONES DE ACTIVOS FIJOS","INVENTARIOS44","44.3"]
[null,null,null,"DERECHOS DE PETICIÓN","DERECHOS_DE_PETICIÓN",27,"DERECHOS_DE_PETICIÓN27","N/A","DERECHOS_DE_PETICIÓN27"]
[null,null,null,"INFORMES","INFORMES",41,"INFORMES41","INFORMES A ORGANISMOS DE CONTROL","INFORMES41","41.1"]
[null,null,null,"INFORMES","INFORMES",41,"INFORMES41","INFORMES DE GESTIÓN","INFORMES41","41.4"]
[null,null,null,"NOTIFICACION DE ACTOS ADMINISTRATIVOS","NOTIFICACION_DE_ACTOS_ADMINISTRATIVOS",54,"NOTIFICACION_DE_ACTOS_ADMINISTRATIVOS54","N/A","NOTIFICACION_DE_ACTOS_ADMINISTRATIVOS54"]
[null,null,null,"DERECHOS DE PETICIÓN","DERECHOS_DE_PETICIÓN",27,"DERECHOS_DE_PETICIÓN27","N/A","DERECHOS_DE_PETICIÓN27"]
[null,null,null,"ACTAS","ACTAS",203,"ACTAS203","ACTAS DE ELIMINACIÓN DOCUMENTAL","ACTAS203","2.3"]
[null,null,null,"CONSECUTIVO DE COMUNICACIONES OFICIALES","CONSECUTIVO_DE_COMUNICACIONES_OFICIALES",21,"CONSECUTIVO_DE_COMUNICACIONES_OFICIALES21","N/A","CONSECUTIVO_DE_COMUNICACIONES_OFICIALES21"]
[null,null,null,"INFORMES","INFORMES",4107,"INFORMES4107","INFORMES DE GESTIÓN","INFORMES4107","41.4"]
[null,null,null,"INSTRUMENTOS ARCHIVISTICOS","INSTRUMENTOS_ARCHIVISTICOS",42,"INSTRUMENTOS_ARCHIVISTICOS42","BANCO TERMINOLOGICO","INSTRUMENTOS_ARCHIVISTICOS42","42.1"]
[null,null,null,"INSTRUMENTOS ARCHIVISTICOS","INSTRUMENTOS_ARCHIVISTICOS",42,"INSTRUMENTOS_ARCHIVISTICOS42","CUADRO DE CLASIFICACION DOCUMENTAL","INSTRUMENTOS_ARCHIVISTICOS42","42.2"]
[null,null,null,"INSTRUMENTOS ARCHIVISTICOS","INSTRUMENTOS_ARCHIVISTICOS",42,"INSTRUMENTOS_ARCHIVISTICOS42","INVENTARIOS DOCUMENTALES","INSTRUMENTOS_ARCHIVISTICOS42","42.3"]
[null,null,null,"INSTRUMENTOS ARCHIVISTICOS","INSTRUMENTOS_ARCHIVISTICOS",42,"INSTRUMENTOS_ARCHIVISTICOS42","MODELO DE REQUISITOS PARA DOCUMENTO ELECTRONICO - MOREQ","INSTRUMENTOS_ARCHIVISTICOS42","42.4"]
[null,null,null,"INSTRUMENTOS ARCHIVISTICOS","INSTRUMENTOS_ARCHIVISTICOS",42,"INSTRUMENTOS_ARCHIVISTICOS42","PLAN INSTITUCIONAL DE ARCHIVO - PINAR","INSTRUMENTOS_ARCHIVISTICOS42","42.5"]
[null,null,null,"INSTRUMENTOS ARCHIVISTICOS","INSTRUMENTOS_ARCHIVISTICOS",42,"INSTRUMENTOS_ARCHIVISTICOS42","PROGRAMA DE GESTION DOCUMENTAL","INSTRUMENTOS_ARCHIVISTICOS42","42.6"]
[null,null,null,"INSTRUMENTOS ARCHIVISTICOS","INSTRUMENTOS_ARCHIVISTICOS",42,"INSTRUMENTOS_ARCHIVISTICOS42","PROGRAMA DEL SISTEMA INTEGRADO DE CONSERVACIÓN DOCUMENTAL","INSTRUMENTOS_ARCHIVISTICOS42","42.7"]
[null,null,null,"INSTRUMENTOS ARCHIVISTICOS","INSTRUMENTOS_ARCHIVISTICOS",42,"INSTRUMENTOS_ARCHIVISTICOS42","TABLA DE CONTROL DE ACCESOS","INSTRUMENTOS_ARCHIVISTICOS42","42.8"]
[null,null,null,"INSTRUMENTOS ARCHIVISTICOS","INSTRUMENTOS_ARCHIVISTICOS",42,"INSTRUMENTOS_ARCHIVISTICOS42","TABLAS DE RETENCIÓN DOCUMENTAL (TRD)","INSTRUMENTOS_ARCHIVISTICOS42","42.9"]
[null,null,null,"INSTRUMENTOS ARCHIVISTICOS","INSTRUMENTOS_ARCHIVISTICOS",42,"INSTRUMENTOS_ARCHIVISTICOS42","TABLAS DE VALORACIÓN DOCUMENTAL (TVD)","INSTRUMENTOS_ARCHIVISTICOS42","42.10"]
[null,null,null,"PLANILLAS DE CORRESPONDENCIA","PLANILLAS_DE_CORRESPONDENCIA",60,"PLANILLAS_DE_CORRESPONDENCIA60","N/A","PLANILLAS_DE_CORRESPONDENCIA60"]
[null,null,null,"DERECHOS DE PETICIÓN","DERECHOS_DE_PETICIÓN",27,"DERECHOS_DE_PETICIÓN27","N/A","DERECHOS_DE_PETICIÓN27"]
[null,null,null,"PROGRAMAS","PROGRAMAS",6412,"PROGRAMAS6412","PROGRAMAS DE RESPONSABILIDAD SOCIAL","PROGRAMAS6412","64.4"]
[null,null,null,"PROGRAMAS","PROGRAMAS",64,"PROGRAMAS64","PROGRAMAS DE SERVICIO AL CIUDADANO","PROGRAMAS64","64.5"]
[null,null,null,"PROGRAMAS","PROGRAMAS",64,"PROGRAMAS64","PROGRAMAS INSTITUCIONALES DE GESTIÓN AMBIENTAL","PROGRAMAS64","64.9"]
[null,null,null,"COMISIONES DE SERVICIO NACIONAL E INTERNACIONAL","COMISIONES_DE_SERVICIO_NACIONAL_E_INTERNACIONAL",16,"COMISIONES_DE_SERVICIO_NACIONAL_E_INTERNACIONAL16","N/A","COMISIONES_DE_SERVICIO_NACIONAL_E_INTERNACIONAL16"]
[null,null,null,"HISTORIALES DE VEHÍCULOS","HISTORIALES_DE_VEHÍCULOS",39,"HISTORIALES_DE_VEHÍCULOS39","N/A","HISTORIALES_DE_VEHÍCULOS39"]
[null,null,null,"INSTRUMENTOS DE CONTROL","INSTRUMENTOS_DE_CONTROL",4302,"INSTRUMENTOS_DE_CONTROL4302","INSTRUMENTOS DE CONTROL DE VEHICULOS","INSTRUMENTOS_DE_CONTROL4302","43.1"]
[null,null,null,"DERECHOS DE PETICIÓN","DERECHOS_DE_PETICIÓN",27,"DERECHOS_DE_PETICIÓN27","N/A","DERECHOS_DE_PETICIÓN27"]
[null,null,null,"PLANES","PLANES",5906,"PLANES5906","PLANES INSTITUCIONALES","PLANES5906","59.12"]
[null,null,null,"ACTAS","ACTAS",22,"ACTAS22","ACTAS DE COMITÉ","ACTAS22","2.1"]
[null,null,null,"ACTAS","ACTAS",2,"ACTAS2","ACTAS DE COMITÉ","ACTAS2","2.1"]
[null,null,null,"CONTRATOS","CONTRATOS",22,"CONTRATOS22","CONTRATOS DE APORTE","CONTRATOS22","22.1"]
[null,null,null,"CONTRATOS","CONTRATOS",22,"CONTRATOS22","CONTRATOS DE ARRENDAMIENTO","CONTRATOS22","22.2"]
[null,null,null,"CONTRATOS","CONTRATOS",22,"CONTRATOS22","CONTRATOS DE COMODATO","CONTRATOS22","22.4"]
[null,null,null,"CONTRATOS","CONTRATOS",22,"CONTRATOS22","CONTRATOS DE COMPRAVENTA","CONTRATOS22","22.5"]
[null,null,null,"CONTRATOS","CONTRATOS",22,"CONTRATOS22","CONTRATOS DE CONSULTORÍA","CONTRATOS22","22.6"]
[null,null,null,"CONTRATOS","CONTRATOS",22,"CONTRATOS22","CONTRATOS DE INTERVENTORÍA","CONTRATOS22","22.7"]
[null,null,null,"CONTRATOS","CONTRATOS",22,"CONTRATOS22","CONTRATOS DE OBRA","CONTRATOS22","22.8"]
[null,null,null,"CONTRATOS","CONTRATOS",22,"CONTRATOS22","CONTRATOS DE PRESTACIÓN DE SERVICIOS","CONTRATOS22","22.9"]
[null,null,null,"CONTRATOS","CONTRATOS",22,"CONTRATOS22","CONTRATOS DE PRESTACIÓN DE SERVICIOS PROFESIONALES Y DE APOYO A LA GESTIÓN","CONTRATOS22","22.10"]
[null,null,null,"CONTRATOS","CONTRATOS",22,"CONTRATOS22","CONTRATOS DE CIENCIA, TECNOLOGÍA E INNOVACIÓN","CONTRATOS22","22.3"]
[null,null,null,"CONTRATOS","CONTRATOS",22,"CONTRATOS22","CONTRATOS DE SUMINISTROS","CONTRATOS22","22.12"]
[null,null,null,"CONTRATOS","CONTRATOS",22,"CONTRATOS22","CONTRATOS INTERADMINISTRATIVOS","CONTRATOS22","22.11"]
[null,null,null,"CONVENIOS","CONVENIOS",2301,"CONVENIOS2301","CONVENIOS DE ASOCIACIÓN","CONVENIOS2301","23.1"]
[null,null,null,"CONVENIOS","CONVENIOS",23,"CONVENIOS23","CONVENIOS DE COOPERACIÓN","CONVENIOS23","23.2"]
[null,null,null,"CONVENIOS","CONVENIOS",23,"CONVENIOS23","CONVENIOS INTERADMINISTRATIVOS","CONVENIOS23","23.4"]
[null,null,null,"INFORMES","INFORMES",4111,"INFORMES4111","INFORMES A ORGANISMOS DE CONTROL","INFORMES4111","41.1"]
[null,null,null,"DERECHOS DE PETICIÓN","DERECHOS_DE_PETICIÓN",27,"DERECHOS_DE_PETICIÓN27","N/A","DERECHOS_DE_PETICIÓN27"]
[null,null,null,"INFORMES","INFORMES",4107,"INFORMES4107","INFORMES DE GESTIÓN","INFORMES4107","41.4"]
[null,null,null,"DERECHOS DE PETICIÓN","DERECHOS_DE_PETICIÓN",27,"DERECHOS_DE_PETICIÓN27","N/A","DERECHOS_DE_PETICIÓN27"]
[null,null,null,"PROCESOS","PROCESOS",6210,"PROCESOS6210","PROCESOS SANCIONATORIOS EN LAS ACTUACIONES ADMINISTRATIVAS","PROCESOS6210","62.26"]
[null,null,null,"ACTAS","ACTAS",22,"ACTAS22","ACTAS DE COMITÉ","ACTAS22","2.1"]
[null,null,null,"ANTEPROYECTO DE INGRESOS DEL FONDO","ANTEPROYECTO_DE_INGRESOS_DEL_FONDO",5,"ANTEPROYECTO_DE_INGRESOS_DEL_FONDO5","N/A","ANTEPROYECTO_DE_INGRESOS_DEL_FONDO5"]
[null,null,null,"INFORMES","INFORMES",41,"INFORMES41","INFORMES A ORGANISMOS DE CONTROL","INFORMES41","41.1"]
[null,null,null,"INFORMES","INFORMES",41,"INFORMES41","INFORMES DE GESTIÓN","INFORMES41","41.4"]
[null,null,null,"DERECHOS DE PETICIÓN","DERECHOS_DE_PETICIÓN",27,"DERECHOS_DE_PETICIÓN27","N/A","DERECHOS_DE_PETICIÓN27"]
[null,null,null,"PLANES","PLANES",5913,"PLANES5913","PLANES DE MEJORAMIENTO","PLANES5913","59.8"]
[null,null,null,"CONCEPTOS","CONCEPTOS",193,"CONCEPTOS193","CONCEPTOS TÉCNICOS","CONCEPTOS193","19.3"]
[null,null,null,"ACTAS","ACTAS",22,{"$f":"_xlfn.CONCAT(E472,F472)","v":"ACTAS22"},"ACTAS DE COMITÉ","ACTAS22","2.1"]
[null,null,null,"INFORMES",{"$f":"SUBSTITUTE(D473,\" \",\"_\")","v":"INFORMES"},4107,"INFORMES4107","INFORMES DE GESTIÓN","INFORMES4107","41.4"]
[null,null,null,"DERECHOS DE PETICIÓN","DERECHOS_DE_PETICIÓN",27,"DERECHOS_DE_PETICIÓN27","N/A","DERECHOS_DE_PETICIÓN27"]
[null,null,null,"ACTAS","ACTAS",22,"ACTAS22","ACTAS DE REUNIÓN","ACTAS22","2.7"]
[null,null,null,"INFORMES","INFORMES",4107,"INFORMES4107","INFORMES DE GESTIÓN","INFORMES4107","42.4"]
[null,null,null,"DERECHOS DE PETICIÓN","DERECHOS_DE_PETICIÓN",27,"DERECHOS_DE_PETICIÓN27","N/A","DERECHOS_DE_PETICIÓN27"]
[null,null,null,null,"",null,"",null,""]
[null,null,null,null,"",null,"",null,""]
[null,null,null,null,"",null,"",null,""]
[null,null,null,null,"",null,"",null,""]
[]
[]
[]
[]
[]
[]
[]
[]
[]
[]
[]
[]
[]
[]
[]
[]
[]
[]
[]
[]
[]
[]
[]
[]
[]
[]
[]
[]
[]
[]
[]
[]
[]
[]
[]
[]
[]
[]
[]
[]
[]
[]
[]
[]
[]
[]
[]
[]
[]
[]
[]
[]
[]
[]
[]
[]
[]
[]
[]
[]
[]
[]
[]
[]
[]
[]
[]
[]
[]
[]
[]
[]
[]
[]
[]
[]
[]
[]
[]
[]
[]
[]
[]
[]
[]
[]
[]
[]
[]
[]
[]
[]
[]
[]
[]
[]
[]
[]
[]
[]
[]
[]
[]
[]
[]
[]
[]
[]
[]
[null,437,"GRUPO INTERNO DE TRABAJO DE GESTION PENSIONAL"]

{"sheet":"Lista_Datos","index":2,"n_rows":480,"n_cols":68,"rows_kept":480,"cut":false,"hidden":true,"merged":[[0,65,1,65],[0,66,1,66],[0,67,1,67],[0,12,1,12],[0,15,0,18],[0,19,0,30],[0,14,1,14],[0,36,1,36],[0,37,1,37],[0,38,1,38],[0,13,1,13],[0,31,1,31],[0,32,1,32],[0,33,1,33],[0,34,1,34],[0,35,1,35],[0,0,1,0],[0,1,1,1],[0,4,1,4],[0,5,1,5],[0,6,1,6],[0,3,1,3],[0,2,1,2],[0,7,1,7],[0,8,1,8],[0,9,1,9],[0,10,1,10],[0,11,1,11],[0,52,1,52],[0,48,1,48],[0,45,1,45],[0,39,1,39],[0,40,1,40],[0,41,1,41],[0,42,1,42],[0,43,1,43],[0,44,1,44],[0,46,1,46],[0,47,1,47],[0,49,1,49],[0,50,1,50],[0,51,1,51],[0,64,1,64],[0,53,1,53],[0,54,1,54],[0,55,1,55],[0,57,1,57],[0,58,1,58],[0,59,1,59],[0,60,1,60],[0,61,1,61],[0,62,1,62],[0,63,1,63]]}
["Identificador ","Oficina","Código del área","Unidades / Grupos de Trabajo","Código de la Serie","Series","Código de la Subserie","Subseries","Nombre","Descripción","Tipo ","Nombre del Responsable de la Producción de la Información\n(Propietario del Activo)","Nombre del Responsable de la Información\n(Custodio del Activo)","Fecha de Generación de la Información o Ingreso del Activo","Tipo","Macroproceso",null,null,null,"Proceso",null,null,null,null,null,null,null,null,null,null,null,"Documento_MIG","Código Documento MIG","Norma, Ley o Función que lo Justifica ","Origen","Soporte_del_Registro","Medio_de_Conservación","Formato","Idioma","Confidencialidad","Valor","Integridad","Valor","Disponibilidad","Valor","Criticidad del Activo","Información_Publicada","Lugar de Consulta o Ubicación","Objetivo legítimo de la Excepción","Fundamento Constitucional o Legal","Fundamento Jurídico de la Excepción","Excepción_Tota_o_Parcial","Fecha de Calificación\nDD/MM/AAAA","Tiempo que Cobija la Clasificación"," ¿Contiene Datos Personales?","Tipo de Datos Personales","Finalidad de la Recoleccion de los Datos Personales","Cuenta con las  Autorizaciones para el Tratamiento de los Datos Personales","¿Existe Transferencia Internacional de Datos Personales?","¿Es un Conjunto de Datos Estratégico?","¿Es un Dato Abierto?","Tipo Clasificación de Dato Publicado","URL de Publicación en Datos.gov.co","Cobertura Geográfica","Tipo de Información","Servicio Tecnológico","Clasificación de la Información","Nivel de Seguridad"]
[null,null,null,null,null,null,null,null,null,null,null,null,null,null,null,"EVALUACION","APOYO","ESTRATEGICO","MISIONAL","ANALISIS_MEJORA_GESTION","GESTION_RECURSOS","GESTION_JURIDICA","ARQUITECTURA_INSTITUCIONAL","COMUNICACION_ESTRATEGICA","COOPERACION_INTERNACIONAL","GESTION_ATENCION_GRUPOS_INTERES","MARCO_ESTRATEGICO","ACCESO_USO_APROPIACION_TIC","GESTION_CONOCIMIENTO_SECTOR_TIC","PLANEACION_FORMULACION_POLITICAS_TIC","SEGUIMIENTO_CONTROL_POLITICAS_TIC",null,null,null,null,null,null,null,null,null,null,null,null,null,null,null,null,null,null,null,null,null,null,null,null,null,"FRDP"]
["Se Genera Automaticamente","Desp. Vice-Min de Conectividad y Digitalización",100,"DESPACHO DEL MINISTRO","100.37","ESTATUTOS INTERNOS DEL FONDO DE TECNOLOGIAS DE LA INFORMACIÓN Y LAS COMUNICACIONES",null,null,"Campo de texto","Campo de texto","INFORMACIÓN","Desp. Vice-Min de Conectividad y Digitalización","Desp. Vice-Min de Conectividad y Digitalización","Campo de Fecha","ESTRATEGICO","ANALISIS_MEJORA_GESTION","GESTION_RECURSOS","ARQUITECTURA_INSTITUCIONAL","ACCESO_USO_APROPIACION_TIC","EVALUACION Y APOYO AL CONTROL DE LA GESTION","GESTION DE COMPRAS Y CONTRATACION","GESTION JURIDICA","FORTALECIMIENTO ORGANIZACIONAL","COMUNICACION ESTRATEGICA","GESTION INTERNACIONAL","GESTION DE ATENCION A GRUPOS DE INTERES","DIRECCIONAMIENTO ESTRATEGICO","ACCESO A LAS TIC","GESTION DE LA INFORMACION SECTORIAL","PLANEACION Y FORMULACION DE POLITICAS TIC","SEGUIMIENTO Y EVALUACION DE POLITICAS TIC","SI","Campo de texto","Campo de texto","Externo","Digital","Documentos de Archivo - físicos","API","Español","Alta",{"$f":"IF(AP3=\"ALTA\",3,IF(AP3=\"MEDIA\",2,IF(AP3=\"BAJA\",1,IF(AP3=\"\",\"ESCOJA OPCION!\",3))))","v":3},"Grave ",3,"Sí",3,"ALTA","Publicada (Interno - Intranet)","Campo de texto","SI","Campo de texto","Campo de texto","Reserva parcial","Campo de Fecha","Campo de texto","SI","Dato personal privado ","a)       Permitir el desarrollo del objeto del Ministerio/Fondo TIC, en los términos del Decreto 1064 2020.","SI","SI","SI","SI","Agricultura y Desarrollo Rural","Campo de texto","INTERNACIONAL","Estructurado"," Almacenamiento ","Pública","Protegido"]
[null,"Desp. Vice-Min de Economía Digital",100,"DESPACHO DEL MINISTRO","100.47","INFORMES","100.47.01","Informes a Entes de Control y Vigilancia",null,null,"HARDWARE","Desp. Vice-Min de Economía Digital","Desp. Vice-Min de Economía Digital",null,"MISIONAL",null,"GESTION_JURIDICA","COMUNICACION_ESTRATEGICA","GESTION_CONOCIMIENTO_SECTOR_TIC",null,"GESTION DE RECURSOS ADMINISTRATIVOS",null,"SEGURIDAD Y PRIVACIDAD DE LA INFORMACIÓN",null,null,null,null,"FORTALECIMIENTO DE LA INDUSTRIA TIC","I+D+I",null,"VIGILANCIA, INSPECCION Y CONTROL","NO",null,null,"Interno","Físico","Documentos de Archivo - electrónicos","Base de datos","Francés","Media",2,"Importante",2,"No",2,"MEDIA","No publicada",null,"NO",null,null,"Reserva total",null,null,"NO","Dato personal público","b)       Desarrollar los estudios previos y procesos de selección para la contratación oficial del Ministerio/Fondo TIC destinada a garantizar el funcionamiento de la entidad y la ejecución de proyectos y el desarrollo de esquemas de gerencia de proyectos.","NO","NO","NO","NO","Ambiente y Desarrollo Sostenible",null,"NACIONAL","Semiestructurado","Comunicaciones Unificadas ","Pública Clasificada","Desprotegido"]
[null,"Despacho del Ministro ",100,"DESPACHO DEL MINISTRO","100.69","POLITICAS","100.47.02","Informes a Otros Organismos",null,null,"SOFTWARE","Despacho del Ministro ","Despacho del Ministro ",null,"APOYO",null,null,"COOPERACION_INTERNACIONAL","PLANEACION_FORMULACION_POLITICAS_TIC",null,"GESTION DEL TALENTO HUMANO",null,"GESTION DE TECNOLOGIAS DE LA INFORMACION ",null,null,null,null,"GESTION DE LA INDUSTRIA DE LAS COMUNICACIONES",null,null,null,"N/A",null,null,"N/A","N/A","Documentos de Archivo - físicos/electrónico","Hoja de cálculo","Ingles","Baja",1,"Leve",1,"No Aplica",1,"BAJA","Publicada (Externo - Internet)",null,"N/A",null,null,"Sin reserva",null,null,null,"Dato semiprivado","c)       Realizar la selección, contratación y/o vinculación de servidores públicos y contratistas de prestación de servicios de la entidad.","N/A","N/A","N/A","N/A","Ciencia, Tecnología e Innovación",null,"DEPARTAMENTAL","No estructurado","Gestión de Aplicaciones ","Pública Reservada","No Aplica"]
[null,"Dir. Apropiación de TIC",100,"DESPACHO DEL MINISTRO","100.79","PROYECTOS","100.47.16","Informes de Gestión",null,null,"SERVICIOS","Dir. Apropiación de TIC","Dir. Apropiación de TIC",null,"EVALUACION",null,null,"GESTION_ATENCION_GRUPOS_INTERES","SEGUIMIENTO_CONTROL_POLITICAS_TIC",null,"GESTION DOCUMENTAL",null,"GESTION DELCONOCIMIENTO",null,null,null,null,"USO Y APROPIACION DE LAS TIC",null,null,null,null,null,null,null,null,"Archivos Institucionales - físicos","Imagen","Inglés y Español",null,3,null,3,null,3,"ALTA","No Aplica",null,null,null,null,"N/A",null,null,null,"Datos sensibles","d)       Formular, ejecutar y evaluar los programas de salud ocupacional y planes de atención a emergencias.",null,null,null,null,"Comercio, Industria y Turismo",null,"MUNICIPAL","N/A","Gestión de Bases de Datos","No Clasificada"]
[null,"Dir. de Desarrollo de la Industria TIC",100,"DESPACHO DEL MINISTRO","101.21","CONCEPTOS","100.69.02","Politicas de Divulgación y Promoción de Tecnologia de la Información y las Comunciaciones",null,null,"RECURSO HUMANO","Dir. de Desarrollo de la Industria TIC","Dir. de Desarrollo de la Industria TIC",null,null,null,null,"MARCO_ESTRATEGICO",null,null,"GESTION FINANCIERA",null,null,null,null,null,null,null,null,null,null,null,null,null,null,null,"Archivos Institucionales - electrónico","Audio","N/A",null,null,null,null,null,null,null,null,null,null,null,null,null,null,null,null,"Datos de NNA","e)       Mantener actualizada la historia laboral y registros de nómina de funcionarios del Ministerio/Fondo TIC.",null,null,null,null,"Cultura",null,"N/A",null,"Seguridad Informática "]
[null,"Dir. de Industria de Comunicaciones",100,"DESPACHO DEL MINISTRO","101.41","EVIDENCIAS DE LA REUNIÓN DE LAS ACCIONES INSTITUCIONALES EN EL MARCO DEL CONSENSO SOCIAL","100.79.01","Proyectos de Canales de Televisión ",null,null,"INSTALACIONES","Dir. de Industria de Comunicaciones","Dir. de Industria de Comunicaciones",null,null,null," ",null,null,null,null,null,null,null,null,null,null,null,null,null,null,null,null,null,null,null,"Sistemas de Información corporativos","Video",null,null,null,null,null,null,null,null,null,null,null,null,null,null,null,null,null,"N/A","f)         Atender y resolver peticiones, quejas, reclamos y sugerencias.",null,null,null,null,"DataJam - Desarrollo Rural",null,null,null,"Servicios de Portales Web "]
[null,"Dir. de Transformación Digital",100,"DESPACHO DEL MINISTRO","101.47","INFORMES","100.79.06","Proyectos de Ley",null,null,"EQUIPAMIENTO AUXILIA","Dir. de Transformación Digital","Dir. de Transformación Digital",null,null,null,null,null,null,null,null,null,null,null,null,null,null,null,null,null,null,null,null,null,null,null,"Sistemas de Trabajo colaborativo","Software",null,null,null,null,null,null,null,null,null,null,null,null,null,null,null,null,null,null,"g)       Conservar evidencia de los eventos de entrenamiento y sensibilización realizados, audiencias de adjudicación de contratos, reuniones internas y externas.",null,null,null,null,"Datathon Latam 2017",null,null,null,"Respaldos "]
[null,"Dir. Gobierno Digital",101,"GRUPO INTERNO DE TRABAJO PARA EL CONSENSO SOCIAL","101.65","PETICIONES, QUEJAS, RECLAMOS, SUGERENCIAS Y DENUNCIAS - PQRSD","101.21.05","Conceptos Técnicos",null,null,null,"Dir. Gobierno Digital","Dir. Gobierno Digital",null,null,null,null,null,null,null,null,null,null,null,null,null,null,null,null,null,null,null,null,null,null,null,"Sistema de Administración de Documentos","Documento de Texto",null,null,null,null,null,null,null,null,null,null,null,null,null,null,null,null,null,null,"h)       Atender requerimientos de información de entes de control tanto internos como externos.",null,null,null,null,"Deporte y Recreación",null,null,null,"Redes                                                    "]
[null,"Dir. Promoción de TIC",101,"GRUPO INTERNO DE TRABAJO PARA EL CONSENSO SOCIAL","101.66","PLANES",null,null,null,null,null,"Dir. Promoción de TIC","Dir. Promoción de TIC",null,null,null,null,null,null,null,null,null,null,null,null,null,null,null,null,null,null,null,null,null,null,null,"Sistemas de Mensajería Electrónica","BWF ",null,null,null,null,null,null,null,null,null,null,null,null,null,null,null,null,null,null,"i)         Efectuar la convocatoria y generar evidencia de la realización de sesiones de rendición de cuentas y participación ciudadana.",null,null,null,null,"Economía y Finanzas",null,null,null,"Servidores "]
[null,"Dir. Vigilancia y Control",101,"GRUPO INTERNO DE TRABAJO PARA EL CONSENSO SOCIAL","101.69","POLITICAS","101.47.16","Informes de Gestión",null,null,null,"Dir. Vigilancia y Control","Dir. Vigilancia y Control",null,null,null,null,null,null,null,null,null,null,null,null,null,null,null,null,null,null,null,null,null,null,null,"Portales, Intranet y Extranet","CGM  ",null,null,null,null,null,null,null,null,null,null,null,null,null,null,null,null,null,null,"j)         Medir y realizar seguimiento a los niveles de satisfacción. de los usuarios de los servicios del Ministerio TIC, a través de encuestas.",null,null,null,null,"Educación",null,null,null,"Fluido Eléctrico "]
[null,"Dir. de Infraestructura",101,"GRUPO INTERNO DE TRABAJO PARA EL CONSENSO SOCIAL","110.01","ACTAS",null,null,null,null,null,"Dir. de Infraestructura","Dir. de Infraestructura",null,null,null,null,null,null,null,null,null,null,null,null,null,null,null,null,null,null,null,null,null,null,null,"Sistemas de Bases de Datos","CSV",null,null,null,null,null,null,null,null,null,null,null,null,null,null,null,null,null,null,"k)       Registrar y/o autorizar el ingreso a las instalaciones del Edificio Murillo Toro o cualquier edificación que sea utilizada para cumplir la misión del Ministerio/Fondo TIC.",null,null,null,null,"Estadísticas Nacionales",null,null,null,"UPS"]
[null,"GIT de Conceptos",101,"GRUPO INTERNO DE TRABAJO PARA EL CONSENSO SOCIAL","110.21","CONCEPTOS","101.66.15","Planes de Salvaguarda Etnicos",null,null,null,"GIT de Conceptos","GIT de Conceptos",null,null,null,null,null,null,null,null,null,null,null,null,null,null,null,null,null,null,null,null,null,null,null,"Disco duros, servidores, discos o medios portables, cintas o medios de video y audio (análogo o digital), etc.","dBase ",null,null,null,null,null,null,null,null,null,null,null,null,null,null,null,null,null,null,"l)         Realizar análisis de seguridad para garantizar la protección de las personas y los bienes materiales que se encuentren en las instalaciones referidas en el literal k de este numeral.",null,null,null,null,"Función pública",null,null,null,"No Aplica"]
[null,"GIT de Cobro Coactivo",101,"GRUPO INTERNO DE TRABAJO PARA EL CONSENSO SOCIAL","110.47","INFORMES ",null,null,null,null,null,"GIT de Cobro Coactivo","GIT de Cobro Coactivo",null,null,null,null,null,null,null,null,null,null,null,null,null,null,null,null,null,null,null,null,null,null,null,"Cintas y medios de soporte (back up o contingencia).","DXF",null,null,null,null,null,null,null,null,null,null,null,null,null,null,null,null,null,null,"N/A",null,null,null,null,"Gastos Gubernamentales"]
[null,"GIT de Procesos Judiciales y Extrajudiciales",110,"OFICINA ASESORA DE PLANEACIÓN Y ESTUDIOS SECTORIALES","110.60","MANUALES","110.01.17","Actas del Comité Modelo Integrado de Gestión",null,null,null,"GIT de Procesos Judiciales y Extrajudiciales","GIT de Procesos Judiciales y Extrajudiciales",null,null,null,null,null,null,null,null,null,null,null,null,null,null,null,null,null,null,null,null,null,null,null,"Uso de tecnologías en la nube","EML ",null,null,null,null,null,null,null,null,null,null,null,null,null,null,null,null,null,null,null,null,null,null,null,"Hacienda y Crédito Público"]
[null,"GIT de Actuaciones Administrativas y Asesoría Contractual",110,"OFICINA ASESORA DE PLANEACIÓN Y ESTUDIOS SECTORIALES","110.65","PETICIONES, QUEJAS, RECLAMOS, SUGERENCIAS Y DENUNCIAS - PQRSD","110.01.19","Actas del Comité Sectorial de Desarrollo Administrativo ",null,null,null,"GIT de Actuaciones Administrativas y Asesoría Contractual","GIT de Actuaciones Administrativas y Asesoría Contractual",null,null,null,null,null,null,null,null,null,null,null,null,null,null,null,null,null,null,null,null,null,null,null,"N/A","GZIP",null,null,null,null,null,null,null,null,null,null,null,null,null,null,null,null,null,null,null,null,null,null,null,"Inclusión Social y Reconciliación"]
[null,"GIT para el Consenso Social",110,"OFICINA ASESORA DE PLANEACIÓN Y ESTUDIOS SECTORIALES","110.66","PLANES","110.01.26","Actas Grupos Comités Primarios",null,null,null,"GIT para el Consenso Social","GIT para el Consenso Social",null,null,null,null,null,null,null,null,null,null,null,null,null,null,null,null,null,null,null,null,null,null,null,null,"HTML (Página Web)",null,null,null,null,null,null,null,null,null,null,null,null,null,null,null,null,null,null,null,null,null,null,null,"Justicia y Derecho"]
[null,"GIT de Seguimiento a la Ejecución Contractual",110,"OFICINA ASESORA DE PLANEACIÓN Y ESTUDIOS SECTORIALES","111.08","ANTEPROYECTO DEL PRESUPUESTO DE INVERSIÓN","110.21.02","Conceptos de Viabilidad a los Proyectos de Inversión",null,null,null,"GIT de Seguimiento a la Ejecución Contractual","GIT de Seguimiento a la Ejecución Contractual",null,null,null,null,null,null,null,null,null,null,null,null,null,null,null,null,null,null,null,null,null,null,null,null,"JPEG",null,null,null,null,null,null,null,null,null,null,null,null,null,null,null,null,null,null,null,null,null,null,null,"Mapas Nacionales"]
[null,"GIT de Seguimiento a la Gestión de Ingresos del Fondo TIC",110,"OFICINA ASESORA DE PLANEACIÓN Y ESTUDIOS SECTORIALES","111.47","INFORMES","110.47.01","Informes a Entes de Control y Vigilancia",null,null,null,"GIT de Seguimiento a la Gestión de Ingresos del Fondo TIC","GIT de Seguimiento a la Gestión de Ingresos del Fondo TIC",null,null,null,null,null,null,null,null,null,null,null,null,null,null,null,null,null,null,null,null,null,null,null,null,"JPG",null,null,null,null,null,null,null,null,null,null,null,null,null,null,null,null,null,null,null,null,null,null,null,"Minas y Energía"]
[null,"GIT de Gestión del Talento Humano ",110,"OFICINA ASESORA DE PLANEACIÓN Y ESTUDIOS SECTORIALES","111.79","PROYECTOS","110.47.02","Informes a Otros Organismos",null,null,null,"GIT de Gestión del Talento Humano ","GIT de Gestión del Talento Humano ",null,null,null,null,null,null,null,null,null,null,null,null,null,null,null,null,null,null,null,null,null,null,null,null,"JSON",null,null,null,null,null,null,null,null,null,null,null,null,null,null,null,null,null,null,null,null,null,null,null,"Ordenamiento Territorial"]
[null,"GIT de Gestión Pensional",110,"OFICINA ASESORA DE PLANEACIÓN Y ESTUDIOS SECTORIALES","112.47","INFORMES","110.47.16","Informes de Gestión",null,null,null,"GIT de Gestión Pensional","GIT de Gestión Pensional",null,null,null,null,null,null,null,null,null,null,null,null,null,null,null,null,null,null,null,null,null,null,null,null,"KML",null,null,null,null,null,null,null,null,null,null,null,null,null,null,null,null,null,null,null,null,null,null,null,"Organismos de Control"]
[null,"GIT de Gestión de Servicios Administrativos",110,"OFICINA ASESORA DE PLANEACIÓN Y ESTUDIOS SECTORIALES","112.66","PLANES","110.60.03","Manuales de Procesos y Procedimientos",null,null,null,"GIT de Gestión de Servicios Administrativos","GIT de Gestión de Servicios Administrativos",null,null,null,null,null,null,null,null,null,null,null,null,null,null,null,null,null,null,null,null,null,null,null,null,"KML-KMZ",null,null,null,null,null,null,null,null,null,null,null,null,null,null,null,null,null,null,null,null,null,null,null,"Participación ciudadana"]
[null,"GIT de Fortalecimiento de las Relaciones con los Grupos de Interés",110,"OFICINA ASESORA DE PLANEACIÓN Y ESTUDIOS SECTORIALES","112.79","PROYECTOS",null,null,null,null,null,"GIT de Fortalecimiento de las Relaciones con los Grupos de Interés","GIT de Fortalecimiento de las Relaciones con los Grupos de Interés",null,null,null,null,null,null,null,null,null,null,null,null,null,null,null,null,null,null,null,null,null,null,null,null,"Maildir ",null,null,null,null,null,null,null,null,null,null,null,null,null,null,null,null,null,null,null,null,null,null,null,"Presupuestos Gubernamentales"]
[null,"GIT de Gestión de la Información",110,"OFICINA ASESORA DE PLANEACIÓN Y ESTUDIOS SECTORIALES","113.01","ACTAS","110.66.01","Planes Anticorrupción y de Atención al Ciudadano",null,null,null,"GIT de Gestión de la Información","GIT de Gestión de la Información",null,null,null,null,null,null,null,null,null,null,null,null,null,null,null,null,null,null,null,null,null,null,null,null,"MBOX ",null,null,null,null,null,null,null,null,null,null,null,null,null,null,null,null,null,null,null,null,null,null,null,"Resultados Electorales"]
[null,"GIT de Administración de Bienes",110,"OFICINA ASESORA DE PLANEACIÓN Y ESTUDIOS SECTORIALES","113.14","CERTIFICACIONES ","110.66.06","Planes de Atención a Victimas y Poblaciones Vulnerables",null,null,null,"GIT de Administración de Bienes","GIT de Administración de Bienes",null,null,null,null,null,null,null,null,null,null,null,null,null,null,null,null,null,null,null,null,null,null,null,null,"MNG ",null,null,null,null,null,null,null,null,null,null,null,null,null,null,null,null,null,null,null,null,null,null,null,"Salud y Protección Social"]
[null,"GIT de Notificaciones",110,"OFICINA ASESORA DE PLANEACIÓN Y ESTUDIOS SECTORIALES","113.39","ESTUDIOS ","110.66.08","Planes de Equidad de Genero",null,null,null,"GIT de Notificaciones","GIT de Notificaciones",null,null,null,null,null,null,null,null,null,null,null,null,null,null,null,null,null,null,null,null,null,null,null,null,"MP3 ",null,null,null,null,null,null,null,null,null,null,null,null,null,null,null,null,null,null,null,null,null,null,null,"Seguridad y Defensa"]
[null,"GIT de Contratación",111,"GRUPO INTERNO DE TRABAJO DE PLANEACIÓN Y SEGUIMIENTO PRESUPUESTAL","114.43","FORMULARIOS UNICOS DE REPORTE DE AVANCES DE LA GESTIÓN - FURAG",null,null,null,null,null,"GIT de Contratación","GIT de Contratación",null,null,null,null,null,null,null,null,null,null,null,null,null,null,null,null,null,null,null,null,null,null,null,null,"ODF",null,null,null,null,null,null,null,null,null,null,null,null,null,null,null,null,null,null,null,null,null,null,null,"Trabajo"]
[null,"GIT de Control Interno Disciplinario",111,"GRUPO INTERNO DE TRABAJO DE PLANEACIÓN Y SEGUIMIENTO PRESUPUESTAL","114.47","INFORMES","111.47.25","Informes de Seguimiento a  Ejecución Presupuestal",null,null,null,"GIT de Control Interno Disciplinario","GIT de Control Interno Disciplinario",null,null,null,null,null,null,null,null,null,null,null,null,null,null,null,null,null,null,null,null,null,null,null,null,"Office OpenXML ",null,null,null,null,null,null,null,null,null,null,null,null,null,null,null,null,null,null,null,null,null,null,null,"Transporte"]
[null,"GIT de Contabilidad",111,"GRUPO INTERNO DE TRABAJO DE PLANEACIÓN Y SEGUIMIENTO PRESUPUESTAL","114.65","PETICIONES, QUEJAS, RECLAMOS, SUGERENCIAS Y DENUNCIAS - PQRSD","111.79.04","Proyectos de Inversión Presupuestal",null,null,null,"GIT de Contabilidad","GIT de Contabilidad",null,null,null,null,null,null,null,null,null,null,null,null,null,null,null,null,null,null,null,null,null,null,null,null,"OOXML",null,null,null,null,null,null,null,null,null,null,null,null,null,null,null,null,null,null,null,null,null,null,null,"Vivienda, Ciudad y Territorio"]
[null,"GIT de Cartera",112,"GRUPO INTERNO DE TRABAJO DE SEGUIMIENTO A LA ESTRATEGIA","114.78","PROGRAMAS","112.47","Informes de Gestión",null,null,null,"GIT de Cartera","GIT de Cartera",null,null,null,null,null,null,null,null,null,null,null,null,null,null,null,null,null,null,null,null,null,null,null,null,"OpenDocument",null,null,null,null,null,null,null,null,null,null,null,null,null,null,null,null,null,null,null,null,null,null,null,"N/A"]
[null,"GIT de Presupuesto",112,"GRUPO INTERNO DE TRABAJO DE SEGUIMIENTO A LA ESTRATEGIA","120.01","ACTAS","112.66.04","Planes de Acción",null,null,null,"GIT de Presupuesto","GIT de Presupuesto",null,null,null,null,null,null,null,null,null,null,null,null,null,null,null,null,null,null,null,null,null,null,null,null,"Papel"]
[null,"GIT de Tesorería",112,"GRUPO INTERNO DE TRABAJO DE SEGUIMIENTO A LA ESTRATEGIA","120.04","ACUERDOS","112.66.05","Planes de Acción Institucionales",null,null,null,"GIT de Tesorería","GIT de Tesorería",null,null,null,null,null,null,null,null,null,null,null,null,null,null,null,null,null,null,null,null,null,null,null,null,"Papel/Otro"]
[null,"GIT de Gestión de Espectro Radioeléctrico",112,"GRUPO INTERNO DE TRABAJO DE SEGUIMIENTO A LA ESTRATEGIA","120.47","INFORMES","112.66.19","Planes Estratégicos Sectoriales ",null,null,null,"GIT de Gestión de Espectro Radioeléctrico","GIT de Gestión de Espectro Radioeléctrico",null,null,null,null,null,null,null,null,null,null,null,null,null,null,null,null,null,null,null,null,null,null,null,null,"PDF"]
[null,"GIT de Apoyo a la Gestión de Cobro Coactivo y Garantías",112,"GRUPO INTERNO DE TRABAJO DE SEGUIMIENTO A LA ESTRATEGIA","120.54","INVENTARIOS","112.79.02","Proyectos de Gestión Internos ",null,null,null,"GIT de Apoyo a la Gestión de Cobro Coactivo y Garantías","GIT de Apoyo a la Gestión de Cobro Coactivo y Garantías",null,null,null,null,null,null,null,null,null,null,null,null,null,null,null,null,null,null,null,null,null,null,null,null,"PNG "]
[null,"GIT de Estructuración e Investigación",113,"GRUPO INTERNO DE TRABAJO DE ESTADISTICAS Y ESTUDIOS SECTORIALES","120.66","PLANES","113.01.03","Actas de la Mesa Técnica de Estadisticas TIC",null,null,null,"GIT de Estructuración e Investigación","GIT de Estructuración e Investigación",null,null,null,null,null,null,null,null,null,null,null,null,null,null,null,null,null,null,null,null,null,null,null,null,"RDF-XML"]
[null,"GIT de Operaciones",113,"GRUPO INTERNO DE TRABAJO DE ESTADISTICAS Y ESTUDIOS SECTORIALES","120.72","PROCESOS DE INFORMACIÓN SECTORIAL","113.14.01","Certificaciones de Calidad Estadistica",null,null,null,"GIT de Operaciones","GIT de Operaciones",null,null,null,null,null,null,null,null,null,null,null,null,null,null,null,null,null,null,null,null,null,null,null,null,"SHP"]
[null,"GIT de Relaciones Institucionales",113,"GRUPO INTERNO DE TRABAJO DE ESTADISTICAS Y ESTUDIOS SECTORIALES","130.47","INFORMES","113.39.05","Estudios Sectoriales",null,null,null,"GIT de Relaciones Institucionales","GIT de Relaciones Institucionales",null,null,null,null,null,null,null,null,null,null,null,null,null,null,null,null,null,null,null,null,null,null,null,null,"SIARD "]
[null,"GIT de Oferta Regional",114,"GRUPO INTERNO DE TRABAJO DE TRANSFORMACIÓN ORGANIZACIONAL","130.66","PETICIONES, QUEJAS, RECLAMOS, SUGERENCIAS Y DENUNCIAS - PQRSD",null,null,null,null,null,"GIT de Oferta Regional","GIT de Oferta Regional",null,null,null,null,null,null,null,null,null,null,null,null,null,null,null,null,null,null,null,null,null,null,null,null,"SPARQL"]
[null,"GIT de Proyectos Regionales",114,"GRUPO INTERNO DE TRABAJO DE TRANSFORMACIÓN ORGANIZACIONAL","130.79","PROYECTOS","114.47.03","Informes de Administración de Riesgos",null,null,null,"GIT de Proyectos Regionales","GIT de Proyectos Regionales",null,null,null,null,null,null,null,null,null,null,null,null,null,null,null,null,null,null,null,null,null,null,null,null,"SQL"]
[null,"GIT de Fomento Regional",114,"GRUPO INTERNO DE TRABAJO DE TRANSFORMACIÓN ORGANIZACIONAL","131.21","CONCEPTOS","114.47.04","Informes de Arquitectura Institucional - Componente Procesos",null,null,null,"GIT de Fomento Regional","GIT de Fomento Regional",null,null,null,null,null,null,null,null,null,null,null,null,null,null,null,null,null,null,null,null,null,null,null,null,"SVG "]
[null,"GIT Especializado de Recursos y Actuaciones Administrativas",114,"GRUPO INTERNO DE TRABAJO DE TRANSFORMACIÓN ORGANIZACIONAL","131.47","INFORMES","114.47.13","Informes de Cultura Organizacional y Apropiación del Modelo Integrado de Gestión",null,null,null,"GIT Especializado de Recursos y Actuaciones Administrativas","GIT Especializado de Recursos y Actuaciones Administrativas",null,null,null,null,null,null,null,null,null,null,null,null,null,null,null,null,null,null,null,null,null,null,null,null,"Texto Plano "]
[null,"Grupo Técnico de Innovación Social y Comunidades",114,"GRUPO INTERNO DE TRABAJO DE TRANSFORMACIÓN ORGANIZACIONAL","132.47","INFORMES","114.47.27","Informes de Seguimiento a las Políticas de Gestión y Desempeño",null,null,null,"Grupo Técnico de Innovación Social y Comunidades","Grupo Técnico de Innovación Social y Comunidades",null,null,null,null,null,null,null,null,null,null,null,null,null,null,null,null,null,null,null,null,null,null,null,null,"TIFF"]
[null,"Grupo Interno de Política",114,"GRUPO INTERNO DE TRABAJO DE TRANSFORMACIÓN ORGANIZACIONAL","132.66","PETICIONES, QUEJAS, RECLAMOS, SUGERENCIAS Y DENUNCIAS - PQRSD","114.47.29","Informes de Seguimiento, Control y Mejora",null,null,null,"Grupo Interno de Política","Grupo Interno de Política",null,null,null,null,null,null,null,null,null,null,null,null,null,null,null,null,null,null,null,null,null,null,null,null,"TMX"]
[null,"Grupo Interno de Ciudades Inteligentes",114,"GRUPO INTERNO DE TRABAJO DE TRANSFORMACIÓN ORGANIZACIONAL","132.70","PROCESOS","114.47.30","Informes del Eje Articulador - Liderazgo, Gestión del Conocimiento e Innovación",null,null,null,"Grupo Interno de Ciudades Inteligentes","Grupo Interno de Ciudades Inteligentes",null,null,null,null,null,null,null,null,null,null,null,null,null,null,null,null,null,null,null,null,null,null,null,null,"WAVE"]
[null,"GIT de Seguridad y Privacidad de la Información",114,"GRUPO INTERNO DE TRABAJO DE TRANSFORMACIÓN ORGANIZACIONAL","133.01","ACTAS",null,null,null,null,null,"GIT de Seguridad y Privacidad de la Información","GIT de Seguridad y Privacidad de la Información",null,null,null,null,null,null,null,null,null,null,null,null,null,null,null,null,null,null,null,null,null,null,null,null,"WMS"]
[null,"GIT de Investigación, Desarrollo e Innovación (I+D+i)",114,"GRUPO INTERNO DE TRABAJO DE TRANSFORMACIÓN ORGANIZACIONAL","133.02","ACCIONES CONSTITUCIONALES","114.78.02","Programas de Ambiente y Cultura Organizacional",null,null,null,"GIT de Investigación, Desarrollo e Innovación (I+D+i)","GIT de Investigación, Desarrollo e Innovación (I+D+i)",null,null,null,null,null,null,null,null,null,null,null,null,null,null,null,null,null,null,null,null,null,null,null,null,"XLS"]
[null,"GIT de Emprendimiento Apps.CO",120,"OFICINA DE TECNOLOGIAS DE LA INFORMACIÓN","133.22","CONCILIACIONES","120.01.09","Actas del Comité de Control de Cambios",null,null,null,"GIT de Emprendimiento Apps.CO","GIT de Emprendimiento Apps.CO",null,null,null,null,null,null,null,null,null,null,null,null,null,null,null,null,null,null,null,null,null,null,null,null,"XLS -PDF"]
[null,"GIT de Industria de Tecnologías de la Información",120,"OFICINA DE TECNOLOGIAS DE LA INFORMACIÓN","133.47","INFORMES","120.01.11","Actas del Comité de Cooperación del Sistema Colombia TIC",null,null,null,"GIT de Industria de Tecnologías de la Información","GIT de Industria de Tecnologías de la Información",null,null,null,null,null,null,null,null,null,null,null,null,null,null,null,null,null,null,null,null,null,null,null,null,"XML"]
[null,"GIT de Industria Creativa Digital",120,"OFICINA DE TECNOLOGIAS DE LA INFORMACIÓN","133.70","PROCESOS","120.04.07","Acuerdos de Servicios Estratégicos con Entidades del Sector",null,null,null,"GIT de Industria Creativa Digital","GIT de Industria Creativa Digital",null,null,null,null,null,null,null,null,null,null,null,null,null,null,null,null,null,null,null,null,null,null,null,null,"XPDL "]
[null,"Grupo Interno de Estrategia Talento de Tecnologías de la Información",120,"OFICINA DE TECNOLOGIAS DE LA INFORMACIÓN","134.04","ACUERDOS ","120.47.15","Informes de Estadisticas Sectoriales",null,null,null,"Grupo Interno de Estrategia Talento de Tecnologías de la Información","Grupo Interno de Estrategia Talento de Tecnologías de la Información",null,null,null,null,null,null,null,null,null,null,null,null,null,null,null,null,null,null,null,null,null,null,null,null,"XPM "]
[null,"GIT de Comunicación Externa",120,"OFICINA DE TECNOLOGIAS DE LA INFORMACIÓN","134.30","CUOTAS PARTES PENSIONALES","120.47.16","Informes de Gestión",null,null,null,"GIT de Comunicación Externa","GIT de Comunicación Externa",null,null,null,null,null,null,null,null,null,null,null,null,null,null,null,null,null,null,null,null,null,null,null,null,"ZIP"]
[null,"GIT de Planeación y Seguimiento Presupuestal",120,"OFICINA DE TECNOLOGIAS DE LA INFORMACIÓN","134.47","INFORMES","120.54.01","Inventarios de Activos de Información",null,null,null,"GIT de Planeación y Seguimiento Presupuestal","GIT de Planeación y Seguimiento Presupuestal",null,null,null,null,null,null,null,null,null,null,null,null,null,null,null,null,null,null,null,null,null,null,null,null,"N/A"]
[null,"GIT de Seguimiento a la Estrategia",120,"OFICINA DE TECNOLOGIAS DE LA INFORMACIÓN","134.70","PROCESOS","120.66.20","Planes Institucionales",null,null,null,"GIT de Seguimiento a la Estrategia","GIT de Seguimiento a la Estrategia"]
[null,"GIT de Estadísticas y Estudios Sectoriales",120,"OFICINA DE TECNOLOGIAS DE LA INFORMACIÓN","140.05","ACUERDOS INTERNACIONALES ",null,null,null,null,null,"GIT de Estadísticas y Estudios Sectoriales","GIT de Estadísticas y Estudios Sectoriales"]
[null,"GIT de Transformación Organizacional",130,"OFICINA ASESORA JURIDICA","140.47","INFORMES","130.47.16","Informes de Gestión",null,null,null,"GIT de Transformación Organizacional","GIT de Transformación Organizacional"]
[null,"Oficina Asesora de Prensa",130,"OFICINA ASESORA JURIDICA","150.12","BOLETINES INFORMATIVOS","130.47.19","Informe de Participación en el Comité de Estabilidad Jurídica",null,null,null,"Oficina Asesora de Prensa","Oficina Asesora de Prensa"]
[null,"Oficina Asesora Jurídica",130,"OFICINA ASESORA JURIDICA","150.20","COMUNICADOS DE PRENSA","130.47.21","Informes de Patrimonios Autonomos de Remanentes Par Telecom",null,null,null,"Oficina Asesora Jurídica","Oficina Asesora Jurídica"]
[null,"Oficina de Control Interno",130,"OFICINA ASESORA JURIDICA","150.47","INFORMES",null,null,null,null,null,"Oficina de Control Interno","Oficina de Control Interno"]
[null,"Oficina de Tecnologías de la Información",130,"OFICINA ASESORA JURIDICA","150.65","PETICIONES, QUEJAS, RECLAMOS, SUGERENCIAS Y DENUNCIAS - PQRSD","130.79.10","Proyectos Normativos",null,null,null,"Oficina de Tecnologías de la Información","Oficina de Tecnologías de la Información"]
[null,"Oficina Internacional",131,"GRUPO INTERNO DE TRABAJO DE CONCEPTOS","151.47","INFORMES","131.21.04","Conceptos Juirdicos",null,null,null,"Oficina Internacional","Oficina Internacional"]
[null,"Oficina para la Gestión de Ingresos del Fondo",131,"GRUPO INTERNO DE TRABAJO DE CONCEPTOS","151.65","PETICIONES, QUEJAS, RECLAMOS, SUGERENCIAS Y DENUNCIAS - PQRSD","131.47.16","Informes de Gestión",null,null,null,"Oficina para la Gestión de Ingresos del Fondo","Oficina para la Gestión de Ingresos del Fondo"]
[null,"Oficina Asesora de Planeación y Estudios Sectoriales",132,"GRUPO INTERNO DE TRABAJO ACTUACIONES ADMINISTRATIVAS Y ASESORIA CONTRACTUAL","151.66","PLANES","132.47.16","Informes de Gestión",null,null,null,"Oficina Asesora de Planeación y Estudios Sectoriales","Oficina Asesora de Planeación y Estudios Sectoriales"]
[null,"Secretaria General",132,"GRUPO INTERNO DE TRABAJO ACTUACIONES ADMINISTRATIVAS Y ASESORIA CONTRACTUAL","160.01","ACTAS",null,null,null,null,null,"Secretaria General","Secretaria General"]
[null,"Sub. de Gobierno en Línea",132,"GRUPO INTERNO DE TRABAJO ACTUACIONES ADMINISTRATIVAS Y ASESORIA CONTRACTUAL","160.47","INFORMES","132.70.18","Procesos Sancionatorios en las Actuaciones Administrativas",null,null,null,"Sub. de Gobierno en Línea","Sub. de Gobierno en Línea"]
[null,"Sub. Administrativa y de Gestión Humana",133,"GRUPO INTERNO DE TRABAJO DE PROCESOS JUDICIALES Y EXTRAJUDICIALES","160.65","PETICIONES, QUEJAS, RECLAMOS, SUGERENCIAS Y DENUNCIAS - PQRSD","133.01.07","Actas del Comité de Conciliación y Defensa Judicial ",null,null,null,"Sub. Administrativa y de Gestión Humana","Sub. Administrativa y de Gestión Humana"]
[null,"Sub. de Asuntos Postales",133,"GRUPO INTERNO DE TRABAJO DE PROCESOS JUDICIALES Y EXTRAJUDICIALES","160.66","PLANES","133.01.25","Actas del Sucomité Sectorial de Defensa Juridica",null,null,null,"Sub. de Asuntos Postales","Sub. de Asuntos Postales"]
[null,"Sub. de Comercio Electrónico",133,"GRUPO INTERNO DE TRABAJO DE PROCESOS JUDICIALES Y EXTRAJUDICIALES","160.78","PROGRAMAS","133.02.01","Acciones de Cumplimiento",null,null,null,"Sub. de Comercio Electrónico","Sub. de Comercio Electrónico"]
[null,"Sub. de Digitalización Sectorial",133,"GRUPO INTERNO DE TRABAJO DE PROCESOS JUDICIALES Y EXTRAJUDICIALES","200.47","INFORMES","133.02.02","Acciones de Grupo",null,null,null,"Sub. de Digitalización Sectorial","Sub. de Digitalización Sectorial"]
[null,"Sub. de Radiodifusión Sonora",133,"GRUPO INTERNO DE TRABAJO DE PROCESOS JUDICIALES Y EXTRAJUDICIALES","200.65","PETICIONES, QUEJAS, RECLAMOS, SUGERENCIAS Y DENUNCIAS - PQRSD","133.02.03","Acciones de Inconstitucionalidad",null,null,null,"Sub. de Radiodifusión Sonora","Sub. de Radiodifusión Sonora"]
[null,"Sub. Estándares y Arq de TI",133,"GRUPO INTERNO DE TRABAJO DE PROCESOS JUDICIALES Y EXTRAJUDICIALES","201.47","INFORMES","133.02.04","Acciones de Tutela",null,null,null,"Sub. Estándares y Arq de TI","Sub. Estándares y Arq de TI"]
[null,"Sub. Financiera",133,"GRUPO INTERNO DE TRABAJO DE PROCESOS JUDICIALES Y EXTRAJUDICIALES","201.52","INSTRUMENTOS DE CONTROL PARA LAS ACTUACIONES ADMINISTRATIVAS","133.02.05","Acciones Populares",null,null,null,"Sub. Financiera","Sub. Financiera"]
[null,"Sub. para la Industrial de Comunicaciones",133,"GRUPO INTERNO DE TRABAJO DE PROCESOS JUDICIALES Y EXTRAJUDICIALES","201.65","PETICIONES, QUEJAS, RECLAMOS, SUGERENCIAS Y DENUNCIAS - PQRSD","133.22.06","Conciliaciones Extrajudiciales",null,null,null,"Sub. para la Industrial de Comunicaciones","Sub. para la Industrial de Comunicaciones"]
[null,"Sub. Procesos de Apropiación de TIC",133,"GRUPO INTERNO DE TRABAJO DE PROCESOS JUDICIALES Y EXTRAJUDICIALES","210.21","CONCEPTOS","133.47.01","Informes a Entes de Control y Vigilancia",null,null,null,"Sub. Procesos de Apropiación de TIC","Sub. Procesos de Apropiación de TIC"]
[null,"Sub. Vigilancia y Control de Comunicaciones",133,"GRUPO INTERNO DE TRABAJO DE PROCESOS JUDICIALES Y EXTRAJUDICIALES","210.47","INFORMES","133.47.16","Informes de Gestión",null,null,null,"Sub. Vigilancia y Control de Comunicaciones","Sub. Vigilancia y Control de Comunicaciones"]
[null,"Sub. Vigilancia y Control de Radiodifusión Sonora",133,"GRUPO INTERNO DE TRABAJO DE PROCESOS JUDICIALES Y EXTRAJUDICIALES","210.65","PETICIONES, QUEJAS, RECLAMOS, SUGERENCIAS Y DENUNCIAS - PQRSD","133.70.05","Procesos Judiciales de Amparo Policivo",null,null,null,"Sub. Vigilancia y Control de Radiodifusión Sonora","Sub. Vigilancia y Control de Radiodifusión Sonora"]
[null,"Sub. Vigilancia y Control de Serv. Postales",133,"GRUPO INTERNO DE TRABAJO DE PROCESOS JUDICIALES Y EXTRAJUDICIALES","210.74","PROCESOS DE SELECCIÓN OBJETIVA DEL ESPECTRO","133.70.06","Procesos Judiciales de Conflictos de Competencias",null,null,null,"Sub. Vigilancia y Control de Serv. Postales","Sub. Vigilancia y Control de Serv. Postales"]
[null,"Sub. Dirección de Cultura Digital",133,"GRUPO INTERNO DE TRABAJO DE PROCESOS JUDICIALES Y EXTRAJUDICIALES","210.79","PROYECTOS","133.70.07","Procesos Judiciales de Controversias Contractual",null,null,null,"Sub. Dirección de Cultura Digital","Sub. Dirección de Cultura Digital"]
[null,null,133,"GRUPO INTERNO DE TRABAJO DE PROCESOS JUDICIALES Y EXTRAJUDICIALES","211.01","ACTAS","133.70.08","Procesos Judiciales de Laudo Arbitral"]
[null,null,133,"GRUPO INTERNO DE TRABAJO DE PROCESOS JUDICIALES Y EXTRAJUDICIALES","211.65","PETICIONES, QUEJAS, RECLAMOS, SUGERENCIAS Y DENUNCIAS - PQRSD","133.70.09","Procesos Judiciales de Liquidación Voluntaria"]
[null,null,133,"GRUPO INTERNO DE TRABAJO DE PROCESOS JUDICIALES Y EXTRAJUDICIALES","211.79","PROYECTOS","133.70.10","Procesos Judiciales de Nulidad"]
[null,null,133,"GRUPO INTERNO DE TRABAJO DE PROCESOS JUDICIALES Y EXTRAJUDICIALES","211.84","REGISTROS DE GESTIÓN DE PLANES DE ACCIÓN, SEGUIMIENTO Y MEJORA","133.70.11","Procesos Judiciales de Nulidad por Insconstitucionalidad"]
[null,null,133,"GRUPO INTERNO DE TRABAJO DE PROCESOS JUDICIALES Y EXTRAJUDICIALES","211.85","REGISTROS DE LA GESTIÓN  DE TRÁMITES, REGISTROS, AUTORIZACIONES, LICENCIAS Y PERMISOS","133.70.12","Procesos Judiciales de Nulidad y Restablecimiento del Derecho"]
[null,null,133,"GRUPO INTERNO DE TRABAJO DE PROCESOS JUDICIALES Y EXTRAJUDICIALES","211.86","REGISTROS DE PARTICIPACIÓN EN COMISIONES TÉCNICAS O NORMATIVAS","133.70.13","Procesos Judiciales de Reparación Directa"]
[null,null,133,"GRUPO INTERNO DE TRABAJO DE PROCESOS JUDICIALES Y EXTRAJUDICIALES","211.90","REQUERIMENTOS DE AJUSTES DE BASES DE DATOS","133.70.14","Procesos Judiciales de Restitución de Tierras"]
[null,null,133,"GRUPO INTERNO DE TRABAJO DE PROCESOS JUDICIALES Y EXTRAJUDICIALES","211.95","SOLICITUDES DENEGADAS, RECHAZADAS O INADMITIDAS SIN EXPEDIENTE EXISTENTE","133.70.15","Procesos Judiciales Ejecutivos"]
[null,null,133,"GRUPO INTERNO DE TRABAJO DE PROCESOS JUDICIALES Y EXTRAJUDICIALES","211.1.47","INFORMES ","133.70.16","Procesos Judiciales Ordinario Laboral"]
[null,null,133,"GRUPO INTERNO DE TRABAJO DE PROCESOS JUDICIALES Y EXTRAJUDICIALES","211.1.65","PETICIONES, QUEJAS, RECLAMOS, SUGERENCIAS Y DENUNCIAS - PQRSD","133.70.17","Procesos Penales"]
[null,null,133,"GRUPO INTERNO DE TRABAJO DE PROCESOS JUDICIALES Y EXTRAJUDICIALES","211.1.71","PROCESO DE ASIGNACIÓN DIRECTA DEL ESPECTRO RADIOELECTRICO ","133-70.19","Procesos Verbales"]
[null,null,133,"GRUPO INTERNO DE TRABAJO DE PROCESOS JUDICIALES Y EXTRAJUDICIALES","211.1.75","PROCESOS DE SELECCIÓN OBJETIVA PARA ASIGNACIÓN DEL ESPECTRO RADIOELÉCTRICO","133.70.20","Procesos y Actuaciones Administrativas"]
[null,null,134,"GRUPO INTERNO DE TRABAJO DE COBRO COACTIVO","211.1.81","REGISTRO DE RADIOAFICIONADOS Y RADIOS ITINERANTES","134.04.01","Acuerdos de Liquidación Obligatoria"]
[null,null,134,"GRUPO INTERNO DE TRABAJO DE COBRO COACTIVO","211.1.82","REGISTROS DE ASOCIACIONES DE RADIOAFICIONADOS Y DE BANDA CIUDADANA","134.04.02","Acuerdos de Liquidación Voluntaria"]
[null,null,134,"GRUPO INTERNO DE TRABAJO DE COBRO COACTIVO","211.1.87","REGISTROS DE PROVEEDOR DE CAPACIDAD SATELITAL","134.04.04","Acuerdos de Reestructuración de Pasivos"]
[null,null,134,"GRUPO INTERNO DE TRABAJO DE COBRO COACTIVO","211.2.47","INFORMES","134.04.05","Acuerdos de Reestructuración Empresarial"]
[null,null,134,"GRUPO INTERNO DE TRABAJO DE COBRO COACTIVO","211.2.65","PETICIONES, QUEJAS, RECLAMOS, SUGERENCIAS Y DENUNCIAS - PQRSD","134.04.06","Acuerdos de Reorganización Empresarial"]
[null,null,134,"GRUPO INTERNO DE TRABAJO DE COBRO COACTIVO","211.2.79","PROYECTOS","134.04.08","Acuerdo Extrajudicial de Validación"]
[null,null,134,"GRUPO INTERNO DE TRABAJO DE COBRO COACTIVO","211.2.83","REGISTROS DE GESTIÓN DE GARANTÍAS Y COBRO COACTIVO","134.30.01","Cobro Coactivo"]
[null,null,134,"GRUPO INTERNO DE TRABAJO DE COBRO COACTIVO","212.01","ACTAS","134.47.01","Informes a Entes de Control y Vigilancia"]
[null,null,134,"GRUPO INTERNO DE TRABAJO DE COBRO COACTIVO","212.39","ESTUDIOS","134.47.02","Informes a Otros Organismos"]
[null,null,134,"GRUPO INTERNO DE TRABAJO DE COBRO COACTIVO","212.58","LICENCIAS DE CONCESIÓN DE SERVICIOS DE RADIODIFUSIÓN SONORA","134.47.16","Informes de Gestión"]
[null,null,134,"GRUPO INTERNO DE TRABAJO DE COBRO COACTIVO","212.65","PETICIONES, QUEJAS, RECLAMOS, SUGERENCIAS Y DENUNCIAS - PQRSD","134.70.04","Procesos Ejecutivos Abiertos de Cobro Coactivo"]
[null,null,140,"OFICINA INTERNACIONAL","212.66","PLANES","140.05.01","Acuerdos Internacionales de Cooperación"]
[null,null,140,"OFICINA INTERNACIONAL","212.67","POLITICA NACIONAL DE RADIODIFUSIÓN SONORA","140.47.02","Informes a Otros Organismos"]
[null,null,140,"OFICINA INTERNACIONAL","212.73","PROCESOS DE SELECCIÓN OBJETIVA ASIGNACIÓN DE LICENCIAS DE RADIODIFUSIÓN SONORA","140.47.10","Informes de Comisiones Internacionales"]
[null,null,140,"OFICINA INTERNACIONAL","212.79","PROYECTOS","140.47.16","Informes de Gestión"]
[null,null,150,"OFICINA ASESORA DE PRENSA ","213.21","CONCEPTOS","150.12.03"]
[null,null,150,"OFICINA ASESORA DE PRENSA ","213.25","CONVENIOS  DEL CODIGO POSTAL DE LA REPÚBLICA DE COLOMBIA"]
[null,null,150,"OFICINA ASESORA DE PRENSA ","213.47","INFORMES","150.47.16","Informes de Gestión "]
[null,null,150,"OFICINA ASESORA DE PRENSA ","213.48","INSCRIPCIÓN DE OPERADORES EN EL REGISTRO POSTAL","150.47.17","Informes de Gestión Audiovisuales"]
[null,null,150,"OFICINA ASESORA DE PRENSA ","213.53","INVENTARIOS DEL MUSEO DE TECNOLOGIAS DE LA INFORMACIÓN Y LAS COMUNICACIONES"]
[null,null,151,"GRUPO INTERNO DE TRABAJO DE COMUNICACIÓN EXTERNA","213.67","POLITICA DE SERVICIOS POSTALES","151.47.16","Informes de Gestión"]
[null,null,151,"GRUPO INTERNO DE TRABAJO DE COMUNICACIÓN EXTERNA","213.93","RESOLUCIONES DE HABILITACIÓN DE SERVICIOS POSTALES"]
[null,null,151,"GRUPO INTERNO DE TRABAJO DE COMUNICACIÓN EXTERNA","213.94","SOLICITUDES DE EMISIONES FILATELICAS","151.66.07","Planes de Divulgación"]
[null,null,160,"OFICINA DE CONTROL INTERNO","220.47","INFORMES","160.01.02","Actas del Comité de Coordinación del Sistema de Control Interno"]
[null,null,160,"OFICINA DE CONTROL INTERNO","220.65","PETICIONES, QUEJAS, RECLAMOS, SUGERENCIAS Y DENUNCIAS - PQRSD","160.47.01","Informes a Entidades de Control y Vigilancia"]
[null,null,160,"OFICINA DE CONTROL INTERNO","220.70","PROCESOS ","160.47.05","Informes de Auditorias de Calidad"]
[null,null,160,"OFICINA DE CONTROL INTERNO","220.78","PROGRAMAS","160.47.06","Informes de Auditorias de Gestión"]
[null,null,160,"OFICINA DE CONTROL INTERNO","221.03","ACTUACIONES DE VIGILANCIA Y CONTROL ","160.47.16","Informes de Gestión"]
[null,null,160,"OFICINA DE CONTROL INTERNO","221.47","INFORMES"]
[null,null,160,"OFICINA DE CONTROL INTERNO","221.65","PETICIONES, QUEJAS, RECLAMOS, SUGERENCIAS Y DENUNCIAS - PQRSD","160.66.11","Planes de Mejoramiento de Calidad y Gestión"]
[null,null,160,"OFICINA DE CONTROL INTERNO","221.70","PROCESOS","160.66.13","Planes de Mejoramiento para Contraloria"]
[null,null,160,"OFICINA DE CONTROL INTERNO","221.78","PROGRAMAS","160.78.01","Programas Anuales de Auditorias"]
[null,null,200,"DESPACHO DEL VICEMINISTRO DE CONECTIVIDAD Y DIGITALIZACIÓN","222.21","CONCEPTOS","200.47.16","Informes de Gestión"]
[null,null,200,"DESPACHO DEL VICEMINISTRO DE CONECTIVIDAD Y DIGITALIZACIÓN","222.47","INFORMES"]
[null,null,201,"GRUPO INTERNO DE TRABAJO ESPECIALIZADO DE RECURSOS Y ACTUACIONES ADMINISTRATIVAS","222.65","PETICIONES, QUEJAS, RECLAMOS, SUGERENCIAS Y DENUNCIAS - PQRSD","201.47.16","Informes de Gestión"]
[null,null,201,"GRUPO INTERNO DE TRABAJO ESPECIALIZADO DE RECURSOS Y ACTUACIONES ADMINISTRATIVAS","222.70","PROCESOS"]
[null,null,201,"GRUPO INTERNO DE TRABAJO ESPECIALIZADO DE RECURSOS Y ACTUACIONES ADMINISTRATIVAS","222.78","PROGRAMAS"]
[null,null,210,"DIRECCIÓN DE INDUSTRIA DE COMUNICACIONES","223.21","CONCEPTOS","210.21.06","Conceptos Técnicos sobre Servicios de Telecomunicaciones "]
[null,null,210,"DIRECCIÓN DE INDUSTRIA DE COMUNICACIONES","223.47","INFORMES","210.47.16","Informes de Gestión"]
[null,null,210,"DIRECCIÓN DE INDUSTRIA DE COMUNICACIONES","223.65","PETICIONES, QUEJAS, RECLAMOS, SUGERENCIAS Y DENUNCIAS - PQRSD"]
[null,null,210,"DIRECCIÓN DE INDUSTRIA DE COMUNICACIONES","223.70","PROCESOS"]
[null,null,210,"DIRECCIÓN DE INDUSTRIA DE COMUNICACIONES","223.78","PROGRAMAS","210.79.03","Proyectos de Inversión"]
[null,null,210,"DIRECCIÓN DE INDUSTRIA DE COMUNICACIONES","230.47","INFORMES","210.79.12","Proyectos por Obligaciones de Hacer"]
[null,null,211,"SUBDIRECCIÓN PARA LA INDUSTRIA DE COMUNICACIONES","230.66","PLANES","211.01.13","Actas del Comité de Obligaciones de Hacer"]
[null,null,211,"SUBDIRECCIÓN PARA LA INDUSTRIA DE COMUNICACIONES","231.47","INFORMES"]
[null,null,211,"SUBDIRECCIÓN PARA LA INDUSTRIA DE COMUNICACIONES","232.47","INFORMES","211.79.13","Proyectos Técnicos y Normativos"]
[null,null,211,"SUBDIRECCIÓN PARA LA INDUSTRIA DE COMUNICACIONES","233.42","EVIDENCIAS EN EL MARCO DE LA ARTICULACIÓN TERRITORIAL"]
[null,null,211,"SUBDIRECCIÓN PARA LA INDUSTRIA DE COMUNICACIONES","233.47","INFORMES"]
[null,null,211,"SUBDIRECCIÓN PARA LA INDUSTRIA DE COMUNICACIONES","233.65","PETICIONES, QUEJAS, RECLAMOS, SUGERENCIAS Y DENUNCIAS - PQRSD"]
[null,null,211,"SUBDIRECCIÓN PARA LA INDUSTRIA DE COMUNICACIONES","240.47","INFORMES"]
[null,null,211,"SUBDIRECCIÓN PARA LA INDUSTRIA DE COMUNICACIONES","241.47","INFORMES"]
[null,null,211.1,"GRUPO INTERNO DE TRABAJO DE GESTIÓN DE ESPECTRO RADIOÉLECTRICO","241.61","MATRICES DE OFERTA INSTITUCIONAL","211.1.47.18","Informes de Participación en Comisiones Técnicas o Normativas"]
[null,null,211.1,"GRUPO INTERNO DE TRABAJO DE GESTIÓN DE ESPECTRO RADIOÉLECTRICO","241.65","PETICIONES, QUEJAS, RECLAMOS, SUGERENCIAS Y DENUNCIAS - PQRSD"]
[null,null,211.1,"GRUPO INTERNO DE TRABAJO DE GESTIÓN DE ESPECTRO RADIOÉLECTRICO","242.47","INFORMES"]
[null,null,211.1,"GRUPO INTERNO DE TRABAJO DE GESTIÓN DE ESPECTRO RADIOÉLECTRICO","242.65","PETICIONES, QUEJAS, RECLAMOS, SUGERENCIAS Y DENUNCIAS - PQRSD"]
[null,null,211.1,"GRUPO INTERNO DE TRABAJO DE GESTIÓN DE ESPECTRO RADIOÉLECTRICO","243.47","INFORMES"]
[null,null,211.1,"GRUPO INTERNO DE TRABAJO DE GESTIÓN DE ESPECTRO RADIOÉLECTRICO","243.65","PETICIONES, QUEJAS, RECLAMOS, SUGERENCIAS Y DENUNCIAS - PQRSD"]
[null,null,211.1,"GRUPO INTERNO DE TRABAJO DE GESTIÓN DE ESPECTRO RADIOÉLECTRICO","300.47","INFORMES"]
[null,null,211.2,"GRUPO INTERNO DE TRABAJO DE APOYO A LA GESTIÓN DE COBRO COACTIVO Y GARANTIAS","300.65","PETICIONES, QUEJAS, RECLAMOS, SUGERENCIAS Y DENUNCIAS - PQRSD","211.2.47.16","Informes de Gestión"]
[null,null,211.2,"GRUPO INTERNO DE TRABAJO DE APOYO A LA GESTIÓN DE COBRO COACTIVO Y GARANTIAS","300.78","PROGRAMAS"]
[null,null,211.2,"GRUPO INTERNO DE TRABAJO DE APOYO A LA GESTIÓN DE COBRO COACTIVO Y GARANTIAS","300.79","PROYECTOS","211.2.79.11","Proyectos Normativos y de Reglamentos en Materia de Garantías"]
[null,null,211.2,"GRUPO INTERNO DE TRABAJO DE APOYO A LA GESTIÓN DE COBRO COACTIVO Y GARANTIAS","310.47","INFORMES"]
[null,null,212,"SUBDIRECCIÓN DE RADIO DIFUSIÓN SONORA","310.65","PETICIONES, QUEJAS, RECLAMOS, SUGERENCIAS Y DENUNCIAS - PQRSD","212.01.05","Actas del Comité Consultivo de Radio Comunitaria"]
[null,null,212,"SUBDIRECCIÓN DE RADIO DIFUSIÓN SONORA","310.1.33","DIAGNÓSTICOS DE POLITICA PÚBLICA DE TI EN POBLACIONES VULNERABLES","212.39.01","Estudios de Radiodifusión Sonora"]
[null,null,212,"SUBDIRECCIÓN DE RADIO DIFUSIÓN SONORA","310.1.47","INFORMES","212.58.01","Solicitudes Licencias de Cadenas Radiales"]
[null,null,212,"SUBDIRECCIÓN DE RADIO DIFUSIÓN SONORA","310.1.65","PETICIONES, QUEJAS, RECLAMOS, SUGERENCIAS Y DENUNCIAS - PQRSD","212.58.02","Solicitudes Licencias de Emisoras Comerciales"]
[null,null,212,"SUBDIRECCIÓN DE RADIO DIFUSIÓN SONORA","311.47","INFORMES","212.58.03","Solicitudes Licencias de Emisoras Comunitarias"]
[null,null,212,"SUBDIRECCIÓN DE RADIO DIFUSIÓN SONORA","311.65","PETICIONES, QUEJAS, RECLAMOS, SUGERENCIAS Y DENUNCIAS - PQRSD","212.58.04","Solicitudes Licencias de Emisoras de Interés Público"]
[null,null,212,"SUBDIRECCIÓN DE RADIO DIFUSIÓN SONORA","311.79","PROYECTOS","212.58.05","Solicitudes de Licencias de Transmoviles"]
[null,null,212,"SUBDIRECCIÓN DE RADIO DIFUSIÓN SONORA","312.47","INFORMES"]
[null,null,212,"SUBDIRECCIÓN DE RADIO DIFUSIÓN SONORA","312.65","PETICIONES, QUEJAS, RECLAMOS, SUGERENCIAS Y DENUNCIAS - PQRSD","212.66.22","Planes Técnicos Nacionales de Radiodifusión Sonora"]
[null,null,212,"SUBDIRECCIÓN DE RADIO DIFUSIÓN SONORA","320.47","INFORMES"]
[null,null,212,"SUBDIRECCIÓN DE RADIO DIFUSIÓN SONORA","320.65","PETICIONES, QUEJAS, RECLAMOS, SUGERENCIAS Y DENUNCIAS - PQRSD"]
[null,null,212,"SUBDIRECCIÓN DE RADIO DIFUSIÓN SONORA","320.66","PLANES","212.79.05","Proyectos de Inversión Radio Pública"]
[null,null,213,"SUBDIRECCIÓN DE ASUNTOS POSTALES","320.78","PROGRAMAS","213.21.03","Conceptos Emitidos"]
[null,null,213,"SUBDIRECCIÓN DE ASUNTOS POSTALES","320.1.38","ESTRATEGIAS DE SEGURIDAD Y PRIVACIDAD DE LA INFORMACIÓN"]
[null,null,213,"SUBDIRECCIÓN DE ASUNTOS POSTALES","320.1.69","POLITICAS","213.47.16","Informes de Gestión"]
[null,null,213,"SUBDIRECCIÓN DE ASUNTOS POSTALES","320.2.47","INFORMES"]
[null,null,213,"SUBDIRECCIÓN DE ASUNTOS POSTALES","320.2.65","PETICIONES, QUEJAS, RECLAMOS, SUGERENCIAS Y DENUNCIAS - PQRSD"]
[null,null,213,"SUBDIRECCIÓN DE ASUNTOS POSTALES","320.2.66","PLANES"]
[null,null,213,"SUBDIRECCIÓN DE ASUNTOS POSTALES","320.2.78","PROGRAMAS","213.93.01","Incoporación en el Registro Postal"]
[null,null,213,"SUBDIRECCIÓN DE ASUNTOS POSTALES","320.3.39","ESTUDIOS","213.93.02","Resoluciones de Habilitación de Servicios Postales de Pago"]
[null,null,213,"SUBDIRECCIÓN DE ASUNTOS POSTALES","320.3.47","INFORMES","213.93.03","Resoluciones de Habilitación de Servicios Postales para Mensajeria Expresa"]
[null,null,213,"SUBDIRECCIÓN DE ASUNTOS POSTALES","320.3.65","PETICIONES, QUEJAS, RECLAMOS, SUGERENCIAS Y DENUNCIAS - PQRSD"]
[null,null,220,"DIRECCIÓN DE VIGILANCIA Y CONTROL","320.3.69","POLITICAS ","220.47.16","Informes de Gestión"]
[null,null,220,"DIRECCIÓN DE VIGILANCIA Y CONTROL","321.47","INFORMES","220.47.23","Informes de Presunto Incumplimiento"]
[null,null,220,"DIRECCIÓN DE VIGILANCIA Y CONTROL","321.65","PETICIONES, QUEJAS, RECLAMOS, SUGERENCIAS Y DENUNCIAS - PQRSD"]
[null,null,220,"DIRECCIÓN DE VIGILANCIA Y CONTROL","321.66","PLANES","220.70.01","Procesos Administrativos contra los Proveedores"]
[null,null,220,"DIRECCIÓN DE VIGILANCIA Y CONTROL","321.69","POLITICAS","220.78.11","Programas de Vigilancia y Control Preventivos"]
[null,null,221,"SUBDIRECCIÓN DE VIGILANCIA Y CONTROL DE COMUNICACIONES","321.70","PROCESOS"]
[null,null,221,"SUBDIRECCIÓN DE VIGILANCIA Y CONTROL DE COMUNICACIONES","321.79","PROYECTOS","221.47.16","Informes de Gestión"]
[null,null,221,"SUBDIRECCIÓN DE VIGILANCIA Y CONTROL DE COMUNICACIONES","322.06","ALIANZAS PUBLICO PRIVADAS NACIONALES E INTERNACIONALES"]
[null,null,221,"SUBDIRECCIÓN DE VIGILANCIA Y CONTROL DE COMUNICACIONES","322.47","INFORMES","221.70.02","Procesos Administrativos Sancionatorios"]
[null,null,221,"SUBDIRECCIÓN DE VIGILANCIA Y CONTROL DE COMUNICACIONES","322.55","INVESTIGACIONES EN MATERIA DE TECNOLÓGIAS DE LA INFORMACIÓN","221.78.15","Programas Preventivos de Servicios de Telecomunicaciones"]
[null,null,222,"SUBDIRECCIÓN DE VIGILANCIA Y CONTROL DE RADIODIFUSIÓN SONORA","322.65","PETICIONES, QUEJAS, RECLAMOS, SUGERENCIAS Y DENUNCIAS - PQRSD","222.21.01","Conceptos de no Procedibilidad"]
[null,null,222,"SUBDIRECCIÓN DE VIGILANCIA Y CONTROL DE RADIODIFUSIÓN SONORA","322.69","POLITICAS","222.47.16","Informes de Gestión"]
[null,null,222,"SUBDIRECCIÓN DE VIGILANCIA Y CONTROL DE RADIODIFUSIÓN SONORA","330.01","ACTAS"]
[null,null,222,"SUBDIRECCIÓN DE VIGILANCIA Y CONTROL DE RADIODIFUSIÓN SONORA","339.39","ESTUDIOS","222.70.02","Procesos Admnistrativos Sancionatorios"]
[null,null,222,"SUBDIRECCIÓN DE VIGILANCIA Y CONTROL DE RADIODIFUSIÓN SONORA","330.47","INFORMES","222.78.14","Programas Preventivos de Servicios de Radiodifusión Sonora"]
[null,null,223,"SUBDIRECCIÓN DE VIGILANCIA Y CONTROL DE SERVICIOS POSTALES","330.65","PETICIONES, QUEJAS, RECLAMOS, SUGERENCIAS Y DENUNCIAS - PQRSD","223.21.01","Conceptos de no Procedibilidad"]
[null,null,223,"SUBDIRECCIÓN DE VIGILANCIA Y CONTROL DE SERVICIOS POSTALES","330.1.47","INFORMES","223.47.16","Informes de Gestión"]
[null,null,223,"SUBDIRECCIÓN DE VIGILANCIA Y CONTROL DE SERVICIOS POSTALES","330.1.65","PETICIONES, QUEJAS, RECLAMOS, SUGERENCIAS Y DENUNCIAS - PQRSD"]
[null,null,223,"SUBDIRECCIÓN DE VIGILANCIA Y CONTROL DE SERVICIOS POSTALES","331.47","INFORMES ","223.70.02","Procesos Administrativos Sancionatorios"]
[null,null,223,"SUBDIRECCIÓN DE VIGILANCIA Y CONTROL DE SERVICIOS POSTALES","331.65","PETICIONES, QUEJAS, RECLAMOS, SUGERENCIAS Y DENUNCIAS - PQRSD","223.78.16","Programas Preventivos de Servicios Postales"]
[null,null,230,"DIRECCIÓN DE INFRAESTUCTURA","332.47","INFORMES","230.47.01","Informes a Entes de Control y Vigilancia"]
[null,null,230,"DIRECCIÓN DE INFRAESTUCTURA","332.65","PETICIONES, QUEJAS, RECLAMOS, SUGERENCIAS Y DENUNCIAS - PQRSD","230.47.02","Informes a Otros Organismos"]
[null,null,230,"DIRECCIÓN DE INFRAESTUCTURA","340.39","ESTUDIOS","230.47.16","Informes de Gestión"]
[null,null,230,"DIRECCIÓN DE INFRAESTUCTURA","340.47","INFORMES","230.47.28","Informes de Seguimiento de Calidad"]
[null,null,230,"DIRECCIÓN DE INFRAESTUCTURA","340.65","PETICIONES, QUEJAS, RECLAMOS, SUGERENCIAS Y DENUNCIAS - PQRSD","230.66.10","Planes de Mejoramiento"]
[null,null,231,"GRUPO INTERNO DE TRABAJO DE ESTRUCTURACIÓN E INVESTIGACIÓN","341.47","INFORMES","231.47.16","Informes de Gestión"]
[null,null,232,"GRUPO INTERNO DE TRABAJO DE OPERACIONES","341.65","PETICIONES, QUEJAS, RECLAMOS, SUGERENCIAS Y DENUNCIAS - PQRSD","232.47.16","Informes de Gestión"]
[null,null,233,"GRUPO INTERNO DE TRABAJO DE RELACIONES INSTITUCIONALES","342.47","INFORMES"]
[null,null,233,"GRUPO INTERNO DE TRABAJO DE RELACIONES INSTITUCIONALES","342.65","PETICIONES, QUEJAS, RECLAMOS, SUGERENCIAS Y DENUNCIAS - PQRSD","233.47.01","Informes a Entes de Control y Vigilancia"]
[null,null,233,"GRUPO INTERNO DE TRABAJO DE RELACIONES INSTITUCIONALES","343.47","INFORMES"]
[null,null,240,"DIRECCIÓN DE PROMOCIÓN DE TECNOLOGÍAS DE LA INFORMACIÓN Y LAS COMUNICACIONES","343.65","PETICIONES, QUEJAS, RECLAMOS, SUGERENCIAS Y DENUNCIAS - PQRSD","240.47.01","Informes a Entes de Control y Vigilancia"]
[null,null,240,"DIRECCIÓN DE PROMOCIÓN DE TECNOLOGÍAS DE LA INFORMACIÓN Y LAS COMUNICACIONES","344.47","INFORMES ","240.47.16","Informes de Gestión"]
[null,null,241,"GRUPO INTERNO DE TRABAJO DE OFERTA REGIONAL","344.65","PETICIONES, QUEJAS, RECLAMOS, SUGERENCIAS Y DENUNCIAS - PQRSD","241.47.16","Informes de Gestión"]
[null,null,241,"GRUPO INTERNO DE TRABAJO DE OFERTA REGIONAL","400.01","ACTAS"]
[null,null,241,"GRUPO INTERNO DE TRABAJO DE OFERTA REGIONAL","400.16","CIRCULARES "]
[null,null,242,"GRUPO INTERNO DE TRABAJO DE PROYECTOS REGIONALES","400.32","DECRETOS ","242.47.16","Informes de Gestión"]
[null,null,242,"GRUPO INTERNO DE TRABAJO DE PROYECTOS REGIONALES","400.60","MANUALES"]
[null,null,243,"GRUPO INTERNO DE TRABAJO DE FOMENTO REGIONAL","400.65","PETICIONES, QUEJAS, RECLAMOS, SUGERENCIAS Y DENUNCIAS - PQRSD","243.47.16","Informes de Gestión"]
[null,null,243,"GRUPO INTERNO DE TRABAJO DE FOMENTO REGIONAL","400.92","RESOLUCIONES"]
[null,null,300,"DESPACHO DEL VICEMINISTRO DE ECONOMIA DIGITAL","401.01","ACTAS","300.47.16","Informes de Gestión"]
[null,null,300,"DESPACHO DEL VICEMINISTRO DE ECONOMIA DIGITAL","401.24","CONTRATOS"]
[null,null,300,"DESPACHO DEL VICEMINISTRO DE ECONOMIA DIGITAL","401.26","CONVENIOS","300.78.04","Programas de Ciudades Inteligentes"]
[null,null,300,"DESPACHO DEL VICEMINISTRO DE ECONOMIA DIGITAL","401.47","INFORMES","300.78.05","Programas de Emprendimiento Digital"]
[null,null,300,"DESPACHO DEL VICEMINISTRO DE ECONOMIA DIGITAL","401.65","PETICIONES, QUEJAS, RECLAMOS, SUGERENCIAS Y DENUNCIAS - PQRSD","300.79.03","Proyectos de Inversión"]
[null,null,310,"DIRECCIÓN DE APROPIACIÓN DE TECNOLOGÍAS DE LA INFORMACIÓN Y LAS COMUNICACIONES","402.47","INFORMES","310.47.16","Informes de Gestión"]
[null,null,310,"DIRECCIÓN DE APROPIACIÓN DE TECNOLOGÍAS DE LA INFORMACIÓN Y LAS COMUNICACIONES","402.65","PETICIONES, QUEJAS, RECLAMOS, SUGERENCIAS Y DENUNCIAS - PQRSD"]
[null,null,"310.1","GRUPO INTERNO DE TRABAJO TÉCNICO DE INNOVACIÓN SOCIAL Y APROPIACIÓN EN COMUNIDADES","402.76","PROCESOS DISCIPLINARIOS"]
[null,null,"310.1","GRUPO INTERNO DE TRABAJO TÉCNICO DE INNOVACIÓN SOCIAL Y APROPIACIÓN EN COMUNIDADES","402.77","PROCESOS ORDINARIOS","310.1.47.16","Informes de Gestión"]
[null,null,"310.1","GRUPO INTERNO DE TRABAJO TÉCNICO DE INNOVACIÓN SOCIAL Y APROPIACIÓN EN COMUNIDADES","410.01","ACTAS"]
[null,null,311,"SUBDIRECCIÓN DE PROCESOS DE APROPIACIÓN DE TECNOLOGÍAS DE LA INFORMACIÓN Y LAS COMUNICACIONES","410.07","ANTEPROYECTO DE INGRESOS DEL FONDO","311.47.09","Informes de Comisión"]
[null,null,311,"SUBDIRECCIÓN DE PROCESOS DE APROPIACIÓN DE TECNOLOGÍAS DE LA INFORMACIÓN Y LAS COMUNICACIONES","410.47","INFORMES"]
[null,null,311,"SUBDIRECCIÓN DE PROCESOS DE APROPIACIÓN DE TECNOLOGÍAS DE LA INFORMACIÓN Y LAS COMUNICACIONES","410.65","PETICIONES, QUEJAS, RECLAMOS, SUGERENCIAS Y DENUNCIAS - PQRSD","311.79.03","Proyectos de Inversión"]
[null,null,312,"SUBDIRECCIÓN DE CULTURA DIGITAL","410.66","PLANES","312.47,16","Informes de Gestión"]
[null,null,312,"SUBDIRECCIÓN DE CULTURA DIGITAL","410.92","RESOLUCIONES"]
[null,null,320,"DIRECCIÓN DE GOBIERNO DIGITAL","411.01","ACTAS","320.47.16","Informes de Gestión"]
[null,null,320,"DIRECCIÓN DE GOBIERNO DIGITAL","411.47","INFORMES"]
[null,null,320,"DIRECCIÓN DE GOBIERNO DIGITAL","412.01","ACTAS","320.66.04","Planes de Acción"]
[null,null,320,"DIRECCIÓN DE GOBIERNO DIGITAL","412.47","INFORMES","320.78.10","Programas de Tecnologias de la Información en las Entidades del Estado"]
[null,null,"320.1","GRUPO INTERNO DE TRABAJO DE SEGURIDAD Y PRIVACIDAD DE LA INFORMACIÓN","420.47","INFORMES"]
[null,null,"320.1","GRUPO INTERNO DE TRABAJO DE SEGURIDAD Y PRIVACIDAD DE LA INFORMACIÓN","420.65","PETICIONES, QUEJAS, RECLAMOS, SUGERENCIAS Y DENUNCIAS - PQRSD","320.1.69.04","Políticas de Protección de la Información Pública"]
[null,null,"320.2","GRUPO INTERNO DE TRABAJO DE CIUDADES INTELIGENTES","421.04","ACUERDOS ","320.2.47","Informes de Gestión"]
[null,null,"320.2","GRUPO INTERNO DE TRABAJO DE CIUDADES INTELIGENTES","421.12","BOLETINES"]
[null,null,"320.2","GRUPO INTERNO DE TRABAJO DE CIUDADES INTELIGENTES","421.15","CERTIFICADOS ","320.2.66.14","Planes de Monitoreo y Evaluación de Ciudades Inteligentes"]
[null,null,"320.2","GRUPO INTERNO DE TRABAJO DE CIUDADES INTELIGENTES","421.22","CONCILIACIONES","320.2.78.04","Programas de Ciudades Inteligentes"]
[null,null,"320.3","GRUPO INTERNO DE TRABAJO DE POLITICA","421.27","CUENTAS BANCARIAS","320.3.39.02","Estudios en Materia de Gobierno Digital"]
[null,null,"320.3","GRUPO INTERNO DE TRABAJO DE POLITICA","421.31","DECLARACIONES TRIBUTARIAS ","320.3.47.16","Informes de Gestión"]
[null,null,"320.3","GRUPO INTERNO DE TRABAJO DE POLITICA","421.34","EMBARGOS"]
[null,null,"320.3","GRUPO INTERNO DE TRABAJO DE POLITICA","421.40","EVALUACIÓN Y SEGUIMIENTO DE CONVENIOS BANCARIOS","320.3.69.03","Politicas de Gobierno Digital"]
[null,null,321,"SUBDIRECCIÓN DE GOBIERNO EN LINEA","421.47","INFORMES","321.47.02","Informes a Otros Organismos"]
[null,null,321,"SUBDIRECCIÓN DE GOBIERNO EN LINEA","421.56","LEGALIZACIONES","321.47.16","Informes de Gestión"]
[null,null,321,"SUBDIRECCIÓN DE GOBIERNO EN LINEA","421.57","LIBROS AUXILIARES"]
[null,null,321,"SUBDIRECCIÓN DE GOBIERNO EN LINEA","421.62","NÓMINA","321.66.18","Planes Estrategicos de Gobierno Electronico del Estado"]
[null,null,321,"SUBDIRECCIÓN DE GOBIERNO EN LINEA","421.64","ORDENES DE PAGO","321.69.05","Politicas de Trámites y Servicios de la Informaciòn Estatal"]
[null,null,321,"SUBDIRECCIÓN DE GOBIERNO EN LINEA","421.65","PETICIONES, QUEJAS, RECLAMOS, SUGERENCIAS Y DENUNCIAS - PQRSD","321.70.03","Procesos de Infraestructura Tecnologica"]
[null,null,321,"SUBDIRECCIÓN DE GOBIERNO EN LINEA","421.66","PLANES","321.79.09","Proyectos de Tramites, Servicios, Datos, Transparencia y Participación"]
[null,null,322,"SUBDIRECCIÓN DE ESTANDARES Y ARQUITECTURA DE TECNOLOGÍA DE LA INFORMACIÓN","421.80","RECAUDOS"]
[null,null,322,"SUBDIRECCIÓN DE ESTANDARES Y ARQUITECTURA DE TECNOLOGÍA DE LA INFORMACIÓN","421.89","REINTEGROS DIRECCIÓN DEL TESORO NACIONAL MINISTERIO","322.47.16","Informes de Gestión"]
[null,null,322,"SUBDIRECCIÓN DE ESTANDARES Y ARQUITECTURA DE TECNOLOGÍA DE LA INFORMACIÓN","422.01","ACTAS"]
[null,null,322,"SUBDIRECCIÓN DE ESTANDARES Y ARQUITECTURA DE TECNOLOGÍA DE LA INFORMACIÓN","422.18","COMPROBANTES CONTABLES"]
[null,null,322,"SUBDIRECCIÓN DE ESTANDARES Y ARQUITECTURA DE TECNOLOGÍA DE LA INFORMACIÓN","422.22","CONCILIACIONES ","322.69.01","Evaluaciónes de Politicas Gestión de Tecnologías de la Información y Seguridad de la Información"]
[null,null,322,"SUBDIRECCIÓN DE ESTANDARES Y ARQUITECTURA DE TECNOLOGÍA DE LA INFORMACIÓN","422.36","ESTADOS FINANCIEROS","322.69.02","Políticas Públicas de Gestión de Tecnologías de la Información y Seguridad de la Información"]
[null,null,330,"DIRECCIÓN DE TRANSFORMACIÓN DIGITAL","422.47","INFORMES","330.01.02","Actas de la Comisión Intersectorial para el Desarrollo de la Economia Digital"]
[null,null,330,"DIRECCIÓN DE TRANSFORMACIÓN DIGITAL","422.65","PETICIONES, QUEJAS, RECLAMOS, SUGERENCIAS Y DENUNCIAS - PQRSD","330.39.04","Estudios en Transformación Digital"]
[null,null,330,"DIRECCIÓN DE TRANSFORMACIÓN DIGITAL","423.11","BALANCES PRESUPUESTALES","330.47.01","Informes a Entes de Control y Vigilancia"]
[null,null,330,"DIRECCIÓN DE TRANSFORMACIÓN DIGITAL","423.15","CERTIFICADOS","330.47.16","Informes de Gestión"]
[null,null,330,"DIRECCIÓN DE TRANSFORMACIÓN DIGITAL","423.47","INFORMES"]
[null,null,"330.1","GRUPO INTERNO DE TRABAJO DE INVESTIGACIÓN, DESARROLLO E INNOVACIÓN (I+D+i)","423.65","PETICIONES, QUEJAS, RECLAMOS, SUGERENCIAS Y DENUNCIAS - PQRSD","330.1.47.16","Informes de Gestión"]
[null,null,"330.1","GRUPO INTERNO DE TRABAJO DE INVESTIGACIÓN, DESARROLLO E INNOVACIÓN (I+D+i)","423.79","PROYECTOS"]
[null,null,331,"SUBDIRECCIÓN DE COMERCIO ELECTRÓNICO","423.88","REGISTROS PRESUPUESTALES","331.47.16","Informes de Gestión"]
[null,null,331,"SUBDIRECCIÓN DE COMERCIO ELECTRÓNICO","423.91","RESERVAS PRESUPUESTALES"]
[null,null,332,"SUBDIRECCIÓN DE DIGITALIZACIÓN SECTORIAL","424.14","CERTIFICACIONES","332.47.16","Informes de Gestión"]
[null,null,332,"SUBDIRECCIÓN DE DIGITALIZACIÓN SECTORIAL","424.17","COBROS"]
[null,null,340,"DIRECCIÓN DE DESARROLLO DE LA INDUSTRIA DE TECNOLOGIAS DE LA INFORMACIÓN","424.35","ESTADOS DE CUENTA","340.39.03","Estudios en Materia de Industria de Tecnología de la Información"]
[null,null,340,"DIRECCIÓN DE DESARROLLO DE LA INDUSTRIA DE TECNOLOGIAS DE LA INFORMACIÓN","424.47","INFORMES","340.47.01","Informes a Entes de Control y Vigilancia"]
[null,null,340,"DIRECCIÓN DE DESARROLLO DE LA INDUSTRIA DE TECNOLOGIAS DE LA INFORMACIÓN","424.59","LIQUIDACIÓN DE DERECHOS","340.47.16","Informes de Gestión"]
[null,null,340,"DIRECCIÓN DE DESARROLLO DE LA INDUSTRIA DE TECNOLOGIAS DE LA INFORMACIÓN","424.65","PETICIONES, QUEJAS, RECLAMOS, SUGERENCIAS Y DENUNCIAS - PQRSD"]
[null,null,341,"GRUPO INTERNO DE TRABAJO DE INDUSTRIA DE TECNOLOGIAS DE LA INFORMACIÓN","424.66","PLANES","341.47.16","Informes de Gestión"]
[null,null,341,"GRUPO INTERNO DE TRABAJO DE INDUSTRIA DE TECNOLOGIAS DE LA INFORMACIÓN","430.01","ACTAS"]
[null,null,342,"GRUPO INTERNO DE TRABAJO DE ESTRATEGIA TALENTO DE TECNOLOGIAS DE LA INFORMACIÓN","430.47","INFORMES","342.47.16","Informes de Gestión"]
[null,null,342,"GRUPO INTERNO DE TRABAJO DE ESTRATEGIA TALENTO DE TECNOLOGIAS DE LA INFORMACIÓN","430.65","PETICIONES, QUEJAS, RECLAMOS, SUGERENCIAS Y DENUNCIAS - PQRSD"]
[null,null,343,"GRUPO INTERNO DE TRABAJO DE EMPRENDIMIENTO APPS.CO","430.66","PLANES","343.47.16","Informes de Gestión"]
[null,null,343,"GRUPO INTERNO DE TRABAJO DE EMPRENDIMIENTO APPS.CO","431.01","ACTAS"]
[null,null,344,"GRUPO INTERNO DE TRABAJO DE INDUSTRIA CREATIVA DIGITAL","431.10","AUTORIZACIONES DE ENTRADA Y SALIDA DE ELEMENTOS","344.47.16","Informes de Gestión"]
[null,null,344,"GRUPO INTERNO DE TRABAJO DE INDUSTRIA CREATIVA DIGITAL","431.19","COMPROBANTES DE ALMACEN"]
[null,null,400,"SECRETARÍA GENERAL","431.44","HISTORIALES DE BIENES INMUEBLES","400.01.04","Actas de Reunión del Sindicato Nacional de Trabajadores del Ministero de Tecnologias de la Información y las Comunicaciones"]
[null,null,400,"SECRETARÍA GENERAL","431.47","INFORMES","400.01.16","Actas del Comité Directivo"]
[null,null,400,"SECRETARÍA GENERAL","431.51","INSTRUMENTOS DE CONTROL PARA ADMINISTRACIÓN DE BIENES","400.01.21","Actas del Consejo de la Medalla al Merito"]
[null,null,400,"SECRETARÍA GENERAL","431.54","INVENTARIOS "]
[null,null,400,"SECRETARÍA GENERAL","431.65","PETICIONES, QUEJAS, RECLAMOS, SUGERENCIAS Y DENUNCIAS - PQRSD"]
[null,null,400,"SECRETARÍA GENERAL","432.47","INFORMES","400.60.01","Manuales de Contratación"]
[null,null,400,"SECRETARÍA GENERAL","432.63","NOTIFICACIONES POR AVISO DE ACTOS ADMINISTRATIVOS","400.60.02","Manuales de Funciones y de Competencias Laborales"]
[null,null,400,"SECRETARÍA GENERAL","432.65","PETICIONES, QUEJAS, RECLAMOS, SUGERENCIAS Y DENUNCIAS - PQRSD"]
[null,null,400,"SECRETARÍA GENERAL","433.01","ACTAS","400.92.03","Resoluciones del Fondo de Tecnologias de la Información y las Comunicaciones"]
[null,null,400,"SECRETARÍA GENERAL","433.47","INFORMES","400.92.04","Resoluciones del Ministerio"]
[null,null,401,"GRUPO INTERNO DE TRABAJO DE CONTRATACIÓN","433.49","INSTRUMENTOS ARCHIVISTICOS","401.01.08","Actas del Comité de Contratación"]
[null,null,401,"GRUPO INTERNO DE TRABAJO DE CONTRATACIÓN","433.50","INSTRUMENTOS DE CONTROL","401.01.14","Actas del Comité de Seguimiento al Plan Anual de Adquisiciones"]
[null,null,401,"GRUPO INTERNO DE TRABAJO DE CONTRATACIÓN","433.65","PETICIONES, QUEJAS, RECLAMOS, SUGERENCIAS Y DENUNCIAS - PQRSD","401.24.01","Contratos de Arrendamiento del Fondo "]
[null,null,401,"GRUPO INTERNO DE TRABAJO DE CONTRATACIÓN","433.66","PLANES","401.24.02","Contratos de Arrendamiento del Ministerio"]
[null,null,401,"GRUPO INTERNO DE TRABAJO DE CONTRATACIÓN","433.78","PROGRAMAS","401.24.03","Contratos de Ciencia, Tecnología e Innovación del Fondo"]
[null,null,401,"GRUPO INTERNO DE TRABAJO DE CONTRATACIÓN","433.96","TRANSFERENCIAS DOCUMENTALES","401.24.04","Contratos de Ciencia, Tecnología e Innovación del Ministerio"]
[null,null,401,"GRUPO INTERNO DE TRABAJO DE CONTRATACIÓN","434.23","CONSECUTIVO DE COMUNICACIONES OFICIALES","401.24.05","Contratos de Comodato del Fondo"]
[null,null,401,"GRUPO INTERNO DE TRABAJO DE CONTRATACIÓN","434.47","INFORMES","401.24.06","Contratos de Comodato del Ministerio"]
[null,null,401,"GRUPO INTERNO DE TRABAJO DE CONTRATACIÓN","434.50","INSTRUMENTOS DE CONTROL","401.24.07","Contratos de Compraventa del Fondo"]
[null,null,401,"GRUPO INTERNO DE TRABAJO DE CONTRATACIÓN","434.65","PETICIONES, QUEJAS, RECLAMOS, SUGERENCIAS Y DENUNCIAS - PQRSD","401.24.08","Contratos de Compraventa del Ministerio"]
[null,null,401,"GRUPO INTERNO DE TRABAJO DE CONTRATACIÓN","434.78","PROGRAMAS","401.24.09","Contratos de Consultoria del Fondo"]
[null,null,401,"GRUPO INTERNO DE TRABAJO DE CONTRATACIÓN","435.09","AUTORIZACIONES DE COMISIONES AL EXTERIOR","401.24.10","Contratos de Consultoria del Ministerio"]
[null,null,401,"GRUPO INTERNO DE TRABAJO DE CONTRATACIÓN","435.45","HISTORIALES DE VEHÍCULOS","401.24.11","Contratos de Interventoría del Fondo"]
[null,null,401,"GRUPO INTERNO DE TRABAJO DE CONTRATACIÓN","435.50","INSTRUMENTOS DE CONTROL","401.24.12","Contratos de Interventoría del Ministerio"]
[null,null,401,"GRUPO INTERNO DE TRABAJO DE CONTRATACIÓN","435.65","PETICIONES, QUEJAS, RECLAMOS, SUGERENCIAS Y DENUNCIAS - PQRSD","401.24.13","Contratos de Obra del Fondo"]
[null,null,401,"GRUPO INTERNO DE TRABAJO DE CONTRATACIÓN","435.66","PLANES","401.24.14","Contratos de Obra del Ministerio           "]
[null,null,401,"GRUPO INTERNO DE TRABAJO DE CONTRATACIÓN","436.01","ACTAS","401.24.15","Contratos de Prestación de Servicios del Fondo        "]
[null,null,401,"GRUPO INTERNO DE TRABAJO DE CONTRATACIÓN","436.46","HISTORIAS LABORALES","401.24.16","Contratos de Prestación de Servicios del Ministerio     "]
[null,null,401,"GRUPO INTERNO DE TRABAJO DE CONTRATACIÓN","436.65","PETICIONES, QUEJAS, RECLAMOS, SUGERENCIAS Y DENUNCIAS - PQRSD","401.24.17","Contratos de Prestación de Servicios Profesionales o Apoyo a Gestión del Fondo"]
[null,null,401,"GRUPO INTERNO DE TRABAJO DE CONTRATACIÓN","436.66","PLANES","401.24.18","Contratos de Prestación de Servicios Profesionales o Apoyo a Gestión del Ministerio"]
[null,null,401,"GRUPO INTERNO DE TRABAJO DE CONTRATACIÓN","436.78","PROGRAMAS","401.24.19","Contratos de Suministros del Fondo          "]
[null,null,401,"GRUPO INTERNO DE TRABAJO DE CONTRATACIÓN","437.13","BONOS PENSIONALES","401.24.20","Contratos de Suministros del Ministerio"]
[null,null,401,"GRUPO INTERNO DE TRABAJO DE CONTRATACIÓN","437.14","CERTIFICACIONES","401.24.21","Contratos Interadministrativos del Fondo"]
[null,null,401,"GRUPO INTERNO DE TRABAJO DE CONTRATACIÓN","437.28","CUENTAS POR COBRAR","401.24.22","Contratos Interadministrativos del Ministerio"]
[null,null,401,"GRUPO INTERNO DE TRABAJO DE CONTRATACIÓN","437.29","CUENTAS POR PAGAR","401.26.01","Convenios de Asociación del Fondo"]
[null,null,401,"GRUPO INTERNO DE TRABAJO DE CONTRATACIÓN","437.47","INFORMES","401.26.02","Convenios de Asociación del Ministerio"]
[null,null,401,"GRUPO INTERNO DE TRABAJO DE CONTRATACIÓN","437.65","PETICIONES, QUEJAS, RECLAMOS, SUGERENCIAS Y DENUNCIAS - PQRSD","401.26.03","Convenios de Cooperación del Fondo"]
[null,null,401,"GRUPO INTERNO DE TRABAJO DE CONTRATACIÓN",null,null,"401.26.04","Convenios de Cooperación del Ministerio"]
[null,null,401,"GRUPO INTERNO DE TRABAJO DE CONTRATACIÓN",null,null,"401.26.05","Convenios Interadministrativos del Fondo"]
[null,null,401,"GRUPO INTERNO DE TRABAJO DE CONTRATACIÓN",null,null,"401.27.06","Convenios Interadministrativos del Ministerio"]
[null,null,401,"GRUPO INTERNO DE TRABAJO DE CONTRATACIÓN",null,null,"401.47.01","Informes a Entes de Control y Vigilancia"]
[null,null,401,"GRUPO INTERNO DE TRABAJO DE CONTRATACIÓN"]
[null,null,402,"GRUPO INTERNO DE TRABAJO DE CONTROL INTERNO DISCIPLINARIO",null,null,"402.47.16","Informes de Gestión"]
[null,null,402,"GRUPO INTERNO DE TRABAJO DE CONTROL INTERNO DISCIPLINARIO"]
[null,null,402,"GRUPO INTERNO DE TRABAJO DE CONTROL INTERNO DISCIPLINARIO",null,null,"402.76.01","Procesos Disciplinarios Verbales"]
[null,null,402,"GRUPO INTERNO DE TRABAJO DE CONTROL INTERNO DISCIPLINARIO",null,null,"402.77.01","Procesos Ordinarios de Autos Inhibitorios"]
[null,null,402,"GRUPO INTERNO DE TRABAJO DE CONTROL INTERNO DISCIPLINARIO",null,null,"402.77.02","Procesos Ordinarios de Indagación Preliminar"]
[null,null,402,"GRUPO INTERNO DE TRABAJO DE CONTROL INTERNO DISCIPLINARIO",null,null,"402.77.03","Procesos Ordinarios de Investigación Disciplinaria"]
[null,null,410,"OFICINA PARA LA GESTIÓN DE INGRESOS DEL FONDO",null,null,"410.01.10","Actas del Comité de Control y Seguimiento del Fondo de Tecnologías de la Información y las Comunicaciones "]
[null,null,410,"OFICINA PARA LA GESTIÓN DE INGRESOS DEL FONDO"]
[null,null,410,"OFICINA PARA LA GESTIÓN DE INGRESOS DEL FONDO",null,null,"410.47.01","Informes a Entes de Control y Vigilancia"]
[null,null,410,"OFICINA PARA LA GESTIÓN DE INGRESOS DEL FONDO",null,null,"410.47.12","Informes de Control y Seguimiento del Fondo"]
[null,null,410,"OFICINA PARA LA GESTIÓN DE INGRESOS DEL FONDO"]
[null,null,410,"OFICINA PARA LA GESTIÓN DE INGRESOS DEL FONDO",null,null,"410.66.10","Planes de Mejoramiento"]
[null,null,410,"OFICINA PARA LA GESTIÓN DE INGRESOS DEL FONDO",null,null,"410.92.01","Resoluciones de Subsidios a Internet"]
[null,null,410,"OFICINA PARA LA GESTIÓN DE INGRESOS DEL FONDO",null,null,"410.92.02","Resoluciones de Subsidios de Telefonia Pública Basica Conmunatada "]
[null,null,411,"GRUPO INTERNO DE TRABAJO DE SEGUIMIENTO A LA EJECUCIÓN CONTRACTUAL",null,null,"411.01.22","Actas del Subcomité de Asuntos Precontractuales"]
[null,null,411,"GRUPO INTERNO DE TRABAJO DE SEGUIMIENTO A LA EJECUCIÓN CONTRACTUAL",null,null,"411.01.23","Actas del  Subcomité de Seguimiento Correctivo y Preventivo"]
[null,null,411,"GRUPO INTERNO DE TRABAJO DE SEGUIMIENTO A LA EJECUCIÓN CONTRACTUAL",null,null,"411.47.16","Informes de Gestión"]
[null,null,412,"GRUPO INTERNO DE TRABAJO DE SEGUIMIENTO A LA GESTIÓN DE INGRESOS DEL FONDO TIC",null,null,"412.01.24","Actas del Subcomité de Seguimiento Ingresos del Fondo"]
[null,null,412,"GRUPO INTERNO DE TRABAJO DE SEGUIMIENTO A LA GESTIÓN DE INGRESOS DEL FONDO TIC",null,null,"412.47.26","Informes de Seguimiento a la Gestión de Ingresos del Fondo"]
[null,null,420,"SUBDIRECCIÓN FINANCIERA",null,null,"420.47.01","Informes a Entes de Control y Vigilancia."]
[null,null,420,"SUBDIRECCIÓN FINANCIERA",null,null,"420.47.16","Informes de Gestión"]
[null,null,420,"SUBDIRECCIÓN FINANCIERA",null,null,"420.47.20","Informes de Patrimonios Autonomos"]
[null,null,420,"SUBDIRECCIÓN FINANCIERA"]
[null,null,421,"GRUPO INTERNO DE TRABAJO DE TESORERIA",null,null,"421.04.03","Acuerdos de Pago"]
[null,null,421,"GRUPO INTERNO DE TRABAJO DE TESORERIA",null,null,"421.12.01","Boletines de Caja y Bancos Fondo"]
[null,null,421,"GRUPO INTERNO DE TRABAJO DE TESORERIA",null,null,"421.12.02","Boletines de Caja y Bancos Ministerio"]
[null,null,421,"GRUPO INTERNO DE TRABAJO DE TESORERIA",null,null,"421.15.03","Certificados de Ica Iva y Renta"]
[null,null,421,"GRUPO INTERNO DE TRABAJO DE TESORERIA",null,null,"421.22.02","Conciliaciones Bancarias Cuenta Única Nacional"]
[null,null,421,"GRUPO INTERNO DE TRABAJO DE TESORERIA",null,null,"421.22.03","Conciliaciones Bancarias Fondo "]
[null,null,421,"GRUPO INTERNO DE TRABAJO DE TESORERIA",null,null,"421.22.04","Conciliaciones Bancarias Ministerio"]
[null,null,421,"GRUPO INTERNO DE TRABAJO DE TESORERIA",null,null,"421.27.01","Cuentas Bancarias del Fondo"]
[null,null,421,"GRUPO INTERNO DE TRABAJO DE TESORERIA",null,null,"421.27.02","Cuentas Bancarias del Ministerio "]
[null,null,421,"GRUPO INTERNO DE TRABAJO DE TESORERIA",null,null,"421.31.01","Clasificación Tributaria Contratistas PN Fondo"]
[null,null,421,"GRUPO INTERNO DE TRABAJO DE TESORERIA",null,null,"421.31.02","Declaraciones Tributarias de Obra Pública Fondo"]
[null,null,421,"GRUPO INTERNO DE TRABAJO DE TESORERIA",null,null,"421.31.03","Declaraciones Tributarias de Obra Pública Ministerio"]
[null,null,421,"GRUPO INTERNO DE TRABAJO DE TESORERIA",null,null,"421.31.04","Declaraciones Tributarias de Retención en la Fuente Fondo"]
[null,null,421,"GRUPO INTERNO DE TRABAJO DE TESORERIA",null,null,"421.31.05","Declaraciones Tributarias de Retención en la Fuente Ministerio"]
[null,null,421,"GRUPO INTERNO DE TRABAJO DE TESORERIA",null,null,"421.31.06","Declaraciones Trbutarias Estampillas Fondo"]
[null,null,421,"GRUPO INTERNO DE TRABAJO DE TESORERIA",null,null,"421.31.07","Declaraciones Trbutarias Estampillas Ministerio"]
[null,null,421,"GRUPO INTERNO DE TRABAJO DE TESORERIA",null,null,"421.31.08","Declaraciones Tributarias ICA Fondo"]
[null,null,421,"GRUPO INTERNO DE TRABAJO DE TESORERIA",null,null,"421.31.09","Declaraciones Tributarias ICA Mnisterio"]
[null,null,421,"GRUPO INTERNO DE TRABAJO DE TESORERIA",null,null,"421.34.01","Embargos Fondo"]
[null,null,421,"GRUPO INTERNO DE TRABAJO DE TESORERIA",null,null,"421.34.02","Embargos Ministerio"]
[null,null,421,"GRUPO INTERNO DE TRABAJO DE TESORERIA"]
[null,null,421,"GRUPO INTERNO DE TRABAJO DE TESORERIA",null,null,"421.47.02","Informes a Otros Organismos"]
[null,null,421,"GRUPO INTERNO DE TRABAJO DE TESORERIA",null,null,"421.47.11","Informes de Constitución de Cuentas por Pagar"]
[null,null,421,"GRUPO INTERNO DE TRABAJO DE TESORERIA",null,null,"421.56.01","Legalizaciones de Caja Menor Fondo"]
[null,null,421,"GRUPO INTERNO DE TRABAJO DE TESORERIA",null,null,"421.56.02","Legalizaciones de Viaticos"]
[null,null,421,"GRUPO INTERNO DE TRABAJO DE TESORERIA",null,null,"421.57.01","Libros Auxiliares de Banco Ministerio"]
[null,null,421,"GRUPO INTERNO DE TRABAJO DE TESORERIA"]
[null,null,421,"GRUPO INTERNO DE TRABAJO DE TESORERIA",null,null,"421.64.01","Ordenes de Pago del Fondo"]
[null,null,421,"GRUPO INTERNO DE TRABAJO DE TESORERIA",null,null,"421.64.02","Ordenes de Pago del Ministerio"]
[null,null,421,"GRUPO INTERNO DE TRABAJO DE TESORERIA"]
[null,null,421,"GRUPO INTERNO DE TRABAJO DE TESORERIA",null,null,"421.66.02","Planes Anuales de Caja PAC"]
[null,null,421,"GRUPO INTERNO DE TRABAJO DE TESORERIA",null,null,"421.66.09","Planes de Inversión del Fondo - Portafolio"]
[null,null,421,"GRUPO INTERNO DE TRABAJO DE TESORERIA"]
[null,null,421,"GRUPO INTERNO DE TRABAJO DE TESORERIA"]
[null,null,422,"GRUPO INTERNO DE TRABAJO DE CONTABILIDAD",null,null,"422.01.20","Actas del Comité Técnico de Sostenibilidad del Sistema de Contabilidad"]
[null,null,422,"GRUPO INTERNO DE TRABAJO DE CONTABILIDAD",null,null,"422.18.01","Comprobantes Contables de Ajuste"]
[null,null,422,"GRUPO INTERNO DE TRABAJO DE CONTABILIDAD",null,null,"422.18.02","Comprobantes Contables de Egreso"]
[null,null,422,"GRUPO INTERNO DE TRABAJO DE CONTABILIDAD",null,null,"422.18.03","Comprobantes Contables de Ingreso"]
[null,null,422,"GRUPO INTERNO DE TRABAJO DE CONTABILIDAD",null,null,"422.22.01","Conciliaciones Bancarias"]
[null,null,422,"GRUPO INTERNO DE TRABAJO DE CONTABILIDAD",null,null,"422.22.05","Conciliaciones de Operaciones Reciprocas"]
[null,null,422,"GRUPO INTERNO DE TRABAJO DE CONTABILIDAD"]
[null,null,422,"GRUPO INTERNO DE TRABAJO DE CONTABILIDAD",null,null,"422.47.01","Informes a Entes de Control y Vigilancia"]
[null,null,422,"GRUPO INTERNO DE TRABAJO DE CONTABILIDAD",null,null,"422.47.02","Informes a Otros Organismos"]
[null,null,422,"GRUPO INTERNO DE TRABAJO DE CONTABILIDAD"]
[null,null,423,"GRUPO INTERNO DE TRABAJO DE PRESUPUESTO"]
[null,null,423,"GRUPO INTERNO DE TRABAJO DE PRESUPUESTO",null,null,"423.15.01","Certificados de Disponibilidad Presupuestal Fondo"]
[null,null,423,"GRUPO INTERNO DE TRABAJO DE PRESUPUESTO",null,null,"423.15.02","Certificados de Disponibilidad Presupuestal Ministerio"]
[null,null,423,"GRUPO INTERNO DE TRABAJO DE PRESUPUESTO",null,null,"423.47.01","Informes a Entes de Control y Vigilancia"]
[null,null,423,"GRUPO INTERNO DE TRABAJO DE PRESUPUESTO",null,null,"423.47.02","Informes a Otros Organismos"]
[null,null,423,"GRUPO INTERNO DE TRABAJO DE PRESUPUESTO",null,null,"423.47.14","Informes de Ejecución Presupuestal"]
[null,null,423,"GRUPO INTERNO DE TRABAJO DE PRESUPUESTO"]
[null,null,423,"GRUPO INTERNO DE TRABAJO DE PRESUPUESTO",null,null,"423.79.03","Proyectos de Inversión"]
[null,null,423,"GRUPO INTERNO DE TRABAJO DE PRESUPUESTO",null,null,"423.79.07","Proyectos de Presupuesto del Fondo"]
[null,null,423,"GRUPO INTERNO DE TRABAJO DE PRESUPUESTO",null,null,"423.79.08","Proyectos de Presupuesto del Ministerio"]
[null,null,423,"GRUPO INTERNO DE TRABAJO DE PRESUPUESTO",null,null,"423.88.01","Registros Presupuestales de Compromiso Fondo"]
[null,null,423,"GRUPO INTERNO DE TRABAJO DE PRESUPUESTO",null,null,"423.88.02","Registros Presupuestales de Compromiso Mnisterio"]
[null,null,423,"GRUPO INTERNO DE TRABAJO DE PRESUPUESTO",null,null,"423.91.01","Reservas Presupuestales y Cuentas por Pagar del Fondo"]
[null,null,423,"GRUPO INTERNO DE TRABAJO DE PRESUPUESTO",null,null,"423.91.02","Reservas Presupuestales y Cuentas por Pagar del Ministerio"]
[null,null,424,"GRUPO INTERNO DE TRABAJO DE CARTERA",null,null,"424.14.02","Certificaciones de Cumplimiento"]
[null,null,424,"GRUPO INTERNO DE TRABAJO DE CARTERA",null,null,"424.17.01","Cobros Coactivos"]
[null,null,424,"GRUPO INTERNO DE TRABAJO DE CARTERA",null,null,"424.17.02","Cobros Persuasivos"]
[null,null,424,"GRUPO INTERNO DE TRABAJO DE CARTERA"]
[null,null,424,"GRUPO INTERNO DE TRABAJO DE CARTERA",null,null,"424.47.24","Informes de Revisión de Autoliquidaciones"]
[null,null,424,"GRUPO INTERNO DE TRABAJO DE CARTERA"]
[null,null,424,"GRUPO INTERNO DE TRABAJO DE CARTERA"]
[null,null,424,"GRUPO INTERNO DE TRABAJO DE CARTERA",null,null,"424.66.12","Planes de Mejoramiento de los Recursos del Fondo"]
[null,null,430,"SUBDIRECCIÓN ADMINISTRATIVA Y DE GESTIÓN HUMANA",null,null,"430.01.15","Actas del Comité del Coordinador de Teletrabajo"]
[null,null,430,"SUBDIRECCIÓN ADMINISTRATIVA Y DE GESTIÓN HUMANA",null,null,"430.47.01","Informes a Entes de Control y Vigilancia"]
[null,null,430,"SUBDIRECCIÓN ADMINISTRATIVA Y DE GESTIÓN HUMANA",null,null,"430.47.02","Informes a Otros Organismos"]
[null,null,430,"SUBDIRECCIÓN ADMINISTRATIVA Y DE GESTIÓN HUMANA",null,null,"430.47.16","Informes de Gestión"]
[null,null,430,"SUBDIRECCIÓN ADMINISTRATIVA Y DE GESTIÓN HUMANA"]
[null,null,430,"SUBDIRECCIÓN ADMINISTRATIVA Y DE GESTIÓN HUMANA",null,null,"430.66.03","Planes Anuales de Compras"]
[null,null,431,"GRUPO INTERNO DE TRABAJO DE ADMINISTRACIÓN DE BIENES",null,null,"431.01.06","Actas del Comité de Administratción de Bienes"]
[null,null,431,"GRUPO INTERNO DE TRABAJO DE ADMINISTRACIÓN DE BIENES"]
[null,null,431,"GRUPO INTERNO DE TRABAJO DE ADMINISTRACIÓN DE BIENES",null,null,"431.19.01","Comprobantes de Egresos de Elementos de Consumo"]
[null,null,431,"GRUPO INTERNO DE TRABAJO DE ADMINISTRACIÓN DE BIENES",null,null,"431.19.02","Comprobantes de Egresos de Elementos Devolutivos"]
[null,null,431,"GRUPO INTERNO DE TRABAJO DE ADMINISTRACIÓN DE BIENES",null,null,"431.19.03","Comprobantes de Ingresos de Bienes"]
[null,null,431,"GRUPO INTERNO DE TRABAJO DE ADMINISTRACIÓN DE BIENES",null,null,"431.19.04","Comproantes de Ingresos de Elementos de Consumo"]
[null,null,431,"GRUPO INTERNO DE TRABAJO DE ADMINISTRACIÓN DE BIENES",null,null,"431.19.05","Comprobantes de Traslado y  Reintegro de Bienes entre Funcionarios"]
[null,null,431,"GRUPO INTERNO DE TRABAJO DE ADMINISTRACIÓN DE BIENES"]
[null,null,431,"GRUPO INTERNO DE TRABAJO DE ADMINISTRACIÓN DE BIENES",null,null,"431.47.01","Informes a Entes de Control y Vigilancia"]
[null,null,431,"GRUPO INTERNO DE TRABAJO DE ADMINISTRACIÓN DE BIENES",null,null,"431.47.16","Informes de Gestión"]
[null,null,431,"GRUPO INTERNO DE TRABAJO DE ADMINISTRACIÓN DE BIENES",null,null,"431.51.01","Actas de Baja de Bienes"]
[null,null,431,"GRUPO INTERNO DE TRABAJO DE ADMINISTRACIÓN DE BIENES",null,null,"431.51.02","Actas de Decomisos de Bienes"]
[null,null,431,"GRUPO INTERNO DE TRABAJO DE ADMINISTRACIÓN DE BIENES",null,null,"431.51.03","Formato de Traslado y Reintegro de Bienes"]
[null,null,431,"GRUPO INTERNO DE TRABAJO DE ADMINISTRACIÓN DE BIENES",null,null,"431.54.02","Inventarios de Almacen"]
[null,null,431,"GRUPO INTERNO DE TRABAJO DE ADMINISTRACIÓN DE BIENES",null,null,"431.54.03","Inventarios de Elementos Devolutivos"]
[null,null,431,"GRUPO INTERNO DE TRABAJO DE ADMINISTRACIÓN DE BIENES",null,null,"431.54.04","Inventarios y Conciliaciones de Activos Fijos"]
[null,null,431,"GRUPO INTERNO DE TRABAJO DE ADMINISTRACIÓN DE BIENES"]
[null,null,432,"GRUPO INTERNO DE TRABAJO DE NOTIFICACIONES",null,null,"432.47.01","Informes a Entes de Control y vigilancia"]
[null,null,432,"GRUPO INTERNO DE TRABAJO DE NOTIFICACIONES",null,null,"432.47.16","Informes de Gestión"]
[null,null,432,"GRUPO INTERNO DE TRABAJO DE NOTIFICACIONES"]
[null,null,432,"GRUPO INTERNO DE TRABAJO DE NOTIFICACIONES"]
[null,null,433,"GRUPO INTERNO DE TRABAJO DE GESTIÓN DE LA INFORMACIÓN",null,null,"433.01.01","Actas de Eliminación Documental"]
[null,null,433,"GRUPO INTERNO DE TRABAJO DE GESTIÓN DE LA INFORMACIÓN",null,null,"433.47.07","Informes de Autenticaciones"]
[null,null,433,"GRUPO INTERNO DE TRABAJO DE GESTIÓN DE LA INFORMACIÓN",null,null,"433.47.16","Informes de Gestión"]
[null,null,433,"GRUPO INTERNO DE TRABAJO DE GESTIÓN DE LA INFORMACIÓN",null,null,"433.49.01","Banco Terminologico"]
[null,null,433,"GRUPO INTERNO DE TRABAJO DE GESTIÓN DE LA INFORMACIÓN",null,null,"433.49.02","Cuadro de Clasificación Documental "]
[null,null,433,"GRUPO INTERNO DE TRABAJO DE GESTIÓN DE LA INFORMACIÓN",null,null,"433.49.03","Inventario Documental"]
[null,null,433,"GRUPO INTERNO DE TRABAJO DE GESTIÓN DE LA INFORMACIÓN",null,null,"433.49.04","Mapa de Procesos"]
[null,null,433,"GRUPO INTERNO DE TRABAJO DE GESTIÓN DE LA INFORMACIÓN",null,null,"433.39.05","Modelos de Requisitos para la Gestión de Documentos Electrónicos"]
[null,null,433,"GRUPO INTERNO DE TRABAJO DE GESTIÓN DE LA INFORMACIÓN",null,null,"433.49.06","Tablas de Retención Documental"]
[null,null,433,"GRUPO INTERNO DE TRABAJO DE GESTIÓN DE LA INFORMACIÓN",null,null,"433.49.07","Tablas de Valoración Documental"]
[null,null,433,"GRUPO INTERNO DE TRABAJO DE GESTIÓN DE LA INFORMACIÓN",null,null,"433.50.02","Instrumentos de Control de Salida de Expedientes"]
[null,null,433,"GRUPO INTERNO DE TRABAJO DE GESTIÓN DE LA INFORMACIÓN"]
[null,null,433,"GRUPO INTERNO DE TRABAJO DE GESTIÓN DE LA INFORMACIÓN",null,null,"433.66.21","Planes Institucionales de Archivos- PINAR"]
[null,null,433,"GRUPO INTERNO DE TRABAJO DE GESTIÓN DE LA INFORMACIÓN",null,null,"433.78.06","Programas de Gestión Documental"]
[null,null,433,"GRUPO INTERNO DE TRABAJO DE GESTIÓN DE LA INFORMACIÓN",null,null,"433.78.12","Programas del Sistema Integrado de Conservación Documental"]
[null,null,433,"GRUPO INTERNO DE TRABAJO DE GESTIÓN DE LA INFORMACIÓN",null,null,"433.96.01","Transferencias Documentales Primarias"]
[null,null,433,"GRUPO INTERNO DE TRABAJO DE GESTIÓN DE LA INFORMACIÓN",null,null,"433.96.02","Transferencias Documentales Secundarias"]
[null,null,434,"GRUPO INTERNO DE TRABAJO DE FORTALECIMIENTO DE LAS RELACIONES CON LOS GRUPOS DE INTERES"]
[null,null,434,"GRUPO INTERNO DE TRABAJO DE FORTALECIMIENTO DE LAS RELACIONES CON LOS GRUPOS DE INTERES",null,null,"434.47.22","Informes de PQRSD y Derechos de Petición"]
[null,null,434,"GRUPO INTERNO DE TRABAJO DE FORTALECIMIENTO DE LAS RELACIONES CON LOS GRUPOS DE INTERES",null,null,"434.50.01","Instrumentos de Control de Correspondencia"]
[null,null,434,"GRUPO INTERNO DE TRABAJO DE FORTALECIMIENTO DE LAS RELACIONES CON LOS GRUPOS DE INTERES"]
[null,null,434,"GRUPO INTERNO DE TRABAJO DE FORTALECIMIENTO DE LAS RELACIONES CON LOS GRUPOS DE INTERES",null,null,"434.78.08","Programas de Responsabilidad Social"]
[null,null,434,"GRUPO INTERNO DE TRABAJO DE FORTALECIMIENTO DE LAS RELACIONES CON LOS GRUPOS DE INTERES",null,null,"434.78.09","Programas de Servicio al Ciudadano"]
[null,null,434,"GRUPO INTERNO DE TRABAJO DE FORTALECIMIENTO DE LAS RELACIONES CON LOS GRUPOS DE INTERES",null,null,"434.78.13","Programas Institucionales de Gestión Ambiental"]
[null,null,435,"GRUPO INTERNO DE TRABAJO DE GESTIÓN DE SERVICIOS ADMINISTRATIVOS"]
[null,null,435,"GRUPO INTERNO DE TRABAJO DE GESTIÓN DE SERVICIOS ADMINISTRATIVOS"]
[null,null,435,"GRUPO INTERNO DE TRABAJO DE GESTIÓN DE SERVICIOS ADMINISTRATIVOS",null,null,"435.50.03","Instrumentos de Control de Vehiculos"]
[null,null,435,"GRUPO INTERNO DE TRABAJO DE GESTIÓN DE SERVICIOS ADMINISTRATIVOS"]
[null,null,435,"GRUPO INTERNO DE TRABAJO DE GESTIÓN DE SERVICIOS ADMINISTRATIVOS",null,null,"435.65.16","Planes de Seguridad Vial"]
[null,null,436,"GRUPO INTERNO DE TRABAJO DE GESTIÓN DE TALENTO HUMANO",null,null,"434.01.18","Actas del Comité Paritario de Seguridad y Salud en el Trabajo"]
[null,null,436,"GRUPO INTERNO DE TRABAJO DE GESTIÓN DE TALENTO HUMANO"]
[null,null,436,"GRUPO INTERNO DE TRABAJO DE GESTIÓN DE TALENTO HUMANO"]
[null,null,436,"GRUPO INTERNO DE TRABAJO DE GESTIÓN DE TALENTO HUMANO",null,null,"436.66.17","Planes de Seguridad y Salud en el Trabajo"]
[null,null,436,"GRUPO INTERNO DE TRABAJO DE GESTIÓN DE TALENTO HUMANO",null,null,"436.78.03","Programas de Capacitación, Bienestar, Incentivos, Seguridad y Salud en el Trabajo"]
[null,null,436,"GRUPO INTERNO DE TRABAJO DE GESTIÓN DE TALENTO HUMANO",null,null,"436.78.07","Programas de Incentivos"]
[null,null,437,"GRUPO INTERNO DE TRABAJO DE GESTION PENSIONAL"]
[null,null,437,"GRUPO INTERNO DE TRABAJO DE GESTION PENSIONAL",null,null,"437.14.03","Certificaciones para Bono Pensional y Pensiones"]
[null,null,437,"GRUPO INTERNO DE TRABAJO DE GESTION PENSIONAL",null,null,"437.28.01","Cuentas por Cobrar de Cuotas Partes Pensionales"]
[null,null,437,"GRUPO INTERNO DE TRABAJO DE GESTION PENSIONAL",null,null,"437.29.01","Cuentas por Pagar de Cuotas Partes Pensionales"]
[null,null,437,"GRUPO INTERNO DE TRABAJO DE GESTION PENSIONAL",null,null,"437.47.02","Informes a Otros Organismos"]
[null,null,437,"GRUPO INTERNO DE TRABAJO DE GESTION PENSIONAL",null,null,"437.47.08","Informes de Cálculo Actuarial"]
[null,null,437,"GRUPO INTERNO DE TRABAJO DE GESTION PENSIONAL",null,null,"437.47.16","Informes de Gestión"]
[null,null,437,"GRUPO INTERNO DE TRABAJO DE GESTION PENSIONAL"]
[null,null,"N/A","N/A","N/A","N/A","N/A","N/A"]